{"text_format":"1","workbook":"xlsx","n_sheets":8,"sheets":["Einsatz fremde Dünger","Daten","Suisse_Bilanz_1.17","GMF_1.8","Lineare Korrektur","Grafik","Richtwerte Hofdünger","Modul1"],"not_rendered":{"charts":2,"images":0,"macros":1,"external_links":0,"defined_names":82,"comments":4,"pivot_tables":0},"unopened":[{"sheet":"Modul1","index":7,"reason":"part_missing"}],"bounds":{"document_bytes":16777216,"sheet_cells":100000,"rows_first":2000,"rows_last":500,"rows_between":2000,"halvings":0,"cell_chars":16384,"cell_head_chars":4096},"cells_cut":0,"cells_raw":0,"read":"whole","date_system":"1900"}

{"sheet":"Einsatz fremde Dünger","index":0,"n_rows":202,"n_cols":19,"rows_kept":202,"cut":false,"hidden":false,"merged":[[9,12,9,14],[7,8,7,9],[8,8,8,9],[7,12,7,14],[8,12,8,14]]}
["Hinweis: Diese Tabelle weist keine automatischen Bezüge zur Tabelle \"Suisse_Bilanz_…\" auf."]
["Mit dieser Tabelle kann der Saldo-Stand der Nährstoffkontingente für N und P unter dem Jahr nachgeführt werden.",null,null,null,null,null,null,null,null,null,null,null,null,null,null,null,null,null,"Hinweise zur Dateneingabe:"]
["Zuerst den Kopf ausfüllen (gelbe Zellen), sowie die max. möglichen Zufuhren nach aktueller Nährstoffbilanz. ",null,null,null,null,null,null,null,null,null,null,null,null,null,null,null,null,null,"  Hell-Gelbe Zellen: Daten eingeben"]
["Die Einsätze der betriebsfremden Dünger aufführen. Dabei auf korrekte Angaben achten z.B. wenn",null,null,null,null,null,null,null,null,null,null,null,null,null,null,null,null,null,"  grüne Zellen: Daten aus Liste auswählen"]
["die Menge Ammonsalpeter in kg eingegeben wird, den N-Gehalt auch je kg eingeben (also 0.275).",null,null,null,null,null,null,null,null,null,null,null,null,null,null,null,null,null,"  weiss od. andere Farbe: gesperrt, keine Dateneingabe "]
["Zum Ausdrucken die Anzahl Seiten festlegen (Datei - Drucken - Seiten von ... bis ... )."]
[]
[" Einsatz betriebsfremder Düngemittel",null,null,null,null,null,null,"von:",null,null,null,"Betrieb: ",null,null,null,"Nr."]
["   alle betriebsfremden Düngemittel:",null,null,null,null,null,null,"bis: "]
[null,"> betriebsfremde Hofdünger, zugeführtes Stroh zum Streuen, ...",null,null,null,null,null,null,null,null,null,null,null,null,null,null,"Blatt  1"]
[null,"> Kompost, Presswasser, Gärreste ..."]
[null,"> Handelsdünger (inkl. Flüssigdünger, Fertigation, ...), etc.",null,null,null,null,null,null,null,null,null,null,null,"Zwischenergebnisse nach Nährstoffbilanz",null,"kg Nverf","kg P2O5"]
[null,null,null,null,null,null,null,null,null,null,null,null,null,null,"Maximal mögliche Zufuhren auf den Betrieb : "]
[]
["Datum","Parzelle","Kultur","Fläche","Düngemittel","totale","Einheit","Nährstoffgehalt:\nkg pro Einheit",null,null,null,"Nährstoffe total ausgebracht\nkg",null,null,null,"Kontrollrechnung: noch einsetzbar"]
[null,null,null,"ha","Art","Menge","kg,dt,m3, t","N","P2O5","K2O","Mg","Nverf","P2O5","K2O","Mg","Saldo Nverf","Saldo P2O5"]
["2021-03-01","Languri","WW",3,"Ammonsalpeter",5.5,"dt",27,null,null,null,{"$f":"F17*H17","v":148.5},{"$f":"F17*I17","v":0},{"$f":"F17*J17","v":0},{"$f":"F17*K17","v":0},{"$f":"IF(ISBLANK(F17),\"\",$P$13-SUM($L$17:L17))","v":-148.5},{"$f":"IF(ISBLANK(F17),\"\",$Q$13-SUM($M$17:M17))","v":0},null,{"$f":"IF(AND(ISBLANK(F17)=FALSE,ISBLANK(G17)),\"Einheit eintragen (z.B. kg, dt, t, m3, etc.)\",\"\")","v":""}]
[null,null,null,null,null,null,null,null,null,null,null,{"$f":"F18*H18","v":0},0,0,0,{"$f":"IF(ISBLANK(F18),\"\",$P$13-SUM($L$17:L18))","v":""},{"$f":"IF(ISBLANK(F18),\"\",$Q$13-SUM($M$17:M18))","v":""},null,{"$f":"IF(AND(ISBLANK(F18)=FALSE,ISBLANK(G18)),\"Einheit eintragen (z.B. kg, dt, t, m3, etc.)\",\"\")","v":""}]
[null,null,null,null,null,null,null,null,null,null,null,0,0,0,0,{"$f":"IF(ISBLANK(F19),\"\",$P$13-SUM($L$17:L19))","v":""},{"$f":"IF(ISBLANK(F19),\"\",$Q$13-SUM($M$17:M19))","v":""},null,""]
[null,null,null,null,null,null,null,null,null,null,null,0,0,0,0,{"$f":"IF(ISBLANK(F20),\"\",$P$13-SUM($L$17:L20))","v":""},{"$f":"IF(ISBLANK(F20),\"\",$Q$13-SUM($M$17:M20))","v":""},null,""]
[null,null,null,null,null,null,null,null,null,null,null,0,0,0,0,{"$f":"IF(ISBLANK(F21),\"\",$P$13-SUM($L$17:L21))","v":""},{"$f":"IF(ISBLANK(F21),\"\",$Q$13-SUM($M$17:M21))","v":""},null,""]
[null,null,null,null,null,null,null,null,null,null,null,0,0,0,0,{"$f":"IF(ISBLANK(F22),\"\",$P$13-SUM($L$17:L22))","v":""},{"$f":"IF(ISBLANK(F22),\"\",$Q$13-SUM($M$17:M22))","v":""},null,""]
[null,null,null,null,null,null,null,null,null,null,null,0,0,0,0,{"$f":"IF(ISBLANK(F23),\"\",$P$13-SUM($L$17:L23))","v":""},{"$f":"IF(ISBLANK(F23),\"\",$Q$13-SUM($M$17:M23))","v":""},null,""]
[null,null,null,null,null,null,null,null,null,null,null,0,0,0,0,{"$f":"IF(ISBLANK(F24),\"\",$P$13-SUM($L$17:L24))","v":""},{"$f":"IF(ISBLANK(F24),\"\",$Q$13-SUM($M$17:M24))","v":""},null,""]
[null,null,null,null,null,null,null,null,null,null,null,0,0,0,0,{"$f":"IF(ISBLANK(F25),\"\",$P$13-SUM($L$17:L25))","v":""},{"$f":"IF(ISBLANK(F25),\"\",$Q$13-SUM($M$17:M25))","v":""},null,""]
[null,null,null,null,null,null,null,null,null,null,null,0,0,0,0,{"$f":"IF(ISBLANK(F26),\"\",$P$13-SUM($L$17:L26))","v":""},{"$f":"IF(ISBLANK(F26),\"\",$Q$13-SUM($M$17:M26))","v":""},null,""]
[null,null,null,null,null,null,null,null,null,null,null,0,0,0,0,{"$f":"IF(ISBLANK(F27),\"\",$P$13-SUM($L$17:L27))","v":""},{"$f":"IF(ISBLANK(F27),\"\",$Q$13-SUM($M$17:M27))","v":""},null,""]
[null,null,null,null,null,null,null,null,null,null,null,0,0,0,0,{"$f":"IF(ISBLANK(F28),\"\",$P$13-SUM($L$17:L28))","v":""},{"$f":"IF(ISBLANK(F28),\"\",$Q$13-SUM($M$17:M28))","v":""},null,""]
[null,null,null,null,null,null,null,null,null,null,null,0,0,0,0,{"$f":"IF(ISBLANK(F29),\"\",$P$13-SUM($L$17:L29))","v":""},{"$f":"IF(ISBLANK(F29),\"\",$Q$13-SUM($M$17:M29))","v":""},null,""]
[null,null,null,null,null,null,null,null,null,null,null,0,0,0,0,{"$f":"IF(ISBLANK(F30),\"\",$P$13-SUM($L$17:L30))","v":""},{"$f":"IF(ISBLANK(F30),\"\",$Q$13-SUM($M$17:M30))","v":""},null,""]
[null,null,null,null,null,null,null,null,null,null,null,0,0,0,0,{"$f":"IF(ISBLANK(F31),\"\",$P$13-SUM($L$17:L31))","v":""},{"$f":"IF(ISBLANK(F31),\"\",$Q$13-SUM($M$17:M31))","v":""},null,""]
[null,null,null,null,null,null,null,null,null,null,null,0,0,0,0,{"$f":"IF(ISBLANK(F32),\"\",$P$13-SUM($L$17:L32))","v":""},{"$f":"IF(ISBLANK(F32),\"\",$Q$13-SUM($M$17:M32))","v":""},null,""]
[null,null,null,null,null,null,null,null,null,null,null,0,0,0,0,{"$f":"IF(ISBLANK(F33),\"\",$P$13-SUM($L$17:L33))","v":""},{"$f":"IF(ISBLANK(F33),\"\",$Q$13-SUM($M$17:M33))","v":""},null,""]
[null,null,null,null,null,null,null,null,null,null,"Übertrag  ",{"$f":"SUM(L17:L33)","v":148.5},{"$f":"SUM(M17:M33)","v":0},{"$f":"SUM(N17:N33)","v":0},{"$f":"SUM(O17:O33)","v":0},{"$f":"P13-L34","v":-148.5},{"$f":"Q13-M34","v":0}]
[]
["Einsatz betriebsfremder Düngemittel",null,null,null,{"$f":"IF(OR(ISBLANK(I$8),ISBLANK(I$9)),\"Zeitraum (von-bis) zu oberst eingeben\",\"(Fortsetzung \"&DAY(I$8)&\".\"&MONTH(I$8)&\".\"&YEAR(I$8)&\" - \"&DAY(I$9)&\".\"&MONTH(I$9)&\".\"&YEAR(I$9)&\")\")","v":"Zeitraum (von-bis) zu oberst eingeben"},null,null,"Betrieb: ",{"$f":"M$8&\", \"&M$9&\", \"&M$10","v":", , "},null,null,null,null,null,null,{"$f":"\"Nr. \"&Q$8","v":"Nr. "},"Blatt  2"]
[]
["Datum","Parzelle","Kultur","Fläche","Düngemittel","totale","Einheit","Nährstoffgehalt:\nkg pro Einheit",null,null,null,"Nährstoffe total ausgebracht\nkg",null,null,null,"Kontrollrechnung: noch einsetzbar"]
[null,null,null,"ha","Art","Menge","kg,dt,m3, t","N","P2O5","K2O","Mg","Nverf","P2O5","K2O","Mg","Saldo Nverf","Saldo P2O5"]
[null,null,null,null,null,null,null,null,null,null,"Übertrag  ",{"$f":"L34","v":148.5},0,0,0,-148.5,0]
[null,null,null,null,null,null,null,null,null,null,null,{"$f":"F41*H41","v":0},{"$f":"F41*I41","v":0},{"$f":"F41*J41","v":0},{"$f":"F41*K41","v":0},{"$f":"IF(ISBLANK(F41),\"\",$P$40-SUM($L$41:L41))","v":""},{"$f":"IF(ISBLANK(F41),\"\",$Q$40-SUM($M$41:M41))","v":""},null,{"$f":"IF(AND(ISBLANK(F41)=FALSE,ISBLANK(G41)),\"Einheit eintragen (z.B. kg, dt, t, m3, etc.)\",\"\")","v":""}]
[null,null,null,null,null,null,null,null,null,null,null,0,0,0,0,{"$f":"IF(ISBLANK(F42),\"\",$P$40-SUM($L$41:L42))","v":""},{"$f":"IF(ISBLANK(F42),\"\",$Q$40-SUM($M$41:M42))","v":""},null,""]
[null,null,null,null,null,null,null,null,null,null,null,0,0,0,0,{"$f":"IF(ISBLANK(F43),\"\",$P$40-SUM($L$41:L43))","v":""},{"$f":"IF(ISBLANK(F43),\"\",$Q$40-SUM($M$41:M43))","v":""},null,""]
[null,null,null,null,null,null,null,null,null,null,null,0,0,0,0,{"$f":"IF(ISBLANK(F44),\"\",$P$40-SUM($L$41:L44))","v":""},{"$f":"IF(ISBLANK(F44),\"\",$Q$40-SUM($M$41:M44))","v":""},null,""]
[null,null,null,null,null,null,null,null,null,null,null,0,0,0,0,{"$f":"IF(ISBLANK(F45),\"\",$P$40-SUM($L$41:L45))","v":""},{"$f":"IF(ISBLANK(F45),\"\",$Q$40-SUM($M$41:M45))","v":""},null,""]
[null,null,null,null,null,null,null,null,null,null,null,0,0,0,0,{"$f":"IF(ISBLANK(F46),\"\",$P$40-SUM($L$41:L46))","v":""},{"$f":"IF(ISBLANK(F46),\"\",$Q$40-SUM($M$41:M46))","v":""},null,""]
[null,null,null,null,null,null,null,null,null,null,null,0,0,0,0,{"$f":"IF(ISBLANK(F47),\"\",$P$40-SUM($L$41:L47))","v":""},{"$f":"IF(ISBLANK(F47),\"\",$Q$40-SUM($M$41:M47))","v":""},null,""]
[null,null,null,null,null,null,null,null,null,null,null,0,0,0,0,{"$f":"IF(ISBLANK(F48),\"\",$P$40-SUM($L$41:L48))","v":""},{"$f":"IF(ISBLANK(F48),\"\",$Q$40-SUM($M$41:M48))","v":""},null,""]
[null,null,null,null,null,null,null,null,null,null,null,0,0,0,0,{"$f":"IF(ISBLANK(F49),\"\",$P$40-SUM($L$41:L49))","v":""},{"$f":"IF(ISBLANK(F49),\"\",$Q$40-SUM($M$41:M49))","v":""},null,""]
[null,null,null,null,null,null,null,null,null,null,null,0,0,0,0,{"$f":"IF(ISBLANK(F50),\"\",$P$40-SUM($L$41:L50))","v":""},{"$f":"IF(ISBLANK(F50),\"\",$Q$40-SUM($M$41:M50))","v":""},null,""]
[null,null,null,null,null,null,null,null,null,null,null,0,0,0,0,{"$f":"IF(ISBLANK(F51),\"\",$P$40-SUM($L$41:L51))","v":""},{"$f":"IF(ISBLANK(F51),\"\",$Q$40-SUM($M$41:M51))","v":""},null,""]
[null,null,null,null,null,null,null,null,null,null,null,0,0,0,0,{"$f":"IF(ISBLANK(F52),\"\",$P$40-SUM($L$41:L52))","v":""},{"$f":"IF(ISBLANK(F52),\"\",$Q$40-SUM($M$41:M52))","v":""},null,""]
[null,null,null,null,null,null,null,null,null,null,null,0,0,0,0,{"$f":"IF(ISBLANK(F53),\"\",$P$40-SUM($L$41:L53))","v":""},{"$f":"IF(ISBLANK(F53),\"\",$Q$40-SUM($M$41:M53))","v":""},null,""]
[null,null,null,null,null,null,null,null,null,null,null,0,0,0,0,{"$f":"IF(ISBLANK(F54),\"\",$P$40-SUM($L$41:L54))","v":""},{"$f":"IF(ISBLANK(F54),\"\",$Q$40-SUM($M$41:M54))","v":""},null,""]
[null,null,null,null,null,null,null,null,null,null,null,0,0,0,0,{"$f":"IF(ISBLANK(F55),\"\",$P$40-SUM($L$41:L55))","v":""},{"$f":"IF(ISBLANK(F55),\"\",$Q$40-SUM($M$41:M55))","v":""},null,""]
[null,null,null,null,null,null,null,null,null,null,null,0,0,0,0,{"$f":"IF(ISBLANK(F56),\"\",$P$40-SUM($L$41:L56))","v":""},{"$f":"IF(ISBLANK(F56),\"\",$Q$40-SUM($M$41:M56))","v":""},null,""]
[null,null,null,null,null,null,null,null,null,null,null,0,0,0,0,{"$f":"IF(ISBLANK(F57),\"\",$P$40-SUM($L$41:L57))","v":""},{"$f":"IF(ISBLANK(F57),\"\",$Q$40-SUM($M$41:M57))","v":""},null,{"$f":"IF(AND(ISBLANK(F57)=FALSE,ISBLANK(G57)),\"Einheit eintragen (z.B. kg, dt, t, m3, etc.)\",\"\")","v":""}]
[null,null,null,null,null,null,null,null,null,null,null,0,0,0,0,{"$f":"IF(ISBLANK(F58),\"\",$P$40-SUM($L$41:L58))","v":""},{"$f":"IF(ISBLANK(F58),\"\",$Q$40-SUM($M$41:M58))","v":""},null,{"$f":"IF(AND(ISBLANK(F58)=FALSE,ISBLANK(G58)),\"Einheit eintragen (z.B. kg, dt, t, m3, etc.)\",\"\")","v":""}]
[null,null,null,null,null,null,null,null,null,null,null,0,0,0,0,{"$f":"IF(ISBLANK(F59),\"\",$P$40-SUM($L$41:L59))","v":""},{"$f":"IF(ISBLANK(F59),\"\",$Q$40-SUM($M$41:M59))","v":""},null,{"$f":"IF(AND(ISBLANK(F59)=FALSE,ISBLANK(G59)),\"Einheit eintragen (z.B. kg, dt, t, m3, etc.)\",\"\")","v":""}]
[null,null,null,null,null,null,null,null,null,null,null,0,0,0,0,{"$f":"IF(ISBLANK(F60),\"\",$P$40-SUM($L$41:L60))","v":""},{"$f":"IF(ISBLANK(F60),\"\",$Q$40-SUM($M$41:M60))","v":""},null,{"$f":"IF(AND(ISBLANK(F60)=FALSE,ISBLANK(G60)),\"Einheit eintragen (z.B. kg, dt, t, m3, etc.)\",\"\")","v":""}]
[null,null,null,null,null,null,null,null,null,null,null,0,0,0,0,{"$f":"IF(ISBLANK(F61),\"\",$P$40-SUM($L$41:L61))","v":""},{"$f":"IF(ISBLANK(F61),\"\",$Q$40-SUM($M$41:M61))","v":""},null,{"$f":"IF(AND(ISBLANK(F61)=FALSE,ISBLANK(G61)),\"Einheit eintragen (z.B. kg, dt, t, m3, etc.)\",\"\")","v":""}]
[null,null,null,null,null,null,null,null,null,null,"Übertrag  ",{"$f":"SUM(L40:L61)","v":148.5},{"$f":"SUM(M40:M61)","v":0},{"$f":"SUM(N40:N61)","v":0},{"$f":"SUM(O40:O61)","v":0},{"$f":"$P$13-L62","v":-148.5},{"$f":"$Q$13-M62","v":0}]
[]
["Einsatz betriebsfremder Düngemittel",null,null,null,{"$f":"IF(OR(ISBLANK(I$8),ISBLANK(I$9)),\"Zeitraum (von-bis) zu oberst eingeben\",\"(Fortsetzung \"&DAY(I$8)&\".\"&MONTH(I$8)&\".\"&YEAR(I$8)&\" - \"&DAY(I$9)&\".\"&MONTH(I$9)&\".\"&YEAR(I$9)&\")\")","v":"Zeitraum (von-bis) zu oberst eingeben"},null,null,"Betrieb: ",{"$f":"M$8&\", \"&M$9&\", \"&M$10","v":", , "},null,null,null,null,null,null,{"$f":"\"Nr. \"&Q$8","v":"Nr. "},"Blatt  3"]
[]
["Datum","Parzelle","Kultur","Fläche","Düngemittel","totale","Einheit","Nährstoffgehalt:\nkg pro Einheit",null,null,null,"Nährstoffe total ausgebracht\nkg",null,null,null,"Kontrollrechnung: noch einsetzbar"]
[null,null,null,"ha","Art","Menge","kg,dt,m3, t","N","P2O5","K2O","Mg","Nverf","P2O5","K2O","Mg","Saldo Nverf","Saldo P2O5"]
[null,null,null,null,null,null,null,null,null,null,"Übertrag  ",{"$f":"L62","v":148.5},0,0,0,-148.5,0]
[null,null,null,null,null,null,null,null,null,null,null,{"$f":"F69*H69","v":0},{"$f":"F69*I69","v":0},{"$f":"F69*J69","v":0},{"$f":"F69*K69","v":0},{"$f":"IF(ISBLANK(F69),\"\",$P$68-SUM($L$69:L69))","v":""},{"$f":"IF(ISBLANK(F69),\"\",$Q$68-SUM($M$69:M69))","v":""},null,{"$f":"IF(AND(ISBLANK(F69)=FALSE,ISBLANK(G69)),\"Einheit eintragen (z.B. kg, dt, t, m3, etc.)\",\"\")","v":""}]
[null,null,null,null,null,null,null,null,null,null,null,0,0,0,0,{"$f":"IF(ISBLANK(F70),\"\",$P$68-SUM($L$69:L70))","v":""},{"$f":"IF(ISBLANK(F70),\"\",$Q$68-SUM($M$69:M70))","v":""},null,""]
[null,null,null,null,null,null,null,null,null,null,null,0,0,0,0,{"$f":"IF(ISBLANK(F71),\"\",$P$68-SUM($L$69:L71))","v":""},{"$f":"IF(ISBLANK(F71),\"\",$Q$68-SUM($M$69:M71))","v":""},null,""]
[null,null,null,null,null,null,null,null,null,null,null,0,0,0,0,{"$f":"IF(ISBLANK(F72),\"\",$P$68-SUM($L$69:L72))","v":""},{"$f":"IF(ISBLANK(F72),\"\",$Q$68-SUM($M$69:M72))","v":""},null,""]
[null,null,null,null,null,null,null,null,null,null,null,0,0,0,0,{"$f":"IF(ISBLANK(F73),\"\",$P$68-SUM($L$69:L73))","v":""},{"$f":"IF(ISBLANK(F73),\"\",$Q$68-SUM($M$69:M73))","v":""},null,""]
[null,null,null,null,null,null,null,null,null,null,null,0,0,0,0,{"$f":"IF(ISBLANK(F74),\"\",$P$68-SUM($L$69:L74))","v":""},{"$f":"IF(ISBLANK(F74),\"\",$Q$68-SUM($M$69:M74))","v":""},null,""]
[null,null,null,null,null,null,null,null,null,null,null,0,0,0,0,{"$f":"IF(ISBLANK(F75),\"\",$P$68-SUM($L$69:L75))","v":""},{"$f":"IF(ISBLANK(F75),\"\",$Q$68-SUM($M$69:M75))","v":""},null,""]
[null,null,null,null,null,null,null,null,null,null,null,0,0,0,0,{"$f":"IF(ISBLANK(F76),\"\",$P$68-SUM($L$69:L76))","v":""},{"$f":"IF(ISBLANK(F76),\"\",$Q$68-SUM($M$69:M76))","v":""},null,""]
[null,null,null,null,null,null,null,null,null,null,null,0,0,0,0,{"$f":"IF(ISBLANK(F77),\"\",$P$68-SUM($L$69:L77))","v":""},{"$f":"IF(ISBLANK(F77),\"\",$Q$68-SUM($M$69:M77))","v":""},null,""]
[null,null,null,null,null,null,null,null,null,null,null,0,0,0,0,{"$f":"IF(ISBLANK(F78),\"\",$P$68-SUM($L$69:L78))","v":""},{"$f":"IF(ISBLANK(F78),\"\",$Q$68-SUM($M$69:M78))","v":""},null,""]
[null,null,null,null,null,null,null,null,null,null,null,0,0,0,0,{"$f":"IF(ISBLANK(F79),\"\",$P$68-SUM($L$69:L79))","v":""},{"$f":"IF(ISBLANK(F79),\"\",$Q$68-SUM($M$69:M79))","v":""},null,""]
[null,null,null,null,null,null,null,null,null,null,null,0,0,0,0,{"$f":"IF(ISBLANK(F80),\"\",$P$68-SUM($L$69:L80))","v":""},{"$f":"IF(ISBLANK(F80),\"\",$Q$68-SUM($M$69:M80))","v":""},null,""]
[null,null,null,null,null,null,null,null,null,null,null,0,0,0,0,{"$f":"IF(ISBLANK(F81),\"\",$P$68-SUM($L$69:L81))","v":""},{"$f":"IF(ISBLANK(F81),\"\",$Q$68-SUM($M$69:M81))","v":""},null,""]
[null,null,null,null,null,null,null,null,null,null,null,0,0,0,0,{"$f":"IF(ISBLANK(F82),\"\",$P$68-SUM($L$69:L82))","v":""},{"$f":"IF(ISBLANK(F82),\"\",$Q$68-SUM($M$69:M82))","v":""},null,""]
[null,null,null,null,null,null,null,null,null,null,null,0,0,0,0,{"$f":"IF(ISBLANK(F83),\"\",$P$68-SUM($L$69:L83))","v":""},{"$f":"IF(ISBLANK(F83),\"\",$Q$68-SUM($M$69:M83))","v":""},null,""]
[null,null,null,null,null,null,null,null,null,null,null,0,0,0,0,{"$f":"IF(ISBLANK(F84),\"\",$P$68-SUM($L$69:L84))","v":""},{"$f":"IF(ISBLANK(F84),\"\",$Q$68-SUM($M$69:M84))","v":""},null,""]
[null,null,null,null,null,null,null,null,null,null,null,0,0,0,0,{"$f":"IF(ISBLANK(F85),\"\",$P$68-SUM($L$69:L85))","v":""},{"$f":"IF(ISBLANK(F85),\"\",$Q$68-SUM($M$69:M85))","v":""},null,{"$f":"IF(AND(ISBLANK(F85)=FALSE,ISBLANK(G85)),\"Einheit eintragen (z.B. kg, dt, t, m3, etc.)\",\"\")","v":""}]
[null,null,null,null,null,null,null,null,null,null,null,0,0,0,0,{"$f":"IF(ISBLANK(F86),\"\",$P$68-SUM($L$69:L86))","v":""},{"$f":"IF(ISBLANK(F86),\"\",$Q$68-SUM($M$69:M86))","v":""},null,{"$f":"IF(AND(ISBLANK(F86)=FALSE,ISBLANK(G86)),\"Einheit eintragen (z.B. kg, dt, t, m3, etc.)\",\"\")","v":""}]
[null,null,null,null,null,null,null,null,null,null,null,0,0,0,0,{"$f":"IF(ISBLANK(F87),\"\",$P$68-SUM($L$69:L87))","v":""},{"$f":"IF(ISBLANK(F87),\"\",$Q$68-SUM($M$69:M87))","v":""},null,{"$f":"IF(AND(ISBLANK(F87)=FALSE,ISBLANK(G87)),\"Einheit eintragen (z.B. kg, dt, t, m3, etc.)\",\"\")","v":""}]
[null,null,null,null,null,null,null,null,null,null,null,0,0,0,0,{"$f":"IF(ISBLANK(F88),\"\",$P$68-SUM($L$69:L88))","v":""},{"$f":"IF(ISBLANK(F88),\"\",$Q$68-SUM($M$69:M88))","v":""},null,{"$f":"IF(AND(ISBLANK(F88)=FALSE,ISBLANK(G88)),\"Einheit eintragen (z.B. kg, dt, t, m3, etc.)\",\"\")","v":""}]
[null,null,null,null,null,null,null,null,null,null,null,0,0,0,0,{"$f":"IF(ISBLANK(F89),\"\",$P$68-SUM($L$69:L89))","v":""},{"$f":"IF(ISBLANK(F89),\"\",$Q$68-SUM($M$69:M89))","v":""},null,{"$f":"IF(AND(ISBLANK(F89)=FALSE,ISBLANK(G89)),\"Einheit eintragen (z.B. kg, dt, t, m3, etc.)\",\"\")","v":""}]
[null,null,null,null,null,null,null,null,null,null,"Übertrag  ",{"$f":"SUM(L68:L89)","v":148.5},{"$f":"SUM(M68:M89)","v":0},{"$f":"SUM(N68:N89)","v":0},{"$f":"SUM(O68:O89)","v":0},{"$f":"$P$13-L90","v":-148.5},{"$f":"$Q$13-M90","v":0}]
[]
["Einsatz betriebsfremder Düngemittel",null,null,null,{"$f":"IF(OR(ISBLANK(I$8),ISBLANK(I$9)),\"Zeitraum (von-bis) zu oberst eingeben\",\"(Fortsetzung \"&DAY(I$8)&\".\"&MONTH(I$8)&\".\"&YEAR(I$8)&\" - \"&DAY(I$9)&\".\"&MONTH(I$9)&\".\"&YEAR(I$9)&\")\")","v":"Zeitraum (von-bis) zu oberst eingeben"},null,null,"Betrieb: ",{"$f":"M$8&\", \"&M$9&\", \"&M$10","v":", , "},null,null,null,null,null,null,{"$f":"\"Nr. \"&Q$8","v":"Nr. "},"Blatt  4"]
[]
["Datum","Parzelle","Kultur","Fläche","Düngemittel","totale","Einheit","Nährstoffgehalt:\nkg pro Einheit",null,null,null,"Nährstoffe total ausgebracht\nkg",null,null,null,"Kontrollrechnung: noch einsetzbar"]
[null,null,null,"ha","Art","Menge","kg,dt,m3, t","N","P2O5","K2O","Mg","Nverf","P2O5","K2O","Mg","Saldo Nverf","Saldo P2O5"]
[null,null,null,null,null,null,null,null,null,null,"Übertrag  ",{"$f":"L90","v":148.5},0,0,0,-148.5,0]
[null,null,null,null,null,null,null,null,null,null,null,{"$f":"F97*H97","v":0},{"$f":"F97*I97","v":0},{"$f":"F97*J97","v":0},{"$f":"F97*K97","v":0},{"$f":"IF(ISBLANK(F97),\"\",$P$96-SUM($L$97:L97))","v":""},{"$f":"IF(ISBLANK(F97),\"\",$Q$96-SUM($M$97:M97))","v":""},null,{"$f":"IF(AND(ISBLANK(F97)=FALSE,ISBLANK(G97)),\"Einheit eintragen (z.B. kg, dt, t, m3, etc.)\",\"\")","v":""}]
[null,null,null,null,null,null,null,null,null,null,null,0,0,0,0,{"$f":"IF(ISBLANK(F98),\"\",$P$96-SUM($L$97:L98))","v":""},{"$f":"IF(ISBLANK(F98),\"\",$Q$96-SUM($M$97:M98))","v":""},null,""]
[null,null,null,null,null,null,null,null,null,null,null,0,0,0,0,{"$f":"IF(ISBLANK(F99),\"\",$P$96-SUM($L$97:L99))","v":""},{"$f":"IF(ISBLANK(F99),\"\",$Q$96-SUM($M$97:M99))","v":""},null,""]
[null,null,null,null,null,null,null,null,null,null,null,0,0,0,0,{"$f":"IF(ISBLANK(F100),\"\",$P$96-SUM($L$97:L100))","v":""},{"$f":"IF(ISBLANK(F100),\"\",$Q$96-SUM($M$97:M100))","v":""},null,""]
[null,null,null,null,null,null,null,null,null,null,null,0,0,0,0,{"$f":"IF(ISBLANK(F101),\"\",$P$96-SUM($L$97:L101))","v":""},{"$f":"IF(ISBLANK(F101),\"\",$Q$96-SUM($M$97:M101))","v":""},null,""]
[null,null,null,null,null,null,null,null,null,null,null,0,0,0,0,{"$f":"IF(ISBLANK(F102),\"\",$P$96-SUM($L$97:L102))","v":""},{"$f":"IF(ISBLANK(F102),\"\",$Q$96-SUM($M$97:M102))","v":""},null,""]
[null,null,null,null,null,null,null,null,null,null,null,0,0,0,0,{"$f":"IF(ISBLANK(F103),\"\",$P$96-SUM($L$97:L103))","v":""},{"$f":"IF(ISBLANK(F103),\"\",$Q$96-SUM($M$97:M103))","v":""},null,""]
[null,null,null,null,null,null,null,null,null,null,null,0,0,0,0,{"$f":"IF(ISBLANK(F104),\"\",$P$96-SUM($L$97:L104))","v":""},{"$f":"IF(ISBLANK(F104),\"\",$Q$96-SUM($M$97:M104))","v":""},null,""]
[null,null,null,null,null,null,null,null,null,null,null,0,0,0,0,{"$f":"IF(ISBLANK(F105),\"\",$P$96-SUM($L$97:L105))","v":""},{"$f":"IF(ISBLANK(F105),\"\",$Q$96-SUM($M$97:M105))","v":""},null,""]
[null,null,null,null,null,null,null,null,null,null,null,0,0,0,0,{"$f":"IF(ISBLANK(F106),\"\",$P$96-SUM($L$97:L106))","v":""},{"$f":"IF(ISBLANK(F106),\"\",$Q$96-SUM($M$97:M106))","v":""},null,""]
[null,null,null,null,null,null,null,null,null,null,null,0,0,0,0,{"$f":"IF(ISBLANK(F107),\"\",$P$96-SUM($L$97:L107))","v":""},{"$f":"IF(ISBLANK(F107),\"\",$Q$96-SUM($M$97:M107))","v":""},null,""]
[null,null,null,null,null,null,null,null,null,null,null,0,0,0,0,{"$f":"IF(ISBLANK(F108),\"\",$P$96-SUM($L$97:L108))","v":""},{"$f":"IF(ISBLANK(F108),\"\",$Q$96-SUM($M$97:M108))","v":""},null,""]
[null,null,null,null,null,null,null,null,null,null,null,0,0,0,0,{"$f":"IF(ISBLANK(F109),\"\",$P$96-SUM($L$97:L109))","v":""},{"$f":"IF(ISBLANK(F109),\"\",$Q$96-SUM($M$97:M109))","v":""},null,""]
[null,null,null,null,null,null,null,null,null,null,null,0,0,0,0,{"$f":"IF(ISBLANK(F110),\"\",$P$96-SUM($L$97:L110))","v":""},{"$f":"IF(ISBLANK(F110),\"\",$Q$96-SUM($M$97:M110))","v":""},null,""]
[null,null,null,null,null,null,null,null,null,null,null,0,0,0,0,{"$f":"IF(ISBLANK(F111),\"\",$P$96-SUM($L$97:L111))","v":""},{"$f":"IF(ISBLANK(F111),\"\",$Q$96-SUM($M$97:M111))","v":""},null,""]
[null,null,null,null,null,null,null,null,null,null,null,0,0,0,0,{"$f":"IF(ISBLANK(F112),\"\",$P$96-SUM($L$97:L112))","v":""},{"$f":"IF(ISBLANK(F112),\"\",$Q$96-SUM($M$97:M112))","v":""},null,""]
[null,null,null,null,null,null,null,null,null,null,null,0,0,0,0,{"$f":"IF(ISBLANK(F113),\"\",$P$96-SUM($L$97:L113))","v":""},{"$f":"IF(ISBLANK(F113),\"\",$Q$96-SUM($M$97:M113))","v":""},null,{"$f":"IF(AND(ISBLANK(F113)=FALSE,ISBLANK(G113)),\"Einheit eintragen (z.B. kg, dt, t, m3, etc.)\",\"\")","v":""}]
[null,null,null,null,null,null,null,null,null,null,null,0,0,0,0,{"$f":"IF(ISBLANK(F114),\"\",$P$96-SUM($L$97:L114))","v":""},{"$f":"IF(ISBLANK(F114),\"\",$Q$96-SUM($M$97:M114))","v":""},null,{"$f":"IF(AND(ISBLANK(F114)=FALSE,ISBLANK(G114)),\"Einheit eintragen (z.B. kg, dt, t, m3, etc.)\",\"\")","v":""}]
[null,null,null,null,null,null,null,null,null,null,null,0,0,0,0,{"$f":"IF(ISBLANK(F115),\"\",$P$96-SUM($L$97:L115))","v":""},{"$f":"IF(ISBLANK(F115),\"\",$Q$96-SUM($M$97:M115))","v":""},null,{"$f":"IF(AND(ISBLANK(F115)=FALSE,ISBLANK(G115)),\"Einheit eintragen (z.B. kg, dt, t, m3, etc.)\",\"\")","v":""}]
[null,null,null,null,null,null,null,null,null,null,null,0,0,0,0,{"$f":"IF(ISBLANK(F116),\"\",$P$96-SUM($L$97:L116))","v":""},{"$f":"IF(ISBLANK(F116),\"\",$Q$96-SUM($M$97:M116))","v":""},null,{"$f":"IF(AND(ISBLANK(F116)=FALSE,ISBLANK(G116)),\"Einheit eintragen (z.B. kg, dt, t, m3, etc.)\",\"\")","v":""}]
[null,null,null,null,null,null,null,null,null,null,null,0,0,0,0,{"$f":"IF(ISBLANK(F117),\"\",$P$96-SUM($L$97:L117))","v":""},{"$f":"IF(ISBLANK(F117),\"\",$Q$96-SUM($M$97:M117))","v":""},null,{"$f":"IF(AND(ISBLANK(F117)=FALSE,ISBLANK(G117)),\"Einheit eintragen (z.B. kg, dt, t, m3, etc.)\",\"\")","v":""}]
[null,null,null,null,null,null,null,null,null,null,"Übertrag  ",{"$f":"SUM(L96:L117)","v":148.5},{"$f":"SUM(M96:M117)","v":0},{"$f":"SUM(N96:N117)","v":0},{"$f":"SUM(O96:O117)","v":0},{"$f":"$P$13-L118","v":-148.5},{"$f":"$Q$13-M118","v":0}]
[]
["Einsatz betriebsfremder Düngemittel",null,null,null,{"$f":"IF(OR(ISBLANK(I$8),ISBLANK(I$9)),\"Zeitraum (von-bis) zu oberst eingeben\",\"(Fortsetzung \"&DAY(I$8)&\".\"&MONTH(I$8)&\".\"&YEAR(I$8)&\" - \"&DAY(I$9)&\".\"&MONTH(I$9)&\".\"&YEAR(I$9)&\")\")","v":"Zeitraum (von-bis) zu oberst eingeben"},null,null,"Betrieb: ",{"$f":"M$8&\", \"&M$9&\", \"&M$10","v":", , "},null,null,null,null,null,null,{"$f":"\"Nr. \"&Q$8","v":"Nr. "},"Blatt  5"]
[]
["Datum","Parzelle","Kultur","Fläche","Düngemittel","totale","Einheit","Nährstoffgehalt:\nkg pro Einheit",null,null,null,"Nährstoffe total ausgebracht\nkg",null,null,null,"Kontrollrechnung: noch einsetzbar"]
[null,null,null,"ha","Art","Menge","kg,dt,m3, t","N","P2O5","K2O","Mg","Nverf","P2O5","K2O","Mg","Saldo Nverf","Saldo P2O5"]
[null,null,null,null,null,null,null,null,null,null,"Übertrag  ",{"$f":"L118","v":148.5},0,0,0,-148.5,0]
[null,null,null,null,null,null,null,null,null,null,null,{"$f":"F125*H125","v":0},{"$f":"F125*I125","v":0},{"$f":"F125*J125","v":0},{"$f":"F125*K125","v":0},{"$f":"IF(ISBLANK(F125),\"\",$P$124-SUM($L$125:L125))","v":""},{"$f":"IF(ISBLANK(F125),\"\",$Q$124-SUM($M$125:M125))","v":""},null,{"$f":"IF(AND(ISBLANK(F125)=FALSE,ISBLANK(G125)),\"Einheit eintragen (z.B. kg, dt, t, m3, etc.)\",\"\")","v":""}]
[null,null,null,null,null,null,null,null,null,null,null,0,0,0,0,{"$f":"IF(ISBLANK(F126),\"\",$P$124-SUM($L$125:L126))","v":""},{"$f":"IF(ISBLANK(F126),\"\",$Q$124-SUM($M$125:M126))","v":""},null,""]
[null,null,null,null,null,null,null,null,null,null,null,0,0,0,0,{"$f":"IF(ISBLANK(F127),\"\",$P$124-SUM($L$125:L127))","v":""},{"$f":"IF(ISBLANK(F127),\"\",$Q$124-SUM($M$125:M127))","v":""},null,""]
[null,null,null,null,null,null,null,null,null,null,null,0,0,0,0,{"$f":"IF(ISBLANK(F128),\"\",$P$124-SUM($L$125:L128))","v":""},{"$f":"IF(ISBLANK(F128),\"\",$Q$124-SUM($M$125:M128))","v":""},null,""]
[null,null,null,null,null,null,null,null,null,null,null,0,0,0,0,{"$f":"IF(ISBLANK(F129),\"\",$P$124-SUM($L$125:L129))","v":""},{"$f":"IF(ISBLANK(F129),\"\",$Q$124-SUM($M$125:M129))","v":""},null,""]
[null,null,null,null,null,null,null,null,null,null,null,0,0,0,0,{"$f":"IF(ISBLANK(F130),\"\",$P$124-SUM($L$125:L130))","v":""},{"$f":"IF(ISBLANK(F130),\"\",$Q$124-SUM($M$125:M130))","v":""},null,""]
[null,null,null,null,null,null,null,null,null,null,null,0,0,0,0,{"$f":"IF(ISBLANK(F131),\"\",$P$124-SUM($L$125:L131))","v":""},{"$f":"IF(ISBLANK(F131),\"\",$Q$124-SUM($M$125:M131))","v":""},null,""]
[null,null,null,null,null,null,null,null,null,null,null,0,0,0,0,{"$f":"IF(ISBLANK(F132),\"\",$P$124-SUM($L$125:L132))","v":""},{"$f":"IF(ISBLANK(F132),\"\",$Q$124-SUM($M$125:M132))","v":""},null,""]
[null,null,null,null,null,null,null,null,null,null,null,0,0,0,0,{"$f":"IF(ISBLANK(F133),\"\",$P$124-SUM($L$125:L133))","v":""},{"$f":"IF(ISBLANK(F133),\"\",$Q$124-SUM($M$125:M133))","v":""},null,""]
[null,null,null,null,null,null,null,null,null,null,null,0,0,0,0,{"$f":"IF(ISBLANK(F134),\"\",$P$124-SUM($L$125:L134))","v":""},{"$f":"IF(ISBLANK(F134),\"\",$Q$124-SUM($M$125:M134))","v":""},null,""]
[null,null,null,null,null,null,null,null,null,null,null,0,0,0,0,{"$f":"IF(ISBLANK(F135),\"\",$P$124-SUM($L$125:L135))","v":""},{"$f":"IF(ISBLANK(F135),\"\",$Q$124-SUM($M$125:M135))","v":""},null,""]
[null,null,null,null,null,null,null,null,null,null,null,0,0,0,0,{"$f":"IF(ISBLANK(F136),\"\",$P$124-SUM($L$125:L136))","v":""},{"$f":"IF(ISBLANK(F136),\"\",$Q$124-SUM($M$125:M136))","v":""},null,""]
[null,null,null,null,null,null,null,null,null,null,null,0,0,0,0,{"$f":"IF(ISBLANK(F137),\"\",$P$124-SUM($L$125:L137))","v":""},{"$f":"IF(ISBLANK(F137),\"\",$Q$124-SUM($M$125:M137))","v":""},null,""]
[null,null,null,null,null,null,null,null,null,null,null,0,0,0,0,{"$f":"IF(ISBLANK(F138),\"\",$P$124-SUM($L$125:L138))","v":""},{"$f":"IF(ISBLANK(F138),\"\",$Q$124-SUM($M$125:M138))","v":""},null,""]
[null,null,null,null,null,null,null,null,null,null,null,0,0,0,0,{"$f":"IF(ISBLANK(F139),\"\",$P$124-SUM($L$125:L139))","v":""},{"$f":"IF(ISBLANK(F139),\"\",$Q$124-SUM($M$125:M139))","v":""},null,""]
[null,null,null,null,null,null,null,null,null,null,null,0,0,0,0,{"$f":"IF(ISBLANK(F140),\"\",$P$124-SUM($L$125:L140))","v":""},{"$f":"IF(ISBLANK(F140),\"\",$Q$124-SUM($M$125:M140))","v":""},null,""]
[null,null,null,null,null,null,null,null,null,null,null,0,0,0,0,{"$f":"IF(ISBLANK(F141),\"\",$P$124-SUM($L$125:L141))","v":""},{"$f":"IF(ISBLANK(F141),\"\",$Q$124-SUM($M$125:M141))","v":""},null,{"$f":"IF(AND(ISBLANK(F141)=FALSE,ISBLANK(G141)),\"Einheit eintragen (z.B. kg, dt, t, m3, etc.)\",\"\")","v":""}]
[null,null,null,null,null,null,null,null,null,null,null,0,0,0,0,{"$f":"IF(ISBLANK(F142),\"\",$P$124-SUM($L$125:L142))","v":""},{"$f":"IF(ISBLANK(F142),\"\",$Q$124-SUM($M$125:M142))","v":""},null,{"$f":"IF(AND(ISBLANK(F142)=FALSE,ISBLANK(G142)),\"Einheit eintragen (z.B. kg, dt, t, m3, etc.)\",\"\")","v":""}]
[null,null,null,null,null,null,null,null,null,null,null,0,0,0,0,{"$f":"IF(ISBLANK(F143),\"\",$P$124-SUM($L$125:L143))","v":""},{"$f":"IF(ISBLANK(F143),\"\",$Q$124-SUM($M$125:M143))","v":""},null,{"$f":"IF(AND(ISBLANK(F143)=FALSE,ISBLANK(G143)),\"Einheit eintragen (z.B. kg, dt, t, m3, etc.)\",\"\")","v":""}]
[null,null,null,null,null,null,null,null,null,null,null,0,0,0,0,{"$f":"IF(ISBLANK(F144),\"\",$P$124-SUM($L$125:L144))","v":""},{"$f":"IF(ISBLANK(F144),\"\",$Q$124-SUM($M$125:M144))","v":""},null,{"$f":"IF(AND(ISBLANK(F144)=FALSE,ISBLANK(G144)),\"Einheit eintragen (z.B. kg, dt, t, m3, etc.)\",\"\")","v":""}]
[null,null,null,null,null,null,null,null,null,null,null,0,0,0,0,{"$f":"IF(ISBLANK(F145),\"\",$P$124-SUM($L$125:L145))","v":""},{"$f":"IF(ISBLANK(F145),\"\",$Q$124-SUM($M$125:M145))","v":""},null,{"$f":"IF(AND(ISBLANK(F145)=FALSE,ISBLANK(G145)),\"Einheit eintragen (z.B. kg, dt, t, m3, etc.)\",\"\")","v":""}]
[null,null,null,null,null,null,null,null,null,null,"Übertrag  ",{"$f":"SUM(L124:L145)","v":148.5},{"$f":"SUM(M124:M145)","v":0},{"$f":"SUM(N124:N145)","v":0},{"$f":"SUM(O124:O145)","v":0},{"$f":"$P$13-L146","v":-148.5},{"$f":"$Q$13-M146","v":0}]
[]
["Einsatz betriebsfremder Düngemittel",null,null,null,{"$f":"IF(OR(ISBLANK(I$8),ISBLANK(I$9)),\"Zeitraum (von-bis) zu oberst eingeben\",\"(Fortsetzung \"&DAY(I$8)&\".\"&MONTH(I$8)&\".\"&YEAR(I$8)&\" - \"&DAY(I$9)&\".\"&MONTH(I$9)&\".\"&YEAR(I$9)&\")\")","v":"Zeitraum (von-bis) zu oberst eingeben"},null,null,"Betrieb: ",{"$f":"M$8&\", \"&M$9&\", \"&M$10","v":", , "},null,null,null,null,null,null,{"$f":"\"Nr. \"&Q$8","v":"Nr. "},"Blatt  6"]
[]
["Datum","Parzelle","Kultur","Fläche","Düngemittel","totale","Einheit","Nährstoffgehalt:\nkg pro Einheit",null,null,null,"Nährstoffe total ausgebracht\nkg",null,null,null,"Kontrollrechnung: noch einsetzbar"]
[null,null,null,"ha","Art","Menge","kg,dt,m3, t","N","P2O5","K2O","Mg","Nverf","P2O5","K2O","Mg","Saldo Nverf","Saldo P2O5"]
[null,null,null,null,null,null,null,null,null,null,"Übertrag  ",{"$f":"L146","v":148.5},0,0,0,-148.5,0]
[null,null,null,null,null,null,null,null,null,null,null,{"$f":"F153*H153","v":0},{"$f":"F153*I153","v":0},{"$f":"F153*J153","v":0},{"$f":"F153*K153","v":0},{"$f":"IF(ISBLANK(F153),\"\",$P$152-SUM($L$153:L153))","v":""},{"$f":"IF(ISBLANK(F153),\"\",$Q$152-SUM($M$153:M153))","v":""},null,{"$f":"IF(AND(ISBLANK(F153)=FALSE,ISBLANK(G153)),\"Einheit eintragen (z.B. kg, dt, t, m3, etc.)\",\"\")","v":""}]
[null,null,null,null,null,null,null,null,null,null,null,0,0,0,0,{"$f":"IF(ISBLANK(F154),\"\",$P$152-SUM($L$153:L154))","v":""},{"$f":"IF(ISBLANK(F154),\"\",$Q$152-SUM($M$153:M154))","v":""},null,""]
[null,null,null,null,null,null,null,null,null,null,null,0,0,0,0,{"$f":"IF(ISBLANK(F155),\"\",$P$152-SUM($L$153:L155))","v":""},{"$f":"IF(ISBLANK(F155),\"\",$Q$152-SUM($M$153:M155))","v":""},null,""]
[null,null,null,null,null,null,null,null,null,null,null,0,0,0,0,{"$f":"IF(ISBLANK(F156),\"\",$P$152-SUM($L$153:L156))","v":""},{"$f":"IF(ISBLANK(F156),\"\",$Q$152-SUM($M$153:M156))","v":""},null,""]
[null,null,null,null,null,null,null,null,null,null,null,0,0,0,0,{"$f":"IF(ISBLANK(F157),\"\",$P$152-SUM($L$153:L157))","v":""},{"$f":"IF(ISBLANK(F157),\"\",$Q$152-SUM($M$153:M157))","v":""},null,""]
[null,null,null,null,null,null,null,null,null,null,null,0,0,0,0,{"$f":"IF(ISBLANK(F158),\"\",$P$152-SUM($L$153:L158))","v":""},{"$f":"IF(ISBLANK(F158),\"\",$Q$152-SUM($M$153:M158))","v":""},null,""]
[null,null,null,null,null,null,null,null,null,null,null,0,0,0,0,{"$f":"IF(ISBLANK(F159),\"\",$P$152-SUM($L$153:L159))","v":""},{"$f":"IF(ISBLANK(F159),\"\",$Q$152-SUM($M$153:M159))","v":""},null,""]
[null,null,null,null,null,null,null,null,null,null,null,0,0,0,0,{"$f":"IF(ISBLANK(F160),\"\",$P$152-SUM($L$153:L160))","v":""},{"$f":"IF(ISBLANK(F160),\"\",$Q$152-SUM($M$153:M160))","v":""},null,""]
[null,null,null,null,null,null,null,null,null,null,null,0,0,0,0,{"$f":"IF(ISBLANK(F161),\"\",$P$152-SUM($L$153:L161))","v":""},{"$f":"IF(ISBLANK(F161),\"\",$Q$152-SUM($M$153:M161))","v":""},null,""]
[null,null,null,null,null,null,null,null,null,null,null,0,0,0,0,{"$f":"IF(ISBLANK(F162),\"\",$P$152-SUM($L$153:L162))","v":""},{"$f":"IF(ISBLANK(F162),\"\",$Q$152-SUM($M$153:M162))","v":""},null,""]
[null,null,null,null,null,null,null,null,null,null,null,0,0,0,0,{"$f":"IF(ISBLANK(F163),\"\",$P$152-SUM($L$153:L163))","v":""},{"$f":"IF(ISBLANK(F163),\"\",$Q$152-SUM($M$153:M163))","v":""},null,""]
[null,null,null,null,null,null,null,null,null,null,null,0,0,0,0,{"$f":"IF(ISBLANK(F164),\"\",$P$152-SUM($L$153:L164))","v":""},{"$f":"IF(ISBLANK(F164),\"\",$Q$152-SUM($M$153:M164))","v":""},null,""]
[null,null,null,null,null,null,null,null,null,null,null,0,0,0,0,{"$f":"IF(ISBLANK(F165),\"\",$P$152-SUM($L$153:L165))","v":""},{"$f":"IF(ISBLANK(F165),\"\",$Q$152-SUM($M$153:M165))","v":""},null,""]
[null,null,null,null,null,null,null,null,null,null,null,0,0,0,0,{"$f":"IF(ISBLANK(F166),\"\",$P$152-SUM($L$153:L166))","v":""},{"$f":"IF(ISBLANK(F166),\"\",$Q$152-SUM($M$153:M166))","v":""},null,""]
[null,null,null,null,null,null,null,null,null,null,null,0,0,0,0,{"$f":"IF(ISBLANK(F167),\"\",$P$152-SUM($L$153:L167))","v":""},{"$f":"IF(ISBLANK(F167),\"\",$Q$152-SUM($M$153:M167))","v":""},null,""]
[null,null,null,null,null,null,null,null,null,null,null,0,0,0,0,{"$f":"IF(ISBLANK(F168),\"\",$P$152-SUM($L$153:L168))","v":""},{"$f":"IF(ISBLANK(F168),\"\",$Q$152-SUM($M$153:M168))","v":""},null,""]
[null,null,null,null,null,null,null,null,null,null,null,{"$f":"F169*H169","v":0},{"$f":"F169*I169","v":0},{"$f":"F169*J169","v":0},{"$f":"F169*K169","v":0},{"$f":"IF(ISBLANK(F169),\"\",$P$152-SUM($L$153:L169))","v":""},{"$f":"IF(ISBLANK(F169),\"\",$Q$152-SUM($M$153:M169))","v":""},null,{"$f":"IF(AND(ISBLANK(F169)=FALSE,ISBLANK(G169)),\"Einheit eintragen (z.B. kg, dt, t, m3, etc.)\",\"\")","v":""}]
[null,null,null,null,null,null,null,null,null,null,null,{"$f":"F170*H170","v":0},{"$f":"F170*I170","v":0},{"$f":"F170*J170","v":0},{"$f":"F170*K170","v":0},{"$f":"IF(ISBLANK(F170),\"\",$P$152-SUM($L$153:L170))","v":""},{"$f":"IF(ISBLANK(F170),\"\",$Q$152-SUM($M$153:M170))","v":""},null,{"$f":"IF(AND(ISBLANK(F170)=FALSE,ISBLANK(G170)),\"Einheit eintragen (z.B. kg, dt, t, m3, etc.)\",\"\")","v":""}]
[null,null,null,null,null,null,null,null,null,null,null,{"$f":"F171*H171","v":0},{"$f":"F171*I171","v":0},{"$f":"F171*J171","v":0},{"$f":"F171*K171","v":0},{"$f":"IF(ISBLANK(F171),\"\",$P$152-SUM($L$153:L171))","v":""},{"$f":"IF(ISBLANK(F171),\"\",$Q$152-SUM($M$153:M171))","v":""},null,{"$f":"IF(AND(ISBLANK(F171)=FALSE,ISBLANK(G171)),\"Einheit eintragen (z.B. kg, dt, t, m3, etc.)\",\"\")","v":""}]
[null,null,null,null,null,null,null,null,null,null,null,{"$f":"F172*H172","v":0},{"$f":"F172*I172","v":0},{"$f":"F172*J172","v":0},{"$f":"F172*K172","v":0},{"$f":"IF(ISBLANK(F172),\"\",$P$152-SUM($L$153:L172))","v":""},{"$f":"IF(ISBLANK(F172),\"\",$Q$152-SUM($M$153:M172))","v":""},null,{"$f":"IF(AND(ISBLANK(F172)=FALSE,ISBLANK(G172)),\"Einheit eintragen (z.B. kg, dt, t, m3, etc.)\",\"\")","v":""}]
[null,null,null,null,null,null,null,null,null,null,null,{"$f":"F173*H173","v":0},{"$f":"F173*I173","v":0},{"$f":"F173*J173","v":0},{"$f":"F173*K173","v":0},{"$f":"IF(ISBLANK(F173),\"\",$P$152-SUM($L$153:L173))","v":""},{"$f":"IF(ISBLANK(F173),\"\",$Q$152-SUM($M$153:M173))","v":""},null,{"$f":"IF(AND(ISBLANK(F173)=FALSE,ISBLANK(G173)),\"Einheit eintragen (z.B. kg, dt, t, m3, etc.)\",\"\")","v":""}]
[null,null,null,null,null,null,null,null,null,null,"Übertrag  ",{"$f":"SUM(L152:L173)","v":148.5},{"$f":"SUM(M152:M173)","v":0},{"$f":"SUM(N152:N173)","v":0},{"$f":"SUM(O152:O173)","v":0},{"$f":"$P$13-L174","v":-148.5},{"$f":"$Q$13-M174","v":0}]
[]
["Einsatz betriebsfremder Düngemittel",null,null,null,{"$f":"IF(OR(ISBLANK(I$8),ISBLANK(I$9)),\"Zeitraum (von-bis) zu oberst eingeben\",\"(Fortsetzung \"&DAY(I$8)&\".\"&MONTH(I$8)&\".\"&YEAR(I$8)&\" - \"&DAY(I$9)&\".\"&MONTH(I$9)&\".\"&YEAR(I$9)&\")\")","v":"Zeitraum (von-bis) zu oberst eingeben"},null,null,"Betrieb: ",{"$f":"M$8&\", \"&M$9&\", \"&M$10","v":", , "},null,null,null,null,null,null,{"$f":"\"Nr. \"&Q$8","v":"Nr. "},"Blatt  7"]
[]
["Datum","Parzelle","Kultur","Fläche","Düngemittel","totale","Einheit","Nährstoffgehalt:\nkg pro Einheit",null,null,null,"Nährstoffe total ausgebracht\nkg",null,null,null,"Kontrollrechnung: noch einsetzbar"]
[null,null,null,"ha","Art","Menge","kg,dt,m3, t","N","P2O5","K2O","Mg","Nverf","P2O5","K2O","Mg","Saldo Nverf","Saldo P2O5"]
[null,null,null,null,null,null,null,null,null,null,"Übertrag  ",{"$f":"L174","v":148.5},0,0,0,-148.5,0]
[null,null,null,null,null,null,null,null,null,null,null,{"$f":"F181*H181","v":0},{"$f":"F181*I181","v":0},{"$f":"F181*J181","v":0},{"$f":"F181*K181","v":0},{"$f":"IF(ISBLANK(F181),\"\",$P$180-SUM($L$181:L181))","v":""},{"$f":"IF(ISBLANK(F181),\"\",$Q$180-SUM($M$181:M181))","v":""},null,{"$f":"IF(AND(ISBLANK(F181)=FALSE,ISBLANK(G181)),\"Einheit eintragen (z.B. kg, dt, t, m3, etc.)\",\"\")","v":""}]
[null,null,null,null,null,null,null,null,null,null,null,0,0,0,0,{"$f":"IF(ISBLANK(F182),\"\",$P$180-SUM($L$181:L182))","v":""},{"$f":"IF(ISBLANK(F182),\"\",$Q$180-SUM($M$181:M182))","v":""},null,""]
[null,null,null,null,null,null,null,null,null,null,null,0,0,0,0,{"$f":"IF(ISBLANK(F183),\"\",$P$180-SUM($L$181:L183))","v":""},{"$f":"IF(ISBLANK(F183),\"\",$Q$180-SUM($M$181:M183))","v":""},null,""]
[null,null,null,null,null,null,null,null,null,null,null,0,0,0,0,{"$f":"IF(ISBLANK(F184),\"\",$P$180-SUM($L$181:L184))","v":""},{"$f":"IF(ISBLANK(F184),\"\",$Q$180-SUM($M$181:M184))","v":""},null,""]
[null,null,null,null,null,null,null,null,null,null,null,0,0,0,0,{"$f":"IF(ISBLANK(F185),\"\",$P$180-SUM($L$181:L185))","v":""},{"$f":"IF(ISBLANK(F185),\"\",$Q$180-SUM($M$181:M185))","v":""},null,""]
[null,null,null,null,null,null,null,null,null,null,null,0,0,0,0,{"$f":"IF(ISBLANK(F186),\"\",$P$180-SUM($L$181:L186))","v":""},{"$f":"IF(ISBLANK(F186),\"\",$Q$180-SUM($M$181:M186))","v":""},null,""]
[null,null,null,null,null,null,null,null,null,null,null,0,0,0,0,{"$f":"IF(ISBLANK(F187),\"\",$P$180-SUM($L$181:L187))","v":""},{"$f":"IF(ISBLANK(F187),\"\",$Q$180-SUM($M$181:M187))","v":""},null,""]
[null,null,null,null,null,null,null,null,null,null,null,0,0,0,0,{"$f":"IF(ISBLANK(F188),\"\",$P$180-SUM($L$181:L188))","v":""},{"$f":"IF(ISBLANK(F188),\"\",$Q$180-SUM($M$181:M188))","v":""},null,""]
[null,null,null,null,null,null,null,null,null,null,null,0,0,0,0,{"$f":"IF(ISBLANK(F189),\"\",$P$180-SUM($L$181:L189))","v":""},{"$f":"IF(ISBLANK(F189),\"\",$Q$180-SUM($M$181:M189))","v":""},null,""]
[null,null,null,null,null,null,null,null,null,null,null,0,0,0,0,{"$f":"IF(ISBLANK(F190),\"\",$P$180-SUM($L$181:L190))","v":""},{"$f":"IF(ISBLANK(F190),\"\",$Q$180-SUM($M$181:M190))","v":""},null,""]
[null,null,null,null,null,null,null,null,null,null,null,0,0,0,0,{"$f":"IF(ISBLANK(F191),\"\",$P$180-SUM($L$181:L191))","v":""},{"$f":"IF(ISBLANK(F191),\"\",$Q$180-SUM($M$181:M191))","v":""},null,""]
[null,null,null,null,null,null,null,null,null,null,null,0,0,0,0,{"$f":"IF(ISBLANK(F192),\"\",$P$180-SUM($L$181:L192))","v":""},{"$f":"IF(ISBLANK(F192),\"\",$Q$180-SUM($M$181:M192))","v":""},null,""]
[null,null,null,null,null,null,null,null,null,null,null,0,0,0,0,{"$f":"IF(ISBLANK(F193),\"\",$P$180-SUM($L$181:L193))","v":""},{"$f":"IF(ISBLANK(F193),\"\",$Q$180-SUM($M$181:M193))","v":""},null,""]
[null,null,null,null,null,null,null,null,null,null,null,0,0,0,0,{"$f":"IF(ISBLANK(F194),\"\",$P$180-SUM($L$181:L194))","v":""},{"$f":"IF(ISBLANK(F194),\"\",$Q$180-SUM($M$181:M194))","v":""},null,""]
[null,null,null,null,null,null,null,null,null,null,null,0,0,0,0,{"$f":"IF(ISBLANK(F195),\"\",$P$180-SUM($L$181:L195))","v":""},{"$f":"IF(ISBLANK(F195),\"\",$Q$180-SUM($M$181:M195))","v":""},null,""]
[null,null,null,null,null,null,null,null,null,null,null,0,0,0,0,{"$f":"IF(ISBLANK(F196),\"\",$P$180-SUM($L$181:L196))","v":""},{"$f":"IF(ISBLANK(F196),\"\",$Q$180-SUM($M$181:M196))","v":""},null,""]
[null,null,null,null,null,null,null,null,null,null,null,{"$f":"F197*H197","v":0},{"$f":"F197*I197","v":0},{"$f":"F197*J197","v":0},{"$f":"F197*K197","v":0},{"$f":"IF(ISBLANK(F197),\"\",$P$180-SUM($L$181:L197))","v":""},{"$f":"IF(ISBLANK(F197),\"\",$Q$180-SUM($M$181:M197))","v":""},null,{"$f":"IF(AND(ISBLANK(F197)=FALSE,ISBLANK(G197)),\"Einheit eintragen (z.B. kg, dt, t, m3, etc.)\",\"\")","v":""}]
[null,null,null,null,null,null,null,null,null,null,null,{"$f":"F198*H198","v":0},{"$f":"F198*I198","v":0},{"$f":"F198*J198","v":0},{"$f":"F198*K198","v":0},{"$f":"IF(ISBLANK(F198),\"\",$P$180-SUM($L$181:L198))","v":""},{"$f":"IF(ISBLANK(F198),\"\",$Q$180-SUM($M$181:M198))","v":""},null,{"$f":"IF(AND(ISBLANK(F198)=FALSE,ISBLANK(G198)),\"Einheit eintragen (z.B. kg, dt, t, m3, etc.)\",\"\")","v":""}]
[null,null,null,null,null,null,null,null,null,null,null,{"$f":"F199*H199","v":0},{"$f":"F199*I199","v":0},{"$f":"F199*J199","v":0},{"$f":"F199*K199","v":0},{"$f":"IF(ISBLANK(F199),\"\",$P$180-SUM($L$181:L199))","v":""},{"$f":"IF(ISBLANK(F199),\"\",$Q$180-SUM($M$181:M199))","v":""},null,{"$f":"IF(AND(ISBLANK(F199)=FALSE,ISBLANK(G199)),\"Einheit eintragen (z.B. kg, dt, t, m3, etc.)\",\"\")","v":""}]
[null,null,null,null,null,null,null,null,null,null,null,{"$f":"F200*H200","v":0},{"$f":"F200*I200","v":0},{"$f":"F200*J200","v":0},{"$f":"F200*K200","v":0},{"$f":"IF(ISBLANK(F200),\"\",$P$180-SUM($L$181:L200))","v":""},{"$f":"IF(ISBLANK(F200),\"\",$Q$180-SUM($M$181:M200))","v":""},null,{"$f":"IF(AND(ISBLANK(F200)=FALSE,ISBLANK(G200)),\"Einheit eintragen (z.B. kg, dt, t, m3, etc.)\",\"\")","v":""}]
[null,null,null,null,null,null,null,null,null,null,null,{"$f":"F201*H201","v":0},{"$f":"F201*I201","v":0},{"$f":"F201*J201","v":0},{"$f":"F201*K201","v":0},{"$f":"IF(ISBLANK(F201),\"\",$P$180-SUM($L$181:L201))","v":""},{"$f":"IF(ISBLANK(F201),\"\",$Q$180-SUM($M$181:M201))","v":""},null,{"$f":"IF(AND(ISBLANK(F201)=FALSE,ISBLANK(G201)),\"Einheit eintragen (z.B. kg, dt, t, m3, etc.)\",\"\")","v":""}]
[null,null,null,null,null,null,null,null,null,null,"Übertrag  ",{"$f":"SUM(L180:L201)","v":148.5},{"$f":"SUM(M180:M201)","v":0},{"$f":"SUM(N180:N201)","v":0},{"$f":"SUM(O180:O201)","v":0},{"$f":"$P$13-L202","v":-148.5},{"$f":"$Q$13-M202","v":0}]

{"sheet":"Daten","index":1,"n_rows":486,"n_cols":31,"rows_kept":486,"cut":false,"hidden":false,"merged":[[0,0,0,3],[352,10,352,11],[309,12,309,13],[242,12,242,13],[353,10,353,11],[288,20,288,21],[2,12,5,12],[323,5,323,11],[288,22,288,23],[288,17,288,19]]}
["Spalten für Listen (Daten > Gültigkeit > Liste)",null,null,null," Datentabelle für Nährstoffhaushalt-Berechnung mit EXCEL-Prg. SB 1.17 (nach Wegleitung Suisse-Bilanz, BLW / agridea)",null,null,null,null,null,null,null,null," Bem./Hinweise","Korrektur N-Düngung (Grudaf Tab. 17)",null,null,null,null,null,null,null,null,"für",{"$f":"Suisse_Bilanz_1.17!K7","v":"ÖLN"},"stop","für BIO-Variante","  Sollte mind. 80% sein, wegen N-Korrektur (wenn mit BIO-Standard-Ertrag gerechnet wird d.h. kein betriebsspez. Ertrag eingegeben wird) "]
[]
["Namen (Einfügen Namen definieren)",null,null,"Bemerkungen","Abkürz.","Kultur","Einheit","Ertrag","N","P2O5","K2O","Mg","Code Betriebs-erhebungs-formular",null,"N-Korrektur-","max.","max. N-",null,"Bemerkungen",null,null,null,null,null,"Standard-",null,"BIO-Standard-"]
[null,null,null,null,null,null,null,"pro ha","kg /ha","kg pro Ertragseinheit oder ha",null,null,null,null,"Faktor ","Ertrag","Zuschlag",null,null,null,null,null,null,null,"ertrag",null,"Ertrag (Kt. TG)"]
["Kulturen_","  ",null,null,"Ackerkulturen, Gründüngung (= offenes Ackerland)",null,null,null,null,null,null,null,null,null,"kg N / dt Körner","dt/ha","kg N/ha",null,null,null,null,null,null,null,"in SB",null,"pro ha","in % REF-Ertrag"]
["Acker",{"$f":"F6","v":" -"},null,null,0," -",null,null,null,null,null,null,null,null,null,null,null,null,null,null,null,null,null,null,null,null,null,{"$f":"IF(AND(ISNUMBER(H6),H6>0),IF(AA6/H6<0.8,\"Bio-Ertrag zu tief\",AA6/H6),\"\")","v":""}]
[null,"Ackerbohnen",null,null,"ab","Ackerbohnen","dt Kö",40,0,1.4,2.13,0.25,536,null,null,null,null,null,null,null,null,null,null,null,{"$f":"IF(Y$1=\"BIO\",AA7,H7)","v":40},null,40,{"$f":"IF(AND(ISNUMBER(H7),H7>0),IF(AA7/H7<0.8,\"Bio-Ertrag zu tief\",AA7/H7),\"\")","v":1}]
[null,"Ackerschonstreifen",null,"neu 1.13","as","Ackerschonstreifen","ha",0,0,40,5,6,null,null,null,null,null,null,"Angabe in kg/ha, nicht an Ertrag anzupassen",null,null,null,null,null,{"$f":"IF(Y$1=\"BIO\",AA8,H8)","v":0},null,0,""]
[null,"CCM-Mais",null,null,"ccm","CCM-Mais","dt Kö",100,110,0.76,0.4,0.09,null,null,null,null,null,null,"mit Norm von Körnermais rechnen, unabhängig vom TS-Gehalt (= Anweisung BLW/Qualinova, 2018)",null,null,null,null,null,100,null,80,0.8]
[null,"Eiweisserbsen",null,null,"ee","Eiweisserbsen","dt Kö",40,0,0.98,1.84,0.13,537,null,null,null,null,null,null,null,null,null,null,null,40,null,50,1.25]
[null,"Emmer / Einkorn",null,null,"em","Emmer / Einkorn","dt Kö",25,30,0.8,0.06,0.16,511,null,null,null,null,null,null,null,null,null,null,null,25,null,25,1]
[null,"Frühkartoffeln",null,null,"fk","Frühkartoffeln","dt Knollen",300,110,0.19,0.69,0.03,524," entweder alle Kart. als \"Standard-Kart.\" erfassen oder alle sortenspezifisch ",null,null,null,null,null,null,null,null,null,null,300,null,250,0.83333333333333337]
[null,"Frühkartoffeln Gruppe a",null,null,"fka","Frühkartoffeln Gruppe a","dt Knollen",300,70,0.19,0.69,0.03,524," Gruppe a (geringer N-Bedarf): Agria, Fontane, Jelly, Nicola",null,null,null,null,null,null,null,null,null,null,300,null,250,{"$f":"IF(AND(ISNUMBER(H13),H13>0),IF(AA13/H13<0.8,\"Bio-Ertrag zu tief\",AA13/H13),\"\")","v":0.83333333333333337}]
[null,"Frühkartoffeln Gruppe b",null,null,"fkb","Frühkartoffeln Gruppe b","dt Knollen",300,110,0.19,0.69,0.03,524," Gruppe b (N-Standardbedarf): alle Sorten, die nicht in Gruppe a oder Gruppe c sind (Agata, Annabelle, Amandine, Bintje, Celtiane, Challenger, Désireée, Ditta, Erika, Gourmandine, Gwenne, Hermes, Lady Christl, Laura, Markies, Panda, Pirol, Venezia, Verdi, weitere nicht aufgeführte Sorten",null,null,null,null,null,null,null,null,null,null,300,null,250,0.83333333333333337]
[null,"Frühkartoffeln Gruppe c",null,null,"fkc","Frühkartoffeln Gruppe c","dt Knollen",300,150,0.19,0.69,0.03,524," Gruppe c (höherer N-Bedarf): Charlotte, Innovator, Lady Claire, Lady Rosetta, Victoria",null,null,null,null,null,null,null,null,null,null,300,null,250,0.83333333333333337]
[null,"Futterrüben -> Eingabe bei Grundfutterproduktion !",null,null,"fr","Futterrüben -> Eingabe bei Grundfutterproduktion !",null,null,null,null,null,null,523,null,null,null,null,null,null,null,null,null,null,null,0,null,0,""]
[null,"Gründüngung (Nichtlegum., 35 dt TS)",null,null,"gd","Gründüngung (Nichtlegum., 35 dt TS)","ha",null,30,0,0,0,null,null,null,null,null,null,"Norm-Ansatz in kg/ha",null,null,null,null,null,0,null,0,""]
[null,"Gründüngung (Leguminosen, 35 dt TS)",null,null,"gdl","Gründüngung (Leguminosen, 35 dt TS)","ha",null,0,0,0,0,null,null,null,null,null,null,"Norm-Ansatz in kg/ha",null,null,null,null,null,0,null,0,""]
[null,"Grünmais (2. Kultur) -> Eingabe bei Grundfutterproduktion !",null,null,"gm","Grünmais (2. Kultur) -> Eingabe bei Grundfutterproduktion !",null,null,null,null,null,null,null,null,null,null,null,null,null,null,null,null,null,null,0,null,0,""]
[null,"Hanf, Faser-",null,null,"haf","Hanf, Faser-","dt Hauptprodukt",100,100,0.3,0.9,0.05,535,null,null,null,null,null,null,null,null,null,null,null,100,null,100,1]
[null,"Hanf, Oel-",null,null,"haö","Hanf, Oel-","dt Kö",13,60,2.54,1.08,0.54,535,null,null,null,null,null,null,null,null,null,null,null,13,null,13,1]
[null,"Hirse",null,null,"hir","Hirse","dt Kö",35,70,0.66,0.28999999999999998,0.11,null,null,null,null,null,null,null,null,null,null,null,null,35,null,30,{"$f":"IF(AND(ISNUMBER(H22),H22>0),IF(AA22/H22<0.8,\"Bio-Ertrag zu tief\",AA22/H22),\"\")","v":0.8571428571428571}]
[null,"Kartoffeln Speise-, Verarb.-",null,null,"ka","Kartoffeln Speise-, Verarb.-","dt Knollen",450,120,0.16,0.71,0.03,524," entweder alle Kart. als \"Standard-Kart.\" erfassen oder alle sortenspezifisch ",null,null,null,null,null,null,null,null,null,null,450,null,370,0.82222222222222219]
[null,"Kartoffeln Gruppe a, Speise-, Verarb.-",null,null,"kaa","Kartoffeln Gruppe a, Speise-, Verarb.-","dt Knollen",450,80,0.16,0.71,0.03,524," Gruppe a (geringer N-Bedarf): Agria, Fontane, Jelly, Nicola",null,null,null,null,null,null,null,null,null,null,450,null,370,{"$f":"IF(AND(ISNUMBER(H24),H24>0),IF(AA24/H24<0.8,\"Bio-Ertrag zu tief\",AA24/H24),\"\")","v":0.82222222222222219}]
[null,"Kartoffeln Gruppe b, Speise-, Verarb.-",null,null,"kab","Kartoffeln Gruppe b, Speise-, Verarb.-","dt Knollen",450,120,0.16,0.71,0.03,524," Gruppe b (N-Standardbedarf): alle Sorten, die nicht in Gruppe a oder Gruppe c sind (Agata, Annabelle, Amandine, Bintje, Celtiane, Challenger, Désireée, Ditta, Erika, Gourmandine, Gwenne, Hermes, Lady Christl, Laura, Markies, Panda, Pirol, Venezia, Verdi, weitere nicht aufgeführte Sorten",null,null,null,null,null,null,null,null,null,null,450,null,370,0.82222222222222219]
[null,"Kartoffeln Gruppe c, Speise-, Verarb.-",null,null,"kac","Kartoffeln Gruppe c, Speise-, Verarb.-","dt Knollen",450,160,0.16,0.71,0.03,524," Gruppe c (höherer N-Bedarf): Charlotte, Innovator, Lady Claire, Lady Rosetta, Victoria",null,null,null,null,null,null,null,null,null,null,450,null,370,0.82222222222222219]
[null,"Kenaf",null,null,"kf","Kenaf","dt TS",50,70,1.2,1.6,0.2,552,null,null,null,null,null,null,null,null,null,null,null,50,null,50,1]
[null,"Korn (Dinkel)",null,null,"ko","Korn (Dinkel)","dt Kö",45,100,0.8,0.04,0.11,516,null,null,null,null,null,null,null,null,null,null,null,45,null,45,1]
[null,"Körnermais (86% TS)",null,null,"km","Körnermais (86% TS)","dt Kö",100,110,0.76,0.4,0.09,508,null,null,null,null,null,null,null,null,null,null,null,100,null,80,0.8]
[null,"Lein, Faser-",null,null,"lf","Lein, Faser-","dt Fasern",45,60,0.71,2,0.2,534,null,null,null,null,null,null,null,null,null,null,null,45,null,45,1]
[null,"Lein, Oel-",null,null,"lo","Lein, Oel-","dt Kö",20,80,1.2,0.95,0.05,534,null,null,null,null,null,null,null,null,null,null,null,20,null,20,1]
[null,"Nicht aufgeführte Kulturen (Leguminosen)",null,null,"nkl","Nicht aufgeführte Kulturen (Leguminosen)","ha",null,0,60,120,10,null,null,null,null,null,null,"Norm-Ansatz in kg/ha",null,null,null,null,null,0,null,0,""]
[null,"Nicht aufgeführte Kulturen (Nicht-Leg., Mischungen von Leg. und Nicht-Leg.)",null,null,"nknl","Nicht aufgeführte Kulturen (Nicht-Leg., Mischungen von Leg. und Nicht-Leg.)","ha",null,80,60,120,10,null,null,null,null,null,null,"Norm-Ansatz in kg/ha",null,null,null,null,null,0,null,0,""]
[null,"Raps Winter-",null,null,"wr","Raps Winter-","dt Kö",35,150,1.43,0.86,0.23,"527, 591",null,3,45,{"$f":"(P34-H34)*O34","v":30},null,null,null,null,null,null,null,35,null,35,1]
[null,"Raps Winter-, Nitrat-Projekt",null,null,"wrnp","Raps Winter-, Nitrat-Projekt","dt Kö",35,150,1.43,0.86,0.23,"527, 591",null,3,35,0,null,"wenn Parzelle in Nitrat-Projekt nach Art. 62a Gewässerschutzgesetz",null,null,null,null,null,35,null,35,1]
[null,"Reis",null,null,"re","Reis","dt Kö",60,110,0.7,0.53,0.08,null,null,null,null,null,null,null,null,null,null,null,null,60,null,60,{"$f":"IF(AND(ISNUMBER(H36),H36>0),IF(AA36/H36<0.8,\"Bio-Ertrag zu tief\",AA36/H36),\"\")","v":1}]
[null,"Pflanzkartoffeln",null,null,"pk","Pflanzkartoffeln","dt Knollen",250,100,0.19,0.71,0.03,524," entweder alle Kart. als \"Standard-Kart.\" erfassen oder alle sortenspezifisch ",null,null,null,"Gruppeneinteilung nach Agroscope Transfer, Nr. 362, Dezember 2020",null,null,null,null,null,null,250,null,250,1]
[null,"Pflanzkartoffeln Gruppe a",null,null,"pka","Pflanzkartoffeln Gruppe a","dt Knollen",250,60,0.19,0.71,0.03,524," Gruppe a (geringer N-Bedarf): Desirée, Gourmandine, Gwenne, Jelly, Laura ",null,null,null,null,null,null,null,null,null,null,250,null,250,1]
[null,"Pflanzkartoffeln Gruppe b",null,null,"pkb","Pflanzkartoffeln Gruppe b","dt Knollen",250,100,0.19,0.71,0.03,524," Gruppe b (N-Standardbedarf): alle Sorten, die nicht in Gruppe a oder Gruppe c sind (Agata, Alexandra, Amandine, Annabelle, Antina, Ballerina, Belminda, Bintje, Celtiane, Charlotte, Concordia, Ditta, Erika, Hermes, Innovator, Ivory, Russet, Kiebitz, Lady Anna, Lady Christl, Lady Rosetta, Marabel, Nicola, Osira, Venezia, Verdi, Victoria, weitere nicht aufgeführte Sorten",null,null,null,null,null,null,null,null,null,null,250,null,250,1]
[null,"Pflanzkartoffeln Gruppe c",null,null,"pkc","Pflanzkartoffeln Gruppe c","dt Knollen",250,140,0.19,0.71,0.03,524," Gruppe c (höherer N-Bedarf): Figaro, Fontane, Lady Claire, Markies, Pirol, Queen Anne ",null,null,null,null,null,null,null,null,null,null,250,null,250,1]
[null,"Sommerraps",null,null,"sr","Sommerraps","dt Kö",25,120,1.48,0.84,0.28000000000000003,"526, 590",null,null,null,null,null,null,null,null,null,null,null,25,null,25,1]
[null,"Silomais -> Eingabe bei Grundfutterproduktion !",null,null,"sm","Silomais -> Eingabe bei Grundfutterproduktion !",null,null,null,null,null,null,521,null,null,null,null,null,null,null,null,null,null,null,0,null,0,""]
[null,"Soja",null,null,"so","Soja","dt Kö",30,0,1.17,2.75,0.2,528,null,null,null,null,null,null,null,null,null,null,null,30,null,30,1]
[null,"Sommergerste",null,null,"sg","Sommergerste","dt Kö",55,90,0.84,0.55000000000000004,0.11,501,null,null,null,null,null,null,null,null,null,null,null,55,null,45,0.81818181818181823]
[null,"Sommerhafer",null,null,"sh","Sommerhafer","dt Kö",55,90,0.8,0.51,0.11,504,null,null,null,null,null,null,null,null,null,null,null,55,null,50,0.90909090909090906]
[null,"Sommertriticale",null,null,"st","Sommertriticale","dt Kö",55,100,0.71,0.49,0.09,505,null,null,null,null,null,null,null,null,null,null,null,55,null,45,0.81818181818181823]
[null,"Sommerweizen",null,null,"sw","Sommerweizen","dt Kö",50,120,0.82,0.44,0.12,512,null,null,null,null,null,null,null,null,null,null,null,50,null,45,0.9]
[null,"Sonnenblumen",null,null,"sb","Sonnenblumen","dt Kö",30,60,1.1000000000000001,0.83,0.3,"531, 592",null,null,null,null,null,null,null,null,null,null,null,30,null,30,1]
[null,"Süsslupine",null,null,"sl","Süsslupine","dt Kö",30,0,1,2.04,0.2,538,null,null,null,null,null,null,null,null,null,null,null,30,null,30,1]
[null,"Tabak Burley",null,null,"tb","Tabak Burley","dt TS Blätter",25,170,0.72,5,0.28000000000000003,541,null,null,null,null,null,null,null,null,null,null,null,25,null,25,1]
[null,"Tabak Virgine",null,null,"tv","Tabak Virgine","dt TS Blätter",25,30,0.56000000000000005,4.76,0.2,541,null,null,null,null,null,null,null,null,null,null,null,25,null,25,1]
[null,"Winterhafer",null,null,"wh","Winterhafer","dt Kö",55,90,0.8,0,0.11,504,null,null,null,null,null,null,null,null,null,null,null,55,null,50,0.90909090909090906]
[null,"Wintergerste",null,null,"wg","Wintergerste","dt Kö",60,110,0.85,0.11,0.12,502,null,0.7,90,{"$f":"(P53-H53)*O53","v":21},null,null,null,null,null,null,null,60,null,48,0.8]
[null,"Wintergerste, Nitrat-Projekt",null,null,"wgnp","Wintergerste, Nitrat-Projekt","dt Kö",60,110,0.85,0.11,0.12,502,null,0.7,60,0,null,"wenn Parzelle in Nitrat-Projekt nach Art. 62a Gewässerschutzgesetz",null,null,null,null,null,60,null,48,0.8]
[null,"Winterroggen (Populationssorten)",null,null,"rp","Winterroggen (Populationssorten)","dt Kö",55,90,0.8,0.1,0.11,514,null,0.8,80,{"$f":"(P55-H55)*O55","v":20},null,null,null,null,null,null,null,55,null,50,0.90909090909090906]
[null,"Winterroggen (Populationssorten), Nitrat-Projekt",null,null,"rpnp","Winterroggen (Populationssorten), Nitrat-Projekt","dt Kö",55,90,0.8,0.1,0.11,514,null,0.8,55,0,null,"wenn Parzelle in Nitrat-Projekt nach Art. 62a Gewässerschutzgesetz",null,null,null,null,null,55,null,50,0.90909090909090906]
[null,"Winterroggen (Hybridsorten)",null,null,"rh","Winterroggen (Hybridsorten)","dt Kö",65,90,0.8,0.13,0.11,514,null,1.2,90,{"$f":"(P57-H57)*O57","v":30},null,null,null,null,null,null,null,65,null,55,0.84615384615384615]
[null,"Winterroggen (Hybridsorten), Nitrat-Projekt",null,null,"rhnp","Winterroggen (Hybridsorten), Nitrat-Projekt","dt Kö",65,90,0.8,0.13,0.11,514,null,1.2,65,0,null,"wenn Parzelle in Nitrat-Projekt nach Art. 62a Gewässerschutzgesetz",null,null,null,null,null,65,null,55,0.84615384615384615]
[null,"Wintertriticale",null,null,"wt","Wintertriticale","dt Kö",60,110,0.72,0,0.08,505,null,0.3,95,{"$f":"(P59-H59)*O59","v":10.5},null,null,null,null,null,null,null,60,null,50,0.83333333333333337]
[null,"Wintertriticale, Nitrat-Projekt",null,null,"wtnp","Wintertriticale, Nitrat-Projekt","dt Kö",60,110,0.72,0,0.08,505,null,0.3,60,0,null,"wenn Parzelle in Nitrat-Projekt nach Art. 62a Gewässerschutzgesetz",null,null,null,null,null,60,null,50,0.83333333333333337]
[null,"Winterweizen (Brot- und Biskuit)",null,null,"ww","Winterweizen (Brot- und Biskuit)","dt Kö",60,140,0.83,0.1,0.12,513,null,1,80,{"$f":"(P61-H61)*O61","v":20},null,null,null,null,null,null,null,60,null,50,0.83333333333333337]
[null,"Winterweizen, Nitrat-Projekt",null,null,"wwnp","Winterweizen, Nitrat-Projekt","dt Kö",60,140,0.83,0.1,0.12,513,null,1,60,0,null,"wenn Parzelle in Nitrat-Projekt nach Art. 62a Gewässerschutzgesetz",null,null,null,null,null,60,null,50,0.83333333333333337]
[null,{"$f":"F63","v":"Winter-Futterweizen"},null,null,"fw","Winter-Futterweizen","dt Kö",75,140,0.83,0.14000000000000001,0.12,512,null,1,95,{"$f":"(P63-H63)*O63","v":20},null,null,null,null,null,null,null,{"$f":"IF(Y$1=\"BIO\",AA63,H63)","v":75},null,65,{"$f":"IF(AND(ISNUMBER(H63),H63>0),IF(AA63/H63<0.8,\"Bio-Ertrag zu tief\",AA63/H63),\"\")","v":0.8666666666666667}]
[null,"Winter-Futterweizen, Nitrat-Projekt",null,null,"fwnp","Winter-Futterweizen, Nitrat-Projekt","dt Kö",75,140,0.83,0.14000000000000001,0.12,512,null,1,75,0,null,"wenn Parzelle in Nitrat-Projekt nach Art. 62a Gewässerschutzgesetz",null,null,null,null,null,75,null,65,0.8666666666666667]
[null,"Zuckerrüben",null,null,"zr","Zuckerrüben","dt Rüben",900,100,0.06,0.09,0.03,522,null,null,null,null,null,null,null,null,null,null,null,900,null,720,0.8]
[]
[]
[null,null,null,null,null,null,null,null,null,null,null,null,null,null,null,null,null,null,null,null,null,null,null,null,null,"stop"]
[]
[null," -",null,null,"Abkürz.","Kultur","Einheit","Ertrag","N","P2O5","K2O","Mg",null,null,null,null,null,null,null," = Bereich, welcher (nebst dem Gemüse) als 2.Kultur angewählt werden kann"]
[null,"Gründüngung (Nichtlegum., 35 dt TS)",null,null,null,null,null,"pro ha",null,"kg pro Einheit "]
[null,"Gründüngung (Leguminosen, 35 dt TS)",null,null,"Freilandgemüse, Blumen (= offenes Ackerland), 1-jährige Erdbeeren"]
[null,{"$f":"B22","v":"Hirse"},null,null,{"$f":"E22","v":"hir"},"Hirse","dt Kö",35,70,0.66,0.28999999999999998,0.11,0,null,null,null,null,null,null,null,null,null,null,null,{"$f":"Y22","v":35},0,30,0.8571428571428571]
[null,"   "]
[null,"         Liste für Gemüse als 2.Kultur"]
["Gemüse"," -",null,null,0," -"]
[null,"Aubergine",null,null,"aub","Aubergine","ha",null,170,20,130,10]
[null,"Blumen, Schnitt-, klein",null,null,"blu1","Blumen, Schnitt-, klein","ha",null,140,100,150,30]
[null,"Blumen, Schnitt-, mittel",null,null,"blu2","Blumen, Schnitt-, mittel","ha",null,230,140,250,40]
[null,"Blumen, Schnitt-, gross",null,null,"blu3","Blumen, Schnitt-, gross","ha",null,320,180,350,60]
[null,"Blumenkohl",null,null,"blk","Blumenkohl","ha",null,260,40,120,10]
[null,"Bodenkohlrabi",null,null,"bkr","Bodenkohlrabi","ha",null,150,30,120,20]
[null,"Bohnen, Busch-",null,null,"bob","Bohnen, Busch-","ha",null,0,20,70,5]
[null,"Bohnen, Verarbeitung-",null,null,"bov","Bohnen, Verarbeitung-","ha",null,0,10,30,5]
[null,"Broccoli",null,null,"bro","Broccoli","ha",null,220,30,90,10]
[null,"Cima di rapa (400 kg/a)",null,null,"cim","Cima di rapa (400 kg/a)","ha",null,140,40,160,10]
[null,"Chinakohl",null,null,"chk","Chinakohl","ha",null,160,60,200,10]
[null,{"$f":"F88","v":"Chicorée, Wurzelanbau"},null,null,"chi","Chicorée, Wurzelanbau","ha",null,70,50,150,30]
[null,"Cicorino rosso, Radicchio",null,null,"cir","Cicorino rosso, Radicchio","ha",null,110,20,90,10]
[null,"Endivie (350 kg/a)",null,null,"end","Endivie (350 kg/a)","ha",null,130,30,160,20]
[null,"Endivie (600 kg/a)",null,null,"end2","Endivie (600 kg/a)","ha",null,160,40,200,20]
[null,"Erbsen Verarbeitung-",null,null,"erv","Erbsen Verarbeitung-","ha",null,0,20,60,5]
[null,"Erbsen, Kefen",null,null,"erk","Erbsen, Kefen","ha",null,0,30,110,10]
[null,"Erdbeeren (1-jährig)",null,null,"eb1","Erdbeeren (1-jährig)","ha",null,100,34,121,20]
[null,"Erdbeeren (1-jährig), hoher Ertrag (25-30 t/ha)",null,null,"eb12","Erdbeeren (1-jährig), hoher Ertrag (25-30 t/ha)","ha",null,120,46,157,25]
[null,"Federkohl (300 kg/a)",null,null,"fed","Federkohl (300 kg/a)","ha",null,250,50,160,10]
[null,"Fenchel Knollen-",null,null,"fen","Fenchel Knollen-","ha",null,160,30,180,20]
[null,"Gurken, Essiggurken",null,null,"gur","Gurken, Essiggurken","ha",null,140,30,170,20]
[null,"Kabis, Einschneide-",null,null,"kae","Kabis, Einschneide-","ha",null,260,60,250,20]
[null,"Kabis, Früh-, Folie",null,null,"kaf","Kabis, Früh-, Folie","ha",null,140,40,150,10]
[null,"Kabis, Lager-",null,null,"kal","Kabis, Lager-","ha",null,190,50,200,20]
[null,"Karotten, Bund-, Früh-",null,null,"karb","Karotten, Bund-, Früh-","ha",null,100,40,140,20]
[null,"Karotten, Pariser",null,null,"karp","Karotten, Pariser","ha",null,50,30,100,10]
[null,"Karotten (600 kg/a), Verarbeitung-, Lager-",null,null,"karv","Karotten (600 kg/a), Verarbeitung-, Lager-","ha",null,110,40,250,20]
[null,"Karotten (900 kg/a), Verarbeitung-, Lager-",null,null,"karv2","Karotten (900 kg/a), Verarbeitung-, Lager-","ha",null,130,50,300,20]
[null,"Knoblauch (200 kg/a)",null,null,"kno","Knoblauch (200 kg/a)","ha",null,120,30,120,10]
[null,"Kohlrabi",null,null,"kor","Kohlrabi","ha",null,130,40,120,20]
[null,"Kohlrabi Verarbeitung",null,null,"korv","Kohlrabi Verarbeitung","ha",null,170,50,150,30]
[null,"Kräuter, 1-jährig, klein (8 kg/a)",null,null,"kr1","Kräuter, 1-jährig, klein (8 kg/a)","ha",null,40,15,60,10,null,"   Kräuter"]
[null,"Kräuter, 1-jährig, mittel (25 kg/a)",null,null,"kr2","Kräuter, 1-jährig, mittel (25 kg/a)","ha",null,70,30,160,15,null,"   Für grössere Anbauflächen können auch die Düngungsnormen gemäss \"Grundlagen für die"]
[null,"Kräuter, 1-jährig, mittel-gross (50 kg/a)",null,null,"kr3","Kräuter, 1-jährig, mittel-gross (50 kg/a)","ha",null,120,40,200,20,null,"   Düngung von Medizinal- und Gewürzpflanzen (ACW 2006)\" verwendet werden."]
[null,"Kräuter, 1-jährig, gross (75 kg/a)",null,null,"kr4","Kräuter, 1-jährig, gross (75 kg/a)","ha",null,160,50,250,25]
[null,"Krautstiel",null,null,"kst","Krautstiel","ha",null,150,60,220,30]
[null,"Lauch",null,null,"lau","Lauch","ha",null,200,40,180,20]
[null,"Melone",null,null,"mel","Melone","ha",null,140,30,170,40]
[null,"Nüsslisalat, Feldsalat",null,null,"nüs","Nüsslisalat, Feldsalat","ha",null,50,20,60,10]
[null,"Pastinake (400 kg/a)",null,null,"pas","Pastinake (400 kg/a)","ha",null,180,90,290,25]
[null,"Petersilie",null,null,"pet","Petersilie","ha",null,100,30,120,20]
[null,"Radies 10 Bund/m2",null,null,"rad","Radies 10 Bund/m2","ha",null,50,20,80,10]
[null,"Randen",null,null,"ran","Randen","ha",null,140,40,160,20]
[null,"Rettich 8-9 Stk./m2",null,null,"ret","Rettich 8-9 Stk./m2","ha",null,110,40,150,10]
[null,"Rhabarber -> Eingabe bei Dauerkulturen",null,null,"rha","Rhabarber -> Eingabe bei Dauerkulturen"]
[null,"Rosenkohl, Strünke abgeführt",null,null,"rko","Rosenkohl, Strünke abgeführt","ha",null,260,50,170,5]
[null,"Rüben Herbst-, Mai-",null,null,"rüb","Rüben Herbst-, Mai-","ha",null,140,30,150,20]
[null,"Rucola, 1 Schnitt (200 kg/a)",null,null,"ruc1","Rucola, 1 Schnitt (200 kg/a)","ha",null,150,30,150,10]
[null,"Rucola, 2 Schnitte (300 kg/a)",null,null,"ruc2","Rucola, 2 Schnitte (300 kg/a)","ha",null,210,40,180,20]
[null,"Salate (350 kg/a), diverse",null,null,"sal","Salate (350 kg/a), diverse","ha",null,90,20,70,10]
[null,"Salate (600 kg/a), diverse",null,null,"sal2","Salate (600 kg/a), diverse","ha",null,110,40,120,10]
[null,"Schnittlauch",null,null,"sla","Schnittlauch","ha",null,170,30,120,20]
[null,"Schnittsalat",null,null,"ssa","Schnittsalat","ha",null,60,20,60,20]
[null,"Schwarzwurzel",null,null,"swu","Schwarzwurzel","ha",null,120,30,100,10]
[null,"Sellerie, Knollen-",null,null,"sel","Sellerie, Knollen-","ha",null,190,70,300,20]
[null,"Sellerie, Stangen-",null,null,"ses","Sellerie, Stangen-","ha",null,180,70,300,20]
[null,"Spargeln, Bleich-  -> Eingabe bei Dauerkulturen",null,null,"spbl","Spargeln, Bleich-  -> Eingabe bei Dauerkulturen","Einheit","Ertrag","N","P2O5","K2O","Mg",null,null,null,null,null,null,null,null,null,null,null,null,null,"stop"]
[null,"Spargeln, Grün-  -> Eingabe bei Dauerkulturen",null,null,"spgr","Spargeln, Grün-  -> Eingabe bei Dauerkulturen"]
[null,"Spinat, 1 Schnitt (120 kg/a), nicht überwinternd",null,null,"sp1","Spinat, 1 Schnitt (120 kg/a), nicht überwinternd","ha",null,130,20,150,15]
[null,"Spinat, 1 Schn., nicht überwint., vor Mitte April gesät",null,null,"sp1f","Spinat, 1 Schn., nicht überwint., vor Mitte April gesät","ha",null,160,20,150,15]
[null,"Spinat, 2 Schnitte (200 kg/a), nicht überwinternd",null,null,"sp2","Spinat, 2 Schnitte (200 kg/a), nicht überwinternd","ha",null,150,40,180,20]
[null,"Spinat, Winter-, 1 Schnitt (120 kg/a)",null,null,"spw","Spinat, Winter-, 1 Schnitt (120 kg/a)","ha",null,180,20,150,15]
[null,"Tomaten",null,null,"tom","Tomaten","ha",null,130,50,260,30]
[null,"Viola (Stiefmütterchen, Pensée)",null,null,"vio","Viola (Stiefmütterchen, Pensée)","ha",null,50,10,60,10]
[null,"Wirz leicht (300 kg/a)",null,null,"wirl","Wirz leicht (300 kg/a)","ha",null,120,30,140,10]
[null,"Wirz schwer (400 kg/a)",null,null,"wirs","Wirz schwer (400 kg/a)","ha",null,140,40,160,10]
[null,"Zucchetti, Patisson, Kürbis",null,null,"zcc","Zucchetti, Patisson, Kürbis","ha",null,130,20,100,10]
[null,"Zuckerhut",null,null,"zhu","Zuckerhut","ha",null,130,20,90,10]
[null,"Zuckerhut (600 kg/a, Convenience)",null,null,"zhu2","Zuckerhut (600 kg/a, Convenience)","ha",null,160,20,90,10]
[null,"Zuckermais",null,null,"zma","Zuckermais","ha",null,150,50,100,20]
[null,"Zwiebeln",null,null,"zwi","Zwiebeln","ha",null,130,60,160,20]
[null,"Freilandgemüse, Mittelwert, für kleine Freilandpflanzungen mit verschiedenen Gemüsen",null,null,"fgmw","Freilandgemüse, Mittelwert, für kleine Freilandpflanzungen mit verschiedenen Gemüsen","ha",null,120,30,120,15]
[null,"  "]
[null,{"$f":"F151","v":"Gründüngung (Nichtlegum., 35 dt TS)"},null,null,"gd","Gründüngung (Nichtlegum., 35 dt TS)","ha",null,30,0,0,0]
[null,{"$f":"F152","v":"Gründüngung (Leguminosen, 35 dt TS)"},null,null,"gdl","Gründüngung (Leguminosen, 35 dt TS)","ha",null,0,0,0,0]
[null,{"$f":"F153","v":"Nicht aufgeführte Kulturen (Leguminosen)"},null,null,"nkl","Nicht aufgeführte Kulturen (Leguminosen)","ha",null,0,60,120,10]
[null,{"$f":"F154","v":"Nicht aufgeführte Kulturen (Nicht-Leg., Mischungen von Leg. und Nicht-Leg.)"},null,null,"nknl","Nicht aufgeführte Kulturen (Nicht-Leg., Mischungen von Leg. und Nicht-Leg.)","ha",null,80,60,120,10]
[null,"  "]
[null,"          GH = Gewächshaus+Hochtunnel",null,null," Gewächshausgemüse und Hochtunnel (= Kulturen in geschütztem Anbau)",null,null,null,null,null,null,null,null,"Name muss immer \", GH...\" enthalten wegen Berechnung off. AL",null,null,null,null,null,null,null,null,null,null,null,"stop"]
[null,"Aubergine, GH, Erdkultur",null,null,"aubg","Aubergine, GH, Erdkultur","ha",null,200,100,350,50]
[null,"Bohnen Stangen- , GH",null,null,"bosg","Bohnen Stangen- , GH","ha",null,40,80,180,30]
[null,"Endivie Herbst-, GH",null,null,"endg","Endivie Herbst-, GH","ha",null,140,50,180,30]
[null,"Gurken, 30 Stk./m2, GH Erdkultur",null,null,"gug","Gurken, 30 Stk./m2, GH Erdkultur","ha",null,200,100,300,60]
[null,"Gurken, 50 Stk./m2, GH Erdkultur",null,null,"gu2g","Gurken, 50 Stk./m2, GH Erdkultur","ha",null,300,150,400,80]
[null,{"$f":"F162","v":"Kohlrabi, GH"},null,null,"korg","Kohlrabi, GH","ha",null,140,60,200,30]
[null,"Krautstiel, GH",null,null,"kstg","Krautstiel, GH","ha",null,200,100,400,50]
[null,"Kresse, GH",null,null,"kreg","Kresse, GH","ha",null,20,10,30,10]
[null,"Lauch, GH",null,null,"laug","Lauch, GH","ha",null,160,60,220,30]
[null,"Nüsslisalat, Feldsalat, GH",null,null,"nüsg","Nüsslisalat, Feldsalat, GH","ha",null,50,10,60,10]
[null,"Paprika, GH, Bodenkultur",null,null,"papg","Paprika, GH, Bodenkultur","ha",null,160,50,250,30]
[null,"Petersilie, GH",null,null,"petg","Petersilie, GH","ha",null,100,50,180,20]
[null,"Radies 20 Bund/m2, GH",null,null,"radg","Radies 20 Bund/m2, GH","ha",null,60,30,100,20]
[null,"Rettich 18 Stk/m2, GH",null,null,"retg","Rettich 18 Stk/m2, GH","ha",null,90,50,200,30]
[null,"Portulak, GH",null,null,"porg","Portulak, GH","ha",null,70,20,90,20]
[null,"Rucola, 1 Schnitt, GH",null,null,"rucg1","Rucola, 1 Schnitt, GH","ha",null,150,30,150,10]
[null,"Rucola, 2 Schnitte, GH",null,null,"rucg2","Rucola, 2 Schnitte, GH","ha",null,210,40,180,20]
[null,"Salate Kopf-, Eisberg, Lollo, GH",null,null,"salg","Salate Kopf-, Eisberg, Lollo, GH","ha",null,80,30,140,20]
[null,"Schnittlauch (Kultur), GH",null,null,"slag","Schnittlauch (Kultur), GH","ha",null,100,40,180,30]
[null,"Schnittsalat, GH",null,null,"ssag","Schnittsalat, GH","ha",null,50,10,50,10]
[null,"Sellerie Suppen- 40 Stk/m2, GH",null,null,"selg","Sellerie Suppen- 40 Stk/m2, GH","ha",null,120,70,220,30]
[null,"Spinat, GH",null,null,"spig","Spinat, GH","ha",null,100,30,140,20]
[null,"Tomaten, 1200 kg/Are, GH Bodenkultur",null,null,"tom1g","Tomaten, 1200 kg/Are, GH Bodenkultur","ha",null,170,80,340,60]
[null,"Tomaten, 1800 kg/Are, GH Bodenkultur",null,null,"tom2g","Tomaten, 1800 kg/Are, GH Bodenkultur","ha",null,250,100,500,80]
[null,"Tomaten, 2400 kg/Are, GH Bodenkultur",null,null,"tom3g","Tomaten, 2400 kg/Are, GH Bodenkultur","ha",null,330,160,680,120]
[null,"Tomaten, 3000 kg/Are, GH Bodenkultur",null,null,"tom4g","Tomaten, 3000 kg/Are, GH Bodenkultur","ha",null,400,200,850,150]
[null,"Zucchetti, Patisson, GH",null,null,"zccg","Zucchetti, Patisson, GH","ha",null,160,30,150,10]
[null,"Mittelwert Gewächshaus, GH, für kleine Gewächshäuser und Hochtunnel mit verschiedenen Gemüsen ",null,null,"mwg","Mittelwert Gewächshaus, GH, für kleine Gewächshäuser und Hochtunnel mit verschiedenen Gemüsen ","ha",null,130,60,220,35]
[null,"  ",null,null,"Stroh, Rübenblatt"]
[null,"-",null,null,0,"-"]
[null,"Stroh (85% TS)",null,null,"str","Stroh (85% TS)","dt FS",null,0,0.19,0.79,0.11]
[null,"Rübenblatt (15%TS)",null,null,"rb","Rübenblatt (15%TS)","dt FS",null,0,0.08,0.4,0.09]
[null,"  ",null,null,"Dauerkulturen: Obst, Reben, Beeren, mehrj. Gemüse und mehrj. Rohstoffe  (kein offenes Ackerland)",null,null,null,null,null,null,null,null,null,null,null,null,null,null,null,null,null,null,null,null,"stop"]
[null,"  ",null,null," Obst",null,"Einheit","Ertrag","N","P2O5","K2O","Mg"]
["Dauerkulturen"," -",null,null,0," -"]
[null,"Obstanlagen, Kern-",null,null,"oa","Obstanlagen, Kern-","ha",null,60,20,75,20]
[null,"Kernobst (60 t/ha), hoher Ertrag",null,null,"oa2","Kernobst (60 t/ha), hoher Ertrag","ha",null,80,30,110,40]
[null,"Kirschen",null,null,"kir","Kirschen","ha",null,60,20,50,20]
[null,"Kirschen (16 t/ha), hoher Ertrag",null,null,"kir2","Kirschen (16 t/ha), hoher Ertrag","ha",null,80,30,65,30]
[null,"Zwetschgen",null,null,"zwe","Zwetschgen","ha",null,60,15,50,15]
[null,"Zwetschgen (20 t/ha), hoher Ertrag",null,null,"zwe2","Zwetschgen (20 t/ha), hoher Ertrag","ha",null,80,20,65,20]
[null,"Aprikosen",null,null,"apr","Aprikosen","ha",null,60,25,75,20]
[null,"Aprikosen (25 t/ha), hoher Ertrag",null,null,"ap2","Aprikosen (25 t/ha), hoher Ertrag","ha",null,75,30,90,30]
[null,"Pfirsiche",null,null,"pfi","Pfirsiche","ha",null,60,15,55,20]
[null,"Pfirsiche (25 t/ha), hoher Ertrag",null,null,"pfi2","Pfirsiche (25 t/ha), hoher Ertrag","ha",null,75,20,70,30]
[null,"Kiwi",null,null,"kiw","Kiwi","ha",null,50,15,75,15]
[null,"Kiwi (25 t/ha), hoher Ertrag",null,null,"kiw2","Kiwi (25 t/ha), hoher Ertrag","ha",null,65,20,90,20]
[null,"Kleinanlagen (<20 a) mit verschiedenen Obstkulturen",null,null,"kad","Kleinanlagen (<20 a) mit verschiedenen Obstkulturen","ha",null,60,20,75,20]
[null,"Walnussbäume (<185 Bä/ha)",null,null,"wa1","Walnussbäume (<185 Bä/ha)","ha",null,80,30,100,30]
[null,"Walnussbäume ≥ 185 Bäume/ha",null,null,"wa2","Walnussbäume ≥ 185 Bäume/ha","ha",null,120,50,140,50]
[null,"Haselnüsse",null,null,"has","Haselnüsse","ha",null,90,25,50,15]
[null,"  ",null,null," Reben"]
[null,"Weinreben",null,null,"re","Weinreben","ha",null,50,27,78,25]
[null,"Tafeltrauben (12 t/ha)",null,null,"taf","Tafeltrauben (12 t/ha)","ha",null,50,27,78,25]
[null,"Tafeltrauben (20 t/ha), hoher Ertrag",null,null,"taf2","Tafeltrauben (20 t/ha), hoher Ertrag","ha",null,60,34,102,25]
[null,"  ",null,null," Beeren"]
[null,"Brombeeren (20 t/ha)",null,null,"brb","Brombeeren (20 t/ha)","ha",null,55,34,67,15]
[null,"Brombeeren (25 t/ha), hoher Ertrag",null,null,"brb2","Brombeeren (25 t/ha), hoher Ertrag","ha",null,70,46,85,20]
[null,"Cassis (20 t/ha)",null,null,"cas","Cassis (20 t/ha)","ha",null,70,46,121,15]
[null,"Cassis (25 t/ha), hoher Ertrag",null,null,"cas2","Cassis (25 t/ha), hoher Ertrag","ha",null,90,57,157,20]
[null,"Erdbeeren (mehrjährig)",null,null,"eb","Erdbeeren (mehrjährig)","ha",null,100,34,121,20]
[null,"Heidelbeeren (15 t/ha)",null,null,"hei","Heidelbeeren (15 t/ha)","ha",null,55,23,73,20]
[null,"Heidelbeeren (20 t/ha), hoher Ertrag",null,null,"hei2","Heidelbeeren (20 t/ha), hoher Ertrag","ha",null,60,34,79,25]
[null,"Himbeeren (15 t/ha)",null,null,"him","Himbeeren (15 t/ha)","ha",null,45,23,61,15]
[null,"Himbeeren (25 t/ha), hoher Ertrag",null,null,"him3","Himbeeren (25 t/ha), hoher Ertrag","ha",null,75,46,97,20,null,null,null,null,null,null,"Norm Himbeeren (20 t/ha) entfernt (Him2; Auflage BLW/Qualinova, 2018) "]
[null,"Johannisbeeren, rote (20 t/ha)",null,null,"joh","Johannisbeeren, rote (20 t/ha)","ha",null,85,46,121,15]
[null,"Johannisbeeren, rote (25 t/ha), hoher Ertrag",null,null,"joh2","Johannisbeeren, rote (25 t/ha), hoher Ertrag","ha",null,110,57,151,20]
[null,"Stachelbeeren (17 t/ha)",null,null,"stb","Stachelbeeren (17 t/ha)","ha",null,60,34,79,15]
[null,"Stachelbeeren (22 t/ha), hoher Ertrag",null,null,"stb2","Stachelbeeren (22 t/ha), hoher Ertrag","ha",null,80,46,109,20]
[null,"Strauchbeeren diverse",null,null,"stbd","Strauchbeeren diverse","ha",null,85,46,121,15,null,"   Minikiwi, Holunder, Goji, Aronia, Lonicera"]
[null,"  ",null,null," Gemüse, mehrjährige"]
[null,{"$f":"F228","v":"Rhabarber"},null,null,"rha","Rhabarber","ha",null,130,30,120,10]
[null,"Spargeln, Bleich-",null,null,"spbl","Spargeln, Bleich-","ha",null,140,30,130,20]
[null,"Spargeln, Grün-",null,null,"spgr","Spargeln, Grün-","ha",null,150,30,110,20]
[null,"  ",null,null," Diverse"]
[null,"Baumschulen",null,null,"bsc","Baumschulen","ha",null,50,17,37,5]
[null,"Chinaschilf (200 dt TS/ha)",null,null,"ch","Chinaschilf (200 dt TS/ha)","ha",null,30,{"$f":"0.1*200","v":20},{"$f":"0.56*200","v":112.00000000000001},{"$f":"0.03*200","v":6},707," bei 200 dt TS/ha",null,null,null,null," bei 200 dt TS/ha"]
[null,"Christbäume",null,null,"cb","Christbäume","ha",null,50,35,95,20]
[null,"Heil- u. Gewürzpflanzen (mehrjährig) -> siehe Kräuter (mehrjährig)",null,null,"hgpm","Heil- u. Gewürzpflanzen (mehrjährig) -> siehe Kräuter (mehrjährig)"]
[null,"Hopfen",null,null,"hopf","Hopfen","ha",null,180,60,200,50]
[null,"Kräuter, mehrjährig, klein (8 kg/a)",null,null,"krm1","Kräuter, mehrjährig, klein (8 kg/a)","ha",null,40,15,60,10,null,"   Kräuter"]
[null,"Kräuter, mehrjährig, mittel (25 kg/a)",null,null,"krm2","Kräuter, mehrjährig, mittel (25 kg/a)","ha",null,70,30,160,15,null,"   Für grössere Anbauflächen können auch die Düngungsnormen gemäss \"Grundlagen für die"]
[null,"Kräuter, mehrjährig, mittel-gross (50 kg/a)",null,null,"krm3","Kräuter, mehrjährig, mittel-gross (50 kg/a)","ha",null,120,40,200,20,null,"   Düngung von Medizinal- und Gewürzpflanzen (ACW 2006)\" verwendet werden."]
[null,"Kräuter, mehrjährig, gross (75 kg/a)",null,null,"krm4","Kräuter, mehrjährig, gross (75 kg/a)","ha",null,160,50,250,25]
[null,"Ziersträucher, Ziergehölze, Zierstauden",null,null,"zist","Ziersträucher, Ziergehölze, Zierstauden","ha",null,50,17,37,5]
[]
[null,null,null,null,null,null,null,null,null,null,null,null,"\n\n\nUmrechnungshilfe\nSuiBiTrans  -->"]
["Stop",null,null,null,"Tiere: Grundfutterbedarf und Nährstoffanfall",null,null,null,null,null,null,null,null,null,null,null,"GMF",null,null,null,null,null,null,null,null,"Tiere"]
[null,"Tierkategorie",null,null," Abkürz.","Tierkategorie","Einheit","GF-Verz.","N ges","P2O5","K2O","Mg","Hofdü.","Weide-","Bemerkungen","GVE","Raufutter-",null,"N","Nges LSR",null,"  Hofdü-Faktor (ca. GVE-Faktor) wird nur für Anfall an Mist und unverd. Gülle verwendet."]
[null,null,null,null,null,null,null,"dt TS/Jahr","Anfall in kg pro Jahr",null,null,null,"Faktor","Faktor",null,"Faktor","verzehrer",null,null,null,null,"  Weidefaktor =1 -> Weideabzug möglich; Weidefaktor = 0 -> kein Weideabzug"]
[null,null,null,null," Rindvieh",null,null,null,null,null,null,null,null,null,null,null,null,null,null,null,null,"  RV = Raufutterverzehrer mit mögl. Beitrag für GMF (zum addieren der Futter)"]
[null," -",null,null,0," -",null,null,null,"  ",null,null,null,null,null,null,null,null,null,null,null,"  RVm = RV mit Milchproduktion -> KF bei Sömmerung möglich"]
[null,"Milchkühe (7500 kg Jahresmilch, 806 kg KF)",null,"Änd 1.15","mik","Milchkühe (7500 kg Jahresmilch, 806 kg KF)","Stück",56,{"$f":"ROUND(IF(Suisse_Bilanz_1.17!E20=\"ja\",0.8,0.85)*112,2)","v":95.2},39,172,14,1,1,null,1,"RVm",null,112,{"$f":"ROUND(S249*0.8,2)","v":89.6},null,"  GF = übrige Tiere mit GF-Verzehr"]
[null,"*Galtkuh (Pl.)",null,"Änd 1.15","mikg","*Galtkuh (Pl.)","Platz",40.6,{"$f":"ROUND(IF(Suisse_Bilanz_1.17!E20=\"ja\",0.8,0.85)*80.5,2)","v":68.430000000000007},28.7,128.80000000000001,8.4,0.73589743589743584,1,null,1,"RV",null,80.5,{"$f":"ROUND(S250*0.8,2)","v":64.400000000000006},null,"  GVE-Faktor für Berechnung Tierbesatz bei GMF -> gemäss BegriffsVO (LBV)"]
[null,"*Milchkühe, Ausmast (Pl.)",null,"Änd 1.15","mim","*Milchkühe, Ausmast (Pl.)","Platz",53.2,{"$f":"ROUND(IF(Suisse_Bilanz_1.17!E20=\"ja\",0.8,0.85)*93.5,2)","v":79.48},30,155,10.8,0.76923076923076916,1,null,1,"RV",null,93.5,74.8]
[null,"Zuchtstier",null,null,"zst","Zuchtstier","Stück",30,40,18,85,5,0.46153846153846151,1,null,0.6,"RV",null,50,40]
[null,"Jungvieh < 160 Tg. alt (Pl.)",null,"Änd 1.15","ar1a","Jungvieh < 160 Tg. alt (Pl.)","Platz",6,{"$f":"ROUND(23*IF(Suisse_Bilanz_1.17!E29=\"ja\",0.8,0.85),2)","v":19.55},5,22.9,1.3,0.1139047619047619,1,null,0.13,"RV",null,23,18.399999999999999,null,"Milchviehbetriebe: Tränker für Verkauf als Jungvieh <160 d erfassen"]
[null,"Jungvieh 160-365 Tg. alt (Pl.)",null,"Änd 1.15","ar1b","Jungvieh 160-365 Tg. alt (Pl.)","Platz",20.2,{"$f":"ROUND(31*IF(Suisse_Bilanz_1.17!E29=\"ja\",0.8,0.85),2)","v":26.35},12,51.9,6.1,0.28914285714285715,1,null,0.33,"RV",null,31,24.8]
[null,"Jungvieh 1-2 jährig (Pl.)",null,"Änd 1.14","ar2","Jungvieh 1-2 jährig (Pl.)","Platz",26,{"$f":"ROUND(42.5*IF(Suisse_Bilanz_1.17!E29=\"ja\",0.8,0.85),2)","v":36.130000000000003},14,62.5,5.5,0.34782608695652173,1,null,0.4,"RV",null,42.5,34]
[null,"Jungvieh über 2 jährig (Pl.)",null,null,"ar3","Jungvieh über 2 jährig (Pl.)","Platz",33,{"$f":"ROUND(55*IF(Suisse_Bilanz_1.17!E29=\"ja\",0.8,0.85),2)","v":46.75},20,75,7,0.52173913043478259,1,null,0.6,"RV",null,55,44]
[null,"Mutterkühe schwer, LG > 700 kg (Werte ohne Kalb)",null,"Änd 1.13","muks","Mutterkühe schwer, LG > 700 kg (Werte ohne Kalb)","Stück",50,76,31,158,10,0.82608695652173914,1,null,1,"RV",null,95,76]
[null,"Mutterkühe mittel, LG 600-700 kg (Werte ohne Kalb)",null,"Änd 1.13","mukm","Mutterkühe mittel, LG 600-700 kg (Werte ohne Kalb)","Stück",45,68,28,141,9,0.73913043478260865,1,null,1,"RV",null,85,68]
[null,"Mutterkühe leicht, LG < 600 kg (Werte ohne Kalb)",null,"Änd 1.13","mukl","Mutterkühe leicht, LG < 600 kg (Werte ohne Kalb)","Stück",38,57.6,24,118,8,0.65217391304347827,1,null,1,"RV",null,72,57.6]
[null,"Mutterkuhkalb bis 160 d (Pl.)",null,null,"mkk","Mutterkuhkalb bis 160 d (Pl.)","Platz",2.8,{"$f":"ROUND(21.5*0.8,2)","v":17.2},7.5,18.100000000000001,0.9,0.11,1,null,0.13,"RV",null,21.5,17.2]
[null,"Mutterkuhkalb >160 d, leicht (<200 kg SG) (Pl.)",null,null,"mkkl","Mutterkuhkalb >160 d, leicht (<200 kg SG) (Pl.)","Platz",17.8,{"$f":"ROUND(39.8*0.8,2)","v":31.84},12.3,61.3,3.5,7.1428571428571425E-2,1,null,{"$f":"(160*0.13+140*0.33)/300","v":0.22333333333333333},"RV",null,39.799999999999997,31.84]
[null,"Mutterkuhkalb >160 d, mittelschwer (200-250 kg SG) (Pl.)",null,"Änd 1.8","mkkm","Mutterkuhkalb >160 d, mittelschwer (200-250 kg SG) (Pl.)","Platz",18.8,{"$f":"ROUND(46.3*0.8,2)","v":37.04},13.9,66.3,3.9,0.12619047619047619,1,null,{"$f":"(160*0.13+140*0.33)/300","v":0.22333333333333333},"RV",null,46.3,37.04]
[null,"Mutterkuhkalb >160 d, schwer (>250 kg SG) (Pl.)",null,"Änd 1.8","mkks","Mutterkuhkalb >160 d, schwer (>250 kg SG) (Pl.)","Platz",19.7,{"$f":"ROUND(52.4*0.8,2)","v":41.92},15.3,70,4.2,0.18095238095238095,1,null,{"$f":"(160*0.13+140*0.33)/300","v":0.22333333333333333},"RV",null,52.4,41.92]
[null,"Mastkälber (Pl.), 60-220 kg, 365 d besetzt gem. TVD",null,1.1499999999999999,"mkp","Mastkälber (Pl.), 60-220 kg, 365 d besetzt gem. TVD","Platz",1,{"$f":"ROUND(18.8*0.8,2)","v":15.04},6.7,13.3,0.9,0.15238095238095239,1,null,0.13,"RV",null,18.8,15.04]
[null,"Rindviehmast < 160 d (Pl.)",null,1.1599999999999999,"rvp","Rindviehmast < 160 d (Pl.)","Platz",5.2,{"$f":"ROUND(22.6*0.8,2)","v":18.079999999999998},8,14.6,3.4,0.18695652173913044,1,null,0.13,"RV",null,22.6,18.079999999999998]
[null,"RV-Mast > 160 d (1400 g TZW, 530 kg Ausstall-LG) (Pl.)",null,1.1599999999999999,"rap","RV-Mast > 160 d (1400 g TZW, 530 kg Ausstall-LG) (Pl.)","Platz",21,{"$f":"ROUND(44.6*0.8,2)","v":35.68},13.4,36.200000000000003,5.8,0.45652173913043476,1,null,{"$f":"(40*0.13+205*0.33+120*0.4)/365","v":0.33109589041095894},"RV",null,44.6,35.68]
[null,"*Rindvieh-Weidemast (Pl.), > 4 Monate",null,null,"wmp","*Rindvieh-Weidemast (Pl.), > 4 Monate","Platz",24,{"$f":"ROUND(45*0.8,2)","v":36},18,65,5,0.43478260869565216,1,null,{"$f":"(40*0.13+205*0.33+365*0.4)/610","v":0.35877049180327875},"RV",null,45,36]
[null,"   ",null,null," Pferde (Kategorie)",null,null,null,null,null,null,null,null,null,null,null,null,null,null,null,null,null,null,null,null,"Pferde"]
[null,"Pferde (> 900 d, >148 cm od. div. Rassen)",null,"Änd 1.14","pfe2","Pferde (> 900 d, >148 cm od. div. Rassen)","Platz",28,{"$f":"ROUND(43*0.7,2)","v":30.1},21,72,4.5,0.2857142857142857,1,null,0.7,"RV","inkl. div. Pferderassen: ",null,"Aegidienberger, Appaloosa, Araber, arabisches Vollblut",null,null,"Haflinger, Hannoveraner",null,"Mangalarga Marchadores, Merens, Missouri Foxtrotter, Morgan",null,null,null,"Quarter Horse"]
[null,"Pferde (181-900 d, >148 cm od. div. Rassen)",null,null,"pfe","Pferde (181-900 d, >148 cm od. div. Rassen)","Platz",28,30.1,21,72,4.5,0.23809523809523808,1,null,0.5,"RV"," Fussnote von Tab.1 der",null,"Berber",null,null,"Irish Cob",null,"Oldenburger Pferd",null,null,null,"Rheinländer"]
[null,"Pferde (bis 180 d, >148 cm od. div. Rassen)",null,"Änd 1.14","foh","Pferde (bis 180 d, >148 cm od. div. Rassen)","Platz",5,{"$f":"ROUND(28*0.7,2)","v":19.600000000000001},9,26,1.6,4.7619047619047616E-2,1,null,0.3,"RV"," Wegleitung Suisse-Bilanz",null,"Camargue, Criollo, Cruzado Iberico, ",null,null,"Leonharder",null,"Palomino, Partbredaraber, Paso verschiedene Schläge, Pinto",null,null,null,"Tinker, Traber, Trait Comptois"]
[null,"Ponies, Kleinpferde, Esel (jeden Alters) (Pl.)",null,null,"pke","Ponies, Kleinpferde, Esel (jeden Alters) (Pl.)","Platz",10.4,{"$f":"ROUND(15.7*0.7,2)","v":10.99},8.1999999999999993,26.8,1.8,0.10204081632653061,1,null,0.25,"RV"," alle Tiere der Pferdegattung <148 cm Widerristhöhe (ausgewachsen) mit Ausnahme der Rassen nach der Fussnote von Tab. 1 der Wegleitung Suisse-Bilanz"]
[null,"Maultiere, Maulesel (bis 180 d)",null,"Änd 1.14","mte1","Maultiere, Maulesel (bis 180 d)","Platz",3,{"$f":"ROUND(14*0.7,2)","v":9.8000000000000007},8.1999999999999993,16,1,4.3386243386243382E-2,1,null,0.15,"RV",null,null,null,null,null,null,null,null,null,null,null,null,null,"  "]
[null,"Maultiere, Maulesel (> 180 d)",null,"Änd 1.14","mte2","Maultiere, Maulesel (> 180 d)","Platz",17,{"$f":"ROUND(26*0.7,2)","v":18.2},13,43,3,0.14739229024943309,1,null,0.25,"RV"," je nach Alter anderer GVE-Faktor (LBV) ",null,null,null,null,null,null,null,null,null,null,null,null,"  "]
[null,"   ",null,null," Kleine Wiederkäuer und weitere Rauhfutterverzehrer",null,null,null,null,null,null,null,null,null,null,null,null,null,null,null,null,null,null,null,null,"Kl. Wk"]
[null,"Schafplatz (inkl. Jungtiere u. Anteil Bock)",null,1.1499999999999999,"scha","Schafplatz (inkl. Jungtiere u. Anteil Bock)","Platz",8,{"$f":"ROUND(15*0.85,2)","v":12.75},5.3,22.5,2,8.0952380952380956E-2,1,null,0.17,"RV",null,null,null,null,null,null,null,null,"  "]
[null,"Milchschafe (Pl.)",null,1.1499999999999999,"mis","Milchschafe (Pl.)","Platz",11,{"$f":"ROUND(21*0.85,2)","v":17.850000000000001},9,32,3,0.10952380952380951,1,null,0.25,"RVm",null,null,null,null,null,null,null,null,"  "]
[null,"*Weidemastlamm, -gitzi (Stk.)",null,null,"wml","*Weidemastlamm, -gitzi (Stk.)","Stück",1.4,{"$f":"ROUND(2.1*0.85,2)","v":1.79},0.8,3.5,0.3,1.4285714285714284E-2,1,null,0.03,"RV",null,null,null,null,null,null,null,null,"  "]
[null,"Ziegen (Pl.) (inkl. Jungtiere u. Anteil Bock)",null,1.1499999999999999,"zie","Ziegen (Pl.) (inkl. Jungtiere u. Anteil Bock)","Platz",7.5,{"$f":"ROUND(17*0.85,2)","v":14.45},5.7,24,1.5,8.0952380952380956E-2,1,null,0.17,"RV",null,null,null,null,null,null,null,null,"  "]
[null,"Ziegen gemolken (inkl. Jungtiere)",null,1.1499999999999999,"miz","Ziegen gemolken (inkl. Jungtiere)","Platz",7.5,{"$f":"ROUND(17*0.85,2)","v":14.45},5.7,24,1.5,8.0952380952380956E-2,1,"wie zie",0.2,"RVm"," Kat. nötig für GMF (Kraftfutter-Sö)",null,null,null,null,null,null,null,"  ","akzeptiert von BLW, 2018"]
[null,"Bisons bis 900 d",null,null,"bis1","Bisons bis 900 d","Stück",18,{"$f":"ROUND(20*0.85,2)","v":17},10,45,2.5,0.2639751552795031,1,null,0.4,"RV",null,null,null,null,null,null,null,null,"  "]
[null,"Bisons > 900 d",null,null,"bis2","Bisons > 900 d","Stück",39,{"$f":"ROUND(60*0.85,2)","v":51},30,110,6,0.7919254658385092,1,null,1,"RV",null,null,null,null,null,null,null,null,"  "]
[null,"Lamas bis 2-jährig",null,null,"lam1","Lamas bis 2-jährig","Stück",4.9000000000000004,{"$f":"ROUND(11*0.85,2)","v":9.35},4,15,1,0.10559006211180123,1,null,0.11,"RV",null,null,null,null,null,null,null,null,"  "]
[null,"Lamas über 2-jährig",null,null,"lam2","Lamas über 2-jährig","Stück",8.5,{"$f":"ROUND(17*0.85,2)","v":14.45},6.5,28,1.7,0.171583850931677,1,null,0.17,"RV",null,null,null,null,null,null,null,null,"  "]
[null,"Alpakas bis 2-jährig",null,null,"alp1","Alpakas bis 2-jährig","Stück",3,{"$f":"ROUND(7*0.85,2)","v":5.95},2.5,9,0.5,6.5993788819875776E-2,1,null,7.0000000000000007E-2,"RV",null,null,null,null,null,null,null,null,"  "]
[null,"Alpakas über 2-jährig",null,null,"alp2","Alpakas über 2-jährig","Stück",5.5,{"$f":"ROUND(11*0.85,2)","v":9.35},4,18,1,0.10559006211180123,1,null,0.11,"RV",null,null,null,null,null,null,null,null,"  "]
[null,"Damhirsche (Einh.), Muttertier + Nachwuchs bis 16 Mt.= 1 Einheit = 2 Tiere am Stichtag ",null,null,"dhi","Damhirsche (Einh.), Muttertier + Nachwuchs bis 16 Mt.= 1 Einheit = 2 Tiere am Stichtag ","Einh.",10,{"$f":"ROUND(20*0.85,2)","v":17},7,29,2.4,0.18478260869565216,1,null,0.2,"RV",null,null,null,null,null,null,null,null,"  "]
[null,"Rothirsche (Einh.), Muttertier + Nachwuchs bis 16 Mt. = 1 Einheit = 2 Tiere am Stichtag ",null,null,"rhi","Rothirsche (Einh.), Muttertier + Nachwuchs bis 16 Mt. = 1 Einheit = 2 Tiere am Stichtag ","Einh.",20,{"$f":"ROUND(40*0.85,2)","v":34},14,58,4.8,0.36956521739130432,1,null,0.4,"RV","Grunddaten für die Lineare Korrektur, Version 1.13",null,null,null,null,null,null,null,"LK"]
[null,{"$f":"F289","v":"Wapiti (Einh.), Muttertier + Nachwuchs bis 16 Mt. = 1 Einheit = 2 Tiere am Stichtag "},null,null,"wap","Wapiti (Einh.), Muttertier + Nachwuchs bis 16 Mt. = 1 Einheit = 2 Tiere am Stichtag ","Einh.",40,{"$f":"ROUND(80*0.85,2)","v":68},28,116,9.6,0.73913043478260865,1,null,0.4,"RV","Futtergehalte",null,null,"Änderung pro g",null,"Tiefstwerte (kg/Jahr)"]
[null,"   ",null,null," Schweine (Kategorie)",null,{"$f":"G245","v":"Einheit"},"GF-Verz.","N ges","P2O5","K2O","Mg",{"$f":"M245&M246","v":"Hofdü.Faktor"},{"$f":"N245&N246","v":"Weide-Faktor"},null,null,null,"MJ","RP","P","N","P","Nges","P2O5"]
[null," -","Zeile nötig für Abfrage LK -->",null,0," -"]
[null,"Mastschweine (Pl.), 26-108 kg / Remonten",null,1.1499999999999999,"msp","Mastschweine (Pl.), 26-108 kg / Remonten","Platz",null,{"$f":"ROUND(13*0.8,2)","v":10.4},5.3,5.8,1.4,0.16666666666666666,1,null,0.17,null,14,170,5.2,7.1999999999999998E-3,0.24,8.16,3.8]
[null,"Mastschwein / Remonte (St.), 26-108 kg",null,1.1499999999999999,"mss","Mastschwein / Remonte (St.), 26-108 kg","Stück",null,{"$f":"ROUND(3.92*0.8,2)","v":3.14},1.6,1.75,0.42,5.1204819277108439E-2,1,null,null,null,14,170,5.2,7.1999999999999998E-3,0.24,2.46,1.1399999999999999]
[null,"GF-Verz. Mastschw. dt TS total",null,null,"gfms","GF-Verz. Mastschw. dt TS total","dt TS",1,null,null,null,null,null,null," GF-Verzehr max. 0.34 dt TS / MSP / Jahr",null,"GF"]
[null,"Zuchtschweine inkl. Ferkel bis 26 kg",null,1.1499999999999999,"zsp","Zuchtschweine inkl. Ferkel bis 26 kg","Platz",null,{"$f":"ROUND(44*0.8,2)","v":35.200000000000003},21,23,4.2,0.78100000000000003,1," GF-Verzehr max. 6.5 dt TS / ZSP bei GF-Fütterung ganzes Jahr",null,"GF",13.2,173,5.8,6.4000000000000003E-3,0.192,29.04,15.2]
[null,"GF-Verz. Zuchtschw. dt TS total",null,null,"gfzs","GF-Verz. Zuchtschw. dt TS total","dt TS",1,null,null,null,null,null,null," gemäss Modul 6/7 (Art, Menge, % TS des Futters, ...)",null,"GF"," "]
[null,"Zuchteber (Pl.)",null,1.1499999999999999,"zeb","Zuchteber (Pl.)","Platz",null,{"$f":"ROUND(18*0.8,2)","v":14.4},10,9.6,1.5,0.16666666666666666,1,null,0.25,"GF",12.9,171,5.9,6.4000000000000003E-3,0.16,11.52,7.4]
[null,"Galtsauen (Pl.): 2.94 Umtr. pro Jahr",null,1.1499999999999999,"gsp","Galtsauen (Pl.): 2.94 Umtr. pro Jahr","Platz",null,{"$f":"ROUND(24.5*0.8,2)","v":19.600000000000001},15,16,2.2999999999999998,0.57299999999999995,1," GF-Verzehr max. 9.0 dt TS / Galtsauenpl. bei GF-Fütterung ganzes Jahr",0.26,"GF",12.1,145,6,4.7999999999999996E-3,0.14399999999999999,17.68,10.7]
[null,"*Galtsau, pro Umtrieb, 124 d pro Umtrieb",null,1.1499999999999999,"gss","*Galtsau, pro Umtrieb, 124 d pro Umtrieb","Stück",null,{"$f":"ROUND(8.33*0.8,2)","v":6.66},5.0999999999999996,5.44,0.78,0.19466301369863012,1,null,null,"GF",12.1,145,6,4.7999999999999996E-3,0.14399999999999999,6.02,3.63]
[null,"Säugende Sauen (Pl.): 9.86 Umtr. pro Jahr",null,1.1499999999999999,"szp","Säugende Sauen (Pl.): 9.86 Umtr. pro Jahr","Platz",null,{"$f":"ROUND(49*0.8,2)","v":39.200000000000003},23,18,4.4000000000000004,0.85399999999999998,1,null,0.55000000000000004,null,13.7,180,6,6.4000000000000003E-3,0.184,31.68,16.7]
[null,"*Säugende Zuchtsau, pro Umtrieb, 37 d pro Umtrieb",null,1.1499999999999999,"szs","*Säugende Zuchtsau, pro Umtrieb, 37 d pro Umtrieb","Stück",null,{"$f":"ROUND(4.97*0.8,2)","v":3.98},2.33,1.83,0.45,8.6569863013698622E-2,1,null,null,null,13.7,180,6,6.4000000000000003E-3,0.184,3.22,1.69]
[null,"abgesetzte Ferkel (Pl.), Zuw. 8-26 kg LG",null,1.1499999999999999,"fep","abgesetzte Ferkel (Pl.), Zuw. 8-26 kg LG","Platz",0,{"$f":"ROUND(3.9*0.8,2)","v":3.12},1.68,2.2999999999999998,0.5,6.2499999999999986E-2,1,null,0.06,null,13.7,177,5.7,9.5999999999999992E-3,0.32,2.46,1]
[null,"*abgesetzte Ferkel (St.), Zuw. 8-26 kg LG",null,1.1499999999999999,"fes","*abgesetzte Ferkel (St.), Zuw. 8-26 kg LG","Stück",0,{"$f":"ROUND(0.41*0.8,2)","v":0.33},0.17,0.24,0.05,6.3356164383561635E-3,1,null,null,null,13.7,177,5.7,9.5999999999999992E-3,0.32,0.26,0.11]
[null,"   ",null,null," Geflügel (Kategorie)"]
[null,"Legehennen: Kotband (100 Pl.)",null,1.1499999999999999,"hen","Legehennen: Kotband (100 Pl.)","100 Pl.",0,{"$f":"ROUND(80*0.7,2)","v":56},46,30,6.5,1,0,null,null,null,11.6,180,5.7,8.0000000000000002E-3,0.2,47.04,34]
[null,"Legehennen: Bodenhaltung, Kotgrube (100 Pl.)",null,1.1499999999999999,"henbk","Legehennen: Bodenhaltung, Kotgrube (100 Pl.)","100 Pl.",0,{"$f":"ROUND(80*0.5,2)","v":40},46,30,6.5,1,0,null,null,null,11.6,180,5.7,8.0000000000000002E-3,0.2,33.6,34,null,"LK"]
[null,"Junghennen (100 Pl.), 2.25 Umtriebe",null,1.1499999999999999,"jhe","Junghennen (100 Pl.), 2.25 Umtriebe","100 Pl.",0,{"$f":"ROUND(30*0.6,2)","v":18},17,12,2.5,0.4,0]
[null,"Junghennen (100 Stk.)",null,1.1499999999999999,"jhu","Junghennen (100 Stk.)","100 St.",0,{"$f":"ROUND(ROUND(30/2.25,1)*0.6,2)","v":7.98},{"$f":"17/2.25","v":7.5555555555555554},{"$f":"ROUND(12/2.25,1)","v":5.3},{"$f":"ROUND(2.5/2.25,2)","v":1.1100000000000001},0.17777777777777778,0,"bei 100 Pl. = 225 Stk. (200-250)"]
[null,"Mastpoulets (100 Pl.)",null,1.1499999999999999,"pou","Mastpoulets (100 Pl.)","100 Pl.",0,{"$f":"ROUND(36*0.6,2)","v":21.6},13,22,4.4000000000000004,0.53300000000000003,0]
[null,"Mastpoulets (100 St.) -> Umrechnung auf Plätze machen!",null,null,"pous","Mastpoulets (100 St.) -> Umrechnung auf Plätze machen!",null,null,null,null,null,null,"\nImpex      --> \n    (BLW)       .   \n\nWegleitung NPr -->  \n\n\n\nImpex       --> \n   (agridea)    .\n",null,"\n> BLW  > Instrumente  > Direktzahlungen\n     > Ökologischer Leistungsnachweis\n         > Ausgeglichene Düngerbilanz und \n                 Bodenuntersuchungen (DZV Art. 13)\n            > rechtliche Grundlagen "]
[null,"Masttruten (100 Pl.), 2.8 Umtriebe",null,1.1499999999999999,"tru","Masttruten (100 Pl.), 2.8 Umtriebe","100 Pl.",0,{"$f":"ROUND(140*0.6,2)","v":84},70,40,18,2,0,null,1.5]
[null,"Masttruten (100 St.)",null,null,"trus","Masttruten (100 St.)","100 St.",0,{"$f":"ROUND(50*0.6,2)","v":30},25,{"$f":"ROUND(40/2.8,2)","v":14.29},{"$f":"ROUND(18/2.8,2)","v":6.43},0.66666666666666663,0]
[null,"Truten-Vormast (100 Pl.), bis 1.5 kg, 6 Umtriebe",null,1.1499999999999999,"trvm","Truten-Vormast (100 Pl.), bis 1.5 kg, 6 Umtriebe","100 Pl.",0,{"$f":"ROUND(40*0.6,2)","v":24},20.6,12,5,0.66666666666666663,0,null,0.5]
[null,"Truten-Ausmast (100 Pl.), 1.5-13 kg LG, 2.9 Umtriebe",null,1.1499999999999999,"tram","Truten-Ausmast (100 Pl.), 1.5-13 kg LG, 2.9 Umtriebe","100 Pl.",0,{"$f":"ROUND(230*0.6,2)","v":138},114.6,70,29,3.7333333333333329,0,null,2.8]
[null,"Strausse bis 13 Mt.",null,null,"stj","Strausse bis 13 Mt.","Stück",2,{"$f":"ROUND(11*0.6,2)","v":6.6},6,8,0.8,0.14000000000000001,1,null,0.14000000000000001,"GF"]
[null,"Strausse älter als 13 Mt.",null,null,"sta","Strausse älter als 13 Mt.","Stück",11,{"$f":"ROUND(24*0.6,2)","v":14.4},10,15,1.3,0.26,1,null,0.26,"GF"]
[null,"Enten (100 Pl.)",null,null,"ent","Enten (100 Pl.)","100 Pl.",0,{"$f":"ROUND(66*0.6,2)","v":39.6},34,24,5,0.8,0,null,0.8]
[null,"Gänse (100 Pl.)",null,null,"gan","Gänse (100 Pl.)","100 Pl.",0,{"$f":"ROUND(105*0.6,2)","v":63},53,30,14,1.2,0,null,1.2]
[null,"Perlhühner (100 Pl.)",null,null,"peh","Perlhühner (100 Pl.)","100 Pl.",0,{"$f":"ROUND(38*0.6,2)","v":22.8},19,14,3,0.4,0,null,0.4]
[null,"Wachteln (100 Stk.)",null,null,"wac","Wachteln (100 Stk.)","100 Stk.",0,{"$f":"ROUND(30*0.6,2)","v":18},18,6.5,null,0.4,0,null,0.4]
[null,"   ",null,null," Kaninchen"]
[null,"Produzierende Zibbe (inkl. Jungtiere bis ca. 35 d)",null,null,"zib","Produzierende Zibbe (inkl. Jungtiere bis ca. 35 d)","Stück",0.36,{"$f":"ROUND(2.6*0.85,2)","v":2.21},1.5,2.5,null,3.4000000000000002E-2,1,null,3.4000000000000002E-2,"GF"]
[null,{"$f":"F323","v":"Kaninchen-Jungtier (ab ca. 35 d, 100 Pl.) "},null,null,"kaj","Kaninchen-Jungtier (ab ca. 35 d, 100 Pl.) ","100 Pl.",4,{"$f":"ROUND(79*0.85,2)","v":67.150000000000006},48,75,null,1.1100000000000001,1,null,1.1100000000000001,"GF"]
[null,"    ",null,null,null,"* diese Kategorien sind nur in spezifischen Betriebssituationen zutreffend (z.B. arbeitsteilige Tierhaltung); im Normalfall sind die anderen Kategorien zu verwenden."]
[null,"Liste der Linearen Korrekturen (Modul 6)",null,null," LK 1-8: Lineare Korrekturen (Schweine, Hennen)",null,null,null,null,null,null,null,null,null,null,null,null,null,null,null,null,null,null,null,null,"LK"]
[null,{"$f":"IF(F326=\"\",D326,F326)","v":"korrigiert (1)"},{"$f":"'Lineare Korrektur'!B10","v":""},{"$f":"'Lineare Korrektur'!A11","v":"korrigiert (1)"},{"$f":"'Lineare Korrektur'!B11","v":""},{"$f":"'Lineare Korrektur'!C11","v":""},{"$f":"'Lineare Korrektur'!D11","v":""},{"$f":"'Lineare Korrektur'!E11","v":""},{"$f":"'Lineare Korrektur'!F11","v":""},{"$f":"'Lineare Korrektur'!G11","v":""},{"$f":"'Lineare Korrektur'!H11","v":""},{"$f":"'Lineare Korrektur'!I11","v":""},{"$f":"J326/35","v":{"$error":"#VALUE!"}},{"$f":"VLOOKUP(C326,E$290:N$306,10,FALSE)","v":{"$error":"#N/A"}}]
[null,{"$f":"IF(F327=\"\",D327,F327)","v":"korrigiert (2)"},{"$f":"'Lineare Korrektur'!B13","v":""},{"$f":"'Lineare Korrektur'!A14","v":"korrigiert (2)"},{"$f":"'Lineare Korrektur'!B14","v":""},{"$f":"'Lineare Korrektur'!C14","v":""},{"$f":"'Lineare Korrektur'!D14","v":""},{"$f":"'Lineare Korrektur'!E14","v":""},{"$f":"'Lineare Korrektur'!F14","v":""},{"$f":"'Lineare Korrektur'!G14","v":""},{"$f":"'Lineare Korrektur'!H14","v":""},{"$f":"'Lineare Korrektur'!I14","v":""},{"$error":"#VALUE!"},{"$error":"#N/A"}]
[null,"korrigiert (3)",{"$f":"'Lineare Korrektur'!B16","v":""},{"$f":"'Lineare Korrektur'!A17","v":"korrigiert (3)"},{"$f":"'Lineare Korrektur'!B17","v":""},{"$f":"'Lineare Korrektur'!C17","v":""},{"$f":"'Lineare Korrektur'!D17","v":""},{"$f":"'Lineare Korrektur'!E17","v":""},{"$f":"'Lineare Korrektur'!F17","v":""},{"$f":"'Lineare Korrektur'!G17","v":""},{"$f":"'Lineare Korrektur'!H17","v":""},{"$f":"'Lineare Korrektur'!I17","v":""},{"$error":"#VALUE!"},{"$error":"#N/A"}]
[null,"korrigiert (4)",{"$f":"'Lineare Korrektur'!B19","v":""},{"$f":"'Lineare Korrektur'!A20","v":"korrigiert (4)"},{"$f":"'Lineare Korrektur'!B20","v":""},{"$f":"'Lineare Korrektur'!C20","v":""},{"$f":"'Lineare Korrektur'!D20","v":""},{"$f":"'Lineare Korrektur'!E20","v":""},{"$f":"'Lineare Korrektur'!F20","v":""},{"$f":"'Lineare Korrektur'!G20","v":""},{"$f":"'Lineare Korrektur'!H20","v":""},{"$f":"'Lineare Korrektur'!I20","v":""},{"$error":"#VALUE!"},{"$error":"#N/A"}]
[null,"korrigiert (5)",{"$f":"'Lineare Korrektur'!B22","v":""},{"$f":"'Lineare Korrektur'!A23","v":"korrigiert (5)"},{"$f":"'Lineare Korrektur'!B23","v":""},{"$f":"'Lineare Korrektur'!C23","v":""},{"$f":"'Lineare Korrektur'!D23","v":""},{"$f":"'Lineare Korrektur'!E23","v":""},{"$f":"'Lineare Korrektur'!F23","v":""},{"$f":"'Lineare Korrektur'!G23","v":""},{"$f":"'Lineare Korrektur'!H23","v":""},{"$f":"'Lineare Korrektur'!I23","v":""},{"$error":"#VALUE!"},{"$error":"#N/A"}]
[null,"korrigiert (6)",{"$f":"'Lineare Korrektur'!B25","v":""},{"$f":"'Lineare Korrektur'!A26","v":"korrigiert (6)"},{"$f":"'Lineare Korrektur'!B26","v":""},{"$f":"'Lineare Korrektur'!C26","v":""},{"$f":"'Lineare Korrektur'!D26","v":""},{"$f":"'Lineare Korrektur'!E26","v":""},{"$f":"'Lineare Korrektur'!F26","v":""},{"$f":"'Lineare Korrektur'!G26","v":""},{"$f":"'Lineare Korrektur'!H26","v":""},{"$f":"'Lineare Korrektur'!I26","v":""},{"$error":"#VALUE!"},{"$error":"#N/A"}]
[null,"korrigiert (7)",{"$f":"'Lineare Korrektur'!B28","v":""},{"$f":"'Lineare Korrektur'!A29","v":"korrigiert (7)"},{"$f":"'Lineare Korrektur'!B29","v":""},{"$f":"'Lineare Korrektur'!C29","v":""},{"$f":"'Lineare Korrektur'!D29","v":""},{"$f":"'Lineare Korrektur'!E29","v":""},{"$f":"'Lineare Korrektur'!F29","v":""},{"$f":"'Lineare Korrektur'!G29","v":""},{"$f":"'Lineare Korrektur'!H29","v":""},{"$f":"'Lineare Korrektur'!I29","v":""},{"$error":"#VALUE!"},{"$error":"#N/A"}]
[null,"mittlere Futtergehalte unten berechnen + rechts eingeben",{"$f":"'Lineare Korrektur'!B31","v":"zsp"},{"$f":"'Lineare Korrektur'!A32","v":"korrigiert (8)"},{"$f":"'Lineare Korrektur'!B32","v":"lk8"},{"$f":"'Lineare Korrektur'!C32","v":"mittlere Futtergehalte unten berechnen + rechts eingeben"},{"$f":"'Lineare Korrektur'!D32","v":"Platz"},{"$f":"'Lineare Korrektur'!E32","v":0},{"$f":"'Lineare Korrektur'!F32","v":{"$error":"#VALUE!"}},{"$f":"'Lineare Korrektur'!G32","v":{"$error":"#VALUE!"}},{"$f":"'Lineare Korrektur'!H32","v":""},{"$f":"'Lineare Korrektur'!I32","v":""},{"$error":"#VALUE!"},1]
[null,"IE-Tierkat. wählen",null,null," Tierkategorien mit Import-Export-Bilanz (Wegleitung Zusatzmodul 7)",null,null,null,null,null,null,null,null,null,null,null,null,null,"\"GF\" Eintrag nötig, damit im GMF der Anteil Wiesen- & Weidefutter eingetragen werden kann, ohne dass Zahl rot gefärbt wird"]
[null,{"$f":"F335","v":"IE Mastschweine"},null,null,"iems","IE Mastschweine",1,null,null,null,null,null,null,1,null,null,"GF"]
[null,"IE Zuchtschw. inkl. Ferkel bis 25 kg",null,null,"iezs","IE Zuchtschw. inkl. Ferkel bis 25 kg",1,null,null,null,null,null,null,1,null,null,"GF"]
[null,"IE Schweine",null,null,"iesc","IE Schweine",1,null,null,null,null,null,null,1,null,null,"GF"]
[null,"IE Galtsauen",null,null,"iegs","IE Galtsauen",1,null,null,null,null,null,null,1,null,null,"GF"]
[null,"IE säugende Zuchtsauen",null,null,"iesz","IE säugende Zuchtsauen",1,null,null,null,null,null,null,1,null,null,"GF"]
[null,"IE abgesetzte Ferkel",null,null,"ieaf","IE abgesetzte Ferkel",1,null,null,null,null,null,null,1,null,null,"GF"]
[null,"IE Junghennen",null,null,"iejh","IE Junghennen",1,null,null,null,null,null,null,0]
[null,"IE Mastpoulets",null,null,"iemp","IE Mastpoulets",1,null,null,null,null,null,null,0]
[null,"IE Masttruten",null,null,"iemt","IE Masttruten",1,null,null,null,null,null,null,0]
[null,"IE Prod. Zibbe (inkl. Jungtiere bis ca. 35 d)",null,null,"iezi","IE Prod. Zibbe (inkl. Jungtiere bis ca. 35 d)",1,null,null,null,null,null,null,1,null,null,"GF"]
[null,"IE Kaninchen-Jungtier, ab 35 d",null,null,"iekj","IE Kaninchen-Jungtier, ab 35 d",1,null,null,null,null,null,null,1,"nötig für Weideabzug bei I/E-Bilanz",null,"GF"]
["Stop","Stop","Stop","Stop",null,null,null,null,null,null,null,null,null,null,null,"  ","  ",null,null,null,null,null,null,"stop",null,"stop"]
[]
[]
[]
[]
[]
[]
[null,null,"nur bis SB 1.14",null,"Tab. für Korrektur des Grundfutterverzehrs aufgrund der Kraftfuttergaben",null,null,null,null,null,"Kraftfutter"]
[null,null,null,null,"     (Berechnung erfolgt im Blatt SB...)",null,null,null,null,"Milchleistung","kg/Kuh/Jahr"]
[null,null,null,null,null,null,null,null,null,"kg/Kuh/Jahr","uG","oG"]
[null,null,null,null,null,null,null,null,null,0,0,0]
[null,null,null,null,null,null,null,null,null,3000,0,500]
[null,null,null,null,null,null,null,null,null,6000,100,700]
[null,null,null,null,null,null,null,null,null,7000,300,900]
[null,null,null,null,null,null,null,null,null,8000,500,1100]
[null,null,null,null,null,null,null,null,null,9000,700,1300]
[null,null,null,null,null,null,null,null,null,10000,900,1600]
[null,null,null,null,null,null,null,null,null,11000,1100,1900]
[]
["   ","   ","   ","   ","   ","   ","   ","   ","   ","   ","   ","   ","   ","   ","   ","   ","   ","   ","   ","   ","   ","   ","   ","   ","   ","stop"]
[null,null,null,null,"für Daten Gültigkeit Liste"]
[null,null,null,null,"Einheit"]
[]
[null,null,null,null,"m3"]
[null,null,null,null,"dt"]
[null,null,null,null,"t"]
[null,null,null,null,"kg"]
[null,null,null,null,"hl"]
[null,null,null,null,"Liter"]
[null,null,null,null,"Saldo"]
[]
["   ","   ","   ","   ","   ","   ","   ","   ","   ","   ","   ","   ","   ","   ","   ","   ","   ","stop",null,null,null,null,null,null,null,"stop"]
[null,null,null,null,"Liste (für Daten Gültigkeit)",null,"1-3=Gras, 4-5=Nicht-Gras, 6=Nicht-Gras - Nebenprodukte aus der Verarbeitung von Lebensmitteln","Eingabe Beschränkung",null,null,"Typ-Nr."]
[null,null,null,null,"Grundfutter",null,"GF-Typ","TS_Min","TS_Max",null,1,"Gras - normal"]
[null,null,null,null," -",null,0,0,1,null,2,"Gras - extensiv = nährstoffarm"]
[null,null,null,null,"A) nährstoffarmes Grundfutter (Kategorien)",null,0,null,null,null,3,"Gras - wenig intensiv = nährstoffarm"]
[null,null,null,null,"*GF von ext. Wiesen",null,2,0.12,1,null,4,"Nicht-Gras - Stroh = nährstoffarm"]
[null,null,null,null,"*GF von w. int. Wiesen",null,3,0.12,1,null,5,"Nicht-Gras - normal"]
[null,null,null,null,"*Zufuhr Stroh für Futter",null,4,0.8,1,null,6,"Nicht-Gras - Nebenprodukte aus der Verarbeitung von Lebensmitteln"]
[null,null,null,null,"   ",null,0,null,null,null,"1+5+6","= normales GF"]
[null,null,null,null,"B) normales Grundfutter (Kategorien)",null,0,null,null,null," 2 - 4","= nährstoffarmes GF"]
[null,null,null,null," -",null,0]
[null,null,null,null,"Gras",null,1,0.12,1]
[null,null,null,null,"Grassilage",null,1,0.15,1]
[null,null,null,null,"Graswürfel",null,1,0.88,1]
[null,null,null,null,"Heu/Emd (Dürrfutter)",null,1,0.87,1]
[null,null,null,null,"   ",null,0]
[null,null,null,null,"Silomais",null,5,0.01,1]
[null,null,null,null,"Grünmais",null,5,0.01,1]
[null,null,null,null,"Maishäcksel",null,5,0.01,1]
[null,null,null,null,"Maissilage",null,5,0.01,1]
[null,null,null,null,"Mais-Ganzpflanzenwürfel",null,5,0.01,1]
[null,null,null,null,"CCM für Rindviehmast",null,5,0.01,1]
[null,null,null,null,"Sorghum-Ganzpflanzen (frisch, siliert, getrocknet)",null,5,0.01,1]
[null,null,null,null,null,null,0]
[null,null,null,null,"Futterrüben",null,5,0.1,1]
[null,null,null,null,"Zuckerrüben",null,5,0.23,1]
[null,null,null,null,"ZR-Schnitzel, frisch",null,5,0.28000000000000003,1]
[null,null,null,null,"ZR-Schnitzel, siliert",null,5,0.28000000000000003,1]
[null,null,null,null,"ZR-Schnitzel, getrocknet",null,6,0.85,1]
[null,null,null,null,"Rübenblätter",null,5,0.1,0.2]
[null,null,null,null,"Kartoffeln",null,5,0.22,1]
[null,null,null,null,"   ",null,0]
[null,null,null,null,"Getreide-Ganzpflanzensilage",null,5,0.01,1]
[null,null,null,null,"Chicorée-Wurzeln",null,5,0.01,1]
[null,null,null,null,"Abgang Obstverwertung",null,5,0.01,1]
[null,null,null,null,"Abgang Gemüseverwertung",null,5,0.01,1]
[null,null,null,null,"Biertreber, frisch",null,5,0.2,1]
[null,null,null,null,"Biertreber, siliert",null,5,0.2,1]
[null,null,null,null,"Biertreber, getrocknet",null,6,0.85,1]
[null,null,null,null,"   ",null,0]
[null,null,null,null,"Nebenprod. der Trocken- und Schälmüllerei",null,6,0.75,1]
[null,null,null,null,"Weizenkleie",null,6,0.75,1]
[null,null,null,null,"Haferabfallmehl",null,6,0.75,1]
[null,null,null,null,"Dinkelspelzen",null,6,0.75,1]
[null,null,null,null,"Haferspelzen",null,6,0.75,1]
[null,null,null,null,"Dinkelspreu",null,6,0.75,1]
[null,null,null,null,"Kornspreuer",null,6,0.75,1]
["   ","   ","   ","   ","   ","   ","   ","   ","   ","   ","   ","   ","   ","   ","   ","   ","   ","stop",null,null,null,null,null,null,null,"stop"]
[null,null,null,null,"Liste (für Daten Gültigkeit)"]
[null,null,null,null,"GF ausserhalb Futterfläche"]
[null,null,"diese Zeile so belassen (nicht für Kultur verwenden)",null," -"]
[null,null,"diese Zeile ist frei zum Gebrauch",null," -"]
[null,null,null,null,"CCM für Rindviehmast"]
[null,null,null,null,"Zuckerrüben"]
[null,null,null,null,"Kartoffeln"]
["   ","   ","   ","   ","   ","   ","   ","   ","   ","   ","   ","   ","   ","   ","   ","   ","   ","stop"]
[null,null,null,null,"Max.-Erträge Wiesen (ab Tab.3)",null,"Wiesen",null,null,null,"Weiden","int.Wiesen","interpoliert",null,"Betrieb",{"$f":"Suisse_Bilanz_1.17!Q51","v":0},"m.ü.M."]
[null,null,null,null,"Stufe","Höhenlage","intensiv","mittelintensiv","wenig intensiv","extensiv","ext.","min.","intensiv",null,null,"Anz. Meter","Korrektur Summe"]
[null,null,null,null,0,"< 600",135,{"$f":"G435","v":135},{"$f":"ROUND(0.75*G435,0)","v":101},60,60,{"$f":"5*10","v":50},"Zuschlag pro Meter",null,null,null,0]
[null,null,null,null,601,"601 - 700",125,{"$f":"G436+Q436","v":125},94,50,50,{"$f":"5*10","v":50},{"$f":"(G435-G436)/(E437-E436)*0","v":0},"unter 700",null,{"$f":"IF(AND(P433<E437,P433>=E436),699-P433,0)","v":0},{"$f":"ROUND(P436*M436,0)","v":0}]
[null,null,null,null,701,"701 - 800",115,{"$f":"G437+Q437","v":115},86,40,40,{"$f":"4*10","v":40},{"$f":"(G436-G437)/(E440-E437)*0","v":0},"unter 1100",null,{"$f":"IF(AND(P433<E440,P433>=E437),1099-P433,0)","v":0},{"$f":"ROUND(P437*M437,0)","v":0}]
[null,null,null,null,801,"801 - 900",110,{"$f":"G438+Q438","v":110},83,40,40,35,0,null,null,null,{"$f":"ROUND(P438*M438,0)","v":0}]
[null,null,null,null,901,"901 - 1100",100,{"$f":"G439+Q439","v":100},75,40,40,30,0,null,null,null,{"$f":"ROUND(P439*M439,0)","v":0}]
[null,null,null,null,1101,"1101 - 1500",85,{"$f":"G440+Q440","v":85},64,30,30,{"$f":"3*10","v":30},{"$f":"(G437-G440)/(E441-E440)*0","v":0},"unter 1500",null,{"$f":"IF(AND(P433<E441,P433>=E440),1499-P433,0)","v":0},{"$f":"ROUND(P440*M440,0)","v":0}]
[null,null,null,null,1500.5,"> 1500",65,{"$f":"G441","v":65},49,30,30,{"$f":"2*10","v":20},0,null,null,null,0]
["   ","   ","   ","   ","   ","   ","   ","   ","   ","   ","   ","   ","   ","   ","   ","   ","   ","stop",null,null,null,null,null,null,null,"stop"]
[null,null,null,null,"Liste (für Daten Gültigkeit)"]
[null,null,null,null,"Produktionsart"]
[null,null,null,null,"BIO"]
[null,null,null,null,"ÖLN"]
[null,null,null,null,"  -"]
[]
[null,null,null,null,"Texte, wenn BIO",null,"BIO","ÖLN","  -",0]
[null,null,null,null,{"$f":"HLOOKUP(Y1,G449:J450,2,FALSE)","v":8},"Spalte",{"$f":"COLUMN()","v":7},{"$f":"COLUMN()","v":8},{"$f":"H450","v":8},{"$f":"H450","v":8}]
[null,null,null,null,{"$f":"HLOOKUP($E$450,Texte,ROW(E451)-ROW(E$450)+1,FALSE)","v":"Auskunft: Daniel Nyfeler 058 345 85 21, Gregor Affolter 058 345 85 18"},"Auskunft","Auskunft: Daniel Fröhlich 058 345 85 24","Auskunft: Daniel Nyfeler 058 345 85 21, Gregor Affolter 058 345 85 18"]
[null,null,null,null,"Unterschrift ÖLN-Kontrolleur:","Unterschrift Kontrolleur","Unterschrift BIO-Kontrolleur:","Unterschrift ÖLN-Kontrolleur:"]
[null,null,null,null,"- Beim ÖLN darf die Gesamtbilanz den Fehlerbereich bei N und P nicht überschreiten.","Hinweise zu Gesamtbilanz/Fehlerbereich","- Beim BIO darf die Gesamtbilanz den Fehlerbereich bei N und P nicht überschreiten.","- Beim ÖLN darf die Gesamtbilanz den Fehlerbereich bei N und P nicht überschreiten."]
[null,null,null,null,"   Der Fehlerbereich beträgt in der Regel bei N und P 10% des Bedarfs (C), bei"," ","   Der Phosphorhaushalt darf höchstens ausgeglichen bilanziert werden (Planung für Hofdüngerabnahmeverträge, Tierbesatz usw.\n= max. 100 %). ","   Der Fehlerbereich beträgt in der Regel bei N und P 10% des Bedarfs (C), bei"]
[null,null,null,null,"    bestimmten Betrieben beträgt der P-Fehlerbereich aber  0 %:  ","  ","     Im Vollzug werden i.d.R.10 % Fehlerbereich toleriert, bei bestimmten Betrieben beträgt der P-Fehlerbereich aber  0 %:  ","    bestimmten Betrieben beträgt der P-Fehlerbereich aber  0 %:  "]
[null,null,null,null,"    Einzelbetriebliche Verfügung nach Direktzahlungsverordnung (Änderung 1.1.2002) bei Bauten mit Ausdehnung des Tierbestandes, DZV Art. 13 und Anhang 1.","  ","     Einzelbetriebliche Verfügung nach Direktzahlungsverordnung (Änderung 1.1.2002) bei Bauten mit Ausdehnung des Tierbestandes, DZV Art. 13 und Anhang 1","    Einzelbetriebliche Verfügung nach Direktzahlungsverordnung (Änderung 1.1.2002) bei Bauten mit Ausdehnung des Tierbestandes, DZV Art. 13 und Anhang 1."]
[null,null,null,null,"  ","  ","   Der Stickstoffhaushalt darf höchstens ausgeglichen bilanziert werden ","  "]
[null,null,null,null,"  ","  ","     (Planung für Hofdüngerabnahmeverträge,\nTierbesatz etc. = max. 100 %).","  "]
[null,null,null,null,"  ",null,"     BIO: Hofdünger muss von anerkannten Biobetrieben stammen. Wo keine ausreichende Versorgung mit BIO-Hofdüngern (hofeigene und fremde) möglich ist, darf max. 50% (mit Bewilligung max. 80%) des Bedarfs an N resp. P gemäss Suisse-Bilanz von nicht-biologischen Betrieben stammen (siehe BIO Suisse Richtlinie).","  "]
[null,null,null,null,"  ",null,"     BIO: Insgesamt dürfen maximal 50% des Bedarfs mit zugeführten Vergärungsprodukten abgedeckt werden (siehe BIO Suisse Richtlinie). ","  "]
[null,null,null,null,"ÖLN:","Titel Fehlerbereich","BIO:","ÖLN:"]
[null,null,null,null,"   ","   ","   ","   ","   ","   ","   ","   ","   ","   ","   ","   ","   ","stop","   ","   ","   ","   ","   ","   ","   ","stop"]
[null,null,null,null,"Liste (für Daten Gültigkeit)"]
[null,null,null,null,"BIO_DGVE_pro_ha"]
[null,null,null,null," -"]
[null,null,null,null,"Tal",2.5]
[null,null,null,null,"VHZ",2.1]
[null,null,null,null,"BZ 1",1.8]
[null,null,null,null,"BZ 2",1.4]
[null,null,null,null,"BZ 3",1.2]
[null,null,null,null,"BZ 4",1.1000000000000001]
["   ","   ","   ","   ","   ","   ","   ","   ","   ","   ","   ","   ","   ","   ","   ","   ","   ","stop","   ","   ","   ","   ","   ","   ","   ","stop"]
[null,null,null,null,"Vergärungsprodukte (für Daten Gültigkeit)",null,"Typ",null,null,"Beschreibung"]
[null,null,null,null,"Flüssige Vergärungsprodukte"]
[null,null,null,null," -"]
[null,null,null,null," Gärgülle - vergärter Hofdünger",null,"vergärter Hofdünger",null,null,"Gesamtsubstrat nach der Vergärung von Material landwirtschaftlicher Herkunft plus max. 20% Material nicht-landwirschaftlicher Herkunft (FS)."]
[null,null,null,null," Gärdünngülle - vergärter Hofdünger",null,"vergärter Hofdünger",null,null,"flüssige Phase nach der Separierung von Gärgülle"]
[null,null,null,null," -"]
[null,null,null,null," Gärgut - Recyclingdünger",null,"Recyclingdünger",null,null,"Gesamtsubstrat nach der Vergärung. Der Anteil von Material nicht-landwirschaftlicher Herkunft ist grösser als 20% (FS)."]
[null,null,null,null," Flüssiges Gärgut - Recyclingdünger",null,"Recyclingdünger",null,null,"flüssige Phase nach der Separierung von Gärgut"]
[]
[null,null,null,null,"Feste Vergärungsprodukte"]
[null,null,null,null," -"]
[null,null,null,null," Gärmist - vergärter Hofdünger",null,"vergärter Hofdünger",null,null,"feste Phase nach der Separierung von Gärgülle"]
[null,null,null,null," Festes Gärgut - Recyclingdünger",null,"Recyclingdünger",null,null,"feste Phase nach der Separierung von Gärgut"]
["   ","   ","   ","   ","   ","   ","   ","   ","   ","   ","   ","   ","   ","   ","   ","   ","   ","stop","   ","   ","   ","   ","   ","   ","   ","stop"]

{"sheet":"Suisse_Bilanz_1.17","index":2,"n_rows":261,"n_cols":86,"rows_kept":261,"cut":false,"hidden":false,"merged":[[39,1,39,2],[40,1,40,2],[41,1,41,2],[168,15,168,16],[86,1,86,4],[96,1,96,4],[113,1,113,4],[122,1,122,4],[114,1,114,4],[123,1,123,4],[46,1,46,2],[110,5,111,5],[63,16,63,17],[120,2,120,4],[135,1,135,4],[129,1,129,4],[47,1,47,2],[85,1,85,4],[83,1,83,4],[93,1,93,4],[121,1,121,2],[95,1,95,4],[92,1,92,4],[84,1,84,4],[37,72,37,73],[42,9,42,11],[43,9,43,11],[208,13,208,15],[207,11,207,12],[48,26,49,40],[160,26,161,36],[157,26,158,35],[165,26,165,29],[165,31,165,35],[169,13,169,14],[245,4,245,5],[210,5,210,6],[209,13,209,15],[207,13,207,15],[209,5,209,6],[210,13,210,15],[210,7,210,9],[209,7,209,9],[209,11,209,12],[210,71,210,75],[210,68,210,70],[210,66,210,67],[207,5,207,6],[207,7,207,9],[181,2,181,4],[89,1,89,4],[180,2,180,4],[178,7,178,8],[127,1,127,4],[134,1,134,4],[28,36,28,43],[184,2,184,4],[208,11,208,12],[210,11,210,12],[26,1,26,4],[45,1,45,2],[44,1,44,2],[182,2,182,4],[208,5,208,6],[183,2,183,4],[208,7,208,9],[42,1,42,2],[43,1,43,2],[121,3,121,4],[112,1,112,4],[88,1,88,4],[27,1,27,4],[24,1,24,4],[25,1,25,4],[23,1,23,4],[8,14,8,17],[14,0,16,0],[14,51,14,53],[1,40,1,46],[2,40,2,46],[6,6,6,7],[7,10,7,11],[7,2,7,7],[3,40,3,46],[7,14,7,15],[6,10,6,11],[8,19,9,24],[15,38,15,44],[1,1,1,17],[8,2,8,7],[10,2,11,17]]}
[null,null,null,null,null,null,null,null,null,null,null,null,null,null,null,null,null,null,null,null,null,null,null,null,null,null,"Die Berechnungen basieren auf der \"Suisse-Bilanz\" von agridea und EVD/BLW (Version 1.17, 2022).",null,null,null,null,null,null,null,null,null,null,"  Aktuelle Wegleitung Suisse-Bilanz verfügbar unter:",null,null,null,null,null,null,null,null,null,null,null,null,"   ",null,null,null,null,null,null,null,null,null,null,null,null,null,null,null,null,null,null,null,null,null,null,null,"    ",null,null,null,null,null,null,null,null,null,null,"stop"]
[null,"       -> immer mit Makros speichern -> Dateityp \"mit Makros\" wählen   -> Excel 2010: Datei / Speichern unter / Excel-Arbeitsmappe mit Makros (*.xlsm)",null,null,null,null,null,null,null,null,null,null,null,null,null,null,null,null,null,null,null,null,null,null,null,null,"Massgebend ist die Wegleitung Suisse-Bilanz von agridea und EVD/BLW, nehmen Sie diese zur Hand!",null,null,null,null,null,null,null,null,null,null,"   - BLW: Instrumente > Direktzahlungen > ökologischer Leistungsnachweis > Düngerbilanz > Rechtliche Grundlagen",null,null,"https://www.blw.admin.ch/blw/de/home/instrumente/direktzahlungen/oekologischer-leistungsnachweis/ausgeglichene-duengerbilanz.html",null,null,null,null,null,null,null,null,null," ",null,null,null,null,null,null,null,"Liste (für Daten Gültigkeit)",null,"Liste (für Daten Gültigkeit)"]
["2022-11-23","          Gültigkeit der Version 1.17:  Jahre 2023 - 2024 (= Info Juni 2022)  -> siehe BLW:",null,null,null,null,null,null,null,"https://www.blw.admin.ch/blw/de/home/instrumente/direktzahlungen/oekologischer-leistungsnachweis/ausgeglichene-duengerbilanz.html",null,null,null,{"$f":"IF((MID(K8,SEARCH(\"20??\",K8),4)*1) > 2024,\"  \"&K8&\": -> neue Version verwenden!\",IF((MID(K8,SEARCH(\"20??\",K8),4)*1) < 2023,\"  \"&K8&\": -> alte Version verwenden!\",\"\"))","v":""},null,null,null,null,null,null,null,null,null,null,null,null,"nachstehend eine Kurz-Anleitung: ",null,null,null,null,null,null,null,null,null,null,"   - agridea: Publikationen > downloads > ökologischer Leistungsnachweis > Suisse-Bilanz",null,null,"http://www.agridea.ch/de/publikationen/publikationen/aufzeichnungen-nachweis/suisse-bilanz",null,null,null,null,null,null,null,null,null,"   ",null,null,null,null,null,null,null,"Vollmist Typ",null,"Vollmist Zu-, Wegfuhr",null,null,null,null,null,null,null,null,null,null,null,null,null,"    "]
[null,null,null,null,null,null,null,null,null,null,null,null,null,null,null,null,null,null,null,null,null,null,null,null,null,null,"- Datei Speichern    - als Arbeitsmappe: Dokument-Name.xlsm (mit Makros) ",null,null,null,null,null,null,null,null,null,null,"   - BBZ Arenenberg: Beratung > Acker- und Futterbau, Düngung > Suisse-Bilanz",null,null,"https://arenenberg.tg.ch/beratung/ackerbau.html/340",null,null,null,null,null,null,null,null,null,"   ",null,null,null,null,null,null,null,null,null,null,null,null,null,null,null,null,null,null,null,null,null,null,null,"    "]
[null,"Suisse-Bilanz  -  Nährstoffhaushalt Gesamtbetrieb",null,null,null,null,null,null,null,null,null,null,null,null,null,null,null,"(Basis = Version 1.17,  2023, agridea und EVD/BLW)",null,null,null,null,null,null,null,null,"                               - als Mustervorlage: z.B. SB1.17_TG_.xltm (mit Makros)",null,null,null,null,null,null,null,null,null,null,null,null,null,null,null,null,null,null,null,null,null,null,null,"   ",null,null,null,null,null,null,null,0,null,"ja",null,null,null,null,null,null,null,null,null,null,null,null,null,"    "]
[null,"  Version 1.17 - 2023 Copyright by Arenenberg, Acker- und Futterbau, 8268 Salenstein",null,null,null,null,null,null,null,null,null,null,null,null,null,null,null,{"$f":"Daten!E451","v":"Auskunft: Daniel Nyfeler 058 345 85 21, Gregor Affolter 058 345 85 18"},null,null,null,null,null,null,null,null,"- Das Arbeitsblatt \"Suisse_Bilanz_1.17\" ist die Berechnungstabelle für die Nährstoffbilanz (sowie Menge und Gehalte der Hofdünger).",null,null,null,null,null,null,null,null,null,null,null,null,null,null,null,null,null,null,null,null,null,null,null,"   ",null,null,null,null,null,null,null,50,null,"nein",null,null,null,null,null,null,null,null,null,null,null,null,null,"    "]
[null,null,null,null,null,"Betr.Nr.",null,null,null,{"$f":"IF(ISBLANK(K7),\"Prod.Art ? -> \",\"\")","v":""},"ÖLN",null,null,null,null,null,null,null,null,null,null,null,null,null,null,null,"- Das Arbeitsblatt \"Lineare Korrektur\" dient der Berechnung des Nährstoffanfalls, sofern NPr-Futter nach Zusatzmodul 6 zu berücksichtigen ist. ",null,null,null,null,null,null,null,null,null,null,null,null,null,null,null,null,null,null,null,null,null,null,null,"   ",null,null,null,null,null,null,null,100,null,null,null,null,null,null,null,null,null,null,null,null,null,null,null,"    "]
[null,"Name: "," ",null,null,null,null,null,null,"Jahr:",2023,null,null," Datum:",{"$f":"TODAY()","v":"2023-02-14"},null,null,"Seite 1",null,null,null,null,null,null,null,null,"- Das Arbeitsblatt \"GMF\" dient der Berechnung der Futterbilanz für die graslandbasierte Milch- und Fleischproduktion, Achtung: zuerst die Suisse-Bilanz vollständig ausfüllen.",null,null,null,null,null,null,null,null,null,null,null,null,null,null,null,null,null,null,null,null,null,null,null,"   ",null,null,null,null,null,null,null,null,null,null,null,null,null,null,null,null,null,null,null,null,null,null,null,"    "]
[null,"Adresse: ",null,null,null,null,null,null,null,"1.1.-31.12.",null,null,null,"erstellt von:",null,null,null,null,null,"Dateneingabe - mit Tabulator-Taste jeweils ins nächste Eingabefeld springen",null,null,null,null,null,null,"- Springen Sie mit der Tabulator-Taste zu den \"freien\" (ungesperrten) Feldern und geben Sie die Daten ein.",null,null,null,null,null,null,null,null,null,null,null,null,null,null,null,null,null,null,null,null,null,null,null,"   ",null,null,null,null,null,null,null,null,null,null,null,null,null,null,null,null,null,null,null,null,null,null,null,"    "]
[null,null,null,null,null,null,null,null,null,null,null,null,null,null,null,null,null,null,null,null,null,null,null,null,null,null,null,null,null,null,null,null,null,null,null,null,null,null,null,null,null,null,null,null,null,null,null,null,null,null,"   ",null,null,null,null,null,null,null,null,null,null,null,null,null,null,null,null,null,null,null,null,null,null,null,"    "]
[null,"Bemerkungen:","-  ",null,null,null,null,null,null,null,null,null,null,null,null,null,null,null,null,null,"  Hell-Gelbe Zellen: Daten eingeben",null,null,null,null,null,null,"Tabulator-Taste -> 1 Feld vorwärts;    shift+Tabulator-Taste -> 1 Feld zurück",null,null,null,null,null,null,null,null,null,null,null,null,null,null,null,null,null,null,null,null,null,null,"   ",null,null,null,null,null,null,null,null,null,null,null,null,null,null,null,null,null,null,null,null,null,null,null,"    "]
[null,null,null,null,null,null,null,null,null,null,null,null,null,null,null,null,null,null,null,null,"  grüne Zellen: Daten aus Liste auswählen",null,null,null,null,null,"- Zur Auswahl von Tierkategorien und Kulturen (ausser Milchkühe, Rindviehmast >160 d und Grundfutterkulturen)",null,null,null,null,null,null,null,null,null,null,null,null,null,null,null,null,null,null,null,null,null,null,null,"   ",null,null,null,null,null,null,null,null,null,null,null,null,null,null,null,null,null,null,null,null,null,null,null,"    "]
[null,null,null,null,null,null,null,null,null,null,null,null,null,null,null,null,null,null,null,null,"  weiss od. andere Farbe: gesperrt, keine Dateneingabe ",null,null,null,null,null,"   Cursor auf Zelle in entsprechender Spalte setzen, mit grauem Pfeil Liste anzeigen und die gewünschte Kategorie auswählen",null,null,null,null,null,null,null,null,null,null,null,null,null,null,null,null,null,null,null,null,null,null,null," ",null,null,null,null,null,null,null,null,null,null,null,null,null,null,null,null,null,null,null,null,null,null,null,"    "]
[null,null,null,null,null,null,null,null,null,"Voll-","GF-Ver-"," ",null,null,null,"Nges","Nges","Voll-",null,null,null,null,null,null,null,null,"Massgebender Tierbestand (siehe Wegleitung 2.8)",null,null,null,null,null,null,null,null,null,null,"     - Umrechnungshilfe  zur Übernahme von TVD-Rindviehbeständen in die Suisse-Bilanz",null,null,null,null,null,null,null,null,null,null,null,null,null,null,"Milchkühe: Korrektur des Grundfutterverzehrs aufgrund der Kraftfuttergaben",null,null,null,null,null,null,null,null,null,null,null,null,null,null,null,null,null,null,null,null,null,"    "]
[{"$f":"IF(OR(AND(ISNUMBER(F18),OR(B18<3000,B18>16000)),AND(ISNUMBER(F19),OR(B19<3000,B19>16000))),\"Stimmt durchschn. Milchleistung?\",\" \")","v":" "}," Tierkategorien",null,null,null,"Anzahl","Laufhof","Weide",null,"mist","zehr","Nährstoffanfall  (kg pro Jahr)",null,null,null,"im ","auf","mist-",{"$f":"IF(AND(U16=\"\",Y16=\"\" ), \"\",\"        Zusatzangaben für die Berechnung der Grösse 'Kraftfutter / Milchkuh' \")","v":""},null,null,null,null,null,null,null,"Massgebend sind die gehaltenen Tiere im Kalenderjahr (Rindvieh, Pferde, Büffel und Bisons gemäss TVD, Umrechnungshilfe",null,null,null,null,null,null,null,null,null,null,"               -> BLW: Instrumente > Direktzahlungen > ökologischer Leistungsnachweis > ausgeglichene Düngerbilanz > Rechtliche Grundlagen ",null,null,null,null,null,null,null,null,null,null,null,null,"   ","massgebende Anz. und KF für GF-Vz Kühe",null,null,null,null,"massgebendes",null,null,null,null,null,null,null,null,null,null,null,null,null,null,null,null,null,"    "]
[null,"Milchkühe",null,{"$f":"IF(OR(AND(ISNUMBER(F18),F18<>0,ISBLANK(D18)),AND(ISNUMBER(F19),F19<>0,ISBLANK(D19)) ),\"dt Kraftfutter eingeben\",\"      Kraftfutter\")","v":"      Kraftfutter"},null,null,"Tage/J.","Std./T.","Tage/J.","Typ","dt TS/J.","Nges","P2O5   ","K2O","Mg ","Laufh.","Weide","Nges",null,null,{"$f":"IF(OR(ISNUMBER(F18),ISNUMBER(F19)),\"andere Abwesenheit\",\"\")","v":""},{"$f":"IF(OR(U18=\"ja\",U19=\"ja\"),\"Anzahl\",\"\")","v":""},{"$f":"IF(OR(AND(U18=\"ja\",ISNUMBER(V18)),AND(U19=\"ja\",ISNUMBER(V19))),\"Anzahl\",\"\")","v":""},{"$f":"IF(AND(X18=\"\",X19=\"\"),\"\",\"Andere Abw.\")","v":""},{"$f":"IF(AND(AZ18=$F18,AZ19=$F19),\"\",\" Anzahl Kühe (ohne Abzug)\")","v":""},null," SuiBiTrans in Wegleitung Kapitel 3.1; bei den anderen Tierkategorien die Durchschnittsbestände)",null,null,null,null,null,null,null,null,null,null,null,"https://www.blw.admin.ch/blw/de/home/instrumente/direktzahlungen/oekologischer-leistungsnachweis/ausgeglichene-duengerbilanz.html",null,null,null,null,null,null,null,null,null,null,null,"   ","Anz. brutto","KF dt","KF kg/Kuh",null,"JM","KF (kg)","Std-KF (kg)","Abw.-KF (kg)",null,"GF-Verzehrskorrektur nach KF:",null,null,null,null,null,null,null,null,null,null,null,null,null,"    "]
[null,"kg Milch/Kuh/Jahr",null,"dt total","kg/Kuh/J.",null,null,null,null,"0/50/100",null,null,null,null,null,"kg","kg","kg",null,null,{"$f":"IF(OR(ISNUMBER(F18),ISNUMBER(F19)),\"ohne Sömmerung\",\"\")","v":""},{"$f":"IF(OR(U18=\"ja\",U19=\"ja\"),\"Tiere\",\"\")","v":""},{"$f":"IF(OR(AND(U18=\"ja\",ISNUMBER(V18)),AND(U19=\"ja\",ISNUMBER(V19))),\"Tage\",\"\")","v":""},{"$f":"IF(AND(X18=\"\",X19=\"\"),\"\",\"Pl.\")","v":""},{"$f":"IF(AND(AZ18=$F18,AZ19=$F19),\"\",\"Betrieb + Sö + Abwesenheit (Nicht-Sö)\")","v":""},null,"- Milchkühe: setzen Sie die durchschnittliche Jahresmilch pro Kuh und Jahr ein",null,null,null,null,null,null,null,null,null,null,null,null,null,null,null,null,null,null,null,null,null,null,null,"   ",null,null,null,null,null,null,null,null,null,null,null,null,null,null,null,null,null,null,null,null,null,null,null,"    "]
[null,null,null,null,{"$f":"IF(F18>0,BB18,\"\")","v":""},null,null,null,null,null,{"$f":"IF(F18<>0,F18*(56+(B18-7500)*0.0014-(0.003* (B18-7500)/100*(B18-7500)/100 )+Suisse_Bilanz_1.17!BI18),\"\")","v":""},{"$f":"IF(F18<>0,IF(B18<7500,F18*(95.2+(B18-7500)*0.0048)*IF($E$20=\"ja\",0.8/0.85,1),F18*(95.2+(B18-7500)*0.0048)*IF($E$20=\"ja\",0.8/0.85,1)),\"\")","v":""},{"$f":"IF(F18<>0,IF(B18<7500,F18*(39+(B18-7500)*0.0027),F18*(39+(B18-7500)*0.0027)),\"\")","v":""},{"$f":"IF(F18<>0,IF(B18<7500, F18*(172+(B18-7500)*0.0052),F18*(172+(B18-7500)*0.0052)),\"\")","v":""},{"$f":"IF(F18<>0,IF(B18<7500,F18*(14+(B18-7500)*0.001),F18*(14+(B18-7500)*0.001)),\"\")","v":""},{"$f":"IF(ISNUMBER(L18),IF(G18<=365,L18*(G18/365)*0.1,\"Tage?\"),\"\")","v":""},{"$f":"IF(ISNUMBER(L18),IF(OR(H18>24,I18>365),\"St,Tg?\",IF(G18*2.4+H18*I18>24*365,\"L+W?\",L18*(H18*I18/24/365))),\"\")","v":""},{"$f":"IF(ISNUMBER(L18),IF(J18=100,L18-P18-Q18,IF(J18=50,(L18-P18-Q18)*0.5, 0)),\"\")","v":""},null,null,null,null,null,{"$f":"IF(AND(U18=\"ja\",ISNUMBER(V18),ISNUMBER(W18)),W18*V18/365,\"\")","v":""},{"$f":"IF(AZ18=F18,\"\",AZ18)","v":""},null,"       mittlere Jahresmilch pro Kuh = (vermarktete Milch + Alpmilch + Haushalt + Verfütterung + übrige produzierte Milch) / Anzahl Milchkühe",null,null,null,null,null,null,null,null,null,null,null,null,null,null,null,null,null,null,null,null,null,null,null,"   ",{"$f":"SUM(F18,X18,GMF_1.8!J11*GMF_1.8!K11/365)","v":0},{"$f":"D18","v":0},{"$f":"BA18*100/AZ18","v":{"$error":"#DIV/0!"}},"Milchkühe",{"$f":"Suisse_Bilanz_1.17!B18","v":0},{"$f":"BB18","v":{"$error":"#DIV/0!"}},{"$f":"(-80+0.025*BD18)*BD18/1000","v":0},{"$f":"BF18-BB18","v":{"$error":"#DIV/0!"}},null,{"$f":"IF(BE18<0,0,BG18*0.012)","v":{"$error":"#DIV/0!"}},"dt TS GF pro Kuh/Jahr",null,null,null,null,null,null,null,null,null,null,null,null,"    "]
["ausblenden",null,null,null,null,null,null,null,null,null,null,null,null,null,null,null,null,null,null,null,null,null,null,null,null,null,null,null,null,null,null,null,null,null,null,null,null,null,null,null,null,null,null,null,null,null,null,null,null,null,null,null,null,null,null,null,null,null,null,null,null,null,null,null,null,null,null,null,null,null,null,null,null,null,"    "]
["Abkürz.",null,null,{"$f":"IF(OR(F18<>0,SUM(F18:F19)<>0),\"alle Milchkühe im Laufstall?\",\"\")","v":""},null,null,null,null,null,null,null,null,null,null,null,null,null,null,null,null,null,null,null,null,null,null,"       Kraftfutter: die Menge Kraftfutter in dt eintragen, die im Jahr an die Kühe auf dem Betrieb verfüttert wurden (betriebseigenes + fremdes)",null,null,null,null,null,null,null,null,null,null,null,null,null,null,null,null,null,null,null,null,null,null,null,"   ",null,null,null,null,null,null,null,null,null,null,null,null,null,null,null,null,null,null,null,null,null,null,null,"    "]
[]
[null,"Rindviehmast",null,"g M-TZW","kg Ausstall-LG",null,null,null,null,null,null,null,null,null,null,null,null,null,{"$f":"IF(ISNUMBER(F23),\"        Vergleich\",\"\")","v":""},null,{"$f":"IF(ISNUMBER(F23),\"Alter (d)\",\"\")","v":""},{"$f":"IF(ISNUMBER(F23),\"SG (kg)\",\"\")","v":""},{"$f":"IF(ISNUMBER(F23),\"M-TZW nach Alter & LG\",\"\")","v":""},null,{"$f":"IF(ISNUMBER(F23),\"Kontrolle: Ausstall-LG = SG/0.556\",\"\")","v":""},null,"- Rindviehmast > 160 d: wird linear korrigiert nach Tageszuwachs und Ausstall-Lebendgewicht",null,null,null,null,null,null,null,null,null,null,null,null,null,null,null,null,null,null,null,null,null,null,null,{"$f":"B22","v":"Rindviehmast"},"Abw.TZW (g)","Abw. AS-LG (kg)","M-TZW berechnet (g/Tag)",null,"Ausstall-LG berechnet (Tage)",null,null,null,null,null,null,"Rindviehmast"]
[null,"RV-Mast  >160 d (Pl.)",null,null,null,null,null,null,null,null,{"$f":"IF(OR(D23=0,E23=0,F23=0),\"\", (21+AZ23/100*(-0.43)+BA23/20*0.58)*$F23)","v":""},{"$f":"IF(AND(F23<>0,D23=0),\"TZW fehlt\",IF(AND(F23<>0,E23=0),\"A-LG fehlt\",IF(AND(D23<>0,E23<>0,F23<>0),(35.68+AZ23/100*1.408+BA23/20*0.744)*$F23,\"\")))","v":""},{"$f":"IF(AND(D23<>0,E23<>0,F23<>0),(13.4+AZ23/100*0.66+BA23/20*0.32)*$F23,\"\")","v":""},{"$f":"IF(AND(D23<>0,E23<>0,F23<>0),(36.2+AZ23/100*0.1+BA23/20*0.94)*$F23,\"\")","v":""},{"$f":"IF(AND(D23<>0,E23<>0,F23<>0),(5.8+AZ23/100*0.42+BA23/20*0.06)*$F23,\"\")","v":""},{"$f":"IF(ISNUMBER(L23),IF( OR(A23=\"pou\",A23=\"iemp\"),IF(G23<=180,L23*(G23/365)*0.1,\"Tage?\"),IF(G23<=365,L23*(G23/365)*0.1,\"Tage?\")),\"\")","v":""},{"$f":"IF(ISNUMBER(L23),IF(OR(H23>24,I23>365),\"St,Tg?\",IF(G23*2.4+H23*I23>24*365,\"L+W?\",L23*(H23*I23/24/365))),\"\")","v":""},{"$f":"IF(ISNUMBER(L23),IF(J23=100,L23-P23-Q23,IF(J23=50,(L23-P23-Q23)*0.5, 0)),\"\")","v":""},null,null,null,null,{"$f":"IF(ISNUMBER(F23),IF(ISBLANK(D23),\"M-TZW fehlt\",IF(ISBLANK(E23),\"Ausstall-LG fehlt\",IF(OR(ISBLANK(U23),U23=0),\"Schlachtalter fehlt\",ROUND(BB23,0)&\" g -> weicht \"&ABS(ROUND(BB23-D23,0))&\" g ab\"))),\"\")","v":""},null,{"$f":"IF(ISNUMBER(F23),IF(ISNUMBER(V23),BD23& \" kg LG -> weicht \" &ABS(ROUND(BD23-E23,0))&\" kg ab\",\"Schlachtgewicht (SG) fehlt\"),\"\")","v":""},null,"                                                Werte ausserhalb des Gültigkeitsbereiches werden auf das jeweilige Minimum oder Maximum gesetzt",null,null,null,null,null,null,null,null,null,null,null,null,null,null,null,null,null,null,null,null,null,null,null,"   ",{"$f":"IF(ISNUMBER(D23),IF(D23<850,850-1400,IF(D23>1500,1500-1400,D23-1400)),\"TZW fehlt\")","v":"TZW fehlt"},{"$f":"IF(ISNUMBER(E23),IF(E23<400,400-530,IF(E23>580,580-530,E23-530)),\"AS-LG fehlt\")","v":"AS-LG fehlt"},{"$f":"IF(ISNUMBER(F23),ROUND(1396+3.19*E23-4.29*U23,0),\"\")","v":""},{"$f":"D23/BB23-1","v":{"$error":"#VALUE!"}},{"$f":"IF(ISNUMBER(F23),ROUND(V23/0.566,0),\"\")","v":""},{"$f":"E23/BD23-1","v":{"$error":"#VALUE!"}},null,null,null,null,null,null,null,null,null,null,null,null,null,null,null,null,null,"    "]
[{"$f":"IF(ISBLANK(B24),0,VLOOKUP(B24,Daten!$B$248:$E$345,4,FALSE))","v":0}," -",null,null,null,null,null,null,null,null,{"$f":"IF(F24=0,\"\",VLOOKUP($A24,Daten!$E$248:$L$345,4,FALSE)*$F24)","v":""},{"$f":"IF(F24<>0,VLOOKUP($A24,Daten!$E$248:$L$345,5,FALSE)*$F24,\"\")","v":""},{"$f":"IF(F24<>0,VLOOKUP($A24,Daten!$E$248:$L$345,6,FALSE)*$F24,\"\")","v":""},{"$f":"IF(F24<>0,VLOOKUP($A24,Daten!$E$248:$L$345,7,FALSE)*$F24,\"\")","v":""},{"$f":"IF(F24<>0,VLOOKUP($A24,Daten!$E$248:$L$345,8,FALSE)*$F24,\"\")","v":""},{"$f":"IF(ISNUMBER(L24),IF( OR(A24=\"pou\",A24=\"iemp\"),IF(G24<=180,L24*(G24/365)*0.1,\"Tage?\"),IF(G24<=365,L24*(G24/365)*0.1,\"Tage?\")),\"\")","v":""},{"$f":"IF(ISNUMBER(L24),IF(OR(H24>24,I24>365),\"St,Tg?\",IF(G24*2.4+H24*I24>24*365,\"L+W?\",L24*(H24*I24/24/365)*(VLOOKUP($A24,Daten!$E$248:$N$345,10,FALSE)*1))),\"\")","v":""},"",null,null,null,null,null,null,null,null," - Tränker: Milchviehbetriebe erfassen Tränker für den Verkauf als Jungvieh <160 d ",null,null,null,null,null,null,null,null,null,null,null,null,null,null,null,null,null,null,null,null,null,null,null,"   ",null,null,null,null,null,null,null,null,null,null,null,null,null,null,null,null,null,null,null,null,null,null,null,"    "]
[{"$f":"IF(ISBLANK(B25),0,VLOOKUP(B25,Daten!$B$248:$E$345,4,FALSE))","v":0}," -",null,null,null,null,null,null,null,null,{"$f":"IF(F25=0,\"\",VLOOKUP($A25,Daten!$E$248:$L$345,4,FALSE)*$F25)","v":""},{"$f":"IF(F25<>0,VLOOKUP($A25,Daten!$E$248:$L$345,5,FALSE)*$F25,\"\")","v":""},{"$f":"IF(F25<>0,VLOOKUP($A25,Daten!$E$248:$L$345,6,FALSE)*$F25,\"\")","v":""},{"$f":"IF(F25<>0,VLOOKUP($A25,Daten!$E$248:$L$345,7,FALSE)*$F25,\"\")","v":""},{"$f":"IF(F25<>0,VLOOKUP($A25,Daten!$E$248:$L$345,8,FALSE)*$F25,\"\")","v":""},"",{"$f":"IF(ISNUMBER(L25),IF(OR(H25>24,I25>365),\"St,Tg?\",IF(G25*2.4+H25*I25>24*365,\"L+W?\",L25*(H25*I25/24/365)*(VLOOKUP($A25,Daten!$E$248:$N$345,10,FALSE)*1))),\"\")","v":""},"",null,null,null,null,null,null,null,null,"- Bei Tieren, die zeitweise im Laufhof sind, geben Sie die Anzahl Tage pro Jahr ein (10% des Tagesanfalls fallen im Laufhof an).",null,null,null,null,null,null,null,null,null,null,null,null,null,null,null,null,null,null,null,null,null,null,null,"   ",null,null,null,null,null,null,null,null,null,null,null,null,null,null,null,null,null,null,null,null,null,null,null,"    "]
[{"$f":"IF(ISBLANK(B26),0,VLOOKUP(B26,Daten!$B$248:$E$345,4,FALSE))","v":0}," -",null,null,null,null,null,null,null,null,{"$f":"IF(F26=0,\"\",VLOOKUP($A26,Daten!$E$248:$L$345,4,FALSE)*$F26)","v":""},{"$f":"IF(F26<>0,VLOOKUP($A26,Daten!$E$248:$L$345,5,FALSE)*$F26,\"\")","v":""},{"$f":"IF(F26<>0,VLOOKUP($A26,Daten!$E$248:$L$345,6,FALSE)*$F26,\"\")","v":""},{"$f":"IF(F26<>0,VLOOKUP($A26,Daten!$E$248:$L$345,7,FALSE)*$F26,\"\")","v":""},{"$f":"IF(F26<>0,VLOOKUP($A26,Daten!$E$248:$L$345,8,FALSE)*$F26,\"\")","v":""},"",{"$f":"IF(ISNUMBER(L26),IF(OR(H26>24,I26>365),\"St,Tg?\",IF(G26*2.4+H26*I26>24*365,\"L+W?\",L26*(H26*I26/24/365)*(VLOOKUP($A26,Daten!$E$248:$N$345,10,FALSE)*1))),\"\")","v":""},"",null,null,null,null,null,null,null,null,"- Bei Tieren, die zeitweise auf der Weide sind, geben Sie die Stunden pro Tag [Std./T.] und die Tage pro Jahr [Tage/J.] an  (nur Zeiten auf dem Betrieb ohne Alpung)",null,null,null,null,null,null,null,null,null,null,null,null,null,null,null,null,null,null,null,null,null,null,null,"   ","  ","  ",null,null,null,null,null,"Bedingung",null,null,null,null,null,null,null,null,null,null,null,null,null,null,null,"    "]
[{"$f":"IF(ISBLANK(B27),0,VLOOKUP(B27,Daten!$B$248:$E$345,4,FALSE))","v":0}," -",null,null,null,null,null,null,null,null,{"$f":"IF(F27=0,\"\",VLOOKUP($A27,Daten!$E$248:$L$345,4,FALSE)*$F27)","v":""},{"$f":"IF(F27<>0,VLOOKUP($A27,Daten!$E$248:$L$345,5,FALSE)*$F27,\"\")","v":""},{"$f":"IF(F27<>0,VLOOKUP($A27,Daten!$E$248:$L$345,6,FALSE)*$F27,\"\")","v":""},{"$f":"IF(F27<>0,VLOOKUP($A27,Daten!$E$248:$L$345,7,FALSE)*$F27,\"\")","v":""},{"$f":"IF(F27<>0,VLOOKUP($A27,Daten!$E$248:$L$345,8,FALSE)*$F27,\"\")","v":""},"",{"$f":"IF(ISNUMBER(L27),IF(OR(H27>24,I27>365),\"St,Tg?\",IF(G27*2.4+H27*I27>24*365,\"L+W?\",L27*(H27*I27/24/365)*(VLOOKUP($A27,Daten!$E$248:$N$345,10,FALSE)*1))),\"\")","v":""},"",null,null,null,null,null,null,null,null,"  Hinweis: An Weidetagen mit mehr als 12 Std. Weide ist kein zusätzlicher Abzug für Laufhof möglich; die Summe von Laufhof- und Weidezeit kann max. 1 Jahr sein (sonst erscheint L+W?); Weidetage mit < 12 h Weide können gleichzeitig auch Laufhoftage sein.",null,null,null,null,null,null,null,null,null,null,null,null,null,null,null,null,null,null,null,null,null,null,null,"  ","  ","Einschränkungen zur Grundfutterrechnung:",null,null,null,null,null,"1= trifft zu","Text, der angezeigt wird: ",null,null,"  ",null,null,null,null,null,null,null,null,null,null,null,"    "]
[{"$f":"IF(ISBLANK(B28),0,VLOOKUP(B28,Daten!$B$248:$E$345,4,FALSE))","v":0}," -",null,null,null,null,null,null,null,null,{"$f":"IF(F28=0,\"\",VLOOKUP($A28,Daten!$E$248:$L$345,4,FALSE)*$F28)","v":""},{"$f":"IF(F28<>0,VLOOKUP($A28,Daten!$E$248:$L$345,5,FALSE)*$F28,\"\")","v":""},{"$f":"IF(F28<>0,VLOOKUP($A28,Daten!$E$248:$L$345,6,FALSE)*$F28,\"\")","v":""},{"$f":"IF(F28<>0,VLOOKUP($A28,Daten!$E$248:$L$345,7,FALSE)*$F28,\"\")","v":""},{"$f":"IF(F28<>0,VLOOKUP($A28,Daten!$E$248:$L$345,8,FALSE)*$F28,\"\")","v":""},"",{"$f":"IF(ISNUMBER(L28),IF(OR(H28>24,I28>365),\"St,Tg?\",IF(G28*2.4+H28*I28>24*365,\"L+W?\",L28*(H28*I28/24/365)*(VLOOKUP($A28,Daten!$E$248:$N$345,10,FALSE)*1))),\"\")","v":""},"",null,null,null,null,null,null,null,null,"  Hinweis: bei Geflügel ist kein Abzug für Weide möglich; der Aussenklimabereich gehört zum Gebäude, deshalb kein \"Laufhofabzug\". Für die Anzahl Tage Auslauf ausserhalb von Stall und Aussenklimabereich kann der \"Laufhofabzug\" jedoch gemacht werden.",null,null,null,null,null,null,null,null,null,null,null,null,null,null,null,null,null,null,null,null,null,null,null,"   ",1,"Höhenangabe Betrieb fehlt",null,null,null,null,null,{"$f":"IF(OR(ISNUMBER(Q51),P51=\"\"),0,1)","v":0},{"$f":"IF(BG28=1,\" Die Höhenlage des Betriebs eintragen (weiter oben) !\",\"\")","v":""},null,null,null,null,null,null,null,null,null,null,null,null,null,null,"    "]
[null,null,null,"alles Jungvieh im Laufstall?",null,null,null,null,null,"Total (A1)",{"$f":"SUM(K18:K19,K23:K28)","v":0},{"$f":"SUM(L18:L19,L23:L28)","v":0},0,0,0,{"$f":"SUM(P18:P19,P23:P28)","v":0},0,{"$f":"IF(SUM(R18:R19,R23:R28)<0,0,SUM(R18:R19,R23:R28))","v":0},{"$f":"IF(SUM(R18:R19,R23:R28)<0,\" V1 ist negativ = nicht möglich\",IF(R29>L29,\" V1 ist grösser als Nges bei A1 = nicht möglich -> Eingaben korrigieren\",\"\"))","v":""},null,null,null,null,null,null,null,"  Hinweis: Bei Mastpoulethaltung und bei Bruderhähnen ist das Modul Mastpoulet des BLW (Impex) zu verwenden  ->",null,null,null,null,null,null,null,null,null,"https://www.blw.admin.ch/blw/de/home/instrumente/direktzahlungen/oekologischer-leistungsnachweis/ausgeglichene-duengerbilanz.html",null,null,null,null,null,null,null,null,null,null,null,null,null,"   ",2,"Tiefstwert für intensive Wiesen: nach Höhenlage 20-50 dt TS/ha",null,null,null,null,null,{"$f":"IF(AND(ISNUMBER(G71),G71<BD71),1,0)","v":0},{"$f":"IF(BG29=1,\" Ertrag intensive Wiesen unter Tiefstwert (\"&BD71&\" dtTS/ha) --> GF-Flächen + Erträge überprüfen; Anleitung weiter rechts beachten !\",\"\")","v":""},null,null,null,null,null,null,null,null,null,null,null,null,null,null,"    "]
[null,null,null,null,null,null,null,null,null,"    - Abzug für verfüttertes \"nährstoffarmes Grundfutter\"  (1):",{"$f":"IF(Q38<0,0,IF((Q38+Q46+Q47)>=K29,K29,SUM(Q38,Q46:Q47)))","v":0},{"$f":"IF(K29=0,0,-K30*0.6)","v":0},{"$f":"IF(K29=0,0,-K30*0.1)","v":0},null,null,"L","W","V1",null,null,null,null,null,null,null,null,"                 Bei Pouletmast mit Auslauf ausserhalb von Stall und Aussenklimabereich können max. 180 \"Laufhof-Tage\" pro Jahr geltend gemacht werden, weil die Küken die ersten Lebenswochen im Stall verbringen.",null,null,null,null,null,null,null,null,null,null,null,null,null,null,null,null,null,null,null,null,null,null,null,"   ",3,"wenn Ertrag ext. Wiese über Limite",null,null,null,null,null,{"$f":"BC66","v":0},{"$f":"IF(BG30=1,\" Ertrag extensive Wiesen über Maximalwert --> GF-Flächen + Erträge überprüfen; Anleitung weiter rechts beachten !\",\"\")","v":""},null,null,null,null,null,null,null,null,null,null,null,null,null,null,"    "]
[null,null,null,null,null,null,null,null,null,"     - Abzug von Stickstoffverlusten infolge Weide- (W*0.7) und Laufhofhaltung (L*0.5):",null,{"$f":"-0.5*P29-0.7*Q29","v":0},null,null,null,null,null,{"$f":"R116","v":0},{"$f":"IF(-R116>R29,\" Wegfuhr von VM-Nges höher als V1 -> Wegfuhr überprüfen\",\"\")","v":""},null,null,null,null,null,null,null,"- Grundfutter-Verzehr Zuchtschweine: separate \"Tierart\" auswählen (\"GF-Verz. Zuchtschw. dt TS total\") und effektiv verfütterte Menge in dt TS in Spalte \"Anzahl\" eingeben.",null,null,null,null,null,null,null,null,null,null,null,null,null,null,null,null,null,null,null,null,null,null,null,"   ",4,"wenn Ertrag ungedüngte Wiese über Limite",null,null,null,null,null,{"$f":"BC67","v":0},{"$f":"IF(BG31=1,\" Ertrag ungedüngte Wiesen über Maximalwert --> GF-Flächen + Erträge überprüfen; Anleitung weiter rechts beachten !\",\"\")","v":""},null,null,null,null,null,null,null,null,null,null,null,null,null,null,"    "]
[null,null,null,null,null,null,null,null,null,null,"Total Nährstoffanfall aus Tierhaltung, korrigiert (A2)",{"$f":"L29+L30+L31","v":0},{"$f":"M29+M30","v":0},{"$f":"N29","v":0},{"$f":"O29","v":0},null,null,"V2",null,null,null,null,null,null,null,null,"                Wird ein Verzehr über 0.5 dt TS / Platz / Jahr geltend gemacht, ist der effektive Verzehr mit Modul 6/7 (I/E-Bilanz oder Lineare Korrektur nach Futtergehalten) nachzuweisen. Die GF sind in der Grundfutterrechnung korrekt einzubeziehen (z.B. verfüttertes Stroh). ",null,null,null,null,null,null,null,null,null,null,null,null,null,null,null,null,null,null,null,null,null,null,null,"   ",5,"wenn Ertrag ext. Weide über Limite",null,null,null,null,null,{"$f":"BC68","v":0},{"$f":"IF(BG32=1,\" Ertrag extensive Weide über Maximalwert --> GF-Flächen + Erträge überprüfen; Anleitung weiter rechts beachten !\",\"\")","v":""},null,null,null,null,null,null,null,null,null,null,null,null,null,null,"    "]
[null,null,null,null,null,null,null,null,null,null,"davon Nverfügbar:",{"$f":"J150","v":0},null,null,null,null,"Vollmist-Nges",{"$f":"R29+R31","v":0},null,null,null,null,null,null,null,null,"- Grundfutter-Verzehr Mastschweine: nur mit Nachweis mittels I/E-Bilanz möglich, nur ausgewählte Grundfutter (siehe Wegleitung Position 2.10), max. 0.1 kg TS/Tag/Tier ",null,null,null,null,null,null,null,null,null,null,null,null,null,null,null,null,null,null,null,null,null,null,null,"   ",6,"wenn Ertrag wenig intensive Wiese über Limite",null,null,null,null,null,{"$f":"BC69","v":0},{"$f":"IF(BG33=1,\" Ertrag wenig intensive Wiesen über Maximalwert --> GF-Flächen + Erträge überprüfen; Anleitung weiter rechts beachten !\",\"\")","v":""},null,null,null,null,null,null,null,null,null,null,null,null,null,null,"    "]
[null,null,null,null,null,null,null,null,null,null,null,{"$f":"H148","v":0.6},null,null,null,"(V1+V2)/(A1+A3)",null,{"$f":"IF(AND(IF(R33=0,0,R33/(L29+M116))>=0,IF(R33=0,0,R33/(L29+M116))<=1),IF(R33<=0,0,R33/(L29+M116)),0)","v":0},{"$f":"IF(-R116>R29,\" Wegfuhr von VM-Nges (V2) auf Max.(=V1) gesetzt\",\"\")","v":""},null,null,null,null,null,null,null,null,null,null,null,null,null,null,null,null,null,null,null,null,null,null,null,null,null,null,null,null,null,null,null,"   ",7,"wenn Ertrag mittelintensive Wiese über Limite",null,null,null,null,null,{"$f":"BC70","v":0},{"$f":"IF(BG34=1,\" Ertrag mittelintensive Wiesen über Maximalwert --> GF-Flächen + Erträge überprüfen; Anleitung weiter rechts beachten !\",\"\")","v":""},null,null,null,null,null,null,null,null,null,null,null,null,null,null,"    "]
[null,null,null,null,null,null,null,null,null,null,null,null,null,null,null,null,null,null,null,null,null,null,null,null,null,null,null,null,null,null,null,null,null,null,null,null,null,null,null,null,null,null,null,null,null,null,null,null,null,null,"   ",null,null,null,null,null,null,null,null,null,null,null,null,null,null,null,null,null,null,null,null,null,null,null,"    "]
[null,null,null,null,null,null,null,null,null,null,null,null,null,null,"GF","davon",null,null,null,null,null,null,null,null,null,null,"- In der Spalte \"Vollmist Typ\" geben Sie ...             (Vollmist = Mist enthält nebst dem Kot auch allen Harn, d.h. kein Gülle-Anfall)",null,null,null,null,null,null,null,null,null,null,null,null,null,null,null,null,null,null,null,null,null,null,null,"   ",8,"wenn Ertrag intensive Wiese über Limite",null,null,null,null,null,{"$f":"BC71","v":0},{"$f":"IF(BG36=1,\" Ertrag intensive Wiesen über Maximalwert --> GF-Flächen + Erträge überprüfen; Anleitung weiter rechts beachten !\",\"\")","v":""},null,null,null,null,null,null,null,null,null,null,"Bedingungen",null,null,null,"    ",null,null,null,null,null,null,null,null,null,null,"stop"]
[null,null,null,null,null,null,null,null,null,null,null,null,null,null,"dt TS","normal","nährstoffarm*",null,null,null,null,null,null,null,null,null,"      -   0 ein (oder leer lassen), wenn nur Vollgülle, Gülle + Sapelmist  oder  Gülle + weniger als 10% Vollmist anfallen. ",null,null,null,null,null,null,null,null,null,null,null,null,null,null,null,null,null,null,null,null,null,null,null,"   ",9,"wenn Ertrag mittelintensive Wiese > intensive ",null,null,null,null,null,{"$f":"IF(AND(ISNUMBER(G70),ISNUMBER(G71),G70>G71),1,0)","v":0},{"$f":"IF(BG37=1,\" Ertrag mittelintensive Wiesen > intensive W. ?\",\"\")","v":""},null,null,null,"Addition der GF-Zu- und Wegfuhren nach Typ",null,null,null,null,null,null,"1 = trifft zu",null,null,null,"    "]
[null,"Grundfutter-Zufuhr +, GF-Wegfuhr -",null,null,null,"Wegf.","Zufuhr",null," Total Grundfutterverzehr (nach A1)",null,null,null,null,null,{"$f":"K29","v":0},{"$f":"O38-Q38","v":0},{"$f":"IF(O38=0,0,IF(Q50-Q39+Q40<0,0,Q50/(1+N46+N47)-Q39+Q40))","v":0},{"$f":"\"(1)\"","v":"(1)"},null,null,null,null,null,null,null,null,"      -  50 ein, wenn die Tiere im Zweiraumlaufstall   Tiefstreu-Laufstallmist (keine Gülle) + Vollgülle ",null,null,null,null,null,null,null,null,null,null,null,null,null,null,null,null,null,null,null,null,null,null,null,"   ",10,"wenn Ertrag wenig intensive Wiese > mittelintensive ",null,null,null,null,null,{"$f":"IF(AND(ISNUMBER(G69),ISNUMBER(G70),G69>1.1*G70),1,0)","v":0},{"$f":"IF(BG38=1,\" Ertrag wenig intensive Wiesen > mittelintensive W. ?\",\"\")","v":""},null,null,null,null,null,"GF-Typ","Wegf.","Zufuhr",null,null,"GF-Art","%TS","%TS zu",null,"    "]
[null," Art des GF",null,"dt FS","%TS","dt TS","dt TS",null," + Total GF-Wegfuhr ",null,null,null,null,null,{"$f":"SUM(P39:Q39)","v":0},{"$f":"-SUM(BO50,BO55)","v":0},{"$f":"-SUM(BO51:BO52)","v":0},null,null,null,null,null,null,null,null,null,"                         produzieren (alle Systeme mit 10 - 90% Vollmist).",null,null,null,null,null,null,null,null,null,null,null,null,null,null,null,null,null,null,null,null,null,null,null,"   ",11,"wenn Ertrag extensive Wiese > wenig intensive ",null,null,null,null,null,{"$f":"IF(AND(ISNUMBER(G66),ISNUMBER(G69),G66>1.1*G69),1,0)","v":0},{"$f":"IF(BG39=1,\" Ertrag extensive Wiesen > wenig intensive W. ?\",\"\")","v":""},null,null,null,null,null,null,"dt TS","dt TS","TS_Min","TS_Max","fehlt","fehlt","tief","hoch","    "]
[null," -",null,null,null,{"$f":"IF(AND(D40<0,BN40=4),0,IF(BS40=1,\"GF-Art?\",IF(BT40=1, \"%TS?\",IF(OR(BU40=1, BV40=1),\"%TS zu\",IF(AND(D40<0,E40>0,BU40=0,BV40=0,BN40<>0),D40*E40,\"\")))))","v":""},{"$f":"IF(AND(D40>0,E40>0,BU40=0,BV40=0,BN40<>0),D40*E40,IF(AND(BS40=0,BT40=0,BU40=1),\"tief, Min.= \"&BQ40*100&\"% \",IF(AND(BS40=0,BT40=0,BV40=1),\"hoch, Max.=\"&BR40*100&\"% \",\"\")))","v":""},null," -  Total GF-Zufuhr ",null,null,null,null,null,{"$f":"SUM(P40:Q40)","v":0},{"$f":"SUM(BP50,BP55,BP59)","v":0},{"$f":"SUM(BP51:BP52,BP54)","v":0},null,null,null,null,null,null,null,null,null,"      -  100 ein, wenn die Tiere im Stall nur Vollmist (Harn ist im Mist) (<10% Gülle), das heisst praktisch keine Gülle produzieren",null,null,null,null,null,null,null,null,null,null,null,null,null,null,null,null,null,null,null,null,null,null,null,"   ",12,"wenn Ertrags-Summe der intensiven Wiesen negative Zahl, dann zu viel produziert",null,null,null,null,null,{"$f":"IF(H71<-0.5,1,0)","v":0},{"$f":"IF(BG40=1,\"   \"&-ROUND(H71,1)&\" dt TS weniger produzieren !\",\"\")","v":""},null,null,null,null,null,{"$f":"IF(B40<>\"\",VLOOKUP(B40,Grundfutter_Liste,3,FALSE),0)","v":0},null,null,{"$f":"IF(B40<>\"\",VLOOKUP(B40,Grundfutter_Liste,4,FALSE),0)","v":0},{"$f":"IF(B40<>\"\",VLOOKUP(B40,Grundfutter_Liste,5,FALSE),1)","v":1},{"$f":"IF(ISNA(BN40),1,IF(AND(D40<>0,BN40=0),1,0))","v":0},{"$f":"IF(AND(ISNUMBER(D40),E40=0), 1,0)","v":0},{"$f":"IF(AND(BN40<>0,ISNUMBER(E40),E40<BQ40),1,0)","v":0},{"$f":"IF(AND(BN40<>0,ISNUMBER(E40),E40>BR40),1,0)","v":0},"    "]
[null," -",null,null,null,{"$f":"IF(AND(D41<0,BN41=4),0,IF(BS41=1,\"GF-Art?\",IF(BT41=1, \"%TS?\",IF(OR(BU41=1, BV41=1),\"%TS zu\",IF(AND(D41<0,E41>0,BU41=0,BV41=0,BN41<>0),D41*E41,\"\")))))","v":""},{"$f":"IF(AND(D41>0,E41>0,BU41=0,BV41=0,BN41<>0),D41*E41,IF(AND(BS41=0,BT41=0,BU41=1),\"tief, Min.= \"&BQ41*100&\"% \",IF(AND(BS41=0,BT41=0,BV41=1),\"hoch, Max.=\"&BR41*100&\"% \",\"\")))","v":""},null," -  betriebseigene verfütterte GF von ausserhalb ",null,null,null,null,null,null,null,null,null,null,null,null,null,null,null,null,null,"                        (= Tiefstreulaufstall (1 Raum) für Raufutterverzehrer, Tiefstreulaufstall für Schweine, alle Systeme für Geflügel).",null,null,null,null,null,null,null,null,null,null,null,null,null,null,null,null,null,null,null,null,null,null,null,"   ",13,"wenn keine Fläche + Ertrags-Summe der intensiven Wiesen positive Zahl, dann zu wenig produziert",null,null,null,null,null,{"$f":"IF(AND(F71=0,OR(H71>0.005*O48,H71>2.5)),1,0)","v":0},{"$f":"IF(BG41=1,\"   noch \"&ROUND(H71,1)&\" dt TS produzieren (bzw. Fläche der intensiven Wiesen & Weiden eintragen) !\",\"\")","v":""},null,null,null,null,null,{"$f":"IF(B41<>\"\",VLOOKUP(B41,Grundfutter_Liste,3,FALSE),0)","v":0},null,null,{"$f":"IF(B41<>\"\",VLOOKUP(B41,Grundfutter_Liste,4,FALSE),0)","v":0},{"$f":"IF(B41<>\"\",VLOOKUP(B41,Grundfutter_Liste,5,FALSE),1)","v":1},{"$f":"IF(ISNA(BN41),1,IF(AND(D41<>0,BN41=0),1,0))","v":0},{"$f":"IF(AND(ISNUMBER(D41),E41=0), 1,0)","v":0},{"$f":"IF(AND(BN41<>0,ISNUMBER(E41),E41<BQ41),1,0)","v":0},{"$f":"IF(AND(BN41<>0,ISNUMBER(E41),E41>BR41),1,0)","v":0},"    "]
[null,"   ",null,null,null,"",{"$f":"IF(AND(D42>0,E42>0,BU42=0,BV42=0,BN42<>0),D42*E42,IF(AND(BS42=0,BT42=0,BU42=1),\"tief, Min.= \"&BQ42*100&\"% \",IF(AND(BS42=0,BT42=0,BV42=1),\"hoch, Max.=\"&BR42*100&\"% \",\"\")))","v":""},null,"        der Futterfläche: ",null,null,null,"dt FS","%TS",null,null,null,null,null,null,null,null,null,null,null,null,"- Fehlen Ihnen Zeilen für weitere Tierkategorien, fügen Sie solche durch Klicken auf den Knopf \"Zeile Tiere einfügen\" ein.",null,null,null,null,null,null,null,null,null,null,null,null,null,null,null,null,null,null,null,null,null,null,null,"   ",14,"Ertrag Silomais < 125% der intensiven Wiesen",null,null,null,null,null,{"$f":"IF(AND(ISNUMBER(F55),ISNUMBER(G55),ISNUMBER(F71),ISNUMBER(G71)),IF(G55<1.25*G71,1,0))","v":false},{"$f":"IF(BG42=1,\" Ertrag von Silomais unter 125% des Ertrags der intensiven Wiesen und Weiden --> Erträge überprüfen; Anleitung weiter rechts beachten !\",\"\")","v":""},null,null,null,null,null,0,null,null,0,0,{"$f":"IF(ISNA(BN42),1,IF(AND(D42<>0,BN42=0),1,0))","v":0},0,0,0,"    "]
[null,null,null,null,null,"",{"$f":"IF(AND(D43>0,E43>0,BU43=0,BV43=0,BN43<>0),D43*E43,IF(AND(BS43=0,BT43=0,BU43=1),\"tief, Min.= \"&BQ43*100&\"% \",IF(AND(BS43=0,BT43=0,BV43=1),\"hoch, Max.=\"&BR43*100&\"% \",\"\")))","v":""},null,null,null,null,null,null,null,{"$f":"IF(AND(ISNUMBER(M43),N43=0),\"% TS?\",IF(M43>0,N43*M43,\"\"))","v":""},null,null,null,null,null,null,null,null,null,null,null,"- I/E-Bilanz: angemeldete Betriebe (siehe Wegleitung Modul 6 und 7), welche für Schweine (od. andere Tierkat.) eine I/E-Bilanz ausweisen, können durch Klicken auf den",null,null,null,null,null,null,null,null,null,null,null,null,null,null,null,null,null,null,null,null,null,null,null,"   ",15,"wenn 1 Ertragsschätzung nötig ist",null,null,null,"Kriterium:","*Ertragsschätzung*",{"$f":"IF(COUNTIF(S66:S71,BF43)>0,1,0)","v":0},{"$f":"IF(BG43=1,\" erhöhter Ertrag -> nur mit 'Ertragsschätzung' möglich\",\"\")","v":""},null,null,null,null,null,{"$f":"IF(B43<>\"\",VLOOKUP(B43,Grundfutter_Liste,3,FALSE),0)","v":0},null,null,{"$f":"IF(B43<>\"\",VLOOKUP(B43,Grundfutter_Liste,4,FALSE),0)","v":0},{"$f":"IF(B43<>\"\",VLOOKUP(B43,Grundfutter_Liste,5,FALSE),1)","v":1},0,0,0,0,"    "]
[null,"   ",null,null,null,"","",null,null,null,null,null,null,null,{"$f":"IF(AND(ISNUMBER(M44),N44=0),\"% TS?\",IF(M44>0,N44*M44,\"\"))","v":""},null,null,null,null,null,null,null,null,null,null,null,"   Knopf \"Zeile für Übertrag I/E-Bilanz einfügen\" eine Zeile einfügen, die das Eingeben der Nährstoffmengen direkt in den Spalten \"Nährstoffanfall (kg/Jahr)\" ermöglicht. ",null,null,null,null,null,null,null,null,null,null,null,null,null,null,null,null,null,null,null,null,null,null,null,"   ",16,"diese Zeile dient dazu, dass kein Fehlerwert angezeigt wird ",null,null,null,null,null,1,{"$f":"IF(BG44=1,\"\",\"\")","v":""},null,null,null,null,null,0,null,null,0,0,0,0,0,0,"    "]
[null,"   ",null,null,null,"","",null," = Total Netto-Grundfutterbedarf (dt TS) ",null,null,null,null,null,{"$f":"O38+O39-SUM(O40:O44)","v":0},{"$f":"O45-Q45","v":0},{"$f":"Q38+Q39-Q40","v":0},null,null,null,null,null,null,null,null,"  ","Berechnung der Grundfutterproduktion auf der Futterfläche:",null,null,null,null,null,null,null,null,null,null,null,null,null,null,"  ",null,null,null,null,null,null,null,null,"   ",null,null,null,null,null,null,null,null,null,null,null,null,null,null,0,null,null,0,0,0,0,0,0,"    "]
[null,"   ",null,null,null,"","",null," + Lagerungs- und Krippenverluste ( 0-5%)",null,null,null,null,null,{"$f":"IF(ABS($N46)<=0.05,$N46*O45,\"max.5% !\")","v":0},{"$f":"O46-Q46","v":0},{"$f":"IF(ABS($N46)<=0.05,$N46*Q45,\"\")","v":0},{"$f":"\"(1)\"","v":"(1)"},null,null,null,null,null,null,null,null,"Vorgehen: Aufgrund des GF-Verzehrs auf dem Betrieb, der Zu- und Wegfuhren von GF und der GF-Produktion ausserhalb der Futterfläche",null,null,null,null,null,null,null,null,null,null,null,null,null,null,null,null,null,null,null,null,null,null,null,"   ",null,"Hinweise (Anzeige unterhalb \"Nährstofftransfer T\")",null,null,null,null,null,null,null,null,null,null,null,null,0,null,null,0,0,0,0,0,0,"    "]
[null,"   ",null,null,null,"","",null," + Fehlerbereich der GF-Bilanz ( 0-5%)",null,null,null,null,null,{"$f":"IF(ABS($N47)<=0.05,$N47*O45,\"max.5% !\")","v":0},{"$f":"O47-Q47","v":0},{"$f":"IF(ABS($N47)<=0.05,$N47*Q45,\"\")","v":0},{"$f":"\"(1)\"","v":"(1)"},null,null,null,null,null,null,null,null,"                  wird die gesamte GF-Menge berechnet, welche auf der Futterfläche des Betriebes heranwachsen muss",null,null,null,null,null,null,null,null,null,null,null,null,null,null,null,null,null,null,null,null,null,null,null,"   ",1,"GF-Wegfuhren von ext. Wiesen > Produktion ",null,null,null,null,null,{"$f":"IF(AND( -SUM(BO51:BP51)>SUM(H66:H67)+0.5,BO51<-50),1,0)","v":0},{"$f":"IF(BG47=1,\" GF-Wegfuhr von ext. Wiesen ist grösser als Ertrag von ungedüngte Wiesen  -> überprüfen!\",\"\")","v":""},null,null,null,null,null,0,null,null,0,0,0,0,0,0,"    "]
[null,"   ",null,null,null,"","",null," =  GF-Produktion auf Futterfläche (dt TS) ",null,null,null,null,null,{"$f":"SUM(O45:O47)","v":0},{"$f":"O48-Q48","v":0},{"$f":"SUM(Q45:Q47)","v":0},null,null,null,null,null,null,null,null,null,"- Die Zu- und Wegfuhren von GF müssen lückenlos aufgezeigt werden (Menge und Art des Futters, Lieferant bzw. Abnehmer, Datum, siehe Wegleitung 2.10). ",null,null,null,null,null,null,null,null,null,null,null,null,null,null,null,null,null,null,null,null,null,null,null,"   ",2,"GF-Wegfuhren von wenig intensiven Wiesen > Produktion",null,null,null,null,null,{"$f":"IF(AND(-SUM(BO52:BP52)>H69+0.5, BO52<-50),1,0)","v":0},{"$f":"IF(BG48=1,\" GF-Wegfuhr von wenig int. Wiesen ist grösser als Produktion -> überprüfen!\",\"\")","v":""},null,null,null,null,null,0,null,null,0,0,0,0,0,0,"    "]
[null,null,null,null,null,null,null,null,null,null,null,null,null,null,null,null,null,null,null,null,null,null,null,null,null,null,"   Es steht die Wahl frei zwischen dem 3-Jahresdurchschnitt (= Wiesenerträge im Mittel von 3 Jahren) oder dem Jährlichkeitsprinzip. Ein Wechsel ist frühestens nach 5 Jahren möglich. ",null,null,null,null,null,null,null,null,null,null,null,null,null,null,null,null,null,null,null,null,null,null,null,"   ",3,"Total GF-Verzehr \"normal\" wird negativ ",null,null,null,null,null,{"$f":"IF(AND(BG40=0,BG41=0,P38<-50),1,0)","v":0},{"$f":"IF(BG49=1,\"Mengen von Zu- und Wegfuhren mit der Produktion von 'normalem' und 'extensivem' GF überprüfen\",\"\")","v":""},null,null,null,null,null,null,null,null,null,null,null,null,null,null,"    "]
[null,null,null,null,null,null,null,null,null,null,null,null,null,null,null,{"$f":"IF(ABS(N46)>0.05, \"Lagerungs- und Krippverluste überprüfen\",IF(AND(K29=0,N46>0.025 ),\"keine Krippenverluste möglich -> max. 2.5% Lagerverluste \",\"\"))","v":""},{"$f":"SUM(H66:H69)+H64","v":0},null,null,null,null,null,null,null,null,null,null,null,null,null,null,null,null,null,null,null,null,null,null,null,null,null,null,null,null,null,null,null,null,null,"   ",4,"diese Zeile dient dazu, dass kein Fehlerwert angezeigt wird ",null,null,null,null,null,1,{"$f":"IF(BG50=1,\"\",\"\")","v":""},null,null,null,"Gras - normal",null,1,{"$f":"SUMIF(BN40:BN48,BN50,F40:F48)","v":0},{"$f":"SUMIF(BN40:BN48,BN50,G40:G48)","v":0},null,null,null,null,null,null,"    "]
["häufige",null,null,null,null,null,null,null,null,null,null,null,null,null,null,{"$f":"IF(AND(Q51>0,ISNUMBER(Q51)),\"Höhenlage Betrieb:\",IF(AND(F72=0,H72=0),\"\",\"Die Höhenlage des Betriebs eintragen ->\"))","v":""},null,{"$f":"IF(AND(F72=0,H72=0,ISBLANK(Q51)),\"\",\"m.ü.M.\")","v":""},null,null,null,null,null,{"$f":"IF(ISNUMBER(Q51),\"Höhenlage -> max. Erträge nach Wegleitung Tab. 3\",\"\")","v":""},null,null,"- bei den GF-Zu-/Wegfuhren ist zu unterscheiden zwischen \"normalem\" und \"nährstoffarmem\" GF (= Stroh, GF von extensiven und wenig intensiven Wiesen)",null,null,null,null,null,null,null,null,null,null,null,null,null,null,null,null,null,null,null,null,null,null,null,"   ",null,null,null,null,null,null,null,null,null,null,null,null,"Gras - extensiv = nährstoffarm",null,2,{"$f":"SUMIF(BN40:BN48,BN51,F40:F48)","v":0},{"$f":"SUMIF(BN40:BN48,BN51,G40:G48)","v":0},null,null,null,null,null,null,"    "]
["Ertrags-",null,null,null,null,null,{"$f":"CHAR(248) & \" TS -\"","v":"ø TS -"},"  TS-",null,null,null,null,null,null,null,null,null,null,null,null,null,null,null,null,null,null,"Die zu produzierende Grundfuttermenge ist auf die einzelnen Kategorien und ihre Flächen zu verteilen. Ausgehend von der Höhenlage des Betriebes",null,null,null,null,null,null,null,null,null,null,null,null,null,null,null,null,null,null,null,null,null,null,null,"   ",null,"Zusatz zu Nr. 12 + 13 ",null,"TS-Menge?","Ertrags-Änderung?",null,"Rang Ert.änd.",null,null,null,null,null,"Gras - wenig intensiv = nährstoffarm",null,3,{"$f":"SUMIF(BN40:BN48,BN52,F40:F48)","v":0},{"$f":"SUMIF(BN40:BN48,BN52,G40:G48)","v":0},null,null,null,null,null,null,"    "]
["bereiche","Kulturen",null,null,null,"Fläche","Ertrag","Menge","Nährstoffbedarf (kg/dt TS)",null,null,null,"Nährstoffbedarf  (kg / Jahr)",null,null,null,null,null,null,null,null,null,null,null,null,null,"   dürfen die Erträge maximal denjenigen der intensiven Nutzung der jeweiligen Höhenlage entsprechen (siehe Wegleitung Tab. 3). Werden höhere Erträge",null,null,null,null,null,null,null,null,null,null,null,null,null,null,null,null,null,null,null,null,null,null,null,"   ",1,"falls mittelintensive Wiesen",null,{"$f":"IF(AND(ISNUMBER(H70),H70>0),1,0)","v":0},{"$f":"IF(BC53=1,H71/F70,\"\")","v":""},{"$f":"ABS(BD53)","v":{"$error":"#VALUE!"}},{"$f":"_xlfn.RANK.EQ(BE53,BE$53:BE$55,1)","v":{"$error":"#VALUE!"}},{"$f":"IF(AND(OR(BG40=1,BG41=1),AND(BC53=1,ISNUMBER(BD53),ABS(BD53)<5,BF53=1,SUM(BG29:BG39)=0)),1,0)","v":{"$error":"#VALUE!"}},{"$f":"IF(BG53=1,\" z.B. Ertrag mittelintensive W. um \"&ROUND(BD53,1)&\" dt/ha ändern   \",\"\")","v":{"$error":"#VALUE!"}},null,null,null,"Summe Gras",null,"1-3",{"$f":"SUM(BO50:BO52)","v":0},{"$f":"SUM(BP50:BP52)","v":0},null,null,null,null,null,null,"    "]
["< 600 m",null,null,null,null,"ha","dt/ha","dt","N","P2O5","K2O","Mg","N","P2O5","K2O","Mg",null,null,null,null,null,null,null,null,null,null,"- Zum Zwischenfutter gehören auch die Frühjahrsschnitte vor Umbruch von Kunstwiesen.",null,null,null,null,null,null,null,null,"geltend gemacht, so sind diese mit einer \"Ertragsschätzung\"",null,null,null,null,null,null,null,null,null,null,null,null,null,null,"   ",2,"falls wenig intensive Wiesen",null,{"$f":"IF(AND(ISNUMBER(H69),H69>0),1,0)","v":0},{"$f":"IF(BC54=1,H71/F69,\"\")","v":""},{"$f":"ABS(BD54)","v":{"$error":"#VALUE!"}},{"$f":"_xlfn.RANK.EQ(BE54,BE$53:BE$55,1)","v":{"$error":"#VALUE!"}},{"$f":"IF(AND(OR(BG40=1,BG41=1),AND(BC54=1,ISNUMBER(BD54),ABS(BD54)<5,BF54=1,SUM(BG29:BG39)=0)),1,0)","v":{"$error":"#VALUE!"}},{"$f":"IF(BG54=1,\" z.B. Ertrag wenig intensive W. um \"&ROUND(BD54,1)&\" dt/ha ändern   \",\"\")","v":{"$error":"#VALUE!"}},null,null,null,"Nicht-Gras - Stroh = nährstoffarm",null,4,null,{"$f":"SUMIF(BN40:BN48,BN54,G40:G48)","v":0},null,null,null,null,null,null,"    "]
["170-230","Silomais, Ganzpflanzen-Sorghum",null,null,null,null,null,{"$f":"IF(OR(AND(F55>0,G55<80),BG42=1 ),\"Ertrag?\",G55*F55)","v":0},{"$f":"IF(G55<=0.8*185,110*(G55/185),110)","v":0},0.57999999999999996,1.3,0.13,{"$f":"IF(H55>0,F55*I55,\"\")","v":""},{"$f":"IF(H55>0,H55*J55,\"\")","v":""},{"$f":"IF(H55>0,H55*K55,\"\")","v":""},{"$f":"IF(H55>0,H55*L55,\"\")","v":""},{"$f":"IF(BG42=1,\" Ertrag im Vergleich zu int. Wiesen zu tief, mind. 125% des Ertrags der intensiven Wiesen einsetzen\",IF(AND(F55>0,G55<80,ISNUMBER(G55)), \"Ertrag sollte 80 dt oder mehr erreichen\",\"\"))","v":""},null,null,null,null,null,null,null,null,null,"- Wiesen sind Natur- und Kunstwiesen zusammen.",null,null,null,null,null,null,null,null,"gemäss DZV Anhang 1 Ziffer 2.1.11 nachzuweisen. ",null,null,null,null,null,null,null,null,null,null,null,null,null,null,"   ",3,"falls extensive Wiesen",null,{"$f":"IF(AND(ISNUMBER(H66),H66>0),1,0)","v":0},{"$f":"IF(BC55=1,H71/F66,\"\")","v":""},{"$f":"ABS(BD55)","v":{"$error":"#VALUE!"}},{"$f":"_xlfn.RANK.EQ(BE55,BE$53:BE$55,1)","v":{"$error":"#VALUE!"}},{"$f":"IF(AND(OR(BG40=1,BG41=1),AND(BC55=1,ISNUMBER(BD55),ABS(BD55)<5,BF55=1,SUM(BG29:BG39)=0)),1,0)","v":{"$error":"#VALUE!"}},{"$f":"IF(BG55=1,\" z.B. Ertrag extensive W. um \"&ROUND(BD55,1)&\" dt/ha ändern   \",\"\")","v":{"$error":"#VALUE!"}},null,null,null,"Nicht-Gras - normal",null,5,{"$f":"SUMIF(BN40:BN48,BN55,F40:F48)","v":0},{"$f":"SUMIF(BN40:BN48,BN55,G40:G48)","v":0},null,null,null,null,null,null,"    "]
["170-230","Futterrüben",null,null,null,null,null,{"$f":"IF(AND(F56>0,G56<80),\"Ertrag?\",G56*F56)","v":0},{"$f":"IF(G56<=0.8*175,100*G56/175,100)","v":0},0.5,1.1200000000000001,0.13,"",{"$f":"IF(H56>0,H56*J56,\"\")","v":""},{"$f":"IF(H56>0,H56*K56,\"\")","v":""},{"$f":"IF(H56>0,H56*L56,\"\")","v":""},null,null,null,null,null,null,null,null,null,null,"- Zuerst alle Flächen eintragen, dann die TS Erträge schätzen und eintragen:",null,null,null,null,null,null,null,null," (d.h. ist Ertrag plausibel aufgrund von Nutzung, Düngung, Wiesenbestand, Standort?)",null,null,null,null,null,null,null,null,null,null,null,null,null,null,"   ",4,"diese Zeile dient dazu, dass kein Fehlerwert angezeigt wird ",null,null,null,null,null,1,{"$f":"IF(BG56=1,\"\",\"\")","v":""},null,null,null,"Summe übriges GF",null,"4+5",{"$f":"SUM(BO54:BO55)","v":0},{"$f":"SUM(BP54:BP55)","v":0},null,null,null,null,null,null,"    "]
["fix 106","Getreide-Silage",null,null,null,null,106,{"$f":"IF(AND(F57>0,G57<80),\"Ertrag?\",G57*F57)","v":0},110,{"$f":"63/106","v":0.59433962264150941},{"$f":"102/106","v":0.96226415094339623},{"$f":"11/106","v":0.10377358490566038},"",{"$f":"IF(H57>0,H57*J57,\"\")","v":""},{"$f":"IF(H57>0,H57*K57,\"\")","v":""},{"$f":"IF(H57>0,H57*L57,\"\")","v":""},null,null,null,null,null,null,null,null,null,null,null,null,null,null,null,null,null,null,null,null,null,null,null,null,null,null,null,null,null,null,null,null,null,null,null,null,null,null,null,null,null,null,null,null,null,null,null,null,null,null,null,null,null,null,null,null,null,null,"    "]
["fix 106","Getreide-Silage mit Leguminosen",null,null,null,null,106,{"$f":"IF(AND(F58>0,G58<80),\"Ertrag?\",G58*F58)","v":0},80,{"$f":"60/106","v":0.56603773584905659},{"$f":"120/106","v":1.1320754716981132},{"$f":"10/106","v":9.4339622641509441E-2},"","","","",null,null,null,null,null,null,null,null,null,null,null,null,null,null,null,null,null,null,null,null,null,null,null,null,null,null,null,null,null,null,null,null,null,null,null,null,null,null,null,null,null,null,null,null,null,null,null,null,null,null,null,null,null,null,null,null,null,null,"    "]
["50-70","Grünmais / Ganzpfl.-Sorghum als 2. Kultur",null,null,null,null,null,{"$f":"IF(AND(F59>0,G59<10),\"Ertrag?\",G59*F59)","v":0},{"$f":"IF(G59<=0.8*60,70*G59/60,70)","v":0},0.65,2.7,0.1,"","","","",null,null,null,null,null,null,null,null,null,null,"    bei Wiesen pro Nutzung etwa mit 15 - 25 dt TS/ha rechnen, dann Korrektur vornehmen, so dass Grundfutterbilanz (GF-Verbrauch und GF-Produktion) aufgeht",null,null,null,null,null,null,null,null,null,null,null,null,null,null,null,null,null,null,null,null,null,null,null,"   ",null,null,null,null,null,null,null,null,null,null,null,null,"Nicht-Gras - Nebenprodukte aus VL",null,6,null,{"$f":"SUMIF(BN40:BN48,BN59,G40:G48)","v":0},null,null,null,null,null,null,"    "]
[25,"Zwischenfrüchte (ohne Kunstwiesen)",null,null,null,null,null,{"$f":"IF(AND(F60>0,G60<1),\"Ertrag?\",G60*F60)","v":0},{"$f":"IF(G60<=0.8*25,30*G60/25,30)","v":0},0.96,2.88,0.28999999999999998,"",{"$f":"IF(H60>0,H60*J60,\"\")","v":""},{"$f":"IF(H60>0,H60*K60,\"\")","v":""},{"$f":"IF(H60>0,H60*L60,\"\")","v":""},null,null,null,null,null,null,null,null,null,null,"- in der Zeile der intensiven Wiesen & Weiden wird jeweils die Rest-Menge angezeigt, welche noch zu produzieren ist. ",null,null,null,null,null,null,null,null,null,null,null,null,null,null,null,null,null,null,null,null,null,null,null,"   ",null,null,null,null,null,null,null,null,null,null,null,null,"   ","   ","   ","   ","   ","   ","   ","   ","   ","   ","   ","    ",null,null,null,null,null,null,null,null,null,null,"stop"]
["20-30","Zwischenfutter (Kunstwiesen), Äugstlen",null,null,null,null,null,{"$f":"IF(AND(F61>0,G61<1),\"Ertrag?\",G61*F61)","v":0},1.2,0.82,2.7,0.25,{"$f":"IF(H61>0,H61*I61,\"\")","v":""},"","","",null,null,null,null,null,null,null,null,null,null,"    Nach Eingabe der Fläche der intensiven Wiesen und Weiden wird der mittlere Ertrag/ha berechnet. Wenn dieser",null,null,null,null,null,null,null,null,null,null,null,null,null,null,null,null,null,null,null,null,null,null,null,"   "]
["80-120","Samen-Produktion, Leguminosen, Reinsaat",null,null,null,null,null,{"$f":"IF(OR(AND(F62>0,G62<10),G62>120),\"Ertrag?\",G62*F62)","v":0},0,0.71,2.2999999999999998,0.25,{"$f":"IF(H62>0,H62*I62,\"\")","v":""},{"$f":"IF(H62>0,H62*J62,\"\")","v":""},{"$f":"IF(H62>0,H62*K62,\"\")","v":""},{"$f":"IF(H62>0,H62*L62,\"\")","v":""},{"$f":"IF(G62>120,\"Ertrag zu hoch: max. 120 dt TS/ha\",\"\")","v":""},null,null,null,null,null,null,null,null,null,"  ",null,null,null,null,null,null,null,null,null,null,null,null,null,null,null,null,null,null,null,null,null,null,null,"   "]
["80-120","Samen-Produktion, Gäser, Reinsaat",null,null,null,null,null,{"$f":"IF(OR(AND(F63>0,G63<10),G63>180),\"Ertrag?\",G63*F63)","v":0},1.7,0.71,2.2999999999999998,0.25,{"$f":"IF(H63>0,H63*I63,\"\")","v":""},{"$f":"IF(H63>0,H63*J63,\"\")","v":""},{"$f":"IF(H63>0,H63*K63,\"\")","v":""},{"$f":"IF(H63>0,H63*L63,\"\")","v":""},{"$f":"IF(G63>180,\"Ertrag zu hoch: max. 180 dt TS/ha\",\"\")","v":""},null,null,null,null,null,null,null,null,null," # Gräser-Reinsaaten: Es werden max. 180 dt TS/ha anerkannt, sofern sie lückenlos nachgewiesen werden (Grundfutterbilanz, Liste mit Grundfutter-Exporten (vgl. Wegleitung Kap. 2.10) oder andere Dokumente)",null,null,null,null,null,null,null,null,null,null,null,null,null,null,null,null,null,null,null,null,null,null,null,"   "]
[null,"eigenes verfüttertes Stroh (85%TS) *",null,null,null,null,"dt TS",null,0,0.22,0.92,0.13,{"$f":"IF(H64>0,H64*I64,\"\")","v":""},"","","",{"$f":"IF(SUM(Q66:R71)>0,\"max. mögl. Ertrag\",\"\")","v":""},null,{"$f":"IF(Q64=\"\",\"\",\" gemäss…\")","v":""},null,null,null,null,null,null,null,"    nicht realistisch ist (z.B. über 135 bzw. unter 55 dt TS/ha, je nach Höhenlage), ist die Grundfutterrechnung gesamthaft zu überprüfen.",null,null,null,null,null,null,null,null,null,null,null,null,null,null,null,null,null,null,null,null,null,null,null,"   ",null,"Wiesen","Limite nach","über Limite?"]
[null,"eigenes verfütt. Rübenblatt (15%TS)",null,null,null,null,"dt TS",null,0,0.52,2.62,0.6,{"$f":"IF(H65>0,H65*I65,\"\")","v":""},"","","",{"$f":"IF(SUM(Q66:Q71)>0,\"Wegleit.\",\"\")","v":""},{"$f":"IF(SUM(Q66:R71)>0,\"eigener 'Ertragsschätzung'\",\"\")","v":""},null,null,null,null,null,null,null,null,"- Nach einem ersten Durchgang ist die Grundfutterberechnung zu überprüfen: ",null,null,null,null,null,null,null,null,null,null,null,null,null,null,null,null,null,null,null,null,null,null,null,"   ",null,"max. Ertrag","Wegl. oder Gutachten",null,"min. Ertrag"]
["30-40","extensive Wiesen (ungedüngt)  *",null,null,null,null,null,{"$f":"IF(OR(AND(F66>0,G66<1),G66>BB66),\"Ertrag?\",G66*F66)","v":0},0,0,0,0,{"$f":"IF(H66=\"Ertrag?\",H66*I66,\"\")","v":""},{"$f":"IF(H66=\"Ertrag?\",H66*J66,\"\")","v":""},null,null,{"$f":"IF(OR(ISNUMBER(R66),G66>BA66),BA66,\"\")","v":""},null,{"$f":"IF(AND(ISNUMBER(Q51),G66>BB66),\" Ertrag zu hoch -> reduzieren bzw. Max. gemäss 'Ertragsschätzung' eingeben\", IF(AND(G66>BA66,G66<=BB66),\" -> nur mit 'Ertragsschätzung' möglich\",\"\"))","v":""},null,null,null,null,null,null,null,"     - sind die durchschnittlichen Erträge realisitsch (Flächen mit weniger Ertrag wie z.B. schattige Waldränder, Nordhänge, ...),",null,null,null,null,null,null,null,null,null,null,null,null,null,null,null,null,null,null,null,null,null,null,null,"   ",null,{"$f":"IF(ISBLANK(Q51),\"Höhenangabe Betrieb fehlt\",VLOOKUP(Q$51,Wiesen_Ertrag_Max,6,TRUE))","v":"Höhenangabe Betrieb fehlt"},{"$f":"MAX(R66,BA66)","v":0},{"$f":"IF(G66>BB66,1,0)","v":0}]
["30-40","übrige Wiesen mit Düngeverbot *",null,null,null,null,null,{"$f":"IF(OR(AND(F67>0,G67<1),G67>BB67),\"Ertrag?\",G67*F67)","v":0},0,0,0,0,{"$f":"IF(H67=\"Ertrag?\",H67*I67,\"\")","v":""},{"$f":"IF(H67=\"Ertrag?\",H67*J67,\"\")","v":""},null,null,{"$f":"IF(OR(ISNUMBER(R67),G67>BA67),BA67,\"\")","v":""},null,{"$f":"IF(AND(ISNUMBER(Q51),G67>BB67),\" Ertrag zu hoch -> reduzieren bzw. Max. gemäss 'Ertragsschätzung' eingeben\", IF(AND(G67>BA67,G67<=BB67),\" -> nur mit 'Ertragsschätzung' möglich\",\"\"))","v":""},null,null,null,null,null,null,null,"       - sind alle Grundfutter-Flächen aufgeführt ?",null,null,null,null,null,null,null,null,null,null,null,null,null,null,null,null,null,null,null,null,null,null,null,"   ",null,{"$f":"IF(ISBLANK(Q51),\"Höhenangabe Betrieb fehlt\",VLOOKUP(Q$51,Wiesen_Ertrag_Max,6,TRUE))","v":"Höhenangabe Betrieb fehlt"},0,{"$f":"IF(G67>BB67,1,0)","v":0}]
["30-60","extensive Weiden *",null,null,null,null,null,{"$f":"IF(OR(AND(F68>0,G68<1),G68>BB68),\"Ertrag?\",G68*F68)","v":0},0.5,0.5,1.2,0.2,{"$f":"IF(H68>0,H68*I68,\"\")","v":""},{"$f":"IF(H68>0,H68*J68,\"\")","v":""},{"$f":"IF(H68>0,H68*K68,\"\")","v":""},{"$f":"IF(H68>0,H68*L68,\"\")","v":""},{"$f":"IF(OR(ISNUMBER(R68),G68>BA68),BA68,\"\")","v":""},null,{"$f":"IF(AND(ISNUMBER(Q51),G68>BB68),\" Ertrag zu hoch -> reduzieren bzw. Max. gemäss 'Ertragsschätzung' eingeben\", IF(AND(G68>BA68,G68<=BB68),\" -> nur mit 'Ertragsschätzung' möglich\",\"\"))","v":""},null,null,null,null,null,null,null,"       - sind alle Tierbestände zutreffend aufgeführt (TVD-Auszug; Durchschnittsbestände übers Jahr) ?",null,null,null,null,null,null,null,null,null,null,null,null,null,null,null,null,null,null,null,null,null,null,null,"   ",null,{"$f":"IF(ISBLANK(Q51),\"Höhenangabe Betrieb fehlt\",VLOOKUP(Q$51,Wiesen_Ertrag_Max,7,TRUE))","v":"Höhenangabe Betrieb fehlt"},0,{"$f":"IF(G68>BB68,1,0)","v":0}]
["50-70","wenig intensive Wiesen & Weiden *",null,null,null,null,null,{"$f":"IF(OR(AND(F69>0,G69<1),G69>BB69),\"Ertrag?\",G69*F69)","v":0},0.5,0.56999999999999995,1.7,0.15,{"$f":"IF(H69>0,H69*I69,\"\")","v":""},{"$f":"IF(H69>0,H69*J69,\"\")","v":""},{"$f":"IF(H69>0,H69*K69,\"\")","v":""},{"$f":"IF(H69>0,H69*L69,\"\")","v":""},{"$f":"IF(OR(ISNUMBER(R69),G69>BA69),BA69,\"\")","v":""},null,{"$f":"IF(AND(ISNUMBER(Q51),G69>BB69),\" Ertrag zu hoch -> reduzieren bzw. Max. gemäss 'Ertragseinschätzung' eingeben\", IF(AND(G69>BA69,G69<=BB69),\" -> nur mit 'Ertragsschätzung' möglich\",\"\"))","v":""},null,null,null,null,null,null,null,"       - stimmen die Zufuhren (positive Zahlen) und Wegfuhren (negative Zahlen) von Grundfutter  (Belege ?,  Angaben in dt TS ?, ...)",null,null,null,null,null,null,null,null,null,null,null,null,null,null,null,null,null,null,null,null,null,null,null,"   ",null,{"$f":"IF(ISBLANK(Q51),\"Höhenangabe Betrieb fehlt\",VLOOKUP(Q$51,Wiesen_Ertrag_Max,5,TRUE))","v":"Höhenangabe Betrieb fehlt"},0,{"$f":"IF(G69>BB69,1,0)","v":0}]
["70-100","mittelintensive Wiesen & Weiden",null,null,null,null,null,{"$f":"IF(OR(AND(F70>0,G70<1),G70>BB70),\"Ertrag?\",G70*F70)","v":0},0.95,0.71,2.2999999999999998,0.2,{"$f":"IF(H70>0,H70*I70,\"\")","v":""},{"$f":"IF(H70>0,H70*J70,\"\")","v":""},{"$f":"IF(H70>0,H70*K70,\"\")","v":""},{"$f":"IF(H70>0,H70*L70,\"\")","v":""},{"$f":"IF(OR(ISNUMBER(R70),G70>BA70),BA70,\"\")","v":""},null,{"$f":"IF(AND(ISNUMBER(Q51),G70>BB70),\" Ertrag zu hoch -> reduzieren bzw. Max. gemäss 'Ertragsschätzung' eingeben\", IF(AND(G70>BA70,G70<=BB70),\" -> nur mit 'Ertragsschätzung' möglich\",\"\"))","v":""},null,null,null,null,null,null,null,"                   wurde nicht mehr ext. GF verkauft als produziert wird?  ... ",null,null,null,null,null,null,null,null,null,null,null,null,null,null,null,null,null,null,null,null,null,null,null,"   ",null,{"$f":"IF(ISBLANK(Q51),\"Höhenangabe Betrieb fehlt\",VLOOKUP(Q$51,Wiesen_Ertrag_Max,4,TRUE))","v":"Höhenangabe Betrieb fehlt"},0,{"$f":"IF(G70>BB70,1,0)","v":0}]
["90-125","intensive Wiesen & Weiden",null,null,null,null,{"$f":"IF(F71>0,H71/F71,IF(AND(ISNUMBER(F71)=TRUE,F71=0),\"\",IF(H71>0.005*O48,\"ha ?\",\"\")))","v":""},{"$f":"H72-SUM(H56:H70)-F55*G55","v":0},1.2,0.82,2.7,0.25,{"$f":"IF(AND($F71>0,$H71>2),$H71*I71,\"\")","v":""},{"$f":"IF(AND($F71>0,$H71>2),$H71*J71,\"\")","v":""},{"$f":"IF(AND($F71>0,$H71>2),$H71*K71,\"\")","v":""},{"$f":"IF(AND($F71>0,$H71>2),$H71*L71,\"\")","v":""},{"$f":"IF(OR(ISNUMBER(R71),AND(G71>BA71,F71>0)),BA71,\"\")","v":""},null,{"$f":"IF(AND(ISNUMBER(Q51),ISNUMBER(G71),G71>BB71),\" Ertrag zu hoch -> siehe Wegleitung (weiter rechts)\", IF(AND(G71>BA71,G71<=BB71),\" -> nur mit 'Ertragsschätzung' möglich\",\"\"))","v":""},null,null,null,null,null,null,null,null,"->    Massgebend sind die tatsächlichen Verhältnisse auf dem Betrieb !",null,null,null,null,null,null,null,null,null,null,null,null,null,null,null,null,null,null,null,null,null,null,"   ",null,{"$f":"IF(ISBLANK(Q51),\"Höhenangabe Betrieb fehlt\",VLOOKUP(Q$51,Wiesen_Ertrag_Max,3,TRUE)+VLOOKUP(Q$51,Wiesen_Ertrag_Max,13,TRUE))","v":"Höhenangabe Betrieb fehlt"},0,{"$f":"IF(AND(ISNUMBER(G71),G71>BB71),1,0)","v":0},{"$f":"VLOOKUP(Q$51,Wiesen_Ertrag_Max,8,TRUE)","v":50}]
[null,null,null,null,"Total Grundfutterproduktion: ",{"$f":"SUM(F66:F71)+SUM(F55:F58)+SUM(F62:F63)","v":0},"ha",{"$f":"O48","v":0},"dt TS",null,null,"Total (C1)",{"$f":"SUM(M55:M71)","v":0},{"$f":"SUM(N55:N71)","v":0},{"$f":"SUM(O55:O71)","v":0},{"$f":"SUM(P55:P71)","v":0},null,null,null,null,null,null,null,null,null,null,"zum Grundfutter zählen:      -> siehe Wegleitung Suisse-Bilanz 3.2, Grundfutter   (bzw. DZV, Anhang 5, Ziffer 1.1 DZV)",null,null,null,null,null,null,null,null,null,null,null,null,null,null,null,null,null,null,null,null,null,null,null,"   ",null,"int.+mittelint. Wiese nicht interpoliert"]
[null,null,null,null,"davon düngbar",{"$f":"F72-F66-F67","v":0},"ha",{"$f":"VLOOKUP(1,BG28:BH44,2,FALSE)","v":""},null,null,null,null,null,null,null,null,null,null,null,null,null,null,null,null,null,null,"   Futter von Grünflächen und Streueflächen (frisch, siliert, getrocknet), sowie (verfüttertes) Stroh; als Futtermittel angebaute Ackerkulturen, bei denen die ganze Pflanze geerntet wird: frisch, siliert oder getrocknet, ohne Maiskolbenschrot;  Chicorée-Wurzeln; ",null,null,null,null,null,null,null,null,null,null,null,null,null,null,null,null,null,null,null,null,null,null,null,"   "]
[null,null,null,null,null,null,null,null,null,null,null,null,null,null,null,null,null,null,null,null,null,null,null,null,null,null,null,null,null,null,null,null,null,null,null,null,null,null,null,null,null,null,null,null,null,null,null,null,null,null,"   "]
[null,"Nährstofftransfer für Futter von ungedüngten Wiesen (T)",null,null,null,null,null,{"$f":"IF(K75<=0,0,IF(K75>H72/4,H72/4,K75))","v":0},"dt TS",0.4,{"$f":"IF(L75>O38,O38,L75)","v":0},{"$f":"IF(O38>0,SUM(H66,H67,BO51),0)","v":0},null,{"$f":"H75*J75","v":0},null,null,null,null,null,null,null,null,null,null,null,null,"   Rübenblätter und Rübennass- und Rübenpressschnitzel; frisches Obst; unverarbeitete Kartoffeln, einschliesslich Sortierabgang; Abgänge und nicht getrocknete oder konzentrierte Nebenprodukte aus der Kartoffel-, Obst- und Gemüseverarbeitung; für die Rindviehmast: Mischungen aus Spindel und Körnern des Maiskolbens/Maiskolbenschrot/Maiskolbensilage (Corn-Cob-Mix, CCM) (vgl. auch unten); "]
[null,null,{"$f":"VLOOKUP(1,BG47:BH50,2,FALSE)","v":""},null,null,null,null,null,null,null,null,null,null,null,null,{"$f":"VLOOKUP(1,BG53:BH56,2,FALSE)","v":""},null,null,null,null,null,null,null,null,null,"  ","   Nebenprodukte aus der Verarbeitung von Lebensmitteln: ZR-Schnitzel getrocknet, Biertreber frisch, siliert, getrocknet, Nebenprodukte der Trocken- und Schälmüllerei: Weizenkleie, Haferabfallmehl, Dinkel- und Haferspelzen, Dinkelspreu und Kornspreuer sowie Gemische davon",null,null,null,null,null,null,null,null,null,null,null,null,null,null,null,null,null,null,null,null,null,null,null,"   "]
[null,null,null,null,null,null,null,null,null,null,null,null,null,null,null,null,null,null,null,null,null,null,null,null,null,null,"- Der Nährstofftransfer ist nur für das auf dem eigenen Betrieb produzierte und verfütterte Grundfutter von ungedüngten Wiesen",null,null,null,null,null,null,null,null,null,null,null,null,null,null,null,null,null,null,null,null,null,null,null,"   "]
[null,null,null,null,null,null,null,null,null,null,null,null,null,null,null,null,null,null,null,null,null,null,null,null,null,null,"      möglich (extensive Wiesen + übrige Wiesen mit Düngeverbot - Wegfuhren); die massgebende Futtermenge ist begrenzt auf max. 25% der produzierten GF-Menge.",null,null,null,null,null,null,null,null,null,null,null,null,null,null,null,null,null,null,null,null,null,null,null,"   "]
[null,null,null,null,null,null,null,null,null,null,"Name:",{"$f":"C8","v":" "},null,null,{"$f":"G7","v":0},{"$f":"IF(ISBLANK(O8),\"\",O8)","v":"2023-02-14"},null,"Seite 2",null,null,null,null,null,null,null,null,"- Acker-, Gemüse-, Dauerkulturen sowie Zweit-, Dritt- und Zwischenkulturen eintragen im angegebenen Abschnitt, damit die Flächen richtig mitgerechnet werden (offene Ackerfläche, Dauerkulturen, Zweitkulturen). ",null,null,null,null,null,null,null,null,null,null,null,null,null,null,null,null,null,null,null,null,null,null,null,"   "]
[null,null,null,null,null,null,null,null,null,null,null,null,null,null,null,null,null,null,null,null,null,null,null,null,null,null,"- Bei den Ackerkulturen setzen Sie Ihre effektiven Durchschnittserträge der letzten 3 Jahre ein (siehe Wegleitung 3.7).",null,null,null,null,null,null,null,null,null,null,null,null,null,null,null,null,null,null,null,null,null,null,null,"   "]
[null,"Kulturen",null,null,null,null,"Stand.-","f FS-",null,"Korrekturfaktoren",null,null,null,null,null,null,null,null,null,null,null,null,null,null,null,null,null,"  (Nachweis mittels vollständigem Feldkalender/Schlagkartei und Waag-, Lieferscheinen, Abrechnungen oder Buchhaltungsbelegen).",null,null,null,null,null,null,null,null,null,null,null,null,null,null,null,null,null,null,null,null,null,null,"   ",null,null,null,null,null,null,null,null,null,null,null,"   ",null,null,null,null,null,null,null,null,null,null,null,null,null,null,null,null,null,null,null,null,null,null,"stop"]
[null,null,null,null,null,"Fläche","ertrag","Ertrag","Menge","nach Bodenanalysen",null,null,"Nährstoffbedarf (kg / Jahr)",null,null,null,null,"N",null,null,null,null,null,null,null,null,"          Parzellen in Nitratprojekten nach Art. 62a Gewässerschutzgesetz: Eine ertragsabhängige N-Korrektur nach oben ist bei ",null,null,null,null,null,null,null,null,null,null,null,null,null,null,null,null,null,null,null,null,null,null,null,"   ",null,null,null,null,null,null,"Abk.","Referenz-","N - Norm","Korrektur","Ertrag für"]
["Abkürz.","Ackerkulturen:",null,null,null,"ha","dt/ha","dt/ha","dt   ","P","K","Mg"," N","P2O5","K2O","Mg",null,"kg/ha",null,null,null,null,null,null,null,null,"                     diesen nicht möglich -> Kultur mit dem Zusatz \"Nitrat-Projekt\" wählen (vgl. Wegleitung 3.7 Nährstoffbedarf, Ackerkulturen)",null,null,null,null,null,null,null,null,null,null,null,null,null,null,null,null,null,null,null,null,null,null,null,"   ",null,null,null,null,null,null,null,"Ertrag","kg / ha","kg / ha","Berechnung"]
[{"$f":"IF(ISBLANK(B84),0,VLOOKUP(B84,Daten!$B$6:$E$65,4,FALSE))","v":0}," -",null,null,null,null,{"$f":"VLOOKUP($A84,Daten!$E$6:$Y$65,21,FALSE)","v":0},null,{"$f":"IF(H84>0,F84*H84,F84*G84)","v":0},null,null,null,{"$f":"IF(ISNUMBER($F84), IF(OR(A84=\"rp\",A84=\"rh\",A84=\"wg\",A84=\"wr\",A84=\"wt\",A84=\"ww\",A84=\"fw\",A84=\"rpnp\",A84=\"rhnp\",A84=\"wgnp\",A84=\"wrnp\",A84=\"wtnp\",A84=\"wwnp\",A84=\"fwnp\"),  F84*(BH84+BI84),  IF(OR(H84>0.8*BG84,ISBLANK(H84)), VLOOKUP($A84,Daten!$E$6:$L$65,5,FALSE)*F84, VLOOKUP($A84,Daten!$E$6:$L$65,5,FALSE)*H84/BG84*F84)),\"\")","v":""},{"$f":"IF(ISNUMBER($F84),  IF(VLOOKUP($A84,Daten!$E$6:$L$65,4,FALSE)=0,VLOOKUP($A84,Daten!$E$6:$L$65,6,FALSE)*$F84,VLOOKUP($A84,Daten!$E$6:$L$65,6,FALSE)*$I84),\"\")","v":""},{"$f":"IF(ISNUMBER($F84), IF(VLOOKUP($A84,Daten!$E$6:$L$65,4,FALSE)=0,VLOOKUP($A84,Daten!$E$6:$L$65,7,FALSE)*$F84,VLOOKUP($A84,Daten!$E$6:$L$65,7,FALSE)*$I84),\"\")","v":""},{"$f":"IF(ISNUMBER($F84), IF(VLOOKUP($A84,Daten!$E$6:$L$65,4,FALSE)=0,VLOOKUP($A84,Daten!$E$6:$L$65,8,FALSE)*$F84,VLOOKUP($A84,Daten!$E$6:$L$65,8,FALSE)*$I84),\"\")","v":""},null,{"$f":"IF(ISNUMBER($F84), IF(ISNUMBER(BH84),   BH84& IF(BI84=0,\"\",( IF(BI84<0,\"\",\"+\")&FIXED(BI84,0))),  \"\"), \"\")","v":""},null,null,null,null,null,null,null,null,"        Wenn Sie keine Erträge vorgeben, wird mit Standarderträgen gerechnet, ist in der Regel nicht sinnvoll, weil die effektiven Erträge (Mittel der letzten 3 Jahre) massgebend sind im ÖLN.",null,null,null,null,null,null,null,null,null,null,null,null,null,null,null,null,null,null,null,null,null,null,null,"   ",null,null,null,null,null,null,{"$f":"A84","v":0},{"$f":"VLOOKUP($A84,Daten!$E$6:$L$65,4,FALSE)","v":0},{"$f":"IF(AND(H84<1,ISNUMBER(H84)),0,VLOOKUP($A84,Daten!$E$6:$L$65,5,FALSE))","v":0},{"$f":"IF( AND(VLOOKUP($A84,Daten!$E$6:$P$65,12,FALSE)<1,H84*1<=0.8*BG84,ISNUMBER(H84)),(H84/BG84-1)*VLOOKUP($A84,Daten!$E$6:$P$65,5,FALSE),IF(H84*1>0,IF(H84>VLOOKUP($A84,Daten!$E$6:$P$65,12,FALSE), (VLOOKUP($A84,Daten!$E$6:$P$65,12,FALSE) - VLOOKUP($A84,Daten!$E$6:$P$65,4,FALSE) ) *  VLOOKUP($A84,Daten!$E$6:$P$65,11,FALSE), (H84 - VLOOKUP($A84,Daten!$E$6:$P$65,4,FALSE) ) *  VLOOKUP($A84,Daten!$E$6:$P$65,11,FALSE)), IF(ISBLANK(H84 ), (G84 - VLOOKUP($A84,Daten!$E$6:$P$65,4,FALSE) ) *  VLOOKUP($A84,Daten!$E$6:$P$65,11,FALSE),0)))","v":0},{"$f":"IF(ISBLANK(H84),G84,H84)","v":0}]
[{"$f":"IF(ISBLANK(B85),0,VLOOKUP(B85,Daten!$B$6:$E$65,4,FALSE))","v":0}," -",null,null,null,null,{"$f":"VLOOKUP($A85,Daten!$E$6:$Y$65,21,FALSE)","v":0},null,{"$f":"IF(H85>0,F85*H85,F85*G85)","v":0},null,null,null,{"$f":"IF(ISNUMBER($F85), IF(OR(A85=\"rp\",A85=\"rh\",A85=\"wg\",A85=\"wr\",A85=\"wt\",A85=\"ww\",A85=\"fw\",A85=\"rpnp\",A85=\"rhnp\",A85=\"wgnp\",A85=\"wrnp\",A85=\"wtnp\",A85=\"wwnp\",A85=\"fwnp\"),  F85*(BH85+BI85),  IF(OR(H85>0.8*BG85,ISBLANK(H85)), VLOOKUP($A85,Daten!$E$6:$L$65,5,FALSE)*F85, VLOOKUP($A85,Daten!$E$6:$L$65,5,FALSE)*H85/BG85*F85)),\"\")","v":""},{"$f":"IF(ISNUMBER($F85),  IF(VLOOKUP($A85,Daten!$E$6:$L$65,4,FALSE)=0,VLOOKUP($A85,Daten!$E$6:$L$65,6,FALSE)*$F85,VLOOKUP($A85,Daten!$E$6:$L$65,6,FALSE)*$I85),\"\")","v":""},{"$f":"IF(ISNUMBER($F85), IF(VLOOKUP($A85,Daten!$E$6:$L$65,4,FALSE)=0,VLOOKUP($A85,Daten!$E$6:$L$65,7,FALSE)*$F85,VLOOKUP($A85,Daten!$E$6:$L$65,7,FALSE)*$I85),\"\")","v":""},{"$f":"IF(ISNUMBER($F85), IF(VLOOKUP($A85,Daten!$E$6:$L$65,4,FALSE)=0,VLOOKUP($A85,Daten!$E$6:$L$65,8,FALSE)*$F85,VLOOKUP($A85,Daten!$E$6:$L$65,8,FALSE)*$I85),\"\")","v":""},null,{"$f":"IF(ISNUMBER($F85), IF(ISNUMBER(BH85),   BH85& IF(BI85=0,\"\",( IF(BI85<0,\"\",\"+\")&FIXED(BI85,0))),  \"\"), \"\")","v":""},null,null,null,null,null,null,null,null,"- Bei den Spezialkulturen können Sie die Erträge nicht verändern, es wird mit Standarderträgen gerechnet, z.T. abgestuft nach Ertragskategorie.",null,null,null,null,null,null,null,null,null,null,null,null,null,null,null,null,null,null,null,null,null,null,null,"   ",null,null,null,null,null,null,{"$f":"A85","v":0},{"$f":"VLOOKUP($A85,Daten!$E$6:$L$65,4,FALSE)","v":0},{"$f":"IF(AND(H85<1,ISNUMBER(H85)),0,VLOOKUP($A85,Daten!$E$6:$L$65,5,FALSE))","v":0},{"$f":"IF( AND(VLOOKUP($A85,Daten!$E$6:$P$65,12,FALSE)<1,H85*1<=0.8*BG85,ISNUMBER(H85)),(H85/BG85-1)*VLOOKUP($A85,Daten!$E$6:$P$65,5,FALSE),IF(H85*1>0,IF(H85>VLOOKUP($A85,Daten!$E$6:$P$65,12,FALSE), (VLOOKUP($A85,Daten!$E$6:$P$65,12,FALSE) - VLOOKUP($A85,Daten!$E$6:$P$65,4,FALSE) ) *  VLOOKUP($A85,Daten!$E$6:$P$65,11,FALSE), (H85 - VLOOKUP($A85,Daten!$E$6:$P$65,4,FALSE) ) *  VLOOKUP($A85,Daten!$E$6:$P$65,11,FALSE)), IF(ISBLANK(H85 ), (G85 - VLOOKUP($A85,Daten!$E$6:$P$65,4,FALSE) ) *  VLOOKUP($A85,Daten!$E$6:$P$65,11,FALSE),0)))","v":0},{"$f":"IF(ISBLANK(H85),G85,H85)","v":0}]
[{"$f":"IF(ISBLANK(B86),0,VLOOKUP(B86,Daten!$B$6:$E$65,4,FALSE))","v":0}," -",null,null,null,null,{"$f":"VLOOKUP($A86,Daten!$E$6:$Y$65,21,FALSE)","v":0},null,{"$f":"IF(H86>0,F86*H86,F86*G86)","v":0},null,null,null,{"$f":"IF(ISNUMBER($F86), IF(OR(A86=\"rp\",A86=\"rh\",A86=\"wg\",A86=\"wr\",A86=\"wt\",A86=\"ww\",A86=\"fw\",A86=\"rpnp\",A86=\"rhnp\",A86=\"wgnp\",A86=\"wrnp\",A86=\"wtnp\",A86=\"wwnp\",A86=\"fwnp\"),  F86*(BH86+BI86),  IF(OR(H86>0.8*BG86,ISBLANK(H86)), VLOOKUP($A86,Daten!$E$6:$L$65,5,FALSE)*F86, VLOOKUP($A86,Daten!$E$6:$L$65,5,FALSE)*H86/BG86*F86)),\"\")","v":""},{"$f":"IF(ISNUMBER($F86),  IF(VLOOKUP($A86,Daten!$E$6:$L$65,4,FALSE)=0,VLOOKUP($A86,Daten!$E$6:$L$65,6,FALSE)*$F86,VLOOKUP($A86,Daten!$E$6:$L$65,6,FALSE)*$I86),\"\")","v":""},{"$f":"IF(ISNUMBER($F86), IF(VLOOKUP($A86,Daten!$E$6:$L$65,4,FALSE)=0,VLOOKUP($A86,Daten!$E$6:$L$65,7,FALSE)*$F86,VLOOKUP($A86,Daten!$E$6:$L$65,7,FALSE)*$I86),\"\")","v":""},{"$f":"IF(ISNUMBER($F86), IF(VLOOKUP($A86,Daten!$E$6:$L$65,4,FALSE)=0,VLOOKUP($A86,Daten!$E$6:$L$65,8,FALSE)*$F86,VLOOKUP($A86,Daten!$E$6:$L$65,8,FALSE)*$I86),\"\")","v":""},null,{"$f":"IF(ISNUMBER($F86), IF(ISNUMBER(BH86),   BH86& IF(BI86=0,\"\",( IF(BI86<0,\"\",\"+\")&FIXED(BI86,0))),  \"\"), \"\")","v":""},null,null,null,null,null,null,null,null,"- Bei Kartoffeln entweder alle als \"Standard-Kart.\" erfassen oder alle nach den sortenspezifischen N-Bedarfsgruppen (a, b od. c) gemässe Sortenliste Kartoffeln (Wegleitung Tab.4).",null,null,null,null,null,null,null,null,null,null,null,null,null,null,null,null,null,null,null,null,null,null,null,"   ",null,null,null,null,null,null,{"$f":"A86","v":0},{"$f":"VLOOKUP($A86,Daten!$E$6:$L$65,4,FALSE)","v":0},{"$f":"IF(AND(H86<1,ISNUMBER(H86)),0,VLOOKUP($A86,Daten!$E$6:$L$65,5,FALSE))","v":0},{"$f":"IF( AND(VLOOKUP($A86,Daten!$E$6:$P$65,12,FALSE)<1,H86*1<=0.8*BG86,ISNUMBER(H86)),(H86/BG86-1)*VLOOKUP($A86,Daten!$E$6:$P$65,5,FALSE),IF(H86*1>0,IF(H86>VLOOKUP($A86,Daten!$E$6:$P$65,12,FALSE), (VLOOKUP($A86,Daten!$E$6:$P$65,12,FALSE) - VLOOKUP($A86,Daten!$E$6:$P$65,4,FALSE) ) *  VLOOKUP($A86,Daten!$E$6:$P$65,11,FALSE), (H86 - VLOOKUP($A86,Daten!$E$6:$P$65,4,FALSE) ) *  VLOOKUP($A86,Daten!$E$6:$P$65,11,FALSE)), IF(ISBLANK(H86 ), (G86 - VLOOKUP($A86,Daten!$E$6:$P$65,4,FALSE) ) *  VLOOKUP($A86,Daten!$E$6:$P$65,11,FALSE),0)))","v":0},{"$f":"IF(ISBLANK(H86),G86,H86)","v":0}]
["ausblenden",null,null,null,null,null,null,null,null,null,null,null,null,null,null,null,null,null,null,null,null,null,null,null,null,null,"Zeile ausblenden",null,null,null,null,null,null,null,null,null,null,null,null,null,null,null,null,null,null,null,null,null,null,null,"   ",null,null,null,null,null,null,null,null,null,null,null,"   "]
[null,"Gemüsekulturen:",null,null,null,null,null,null,null,null,null,null,null,null,null,null,null,null,null,null,null,null,null,null,null,null,"- Korrekturfaktoren nach Bodenproben (siehe Wegleitung 3.7) ",null,null,null,null,null,null,null,null,null,null,null,null,null,null,null,null,null,null,null,null,null,null,null,"   ",null,null,null,null,null,null,null,null,null,null,null,"   ",null,null,null,null,null,null,null,null,null,null,null,null,null,null,null,null,null,null,null,null,null,null,"stop"]
[{"$f":"IF(ISBLANK(B89),0,VLOOKUP(B89,Daten!$B$72:$E$184,4,FALSE))","v":0}," -",null,null,null,null,{"$f":"VLOOKUP($A89,Daten!$E$72:$L$184,4,FALSE)","v":0},null,{"$f":"IF(AND(H89>0,G89>0),F89*H89,F89*G89)","v":0},1,1,1,{"$f":"IF(ISNUMBER($F89),IF(OR(H89>0.8*G89,ISBLANK(H89)), VLOOKUP($A89,Daten!$E$72:$L$184,5,FALSE)*F89, VLOOKUP($A89,Daten!$E$72:$L$184,5,FALSE)*H89/G89*F89),\"\")","v":""},{"$f":"IF(ISNUMBER($F89),IF(VLOOKUP($A89,Daten!$E$72:$L$184,4,FALSE)=0,VLOOKUP($A89,Daten!$E$72:$L$184,6,FALSE)*$F89*J89,VLOOKUP($A89,Daten!$E$72:$L$184,6,FALSE)*$I89*J89),\"\")","v":""},{"$f":"IF(ISNUMBER($F89),IF(VLOOKUP($A89,Daten!$E$72:$L$184,4,FALSE)=0,VLOOKUP($A89,Daten!$E$72:$L$184,7,FALSE)*$F89*K89,VLOOKUP($A89,Daten!$E$72:$L$184,7,FALSE)*$I89*K89),\"\")","v":""},{"$f":"IF(ISNUMBER($F89),IF(VLOOKUP($A89,Daten!$E$72:$L$184,4,FALSE)=0,VLOOKUP($A89,Daten!$E$72:$L$184,8,FALSE)*$F89*L89,VLOOKUP($A89,Daten!$E$72:$L$184,8,FALSE)*$I89*L89),\"\")","v":""},null,null,null,null,null,null,null,null,null,null,"     > Dauerkulturen (Obst, Reben, etc.): die Korrekturfaktoren nach Bodenanalysen sind zu berücksichtigen (Werte von 0 bis 1.5)",null,null,null,null,null,null,null,null,null,null,null,null,null,null,null,null,null,null,null,null,null,null,null,"   "]
["ausblenden",null,null,null,null,null,null,null,null,null,null,null,null,null,null,null,null,null,null,null,null,null,null,null,null,null,"Zeile ausblenden",null,null,null,null,null,null,null,null,null,null,null,null,null,null,null,null,null,null,null,null,null,null,null,"   "]
[null,"Div. oAF:",null,null,"Bunt-/Rotationsbrache/",null,"Nützlingsstreifen/ Saum auf Ackerfläche/...  (keine Düngung, kein Grundfutter)",null,null,null,null,null,null,null,null,null,null,null,null,null,null,null,null,null,null,null,"     > Gemüsekulturen: grundsätzlich kann der Nettonährstoffbedarf verwendet werden (d.h. Korrekturfaktor = 1), ein Mehrbedarf kann über einen gesamtbetrieblichen ",null,null,null,null,null,null,null,null,null,null,null,null,null,null,null,null,null,null,null,null,null,null,null,"   "]
[null,"Dauerkulturen:",null,null,"Hecke/Streue/...",null,"(keine Düngung, kein Grundfutter)",null,null,null,null,null,null,null,null,null,null,null,null,null,null,null,null,null,null,null,"                                    Düngungsplan oder durch Berücksichtigung der parzellenspezifischen Korrekturfaktoren bei allen Gemüsekulturen geltend gemacht werden (Werte von 0 bis 1.5)",null,null,null,null,null,null,null,null,null,null,null,null,null,null,null,null,null,null,null,null,null,null,null,"   "]
[{"$f":"IF(ISBLANK(B93),0,VLOOKUP(B93,Daten!$B$190:$E$241,4,FALSE))","v":0}," -",null,null,null,null,{"$f":"VLOOKUP($A93,Daten!$E$190:$L$241,4,FALSE)","v":0},null,{"$f":"IF(AND(H93>0,G93>0),F93*H93,F93*G93)","v":0},null,1,1,{"$f":"IF(ISNUMBER($F93), VLOOKUP($A93,Daten!$E$190:$L$241,5,FALSE)*F93,\"\")","v":""},{"$f":"IF(ISNUMBER($F93),IF(VLOOKUP($A93,Daten!$E$190:$L$241,4,FALSE)=0,VLOOKUP($A93,Daten!$E$190:$L$241,6,FALSE)*$F93*J93,VLOOKUP($A93,Daten!$E$190:$L$241,6,FALSE)*$I93*J93),\"\")","v":""},{"$f":"IF(ISNUMBER($F93),IF(VLOOKUP($A93,Daten!$E$190:$L$241,4,FALSE)=0,VLOOKUP($A93,Daten!$E$190:$L$241,7,FALSE)*$F93*K93,VLOOKUP($A93,Daten!$E$190:$L$241,7,FALSE)*$I93*K93),\"\")","v":""},{"$f":"IF(ISNUMBER($F93),IF(VLOOKUP($A93,Daten!$E$190:$L$241,4,FALSE)=0,VLOOKUP($A93,Daten!$E$190:$L$241,8,FALSE)*$F93*L93,VLOOKUP($A93,Daten!$E$190:$L$241,8,FALSE)*$I93*L93),\"\")","v":""},null,null,null,null,null,null,null,null,null,null,"     > übrige Kulturen: ein Mehrbedarf kann aufgrund eines Düngungsplans oder der flächengewichteten P-Korrekturfaktoren geltend gemacht werden (-> Gesuch/Bewilligung nötig).  ",null,null,null,null,null,null,null,null,null,null,null,null,null,null,null,null,null,null,null,null,null,null,null,"   "]
["ausblenden",null,null,null,null,null,null,null,null,null,null,null,null,null,null,null,null,null,null,null,null,null,null,null,null,null,"Zeile ausblenden",null,null,null,null,null,null,null,null,null,null,null,null,null,null,null,null,null,null,null,null,null,null,null,"   "]
[null,"Zweit-, Dritt- und Zwischenkulturen (nicht Grundfutter):",null,null,null,null,null,null,null,{"$f":"IF(COUNTBLANK(J93:J94)>COUNTBLANK(F93:F94),\"bei Dauerkulturen P-Korrekturfaktor eingeben\",\"\")","v":""},null,null,null,null,null,null,null,null,null,null,null,null,null,null,null,null,"- Fehlen Ihnen Zeilen für weitere Kulturen, fügen Sie solche durch Klicken auf den Knopf \"Zeile einfügen\" ein  [funktioniert nur, wenn Makros aktiviert sind]",null,null,null,null,null,null,null,null,null,null,null,null,null,null,null,null,null,null,null,null,null,null,null,"   "]
[{"$f":"IF(ISBLANK(B96),0,VLOOKUP(B96,Daten!$B$73:$E$184,4,FALSE))","v":0}," -",null,null,null,null,{"$f":"VLOOKUP($A96,Daten!$E$6:$L$184,4,FALSE)","v":0},null,{"$f":"IF(AND(H96>0,G96>0),F96*H96,F96*G96)","v":0},1,1,1,{"$f":"IF(ISNUMBER($F96),IF(OR(H96>0.8*G96,ISBLANK(H96)), VLOOKUP($A96,Daten!$E$6:$L$184,5,FALSE)*F96, VLOOKUP($A96,Daten!$E$6:$L$184,5,FALSE)*H96/G96*F96),\"\")","v":""},{"$f":"IF(ISNUMBER($F96),IF(VLOOKUP($A96,Daten!$E$6:$L$184,4,FALSE)=0,VLOOKUP($A96,Daten!$E$6:$L$184,6,FALSE)*$F96*J96,VLOOKUP($A96,Daten!$E$6:$L$184,6,FALSE)*$I96*J96),\"\")","v":""},{"$f":"IF(ISNUMBER($F96),IF(VLOOKUP($A96,Daten!$E$6:$L$184,4,FALSE)=0,VLOOKUP($A96,Daten!$E$6:$L$184,7,FALSE)*$F96*K96,VLOOKUP($A96,Daten!$E$6:$L$184,7,FALSE)*$I96*K96),\"\")","v":""},{"$f":"IF(ISNUMBER($F96),IF(VLOOKUP($A96,Daten!$E$6:$L$184,4,FALSE)=0,VLOOKUP($A96,Daten!$E$6:$L$184,8,FALSE)*$F96*L96,VLOOKUP($A96,Daten!$E$6:$L$184,8,FALSE)*$I96*L96),\"\")","v":""},null,{"$f":"IF(ISNUMBER($F96), IF(ISNUMBER(BH96),   BH96& IF(BI96=0,\"\",( IF(BI96<0,\"\",\"+\")&FIXED(BI96,0))),  \"\"), \"\")","v":""},null,null,null,null,null,null,null,null,"- Bei den Zweit- und Drittkulturen wird die Fläche nicht mehr zur LN aufgerechnet. Hier sind z.B. auch Gründüngungen (keine Futternutzung) einzutragen. ",null,null,null,null,null,null,null,null,null,null,null,null,null,null,null,null,null,null,null,null,null,null,null,"   ",null,null,null,null,null,null,{"$f":"A96","v":0},{"$f":"VLOOKUP($A96,Daten!$E$6:$L$65,4,FALSE)","v":0},{"$f":"IF(AND(H96<1,ISNUMBER(H96)),0,VLOOKUP($A96,Daten!$E$6:$L$65,5,FALSE))","v":0},{"$f":"IF( AND(VLOOKUP($A96,Daten!$E$6:$P$65,12,FALSE)<1,H96*1<=0.8*BG96,ISNUMBER(H96)),(H96/BG96-1)*VLOOKUP($A96,Daten!$E$6:$P$65,5,FALSE),IF(H96*1>0,IF(H96>VLOOKUP($A96,Daten!$E$6:$P$65,12,FALSE), (VLOOKUP($A96,Daten!$E$6:$P$65,12,FALSE) - VLOOKUP($A96,Daten!$E$6:$P$65,4,FALSE) ) *  VLOOKUP($A96,Daten!$E$6:$P$65,11,FALSE), (H96 - VLOOKUP($A96,Daten!$E$6:$P$65,4,FALSE) ) *  VLOOKUP($A96,Daten!$E$6:$P$65,11,FALSE)), IF(ISBLANK(H96 ), (G96 - VLOOKUP($A96,Daten!$E$6:$P$65,4,FALSE) ) *  VLOOKUP($A96,Daten!$E$6:$P$65,11,FALSE),0)))","v":0},{"$f":"IF(ISBLANK(H96),G96,H96)","v":0}]
["ausblenden",null,null,null,null,null,null,null,null,null,null,null,null,null,null,null,null,null,null,null,null,null,null,null,null,null,"Zeile ausblenden",null,null,null,null,null,null,null,null,null,null,null,null,null,null,null,null,null,null,null,null,null,null,null,"   "]
[null,"Feldobstbau:",null,null,null,null,null,"Hochstamm-Obstbäume, Nussbäume, Edelkastanien",null,"Stück",null,null,{"$f":"IF(ISNUMBER($I98),$I98*0.45,\"\")","v":""},{"$f":"IF(ISNUMBER($I98),$I98*0.15,\"\")","v":""},{"$f":"IF(ISNUMBER($I98),$I98*0.56,\"\")","v":""},{"$f":"IF(ISNUMBER($I98),$I98*0.075,\"\")","v":""},null,null,null,null,null,null,null,null,null,null,"- Beim Feldobstbau wird von einem Ertrag von durchschnittlich 300 kg Obst pro Baum ausgegangen.",null,null,null,null,null,null,null,null,null,null,null,null,null,null,null,null,null,null,null,null,null,null,null,"   "]
["str","Stroh-, Rübenblatt-Wegfuhr:",null,null,null,null,null,{"$f":"VLOOKUP(A99,Daten!$E$186:$L$188,2,FALSE)","v":"Stroh (85% TS)"},null,"dt FS",null,null,{"$f":"IF(ISNUMBER($I99),VLOOKUP($A99,Daten!$E$186:$L$188,5,FALSE)*$I99,\"\")","v":""},{"$f":"IF(ISNUMBER($I99),VLOOKUP($A99,Daten!$E$186:$L$188,6,FALSE)*$I99,\"\")","v":""},{"$f":"IF(ISNUMBER($I99),VLOOKUP($A99,Daten!$E$186:$L$188,7,FALSE)*$I99,\"\")","v":""},{"$f":"IF(ISNUMBER($I99),VLOOKUP($A99,Daten!$E$186:$L$188,8,FALSE)*$I99,\"\")","v":""},null,null,null,null,null,null,null,null,null,null,null,"Sie setzen die Anzahl Obstbäume ein.",null,null,null,null,null,null,null,null,null,null,null,null,null,null,null,null,null,null,null,null,null,null,"   "]
["rb",null,null,null,null,null,null,{"$f":"VLOOKUP(A100,Daten!$E$186:$L$188,2,FALSE)","v":"Rübenblatt (15%TS)"},null,"dt FS",null,null,{"$f":"IF(ISNUMBER($I100),VLOOKUP($A100,Daten!$E$186:$L$188,5,FALSE)*$I100,\"\")","v":""},{"$f":"IF(ISNUMBER($I100),VLOOKUP($A100,Daten!$E$186:$L$188,6,FALSE)*$I100,\"\")","v":""},{"$f":"IF(ISNUMBER($I100),VLOOKUP($A100,Daten!$E$186:$L$188,7,FALSE)*$I100,\"\")","v":""},{"$f":"IF(ISNUMBER($I100),VLOOKUP($A100,Daten!$E$186:$L$188,8,FALSE)*$I100,\"\")","v":""},null,null,null,null,null,null,null,null,null,null,null,null,null,null,null,null,null,null,null,null,null,null,null,null,null,null,null,null,null,null,null,null,null,null,"   "]
[null,null,null,null," Acker- & Spezialkulturen (ha): ",{"$f":"SUM(F84:F91)+SUM(F93:F94)","v":0},null,null,null,"davon düngbare Fläche (ha):",{"$f":"F101-F91","v":0},"Total",{"$f":"SUM(M84:M100)","v":0},{"$f":"SUM(N84:N100)","v":0},{"$f":"SUM(O84:O100)","v":0},{"$f":"SUM(P84:P100)","v":0},null,null,"Vergleich der Gesamtfläche",null,null,null,null,null,null,null,"- Jetzt müssen Sie die Flächen kontrollieren, die gesamte LN Ihres Betriebes muss erfasst sein:",null,null,null,null,null,null,null,null,null,"vgl. Wegleitung 2.9:   Kurzpacht Gemüsekultur  -> in Suisse-Bilanz des Kurzpächters",null,null,null,null,null,null,null,null,null,null,null,null,null,"   "]
[null,null,null,null,null,null,null,null,null,null,null,"(C2+C3)",null,null,null,null,null,null,null,null,null,null,null,null,null,null,null,null,null,null,null,null,null,null,null,null,null,null,null,null,null,null,null,null,null,null,null,null,null,null,"   "]
[null,null,"Gesamtfläche (ha):",{"$f":"F101+F72+F92","v":0},null,"davon düngbar:",{"$f":"K101+F73","v":0},null,null,null,null,"Gesamtnährstoffbedarf Betrieb (C) ",{"$f":"M101+M72","v":0},{"$f":"N101+N72","v":0},{"$f":"O101+O72","v":0},{"$f":"P101+P72","v":0},null,null,null,null,{"$f":"IF(ISNUMBER(V103),\" > Betriebsdatenblatt  \",\"Fläche Betriebsdatenblatt ->\")","v":"Fläche Betriebsdatenblatt ->"},null,"ha ",{"$f":"ROUND((V105-V103),6)","v":0},null,null,"     Offene Ackerfläche, Kunstwiesen, Naturwiesen, Dauerkulturen, ökologische Ausgleichsflächen.",null,null,null,null,null,null,null,null,null,"vgl. Wegleitung 2.9:   Zwischenfutter, Gründüngung, Frühjahresnutzen -> in Suisse-Bilanz des Standortbetriebs",null,null,null,null,null,null,null,null,null,null,null,null,null,"   "]
[null,null,null,null,null,null,null,null,null,null,null,null,null,null,null,null,null,null,null,null,null,null,null,null,null,null,null,null,null,null,null,null,null,null,null,null,null,null,null,null,null,null,null,null,null,null,null,null,null,null,"   "]
[null,null,"ausserhalb LN (ha):",0,null,"-> LN (ha): ",{"$f":"D103-D105","v":0},null,null,null,"offene Ackerfläche (ha): ",{"$f":"SUMIF(B84:B91,\"<>*, GH*\",F84:F91)+SUM(F55:F58)","v":0}," =",{"$f":"IF(L105=0,0,L105/D103)","v":0},"der Gesamtfläche",null,null,null,"      > in Suisse-Bilanz ",null,null,{"$f":"D103","v":0},"ha   ->",{"$f":"IF(ISBLANK(V103),\"Betr.fläche eintragen\",IF(X103 < -0.0049999,ROUND(-X103,3)&\" ha  zu wenig\",IF(X103 > 0.005,ROUND(X103,3)&\" ha  zu viel\",\"i.O.\")))","v":"Betr.fläche eintragen"},null,null,"   ->  Flächen und Kulturen gemäss Betriebsdatenerhebung sind massgebend  ",null,null,null,null,null,null,null,null,null,null,null,null,null,null,null,null,null,null,null,null,null,null,null,"   "]
[null,null,null,null,null,null,null,null,null,null,null,null,null,null,null,null,null,null,null,null,null,null,null,null,null,null,null,null,null,null,null,null,null,null,null,null,null,null,null,null,null,null,null,null,null,null,null,null,null,null,"   "]
[null,null,null,null,null,null,null,null,null,null,"Name:",{"$f":"C8","v":" "},null,null,{"$f":"G7","v":0},{"$f":"IF(ISBLANK(O8),\"\",O8)","v":"2023-02-14"},null,"Seite 3",null,null,null,null,null,null,null,null,"diese Zeile wird nur beim Drucken verwendet",null,null,null,null,null,null,null,null,null,null,null,null,null,null,null,null,null,null,null,null,null,null,null,"   "]
[null,null,null,null,null,null,null,null,null,null,null,null,null,null,null,null,null,"nein","nein",null,null,null,null,null,null,null,null,null,null,null,null,null,null,null,null,null,null,null,null,null,null,null,null,null,null,null,null,null,null,null,"   "]
[null,null,null,null,null,null,null,null,null,null,null,null,null,null,null,null,null,"ja","ja",null,null,null,null,null,null,null,"- Sämtliche Zu- und Wegfuhren von Nährstoffen in den 3 Abschnitten eintragen:  ",null,null,null,null,null,null,null,null,null,null,null,null,null,null,null,null,null,null,null,null,null,null,null,"   "]
[null,null,null,null,null,null,"Menge",null,null,null,null,null,null,null,null,null,null,"Voll-","  ",null,null,null,null,null,null,null,"  > unvergärte Hofdünger (A3)  -> Wegleitung 3.6",null,null,null,null,null,null,null,null,null,null,null,null,null,null,null,null,null,null,null,null,null,null,null,"   "]
[null,null,null,null,null,"Einheit","Zufuhr +","Nährstoffgehalt (kg / Einheit)",null,null,null,null,"Nährstoffanfall  (kg pro Jahr)",null,null,null,null,"mist-N",{"$f":"IF($K$7=\"BIO\",\"   BIO - Hofdünger\",\"\")","v":""},null,null,null,null,null,null,null,null,"- Es sind die Saldi gemäss Auszug aus HODUFLU massgebend",null,null,null,null,null,null,null,null,null,null,null,null,null,null,null,null,null,null,null,null,null,null,"   "]
[null," Düngerart, Lief./Abn. -  HODUFLU",null,null,null,null,"Wegfuhr -","Nges","Nverf","P2O5","K2O","Mg","Nges","Nverf","P2O5","K2O","Mg","ja/nein",{"$f":"IF($K$7=\"BIO\",\"ja/nein\",\"\")","v":""},{"$f":"IF($K$7=\"BIO\",\"Nverf\",\"\")","v":""},{"$f":"IF($K$7=\"BIO\",\"P2O5\",\"\")","v":""},null,null,null,null,null,null,"- Achtung: Gehalt an Nges eintragen, Nverf wird betriebsspezifisch berechnet (60% - Abzug für offene Ackerfläche - Abzug für Vollmist-Nges). ",null,null,null,null,null,null,null,null,null,null,null,null,null,null,null,null,null,null,null,null,null,null,"   "]
[null,null,null,null,null,null,null,null,{"$f":"IF(ISNUMBER(H113),H113*H$148,\"\")","v":""},null,null,null,{"$f":"IF($G113=0,\"\",IF(H113=\"\",\"Nges?\",$G113*H113))","v":""},{"$f":"IF($G113=0,\"\",$G113*I113)","v":""},"","","",null,null,{"$f":"IF(AND($K$7=\"BIO\",$S113=\"\",SUM(N113:Q113)<>0),\"<- Bio?\",IF(AND($K$7=\"BIO\",$S113=\"ja\"),N113,\"\"))","v":""},{"$f":"IF(AND($K$7=\"BIO\",$S113=\"ja\"),O113,\"\")","v":""},null,null,null,null,null,null,"- in der Spalte \"Vollmist-N\" ist \"ja\" einzugeben, wenn es sich um Mist aus Vollmist-Systemen handelt (Typ 50 oder 100, siehe oben bei Tierhaltung).",null,null,null,null,null,null,null,null,null,null,null,null,null,null,null,null,null,null,null,null,null,null,"   "]
[null,null,null,null,null,null,null,null,{"$f":"IF(ISNUMBER(H114),H114*H$148,\"\")","v":""},null,null,null,{"$f":"IF($G114=0,\"\",IF(H114=\"\",\"Nges?\",$G114*H114))","v":""},"","","","",null,null,{"$f":"IF(AND($K$7=\"BIO\",$S114=\"\",SUM(N114:Q114)<>0),\"<- Bio?\",IF(AND($K$7=\"BIO\",$S114=\"ja\"),N114,\"\"))","v":""},"",null,null,null,null,null,null,"- für Wegfuhren können die Gehaltswerte im Abschnitt \"Hofdüngeranfall\" (Seite 3, in diesem Blatt) berechnet werden oder mit Hilfe der offiziellen Tabellen geschätzt werden",null,null,null,null,null,null,null,null,null,null,null,null,null,null,null,null,null,null,null,null,null,null,"   "]
[null,null,null,null,null,null,null,null,{"$f":"IF(ISNUMBER(H115),H115*H$148,\"\")","v":""},null,null,null,{"$f":"IF($G115=0,\"\",IF(H115=\"\",\"Nges?\",$G115*H115))","v":""},"","","","",null,null,"","",null,null,null,null,null,null,null,null,null,null,null,null,null,null,null,null,null,null,null,null,null,null,null,null,null,null,null,null,null,"   "]
[null,null,null,null,null,null,null,null,null,null,null,"Zu- und Wegfuhren von Hofdüngern (A3)",{"$f":"SUM(M113:M115)","v":0},{"$f":"SUM(N113:N115)","v":0},{"$f":"SUM(O113:O115)","v":0},{"$f":"SUM(P113:P115)","v":0},{"$f":"SUM(Q113:Q115)","v":0},{"$f":"SUMIF(R113:R115,\"ja\",M113:M115)","v":0},{"$f":"IF($K$7=\"BIO\",\"Bio-Hd.\",\"\")","v":""},{"$f":"IF($K$7=\"BIO\",SUM(T113:T115,T127:T139),\"\")","v":""},{"$f":"IF($K$7=\"BIO\",SUM(U113:U115),\"\")","v":""},{"$f":"IF($K$7=\"BIO\",\" =  Summe Zu-/Wegfuhr von 'Bio-Hofdünger' (kg)\",\"\")","v":""},null,null,null,null,{"$f":" Daten!E459","v":"  "},null,null,null,null,null,null,null,null,null,null,null,null,null,null,null,null,null,null,null,null,null,null,null,"   "]
[null,null,null,null,null,null,null,null,null,null,null,null,null,null,null,null,{"$f":"IF(-R116>R29,\"VM-Nges-Wegfuhr höher als Anfall (V1)-> überprüfen\",\"\")","v":""},"V2",{"$f":"IF($K$7=\"BIO\",\"Nicht-Bio-Hd.\",\"\")","v":""},{"$f":"IF(T116=\"\",\"\",N116-T116)","v":""},{"$f":"IF(U116=\"\",\"\",O116-U116)","v":""},{"$f":"IF($K$7=\"BIO\",\" =  Summe Zu-/Wegfuhr von 'Nicht-Bio-Hofdünger' (kg)\",\"\")","v":""},null,null,null,null,"  > übrige Dünger (D) -> siehe Wegleitung 3.8 ",null,null,null,null,null,null,null,null,null,null,null,null,null,null,null,null,null,null,null,null,null,null,null,"   "]
[null,null,null,null,null,null,null,null,null,null,null,null,null,null,null,null,null,null,null,null,null,null,null,null,null,null,null,null,null,null,null,null,null,null,null,null,null,null,null,null,null,null,null,null,null,null,null,null,null,null,"   "]
[null," Strohzukauf zum Einstreuen ",null,null,null,"Tonnen",0,null,0,1.9,7.9,1.1000000000000001,null,{"$f":"IF($G119=0,\"\",$G119*I119)","v":""},"","","",null,{"$f":"IF($K$7=\"BIO\",\"Hd.\",\"\")","v":""},{"$f":"IF(AND($K$7=\"BIO\",M103>0),(N116-T116)/J151,\"\")","v":""},{"$f":"IF(AND($K$7=\"BIO\",N103>0),(O116-U116)/K151,\"\")","v":""},{"$f":"IF(AND($K$7=\"BIO\",SUM(N116:O116)<>0),\" =  Anteile 'Nicht-Bio-Hofdünger' am Bedarf (C)\",\"\")","v":""},null,null,null,null,null,"- alle Dünger- und Nährstoffzufuhren, die nicht zu A3 oder E gehören, sind hier zu erfassen  (z.B. Kompost, Mineraldünger, Stroh zum Einstreuen, Gemüse-Rüstabfälle, etc. )",null,null,null,null,null,null,null,null,null,null,null,null,null,null,null,null,null,null,null,null,null,null,"   "]
["emissionsmindernde Ausbringverfahren"," schleppschlauchoblig. Fläche (SSOF)",null,null,null,null,0," ha",6,"  ab 2024 anzurechnen",null,null,null,"",null,null,null,null,null,{"$f":"IF(AND($K$7=\"BIO\",SUM(N116:O116)<>0,OR(T119>0.5,U119>0.5),SUM(M103:N103)<>0),\"BIO-Achtung: über 50% !\",\"\" )","v":""},null,null,null,null,null,null,null,"- schleppschlauchobligatorische Fläche (SSOF):  Grundsätzlich ist die gesamte SSOF anzurechnen (2 Gaben à 3 kg Nverf = 6 kg Nverf/ha). Wird aufgrund von fehlendem bzw. geringerem Hofdüngereinsatz nicht die gesamte SSOF  ",null,null,null,null,null,null,null,null,null,null,null,null,null,null,null,null,null,null,null,null,null,null,"   "]
[null," Kompost",null,null,null,"t",0,7,{"$f":"H121*0.1","v":0.70000000000000007},3,5,2.5,null,{"$f":"IF($G121=0,\"\",$G121*I121)","v":""},"","","",null,null,null,null,null,null,null,null,"bio"]
[null," org. Handelsdünger",null,null,null,"dt",0,null,{"$f":"IF(ISNUMBER(H122),0.7*H122,\"\")","v":""},null,null,null,null,"","","","",null,null,null,null,null,null,null,null,"bio"]
[null,{"$f":"IF(K7=\"Bio\",\"\",\" Ammonsalpeter 27% N\")","v":" Ammonsalpeter 27% N"},null,null,null,"dt",0,null,27,null,null,null,null,"","","","",null," ",null,null,null,null,null,null,null,null,"       emissionsmindernd begüllt oder erfolgen weniger als 2 Gaben pro Jahr, kann eine angepasste effektive Fläche deklariert werden. Die Herleitung dieser Fläche muss plausibel dargelegt werden. ",null,null,null,null,null,null,null,null,null,null,null,null,null,null,null,null,null,null,null,null,null,null,"   "]
[null,null,null,null,null,null,null,null,null,null,null,null,null,"","","","",null," ",null,null,null,null,null,null,null,"  > Vergärungsprodukte (E )  -> siehe Wegleitung 3.9   (= Produkte aus Vergärungsanlagen) ",null,null,null,null,null,null,null,null,null,null,null,null,null,null,null,null,null,null,null,null,null,null,null,"   "]
[null,null,null,null,null,null,null,null,null,null,null,"übrige eingesetzte Dünger (D)",null,{"$f":"SUM(N119:N124)","v":0},{"$f":"SUM(O119:O124)","v":0},{"$f":"SUM(P119:P124)","v":0},{"$f":"SUM(Q119:Q124)","v":0},null,{"$f":"IF($K$7=\"BIO\",\"   BIO\",\"\")","v":""},null,null,null,null,null,null,null,"      - Es sind die Saldi gemäss Auszug aus HODUFLU massgebend",null,null,null,null,null,null,null,null,null,null,null,null,null,null,null,null,null,null,null,null,null,null,null,"   "]
[null,null,null,null,"              Übertrag der Vergärungsprodukte gemäss Auszug HODUFLU  ",null,null,null,null,null,null,null,null,null,null,null,null,{"$f":"IF($K$7=\"BIO\",\"Dü.-Art\",\"\")","v":""},{"$f":"S112","v":""},null,null,null,null,null,null,null,"           Gärgülle:         Gesamtsubstrat nach der Vergärung von Material landwirtschaftlicher Herkunft plus max. 20% Material nicht landw. Herkunft (FS); gilt als vergärter Hofdünger",null,null,null,null,null,null,null,null,null,null,null,null,null,null,null,null,null,null,null,null,null,null,null,"   "]
[null," Gärgülle und Gärdünngülle, Summe HODUFLU",null,null,null,null,null,{"$f":"\"  betr.spez. N-Ausnutzung: 65% \"&IF(H146<>0,ROUND(H146*100,1)&\"% = \",\" - 0% = \")","v":"  betr.spez. N-Ausnutzung: 65%  - 0% = "},null,null,null,{"$f":"0.65+H146","v":0.65},null,{"$f":"IF(ISNUMBER(M127),M127*L127,\"\")","v":""},null,null,null,{"$f":"IF(AND(SUM(N127:Q127)<>0,$K$7=\"BIO\"),\"HoDü\",\"\")","v":""},null,{"$f":"IF(AND(LEFT(R127,2)=\"Ho\",S127=\"\"),\"<- Bio?\",IF(ISNUMBER(N127),N127,\"\"))","v":""},{"$f":"IF(AND($K$7=\"BIO\",$S127=\"ja\",LEFT(R127,2)=\"Ho\"),O127,\"\")","v":""},null,null,null,null,null,"           Gärdünngülle: flüssige Phase nach der Separierung von Gärgülle; gilt als vergärter Hofdünger",null,null,null,null,null,null,null,null,null,null,null,null,null,null,null,null,null,null,null,null,null,null,null,"   "]
["verg.Hofdünger -> "," -",null,null,null,null,null,null,{"$f":"IF(ISNUMBER(H128),H128*(0.65+H$146),\"\")","v":""},null,null,null,{"$f":"IF($G128=0,\"\",IF(H128=\"\",\"Nges?\",$G128*H128))","v":""},{"$f":"IF($G128=0,\"\",$G128*I128)","v":""},{"$f":"IF($G128=0,\"\",IF(J128=\"\",\"P2O5?\",$G128*J128))","v":""},{"$f":"IF($G128=0,\"\",$G128*K128)","v":""},{"$f":"IF($G128=0,\"\",$G128*L128)","v":""},{"$f":"IF(AND($K$7=\"BIO\",G128<>0,COUNTIFS(B128,\"*Hofdünger*\")>0),\"HoDü\",\"\")","v":""},null,{"$f":"IF(AND($K$7=\"BIO\",$S128=\"ja\",LEFT(R128,2)=\"Ho\"),N128,\"\")","v":""},{"$f":"IF(AND($K$7=\"BIO\",$S128=\"ja\",LEFT(R128,2)=\"Ho\"),O128,\"\")","v":""},null,null,null,null,null,"                N-Ausnutzung flüssige vergärte Hofdünger: Nverf =  Nges * ( Basis 65% - % offene Ackerfläche * 0.15 )    [gemäss Wegleitun Suisse-Bilanz, Ziffer 3.9] ",null,null,null,null,null,null,null,null,null,null,null,null,null,null,null,null,null,null,null,null,null,null,null,"   "]
["Z. ausblenden",null,null,null,null,null,null,null,null,null,null,null,null,null,null,null,null,null,null,null,null,null,null,null,null,null,"Zeile ausblenden"]
["Recyclingdünger ->"," -",null,null,null,null,null,null,null,null,null,null,null,{"$f":"IF($G130=0,\"\",IF(I130=\"\",\"Nverf?\",$G130*I130))","v":""},{"$f":"IF($G130=0,\"\",IF(J130=\"\",\"P2O5?\",$G130*J130))","v":""},{"$f":"IF($G130=0,\"\",$G130*K130)","v":""},{"$f":"IF($G130=0,\"\",$G130*L130)","v":""},null,null,null,null,null,null,null,null,null,"           Gärgut             Gesamtsubstrat nach der Vergärung von Material mit mehr als 20% nicht landw. Herkunft (FS); gilt als vergärter Recyclingdünger ",null,null,null,null,null,null,null,null,null,null,null,null,null,null,null,null,null,null,null,null,null,null,null,"   "]
["Z. ausblenden",null,null,null,null,null,null,null,null,null,null,null,null,null,null,null,null,{"$f":"IF(COUNTIF(B131,\"*Hofdünger*\")>0,\"HoDü\",\"\")","v":""},null,null,null,null,null,null,null,null,"Zeile ausblenden"]
[null," Flüssige Vergärungsprodukte (E1)",null,null,null,null,null,null,null,null,null,null,null,{"$f":"SUM(N127:N131)","v":0},{"$f":"SUM(O127:O131)","v":0},{"$f":"SUM(P127:P131)","v":0},{"$f":"SUM(Q127:Q131)","v":0},null,null,{"$f":"IF(AND($K$7=\"BIO\",SUM(N140:O140)<>0),N132/J151,\"\")","v":""},{"$f":"IF(AND($K$7=\"BIO\",SUM(N140:O140)<>0),O132/K151,\"\")","v":""},{"$f":"IF(AND($K$7=\"BIO\",SUM(N140:O140)<>0),\"Anteile E1 an C\",\"\")","v":""},null,null,null,null,"           flüssiges Gärgut: flüssige Phase nach der Separierung von Gärgut; gilt als vergärter Recyclingdünger;   N-Ausnutzung flüssige Recyclingdünger: Nverf =  Nlös + Norg x 0.25    [gemäss Wegleitung Suisse-Bilanz, Ziffer 3.9]  ",null,null,null,null,null,null,null,null,null,null,null,null,null,null,null,null,null,null,null,null,null,null,null,"   "]
[null,null,null,null,null,null,null,null,null,null,null,null,null,null,null,null,null,null,null,null,null,null,null,null,null,null,null,null,null,null,null,null,null,null,null,null,null,null,null,null,null,null,null,null,null,null,null,null,null,null,"   "]
[null," Feste Vergärungsprodukte, Summe HODUFLU ",null,null,null,null,null,null,{"$f":"\"  N-Ausnutzung:  = 20% \"","v":"  N-Ausnutzung:  = 20% "},null,null,null,null,{"$f":"IF(ISNUMBER(M134),0.2*M134,\"\")","v":""},null,null,null,{"$f":"IF(SUM(N134:Q134)<>0,\"HoDü\",\"\")","v":""},null,{"$f":"IF(AND($K$7=\"BIO\",$S134=\"ja\",LEFT(R134,2)=\"Ho\"),N134,\"\")","v":""},{"$f":"IF(AND($K$7=\"BIO\",$S134=\"ja\",LEFT(R134,2)=\"Ho\"),O134,\"\")","v":""},null,null,null,null,null,"           Gärmist:          feste Phase nach der Separierung von Gärgülle; gilt als vergärter Hofdünger",null,null,null,null,null,null,null,null,null,null,null,null,null,null,null,null,null,null,null,null,null,null,null,"   "]
[null," -",null,null,null,null,null,null,{"$f":"IF(ISNUMBER(H135),H135*0.2,\"\")","v":""},null,null,null,{"$f":"IF($G135=0,\"\",IF(H135=\"\",\"Nges?\",$G135*H135))","v":""},{"$f":"IF($G135=0,\"\",$G135*I135)","v":""},{"$f":"IF($G135=0,\"\",IF(J135=\"\",\"P2O5?\",$G135*J135))","v":""},{"$f":"IF($G135=0,\"\",$G135*K135)","v":""},{"$f":"IF($G135=0,\"\",$G135*L135)","v":""},{"$f":"IF(AND($K$7=\"BIO\",G135<>0,COUNTIFS(B135,\"*Hofdünger*\")>0),\"HoDü\",\"\")","v":""},null,{"$f":"IF(AND($K$7=\"BIO\",$S135=\"ja\",LEFT(R135,2)=\"Ho\"),N135,\"\")","v":""},{"$f":"IF(AND($K$7=\"BIO\",$S135=\"ja\",LEFT(R135,2)=\"Ho\"),O135,\"\")","v":""},null,null,null,null,null,"           festes Gärgut: feste Phase nach der Separierung von Gärgut; gilt als vergärter Recyclingdünger, Kompostierung von festem Gärgut ergibt Kompost -> Erfassung unter \"Übrige Dünger (D), Nverf = Nges gemäss HODUFLU * 0.10 ",null,null,null,null,null,null,null,null,null,null,null,null,null,null,null,null,null,null,null,null,null,null,null,"   "]
["Z. ausblenden","Zeile nicht benutzen (Hofd <-> Rec.)",null,null,null,null,0,null,{"$f":"IF(ISNUMBER(H136),H136*0.2,\"\")","v":""},null,null,null,{"$f":"IF($G136=0,\"\",IF(H136=\"\",\"Nges?\",$G136*H136))","v":""},{"$f":"IF($G136=0,\"\",$G136*I136)","v":""},{"$f":"IF($G136=0,\"\",IF(J136=\"\",\"P2O5?\",$G136*J136))","v":""},{"$f":"IF($G136=0,\"\",$G136*K136)","v":""},{"$f":"IF($G136=0,\"\",$G136*L136)","v":""},{"$f":"IF(AND(G136<>0,COUNTIF(B136,\"*Hofdünger*\")>0),\"HoDü\",\"\")","v":""},null,null,null,null,null,null,null,null,"Zeile ausblenden",null,null,null,null,null,null,null,null,null,null,null,null,null,null,null,null,null,null,null,null,null,null,null,"   "]
[null," Feste Vergärungsprodukte (E2)",null,null,null,null,null,null,null,null,null,null,null,{"$f":"SUM(N134:N136)","v":0},{"$f":"SUM(O134:O136)","v":0},{"$f":"SUM(P134:P136)","v":0},{"$f":"SUM(Q134:Q136)","v":0},null,null,{"$f":"IF(AND($K$7=\"BIO\",SUM(N140:O140)<>0),N137/J151,\"\")","v":""},{"$f":"IF(AND($K$7=\"BIO\",SUM(N140:O140)<>0),O137/K151,\"\")","v":""},{"$f":"IF(AND($K$7=\"BIO\",SUM(N140:O140)<>0),\"Anteile E2 an C\",\"\")","v":""},null,null,null,null,"               N-Ausnutzung feste Vergärungsprodukte: Nverf =  Nges * 0.20     [gemäss Wegleitung Suisse-Bilanz, Ziffer 3.9] ",null,null,null,null,null,null,null,null,null,null,null,null,null,null,null,null,null,null,null,null,null,null,null,"   "]
[]
[null," Ernterückstände Gemüse (E3)",null,null,null,"t",null,3.3,{"$f":"IF(ISNUMBER(H139),H139*(0.65+H$146),\"\")","v":2.145},0.9,4,0.6,{"$f":"IF($G139=0,\"\",IF(H139=\"\",\"Nges?\",$G139*H139))","v":""},{"$f":"IF($G139=0,\"\",$G139*I139)","v":""},{"$f":"IF($G139=0,\"\",$G139*J139)","v":""},{"$f":"IF($G139=0,\"\",$G139*K139)","v":""},{"$f":"IF($G139=0,\"\",$G139*L139)","v":""},null,null,null,null,null,null,null,null,null,"           Ernterückstände von Gemüsekulturen:  Gehalte = Mittelwerte in kg / t Ernterückstände frisch",null,null,null,null,null,null,null,null,null,null,null,null,null,null,null,null,null,null,null,null,null,null,null,"   "]
[null,null,null,null,null,null,null,null,null,null,null,"Vergärungsprodukte und Ernterückstände Gemüse (E)",null,{"$f":"SUM(N132,N137,N139)","v":0},{"$f":"SUM(O132,O137,O139)","v":0},0,0,null,{"$f":"IF(AND($K$7=\"BIO\",SUM(N140:O140)<>0),\"Summe\",\"\")","v":""},{"$f":"IF(AND($K$7=\"BIO\",SUM(N140:O140)<>0),SUM(N132,N137)/J151,\"\")","v":""},{"$f":"IF(AND($K$7=\"BIO\",SUM(N140:O140)<>0),SUM(O132,O137)/K151,\"\")","v":""},{"$f":"IF(AND($K$7=\"BIO\",SUM(N140:O140)<>0),\" =  Anteile 'Vergärungsprodukte (E1+E2)' am Bedarf (C)\",\"\")","v":""},null,null,null,null,null,null,null,null,null,null,null,null,null,null,null,null,null,null,null,null,null,null,null,null,null,null,null,null,"   "]
[null,null,null,null,null,null,null,null,null,null,null,null,null,null,null,null,null,null,null,null,null,null,null,null,null,null,null,null,null,null,null,null,null,null,null,null,null,null,null,null,null,null,null,null,null,null,null,null,null,null,"   "]
[null,null,null,null,{"$f":"K8","v":2023},null,null,null,null,null,null,null,"Saldo Nährstoffzufuhr und -wegfuhr (A3+D+E)",{"$f":"IF($A156=\"ja\", SUM(N116,N125,N140), \"\")","v":0},{"$f":"IF($A156=\"ja\", SUM(O116,O125,O140), \"\")","v":0},{"$f":"IF($A156=\"ja\", SUM(P116,P125,P140), \"\")","v":0},{"$f":"IF($A156=\"ja\", SUM(Q116,Q125,Q140), \"\")","v":0},null,null,{"$f":"IF(AND($K$7=\"BIO\",SUM(N140:O140)<>0,OR(T140>0.5,U140>0.5) ),\" BIO-Achtung:  Anteil Vergärungsprodukte ist über 50% \",\"\" )","v":""},null,null,null,null,null,null,null,null,null,null,null,null,null,null,null,null,null,null,null,null,null,null,null,null,null,null,null,null,null,null,"   "]
[null,null,null,null,null,null,null,null,null,null,null,null,null,null,null,null,null,null,null,null,null,null,null,null,null,null,null,null,null,null,null,null,null,null,null,null,null,null,null,null,null,null,null,null,null,null,null,null,null,null,"   "]
[null,"betriebsspezif. N-Ausnutzungsgrad (A2,A3):",null,null,null,null,"Basis =",0.6,null,null,null,null,{"$f":"IF(OR(ISBLANK(N144),N144<0,N144>0.1,ISBLANK(O144),O144<0,O144>0.1),\"Fehlerbereiche für N + P eintragen ->\",\"Fehlerbereiche für N und P \")","v":"Fehlerbereiche für N + P eintragen ->"},null,null,{"$f":"IF(K8>2023,\" (ab 2024: 0%)\",\" (10% od. 0%)\")","v":" (10% od. 0%)"},null,null,{"$f":"IF(OR(N144>0,O144>0),\"Achtung, ab Jahr 2024: Fehlerbereich =  0%\",\"\")","v":""},null,null,null,null,null,null,null,{"$f":" Daten!E460","v":"  "},null,null,null,null,null,null,null,null,null,null,null,null,null,null,null,null,null,null,null,null,null,null,null,"   "]
[null,null,null,null,null,null,null,null,null,null,null,null,null,null,null,null,null,null,null,null,null,null,null,null,null,null,null,null,null,null,null,null,null,null,null,null,null,null,null,null,null,null,null,null,null,null,null,null,null,null,"   "]
[null,null,{"$f":"IF(D103=0,0,N105)","v":0}," offene Ackerfläche",null,null,"* 0.15 =",{"$f":"-C146*0.15","v":0},null,"Gesamtbetrieb  pro Jahr",null,null,null,"je ha düngbare Fläche ",null,null,null,null,null,null,null,null,null,null,null,null,{"$f":" Daten!E453","v":"- Beim ÖLN darf die Gesamtbilanz den Fehlerbereich bei N und P nicht überschreiten."},null,null,null,null,null,null,null,null,null,null,null,null,null,null,null,null,null,null,null,null,null,null,null,"   "]
[null,null,{"$f":"IF(AND(R34<=1,R34>=0),R34,\"??\")","v":0}," Anteil Vollmist-Nges",null,null,"* 0.12 =",{"$f":"-C147*0.12","v":0},null,"Nverf","P2O5","K2O","Mg ","Nverf","P2O5","K2O","Mg ",null,null,"Anteile am Bedarf C",null,null,null,null,null,null,"- Der Ausnutzungsgrad des Gesamt-Stickstoffs (Nges) für unvergärte Hofdünger wird ausgehend von der Basis 60% korrigiert nach",null,null,null,null,null,null,null,null,null,null,null,null,null,null,null,null,null,null,null,null,null,null,null,"   "]
[null,null,null,null,null,null,"N-Ausnutzungsgrad unverg. Hofdünger",{"$f":"SUM(H144:H147)","v":0.6},null,"kg  ","kg  ","kg  ","kg  ","kg/ha","kg/ha","kg/ha","kg/ha",null,null,{"$f":"J147","v":"Nverf"},{"$f":"K147","v":"P2O5"},null,null,null,null,null,"            Anteil offener Ackerfläche (pro 1% Anteil -0.15%) und Anteil Vollmist-Nges (pro 1% Anteil -0.12% ).",null,null,null,null,null,null,null,null,null,null,null,null,null,null,null,null,null,null,null,null,null,null,null,"   "]
[null,null,null,null,null,null,null,null,null,null,null,null,null,null,null,null,null,null,null,null,null,null,null,null,null,null,null,null,null,null,null,null,null,null,null,null,null,null,null,null,null,null,null,null,null,null,null,null,null,null,"   "]
[{"$f":"IF(OR(NOT(ISERROR(SEARCH(\"*Ertragsschätzung*\",H73))),H73=\"\"),\"\",\"GF-Rechnung prüfen\")","v":""},"    Nährstoffe aus Tierhaltung",null,null,null,null,"A2",{"$f":"IF(H148=\"--\",0,L32)","v":0},"kg Nges",{"$f":"IF(H148=\"--\",0,H148*L32)","v":0},{"$f":"M32","v":0},{"$f":"N32","v":0},{"$f":"O32","v":0},{"$f":"IF(G103=0,\"\",J150/$G$103)","v":""},{"$f":"IF(G103=0,\"\",K150/$G$103)","v":""},{"$f":"IF(G103=0,\"\",L150/$G$103)","v":""},{"$f":"IF(G103=0,\"\",M150/$G$103)","v":""},null,null,{"$f":"J150/J$151","v":{"$error":"#DIV/0!"}},{"$error":"#DIV/0!"},null,null,null,null,null,"-  Zwischenbilanz \"Eigenversorgung\": Differenz zwischen Nährstoffanfall und Nährstoffbedarf des Betriebes.",null,null,null,null,null,null,null,null,null,null,null,null,null,null,null,null,null,null,null,null,null,null,null,"   "]
[{"$f":"COUNTIF(J84:J90,\">2.5\")+COUNTIF(J93:J94,\">2.5\")+COUNTIF(J96:J97,\">2.5\")","v":0},"  - Gesamtnährstoffbedarf des Betriebes  (=100%)",null,null,null,null,null,null,"C",{"$f":"M103","v":0},{"$f":"N103","v":0},{"$f":"O103","v":0},{"$f":"P103","v":0},{"$f":"IF(G103=0,\"\",J151/$G$103)","v":""},{"$f":"IF(G103=0,\"\",K151/$G$103)","v":""},{"$f":"IF(G103=0,\"\",L151/$G$103)","v":""},{"$f":"IF(G103=0,\"\",M151/$G$103)","v":""},null,null,{"$error":"#DIV/0!"},{"$error":"#DIV/0!"},null,null,null,null,null,null,"Positive Zahl = Nährstoffüberschuss; negative Zahl = Nährstoffmanko.",null,null,null,null,null,null,null,null,null,null,null,null,null,null,null,null,null,null,null,null,null,null,"   "]
[{"$f":"IF(OR(A150<>\"\",A151>0.1),\"nein\",\"ja\")","v":"ja"}," =  Zwischenbilanz:  Eigenversorgung",null,null,null,null,null,null,"Z = A2 - C ",{"$f":"J150-J151","v":0},{"$f":"K150-K151","v":0},{"$f":"L150-L151","v":0},{"$f":"M150-M151","v":0},{"$f":"IF(G103=0,\"\",N150-N151)","v":""},{"$f":"IF(G103=0,\"\",O150-O151)","v":""},{"$f":"IF(G103=0,\"\",P150-P151)","v":""},{"$f":"IF(G103=0,\"\",Q150-Q151)","v":""},null,null,{"$error":"#DIV/0!"},{"$error":"#DIV/0!"},null,null,null,null,null,{"$f":"Daten!E453","v":"- Beim ÖLN darf die Gesamtbilanz den Fehlerbereich bei N und P nicht überschreiten."},null,null,null,null,null,null,null,null,null,null,null,null,null,null,null,null,null,null,null,null,null,null,null,"   "]
[null,null,null,null,null,null,null,null,null,null,null,null,null,null,null,null,null,null,null,null,null,null,null,null,null,null,null,null,null,null,null,null,null,null,null,null,null,null,null,null,null,null,null,null,null,null,null,null,null,null,"   "]
["G'Bilanz"," +  Saldo Zu- und Wegfuhr",null,null,null,null,null,null,"S = A3+D+E",{"$f":"IF(OR($A$152<>\"ja\",$A$156<>\"ja\"),\"\",N142)","v":0},{"$f":"IF(OR($A$152<>\"ja\",$A$156<>\"ja\"),\" \",O142)","v":0},{"$f":"IF(OR($A$152<>\"ja\",$A$156<>\"ja\"),\" \",P142)","v":0},{"$f":"IF(OR($A$152<>\"ja\",$A$156<>\"ja\"),\" \",Q142)","v":0},{"$f":"IF(G103=0,\"\",IF($A156<>\"ja\",\" \",J154/$G$103))","v":""},{"$f":"IF(G103=0,\"\",IF($A156<>\"ja\",\" \",K154/$G$103))","v":""},{"$f":"IF(G103=0,\"\",IF($A156<>\"ja\",\" \",L154/$G$103))","v":""},{"$f":"IF(G103=0,\"\",IF($A156<>\"ja\",\" \",M154/$G$103))","v":""},null,null,{"$f":"J154/J$151","v":{"$error":"#DIV/0!"}},{"$f":"K154/K$151","v":{"$error":"#DIV/0!"}},null,null,null,null,null,{"$f":"IF(K8<=2023,Daten!E454,\"\")","v":"   Der Fehlerbereich beträgt in der Regel bei N und P 10% des Bedarfs (C), bei"},null,null,null,null,null,null,null,null,null,null,null,null,null,null,null,null,null,null,null,null,null,null,null,"   "]
["rechnen?"," -  Nährstofftransfer für Futter von ungedüngten Wiesen",null,null,null,null,null,null,"T",null,{"$f":"N75","v":0},null,null,null,{"$f":"IF(G103=0,\"\",K155/$G$103)","v":""},null,null,null,null,null,{"$f":"K155/K$151","v":{"$error":"#DIV/0!"}},null,null,null,null,null,{"$f":"IF(K8<=2023,Daten!E455,\"\")","v":"    bestimmten Betrieben beträgt der P-Fehlerbereich aber  0 %:  "},null,null,null,null,null,null,null,null,null,null,null,null,null,null,null,null,null,null,null,null,null,null,null,"   "]
["ja"," =  Gesamtbilanz",null,"(+ = Ueberschuss)",null,null,null,null,"G = Z+A3+D+E-T ",{"$f":"IF(OR($A$152<>\"ja\",$A$156<>\"ja\"), \"\",J152+J154)","v":0},{"$f":"IF(OR($A$152<>\"ja\",$A$156<>\"ja\"),\"\",K152+K154-K155)","v":0},{"$f":"IF(OR($A$152<>\"ja\",$A$156<>\"ja\"),\" \",L152+L154)","v":0},{"$f":"IF(OR($A$152<>\"ja\",$A$156<>\"ja\"),\" \",M152+M154)","v":0},{"$f":"IF(G103=0,\"\",IF($A156<>\"ja\",\" \",N152+N154))","v":""},{"$f":"IF(G103=0,\"\",IF($A156<>\"ja\",\" \",O152+O154-O155))","v":""},{"$f":"IF(G103=0,\"\",IF($A156<>\"ja\",\" \",P152+P154))","v":""},{"$f":"IF(G103=0,\"\",IF($A156<>\"ja\",\" \",Q152+Q154))","v":""},null,null,{"$f":"J156/J$151","v":{"$error":"#DIV/0!"}},{"$f":"K156/K$151","v":{"$error":"#DIV/0!"}},null,null,null,null,null,{"$f":"IF(K8<=2023,Daten!E456,\"\")","v":"    Einzelbetriebliche Verfügung nach Direktzahlungsverordnung (Änderung 1.1.2002) bei Bauten mit Ausdehnung des Tierbestandes, DZV Art. 13 und Anhang 1."},null,null,null,null,null,null,null,null,null,null,null,null,null,null,null,null,null,null,null,null,null,null,null,"   "]
[null,null,null,null,null,null,null,null,null,null,null,null,null,null,null,null,null,null,null,null,null,null,null,null,null,null,null,null,null,null,null,null,null,null,null,null,null,null,null,null,null,null,null,null,null,null,null,null,null,null,"   "]
["(ja/nein)",{"$f":"Daten!E461","v":"ÖLN:"},"Max. Fehlerbereich für N und P2O5 ",null,null,null,null,null,"F",{"$f":"IF(A152<>\"ja\",\"\",IF(OR(Daten!Y1=\"BIO\", K8>2023),0,IF(ISBLANK(N144),\"  _   \",IF(N144<=0.1,J151*N144,0.1*J151))))","v":"  _   "},{"$f":"IF(A152<>\"ja\",\"\",IF(ISBLANK(O144),\"  _   \",IF( K8>2023,0,IF(O144<=0.1,K151*O144,0.1*K151))))","v":"  _   "},null,null,{"$f":"IF(G103=0,\"\",IF(J158=0,0,N151*N144))","v":""},{"$f":"IF(G103=0,\"\",IF(K8>2023,0,IF(O144<=0.1,O151*O144,0.1*O151)))","v":""},null,null,null,null,null,null,null,null,null,null,null,{"$f":"Daten!E457","v":"  "},null,null,null,null,null,null,null,null,null,null,null,null,null,null,null,null,null,null,null,null,null,null,null,"   "]
[null,null,null,null,null,null,null,null,null,null,null,null,null,null,null,null,null,null,null,null,null,null,null,null,null,null,null,null,null,null,null,null,null,null,null,null,null,null,null,null,null,null,null,null,null,null,null,null,null,null,"   "]
["Bemerk.",null,null,null,null,null,null,{"$f":" IF(OR(ISNUMBER(R31)=FALSE,ISNUMBER(R34)=FALSE),\"Vollmist-Nges überprüfen (Anfall/Zu-Wegfuhren) !\",IF(A150<>\"\", \"Grundfutter-Rechnung überprüfen !\", IF(A151>0.1,A151&\" Korrekturfaktor(en) Bodenproben zu gross (>2.5)\", IF(OR(ISBLANK(O144), O144<0, O144 > 0.1), \"P-Fehlerbereich eintragen (0% oder 10%)\", IF(A156=\"ja\",IF(AND(J160>0,K160>0),\"Toleranzen überschritten !\",IF(J160>0,\"N-Toleranz überschritten !\",IF(K160>0,\"P-Toleranz überschritten !\",\"Gesamtbilanz: Toleranzen eingehalten !\"))), \"\")))))","v":"P-Fehlerbereich eintragen (0% oder 10%)"},null,{"$f":"IF(A156<>\"ja\", \"\", IF((J156-J158)>=0.5, J156-J158, 0))","v":{"$error":"#VALUE!"}},{"$f":"IF(A156<>\"ja\",\"\", IF((K156-K158)>=0.5,K156-K158, 0))","v":{"$error":"#VALUE!"}},null,null,{"$f":"IF(G103=0,\"\",IF(AND(J160>0, A156= \"ja\"), N156-N158,\"\"))","v":""},{"$f":"IF(G103=0,\"\",IF(AND(A156= \"ja\", K160>0),O156-O158, \"\"))","v":""},null,{"$f":"IF(K7=\"BIO\",\"Zone\",\"\")","v":""},null,{"$f":"IF(AND(K7=\"BIO\",OR(R160=\" -\",ISBLANK(R160))),\"<- Geben Sie die Zone ein für den DGVE-Höchstwert (vgl. Tab. weiter rechts)\",\"\")","v":""},null,null,null,null,null,null,null,{"$f":"IF(K8<=2023,Daten!E458,\"\")","v":"  "},null,null,null,null,null,null,null,null,null,null,null,null,null,null,null,null,null,null,null,null,null,null,null,"   "]
[null,null,null,null,null,null,null,"max. mögl. Düngung (inkl. F) :","C+F",{"$f":"J151+J158","v":{"$error":"#VALUE!"}},{"$f":"K151+K158","v":{"$error":"#VALUE!"}},null,null,{"$f":"IF(G103=0,\"\",N151+N158)","v":""},{"$f":"IF(G103=0,\"\",O151+O158)","v":""},null,null,{"$f":"IF(K7 = \"BIO\", \"Höchstwert\", \"\")","v":""},null,null,null,null,null,null,null,null,{"$f":"IF(K8<=2023,\"Der Fehlerbereich ist die Kompensation für Schätz-Ungenauigkeiten der verwendeten Grunddaten (bis 2023). \",\"\")","v":"Der Fehlerbereich ist die Kompensation für Schätz-Ungenauigkeiten der verwendeten Grunddaten (bis 2023). "},null,null,null,null,null,null,null,null,null,null,null,null,null,null,null,null,null,null,null,null,null,null,null,"   "]
[null,null,null,null,null,null,null,"total gedüngt:","A2+S-T",{"$f":"IF(A156=\"ja\", J154+J150, \"\")","v":0},{"$f":"IF(A156=\"ja\", K154+K150-K155, \"\")","v":0},null,null,{"$f":"IF(G103=0,\"\",IF(A156=\"ja\", N154+N150, \"\"))","v":""},{"$f":"IF(G103=0,\"\",IF(A156=\"ja\", O154+O150-O155, \"\"))","v":""},null,null,{"$f":"IF(K7 = \"BIO\", \"DGVE / ha DF\",\"\")","v":""},null,null,null,null,null,null,null,null,null,null,null,null,null,null,null,null,null,null,null,null,null,null,null,null,null,null,null,null,null,null,null,null,"   "]
[null,{"$f":"IF(S160<>\"\",\" Zonenangabe für DGVE/ha fehlt\",IF(S163<>\"\",S163,IF(AND(K7=\"BIO\",T142<>\"\"),T142,IF(AND(K7=\"BIO\",T120<>\"\"),\"Achtung: über 50% Nicht-BIO-Hofdünger!\",IF(BG43=1,\" erhöhter Grundfutter-Ertrag -> Ertragsschätzung nötig\",\"\")))))","v":""},null,null,null,null,null,null,null,{"$f":"IF(G103=0,\"\",IF(A156=\"ja\",J162/J151, \"\"))","v":""},{"$f":"IF(G103=0,\"\",IF(A156=\"ja\",K162/K151, \"\"))","v":""},null,{"$f":"IF(K7 = \"BIO\", \"entspricht \",\"\")","v":""},{"$f":"IF(AND(K7=\"BIO\",A156=\"ja\"),N162/(105*0.85*0.6),\"\")","v":""},{"$f":"IF(AND(K7=\"BIO\",A156=\"ja\"),O162/35,\"\")","v":""},{"$f":"IF(K7 = \"BIO\", \" DGVE (Rind)\",\"\")","v":""},null,{"$f":"IF(AND(K7=\"BIO\",ISNUMBER( VLOOKUP(R160,BIO_DGVE_pro_ha,2,FALSE))),VLOOKUP(R160,BIO_DGVE_pro_ha,2,FALSE),\"\")","v":""},{"$f":"IF( K7= \"BIO\",IF(AND(ISNUMBER(R163),R163>2.5),\"<- Höchstwert zu hoch ! (max. 2.5)\",IF(OR(N163>R163,O163>R163),\"DGVE-Höchstwert überschritten \",\"\")), \"\")","v":""},null,null,null,null,null,null,{"$f":"IF(K7=\"bio\",K7,\"\")","v":""},{"$f":"IF(Z163=\"BIO\",\"DGVE-Höchstwerte je ha DF \",\"\")","v":""},null,null,null,null,{"$f":"IF(Z163=\"BIO\",\"Ackerbau- und Übergangszonen  2.5\",\"\")","v":""},null,null,null,null,null,null,null,null,null,null,null,null,null,null,null,null,null,null,"   "]
[null,null,null,null,null,null,null,null,null,null,null,null,null,null,null,null,null,null,null,null,null,null,null,null,null,null,null,null,null,null,null,null,null,null,null,null,null,null,null,null,null,null,null,null,null,null,null,null,null,null,"stop",null,null,null,null,null,null,null,null,null,null,null,"stop",null,null,null,null,null,null,null,null,null,null,null,null,null,null,null,null,null,null,null,null,null,null,"   "]
[null,"Datum:",null,"Unterschrift Betriebsleiter:",null,null,null,null,null,null,{"$f":"Daten!E452","v":"Unterschrift ÖLN-Kontrolleur:"},null,null,null,null,null,null,null,null,null,null,null,null,null,null,null,null,null,null,null,null,{"$f":"IF(Z163=\"BIO\",\"Voralpine Hügelzone                      2.1\",\"\")","v":""},null,null,null,null,null,null,null,null,null,null,null,null,null,null,null,null,null,null,"stop",null,null,null,null,null,null,null,null,null,null,null,"stop"]
["Ende \nSuisse-Bilanz",null,null,null,null,null,null,null,null,null,null,null,null,null,null,null,null,null,null,null,null,null,null,null,null,null,{"$f":"IF(Z163=\"BIO\",\"Die Zertifizierungsstelle kann auf Antrag \nhöhere Werte zulassen. \nDie Obergrenze von 2.5 kann jedoch \nkeinesfalls überschritten werden.\",\"\")","v":""},null,null,null,null,{"$f":"IF(Z163=\"BIO\",\"Bergzone 1             1.8 \nBergzone 2             1.4 \nBergzone 3             1.2 \nBergzone 4             1.1\",\"\")","v":""},null,null,null,null,null,null,null,null,null,null,null,null,null,null,null,null,null,null,"   ",null,null,null,null,null,null,null,null,null,null,null,"   "]
["mögliche zusätzliche Berechnungen (nur bei Bedarf):",null,null,null,null,null,null,null,null,null,null,null,null,null,null,null,null,null,null,null,null,"Die zusätzlichen Berechnungen A und B sind nicht Bestandteil der Nährstoffbilanz (und entsprechend für diese in der Regel nicht nötig).  ",null,null,null,null,null,null,null,null,null,null,null,null,null,null,null,null,null,null,null,null,null,null,null,null,null,null,null,null,"   ",null,null,null,null,null,null,null,null,null,null,null,"   "]
["   A)","Zwischenstand Nährstoffzufuhren/Wegfuhren",null,null,null,null,null,null,null,null,null,null,null,null,null,null,null,null,null,null,null,null,null,null,null,null,null,null,null,null,null,null,null,null,null,null,null,null,null,null,null,null,null,null,null,null,null,null,null,null,"   "]
[null,null,{"$f":"\"Zur Nährstoffbilanz \"&K8","v":"Zur Nährstoffbilanz 2023"},null,null,null,null,null,null,null,null,null,null,null,null,{"$f":"O8","v":"2023-02-14"},null,null,null,null,null,null,null,null,null,null,null,null,null,null,null,null,null,null,null,null,null,null,null,null,null,null,null,null,null,null,null,null,null,null,"   "]
[null,null,{"$f":"C8&\", \"&C9&\", Betr.Nr.\"&I8","v":" , , Betr.Nr."},null,null,null,null,null,null,null,null,null,null,"je ha DF",null,null,null,null,null,null,null,null,null,null,null,null,null,null,null,null,null,null,null,null,null,null,null,null,null,null,null,null,null,null,null,null,null,null,null,null,"   "]
[null,null,null,null,null,null,null,null,null,null,null,null,null,null,null,null,null,null,null,null,null,null,null,null,null,null,null,null,null,null,null,null,null,null,null,null,null,null,null,null,null,null,null,null,null,null,null,null,null,null,"   "]
[null,null,null,null,null,null,null,null,null,"Nverf","P2O5",null,null,"Nverf","P2O5",null,null,null,null,null,null,null,null,null,null,null,null,null,null,null,null,null,null,null,null,null,null,null,null,null,null,null,null,null,null,null,null,null,null,null,"   "]
[null,{"$f":"B158","v":"ÖLN:"},"Max.Zufuhr(+)  bzw.  min.Wegfuhr(-) ",null,null,null,null,null,"= - Z + F + T",{"$f":"-J152+J158","v":{"$error":"#VALUE!"}},{"$f":"-K152+K158+K155","v":{"$error":"#VALUE!"}},null,null,{"$f":"-N152+N158","v":{"$error":"#VALUE!"}},{"$f":"-O152+O158+O155","v":{"$error":"#VALUE!"}},null,null,null,null,null,null,null,null,null,null,null,"- Maximal zulässige Nährstoffzufuhr (inkl. Fehlerbereich) (= positive Zahl), oder",null,null,null,null,null,null,null,null,null,null,null,null,null,null,null,null,null,null,null,null,null,null,null,"   "]
[null,"    zum Vergleich:  Saldo Nährstoffzufuhr und -wegfuhr (A3+D+E)",null,null,null,null,null,null,null,{"$f":"N142","v":0},{"$f":"O142","v":0},null,null,{"$f":"N154","v":""},{"$f":"O154","v":""},null,null,null,null,null,null,null,null,null,null,null,null,"minimal notwendige Nährstoffwegfuhr (= negative Zahl).",null,null,null,null,null,null,null,null,null,null,null,null,null,null,null,null,null,null,null,null,null,null,"   "]
[null,null,null,null,null,null,null,null,null,null,null,null,null,null,null,null,null,null,null,null,null,null,null,null,null,null,null,null,null,null,null,null,null,null,null,null,null,null,null,null,null,null,null,null,null,null,null,null,null,null,"   "]
[null,null,"max. mögliche weitere Zufuhr (inkl. Fehlerbereich)",null,null,null,null,null,null,{"$f":"ROUND(J173-J174,0)","v":{"$error":"#VALUE!"}},{"$f":"ROUND(K173-K174,0)","v":{"$error":"#VALUE!"}},null,null,{"$f":"N173-N174","v":{"$error":"#VALUE!"}},{"$f":"O173-O174","v":{"$error":"#VALUE!"}},null,null,null,null,null,null,null,null,null,null,null,null,null,null,null,null,null,null,null,null,null,null,null,null,null,null,null,null,null,null,null,null,null,null,null,"   "]
[null,null,null,null,null,null,null,null,null,{"$f":"IF(J176<0, \"bereits zu viel N ausgebracht  \", IF(J178>J176,\"zu viel N geplant  \",\"\"))","v":{"$error":"#VALUE!"}},{"$f":"IF( K176<0, \"  bereits zuviel P ausgebracht\", IF(K178>K176,\"  zu viel P geplant\",\"\"))","v":{"$error":"#VALUE!"}},null,null,null,null,null,null,null,null,null,null,null,null,null,null,null,null,null,null,null,null,null,null,null,null,null,null,null,null,null,null,null,null,null,null,null,null,null,null,null,"   "]
[null,"Planung für weitere Zufuhr",null,null,null,null,null,null,null,{"$f":"ROUND(SUM(J181:J185),0)","v":0},{"$f":"ROUND(SUM(K181:K185),0)","v":0},null,null,{"$f":"J178/G103","v":{"$error":"#DIV/0!"}},{"$f":"K178/G103","v":{"$error":"#DIV/0!"}},null,null,null,null,null,null,null,null,null,null,null,null,null,null,null,null,null,null,null,null,null,null,null,null,null,null,null,null,null,null,null,null,null,null,null,"   "]
[null,null,null,null,null,null,null,"Gehalte (kg/Einheit)",null,null,null,null,null,null,null,null,null,null,null,null,null,null,null,null,null,null,null,null,null,null,null,null,null,null,null,null,null,null,null,null,null,null,null,null,null,null,null,null,null,null,"   "]
[null,null,"Düngerart",null,null,"Menge","Einheit","Nverf","P2O5",null,null,null,null,null,null,null,null,null,null,null,null,null,null,null,null,null," - die geplante weitere Zufuhr wird nicht automatisch in die Nährstoffbilanz übernommen",null,null,null,null,null,null,null,null,null,null,null,null,null,null,null,null,null,null,null,null,null,null,null,"   "]
[null,"Dünger 1",null,null,null,null,"dt",null,null,{"$f":"IF(ISNUMBER(F181),F181*H181,\"\")","v":""},{"$f":"IF(ISNUMBER(F181),F181*I181,\"\")","v":""},null,null,null,null,null,null,null,null,null,null,null,null,null,null,null,null,null,null,null,null,null,null,null,null,null,null,null,null,null,null,null,null,null,null,null,null,null,null,null,"   "]
[null,"Dünger 2",null,null,null,null,"m3",null,null,{"$f":"IF(ISNUMBER(F182),F182*H182,\"\")","v":""},{"$f":"IF(ISNUMBER(F182),F182*I182,\"\")","v":""},null,null,null,null,null,null,null,null,null,null,null,null,null,null,null,null,null,null,null,null,null,null,null,null,null,null,null,null,null,null,null,null,null,null,null,null,null,null,null,"   "]
[null,"Dünger 3",null,null,null,null,null,null,null,{"$f":"IF(ISNUMBER(F183),F183*H183,\"\")","v":""},{"$f":"IF(ISNUMBER(F183),F183*I183,\"\")","v":""},null,null,null,null,null,null,null,null,null,null,null,null,null,null,null,null,null,null,null,null,null,null,null,null,null,null,null,null,null,null,null,null,null,null,null,null,null,null,null,"   "]
[null,"Dünger 4",null,null,null,null,null,null,null,{"$f":"IF(ISNUMBER(F184),F184*H184,\"\")","v":""},{"$f":"IF(ISNUMBER(F184),F184*I184,\"\")","v":""},null,null,null,null,null,null,null,null,null,null,null,null,null,null,null,null,null,null,null,null,null,null,null,null,null,null,null,null,null,null,null,null,null,null,null,null,null,null,null,"   "]
[null,"Dünger 5",null,null,null,null,null,null,null,{"$f":"IF(ISNUMBER(F185),F185*H185,\"\")","v":""},{"$f":"IF(ISNUMBER(F185),F185*I185,\"\")","v":""},null,null,null,null,null,null,null,null,null,null,null,null,null,null,null,null,null,null,null,null,null,null,null,null,null,null,null,null,null,null,null,null,null,null,null,null,null,null,null,"   "]
[null,null,null,null,null,null,null,null,null,null,null,null,null,null,null,null,null,null,null,null,null,null,null,null,null,null,null,null,null,null,null,null,null,null,null,null,null,null,null,null,null,null,null,null,null,null,null,null,null,null,"   "]
[null,null,null,null,null,null,null,null,null,null,null,null,null,null,null,null,null,null,null,null,null,null,null,null,null,null,null,null,null,null,null,null,null,null,null,null,null,null,null,null,null,null,null,null,null,null,null,null,null,null,"   ",null,null,null,null,null,null,null,null,null,null,null,"   "]
["   B)","Aufteilung der Nährstoffe auf Gülle, Mist und Weide zur Schätzung der Hofdüngergehalte",null,null,null,null,null,null,null,null,null,null,null,null,null,null,null,null,null,null,null,null,null,null,null,null,{"$f":"B188","v":"Aufteilung der Nährstoffe auf Gülle, Mist und Weide zur Schätzung der Hofdüngergehalte"},null,null,null,null,null,null,null,null,null,null,null,null,null,null,null,null,null,"BASISTABELLE: ","Hofdüngerarten:   Mengen pro Vieheinheit und Nährstoffanteile in der Gülle",null,null,null,null,null,null,null,null,null,null,null,{"$f":"R5&\" / \"&LEFT(B6,27)","v":"(Basis = Version 1.17,  2023, agridea und EVD/BLW) /   Version 1.17 - 2023 Copyr"},null,null,null,null,"stop"]
[]
[null,"HOFDÜNGERANFALL",null,null,{"$f":"K8","v":2023},null,"Name: ",{"$f":"C8&\", \"&C9","v":" , "},null,null,null,null,null,"Datum:",{"$f":"IF(ISBLANK(O8),\"\",O8)","v":"2023-02-14"},null,null,"Seite 3",null,null,null,null,null,null,null,null,null,null,null,null,null,null,null,null,null,null,null,null,null,null,null,null,null,null,"Zeilen","Code",0,1,2,3,4,5,6,7,8,9,10,11,12]
[null,null,null,null,null,null,null,null,null,null,null,null,{"$f":"G7","v":0},null,null,null,null,null,null,null,null,null,null,null,null,null,null,null,null,null,null,null,null,null,null,null,null,null,null,null,null,null,null,null,2,"Tier-",0,"Rindvieh","Rindvieh","Rindvieh","Rindvieh","Rindvieh","Rindv., Pferde","Schweine","Schweine","Schweine","Geflügel","Geflügel","Geflügel"]
[null,"Hofdüngerarten nach Tierkategorien und Aufstallungssystemen",null,null,null,null,null,null,null,null,null,null,null,null,null,{"$f":"\"erstellt von: \"&O9","v":"erstellt von: "},null,null,null,null,null,null,null,null,null,null,"- Zur Berechnung des Hofdüngeranfalles müssen bei den einzelnen Tierkategorien",null,null,null,null,null,null,null,null,null,null,null,null,null,null,null,null,null,3,"arten",0,null,null,null,null,"Pferde","Scha,Zi,Kan"]
[null,null,null,null,null,null,null,null,null,null,null,null,null,null,null,null,null,null,null,null,null,null,null,null,null,null,null,"die Hofdüngerarten nach Aufstallungssystem gemäss der Liste links als ",null,null,null,null,null,null,null,null,null,null,null,null,null,null,null,null,4,"Hofdünger-",0,"Vollgülle","Vollgülle +","kotreiche Gülle","kotarme Gülle","Harngülle","keine Gülle","Vollgülle","Vollgülle","keine Gülle","Hennenkot","Geflügelmist","Geflügelmist"]
[null,"Code","Tierart",null,"Hofdüngerart, Aufstallung",null,null,null,null,"Code","Tierart",null,"Hofdüngerart, Aufstallung",null,null,null,null,null,null,null,null,null,null,null,null,null,null,"Zahlencodes eingegeben werden. ",null,null,null,null,null,null,null,null,null,null,null,null,null,null,null,null,5,"arten",0,"kein Mist","Laufstallmist"," + wenig Mist"," + mittel Mist"," + viel Mist","Laufstallmist","kein Mist","+ Mist","Laufstallmist","Kotband","Bodenhaltung","in Güllegrube"]
[null,1,"Rindvieh",null,"Vollgülle, kein Mist: Gitterrost,",null,null,null,null,7,"Schweine",null,"Vollgülle",null,null,null,null,null,null,null,null,null,null,null,null,null,null,"Z.B. Milchkühe im Anbindestall mit Schwemmentmistung produzieren Vollgülle: Code = 1",null,null,null,null,null,null,null,null,null,null,null,null,null,null,null,null,6,"m3 Gülle",0,23,{"$f":"8*1.15","v":9.1999999999999993},{"$f":"13.2*1.15","v":15.179999999999998},11,{"$f":"6*1.15","v":6.8999999999999995},0,{"$f":"1.6*6","v":9.6000000000000014},{"$f":"1.6*6*0.5","v":4.8000000000000007},0,0,0,1.8]
[null,null,null,null,"Spaltenboden oder Schieber",null,null,null,null,null,null,null,"keine Mistproduktion",null,null,null,null,null,null,null,null,null,null,null,null,null,null,null,null,null,null,null,null,null,null,null,null,null,null,null,null,null,null,null,7,"t Mist",0,0,{"$f":"11*1.15","v":12.649999999999999},{"$f":"5.4*1.15","v":6.21},8.9,{"$f":"10*1.15","v":11.5},21,0,{"$f":"(1.2*6-2.2)*0.5","v":2.4999999999999996},{"$f":"1.2*6-2.2","v":4.9999999999999991},2.7,1.5,0]
[null,2,"Rindvieh",null,"Vollgülle + Laufstallmist",null,null,null,null,8,"Schweine",null,"Gülle + Mist",null,null,null,null,null,null,null,null,null,null,null,null,null," - Bei Gülle und Mist können je 3 separate Lagerstätten als Nr. 1, 2 oder 3 gewählt werden.",null,null,null,null,null,null,null,null,null,null,null,null,null,null,null,null,null,8,"Nges %",0,1,0.4,0.68,0.56000000000000005,0.44,0,1,0.32,0,0,0,1]
[null,null,null,null,"Tiefstreu und Fressplatz",null,null,null,null,null,null,null,"Einstreustall mit Kotgang",null,null,null,null,null,null,null,null,null,null,null,null,null,null,null,null,null,null,null,null,null,null,null,null,null,null,null,null,null,null,null,9,"Nverf %",0,1,0.46,0.75,0.73,0.61,0,1,0.4,0,0,0,1]
[null,3,"Rindvieh",null,"kotreiche Gülle + wenig Mist",null,null,null,null,9,"Schweine",null,"Vollmist",null,null,null,null,null,null,null,null,null,null,null,null,null,null,"Je nach dem wird dann pro Grube oder Stock die Gesamtmenge",null,null,null,null,null,null,null,null,null,null,null,null,null,null,null,null,10,"P2O5 %",0,1,0.34,0.52,0.33,0.12,0,1,0.28000000000000003,0,0,0,1]
[null,null,null,null,"viel Kot abgeschorrt",null,null,null,null,null,null,null,"Tiefstreulaufstall",null,null,null,null,null,null,null,null,null,null,null,null,null,null,"und der durchschnittliche Gehalt berechnet.",null,null,null,null,null,null,null,null,null,null,null,null,null,null,null,null,11,"K2O %",0,1,0.35,0.78,0.69,0.61,0,1,0.23,0,0,0,1]
[null,4,"Rindvieh",null,"kotarme Gülle + mittel Mist",null,null,null,null,10,"Geflügel",null,"Hennenkot",null,null,null,null,null,null,null,null,null,null,null,null,null,null,null,null,null,null,null,null,null,null,null,null,null,null,null,null,null,null,null,12,"Mg %",0,1,0.35,0.65,0.45,0.25,0,1,0.26,0,0,0,1]
[null,null,null,null,"mittlere Menge Kot abgeschorrt",null,null,null,null,null,null,null,"Volierenhaltung mit Kotband",null,null,null,null,null,null,null,null,null,null,null,null,null,"- Bei den einzelnen Güllegruben muss die effektive Güllemenge pro Jahr eingegeben werden."]
[null,5,"Rindvieh, Pferde",null,"Harngülle + viel Mist",null,null,null,null,11,"Geflügel",null,"Geflügelmist",null,null,null,null,null,null,null,null,null,null,null,null,null,null,"Am besten schätzt man durch Erhebungen (Hofdüngerrapport)"]
[null,null,null,null,"kein Kot abgeschorrt",null,null,null,null,null,null,null,"Tiefstreu, Kotgrube, Schräggitter",null,null,null,null,null,null,null,null,null,null,null,null,null,null,"die jährliche Gesamtmenge an Gülle ein."]
[null,6,"Rindvieh, Pferde,",null,"nur Laufstallmist, keine Gülle",null,null,null,null,12,"Geflügel",null,"Geflügelmist in Güllegrube eingemischt"]
[null,null,"Schafe, Ziegen, Kaninchen, Hirsche"]
[]
[null,"vorhandene Hofdüngerlager:",null,null,null,"Güllengruben",null,"Bezeichnung",null,null,null,"Miststöcke",null,"Bezeichnung"]
[null,null,null,null,null,"Grube 1",null,null,null,null,null,"Stock 1",null,null,null,null,null,null,null,null,null,null,null,null,null,null,null,null,null,null,null,null,null,null,null,null,null,null,null,null,null,null,null,null,null,null,null,null,null,null,null,null,null,null,null,null,null,null,null,null,null,null,"stop","   ","   ","   ","   ","   ","   ","   ","   ","   ","   ","   ","   ","   ","   ","   ","   ","   ","   ","   ","   ","   ","   ","stop"]
[null,null,null,null,null,"Grube 2",null,null,null,null,null,"Stock 2",null,null,null,null,null,null,null,null,null,null,null,null,null,null,null,null,null,null,null,null,null,null,null,null,null,null,null,null,null,null,null,null,null,null,null,null,null,null,null,null,null,null,null,null,null,null,null,null,null,null,null,"Aufteilung von N auf die Kategorien",null,null,null,null,null,null,null,null,null,null,null,null,null,null,null,null,null,null,null,"max. Nv Betrieb","Rest","   "]
[null,null,null,null,null,"Grube 3",null,null,null,null,null,"Stock 3",null,null,null,null,null,null,null,null,null,null,null,null,null,null,null,null,null,null,null,null,null,null,null,null,null,null,null,null,null,null,null,null,null,null,null,null,null,null,null,null,null,null,null,null,null,null,null,null,null,null,null,"  ","Betrieb",null,"Stall",null,"Laufhof",null,null,"Weide",null,null,null,null,"Summe",null,null,"Abzug \"nicht verfügbarer Nges\"",null,null,null,null,null,"   "]
[null,null,null,null,null,null,null,null,null,null,null,null,null,null,null,null,null,null,null,null,null,null,null,null,null,null,null,null,null,null,null,null,null,null,null,null,null,null,null,null,null,null,null,null,null,null,null,null,null,null,null,null,null,null,null,null,null,null,null,null,null,null,null,"  ",null,"a",null,"a1",null,"a2","b",null,"a3","c","d","e","f =a+b+d","g","h =f-g","i","j","k","l","m","n","   "]
[null,"Code: Nr. eingeben  ,",null,null,null,null,null,null,"Güllegrube: Nr. 1, 2 od. 3 einsetzen ","und "," Miststock: Nr. 1, 2 oder 3 einsetzen",null,null,null,null,null,null,null,null,null,null,null,null,null,null,null,"Berechnungstabelle",null,null,null,null,null,null,null,null,null,null,null,null,null,null,null,null,null,null,null,null,null,null,null,null,null,null,null,null,null,null,null,null,null,null,null,null,"  ",null,"Betrieb",null,"Stall",null,"L'hof","Aufteilung",null,"Weide",null,"Aufteilung","a3-d","gedüngt","prop.a1",null,null,null,null,"Nv","Nv","Nv","   "]
[null,null,null,null,null,null,null,null,"Aufstal","Gülle-","Mist-",null,"Korrigierter Nährstoffanfall",null,null,null,null,null,null,null,null,null,null,null,null,null,"Gülleanfall in Grube 1",null,null,null,null,null,"Gülleanfall in Grube 2",null,null,null,null,null,"Gülleanfall in Grube 3",null,null,null,null,null,"Mistanfall Stock 1",null,null,null,null,null,"Mistanfall Stock 2",null,null,null,null,null,"Mistanfall Stock 3",null,null,null,null,null,null,"Anfall","Abzug ","Anfall",null,"Anfall","Zeit","Anfall","Abzug",null,"Anfall","für Ber.","Abzug","Düngung","\"Anfall\"","Vollmist","Nicht VM","Basis","oAL","VM","Betrieb","Weide","M+G","   "]
[null,"Tierkategorien",null,null,"Anzahl","Weide",null,"Korrig.",{"$f":"\"-lung\"","v":"-lung"},"grube","stock",null,"(kg pro Jahr)",null,null,null,null,null,null,null,null,null,null,null,null,null,"Menge",null,"kg Nährstoffe",null,null,null,"Menge",null,"kg Nährstoffe",null,null,null,"Menge",null,"kg Nährstoffe",null,null,null,"Menge",null,"kg Nährstoffe",null,null,null,"Menge",null,"kg Nährstoffe",null,null,null,"Menge",null,"kg Nährstoffe",null,null,null,null,"brutto","na. Futter","abz. naF","Zeit","abz. naF",null,"abz. naF","prop.","Zeit","abz. naF","Abzug","prop. c","Weide","netto","abz. naF",null,"prop. f","prop.(f-e)","prop. g",null,null,null,"   "]
[null,null,null,null,null,"Std./T.","Tage/J.","Einh.","Code","Nr.","Nr.","Nges","Nverf","P2O5","K2O","Mg ",null,null,null,null,null,null,null,null,null,null,"m3","Nges","Nverf","P2O5","K2O","Mg","m3","Nges","Nverf","P2O5","K2O","Mg","m3","Nges","Nverf","P2O5","K2O","Mg","t","Nges","Nverf","P2O5","K2O","Mg","t","Nges","Nverf","P2O5","K2O","Mg","t","Nges","Nverf","P2O5","K2O","Mg",null,"kg Nges","kg Nges","kg Nges",null,"kg Nges",null,"kg Nges","a2",null,"kg Nges",null,"kg Nges","kg Nges","kg Nges","kg Nges","kg Nges",null,null,null,"Nverf","Nverf","Nverf","   "]
[null,"Milchkühe","  kg:",{"$f":"B18","v":0},{"$f":"IF(ISNUMBER(F18),F18,)","v":0},{"$f":"H18","v":0},{"$f":"I18","v":0},{"$f":"(E217-E217*F217*G217/24/365)*IF(D217<7500,(1+0.05*(D217-7500)/1000),(1+0.05*(D217-7500)/1000))","v":0},null,null,null,{"$f":"IF(ISNUMBER(L18),BP217+BR217+BS217,)","v":0},{"$f":"IF(ISNUMBER(L18),CG217,)","v":0},{"$f":"IF(ISNUMBER(M18),(M18-IF($K$29=0,0,$K$30/$K$29*K18*0.1))*(1-$F217*$G217/24/365),)","v":0},{"$f":"IF(ISNUMBER(N18),N18*(1-$F217*$G217/24/365),)","v":0},{"$f":"IF(ISNUMBER(O18),O18*(1-$F217*$G217/24/365),)","v":0},{"$f":"IF(AND(E217>0,I217=0),\"Aufstallungscode fehlt\",IF(AND(E217>0,SUM(J217:K217)<1),\"Grube / Stock fehlt\",IF(COUNTIF(J217:K217,\">3\")>0,\"Nr-Grube/Stock falsch\",)))","v":0},null,null,null,null,null,null,null,null,null,{"$f":"IF($J217=1,$H217*HLOOKUP($I217,$AT$190:$BG$201,6),0)","v":0},{"$f":"IF($J217=1,$L217*HLOOKUP($I217,$AT$190:$BG$201,8),0)","v":0},{"$f":"IF($J217=1,$M217*HLOOKUP($I217,$AT$190:$BG$201,9),0)","v":0},{"$f":"IF($J217=1,$N217*HLOOKUP($I217,$AT$190:$BG$201,10),0)","v":0},{"$f":"IF($J217=1,$O217*HLOOKUP($I217,$AT$190:$BG$201,11),0)","v":0},{"$f":"IF($J217=1,$P217*HLOOKUP($I217,$AT$190:$BG$201,12),0)","v":0},{"$f":"IF($J217=2,$H217*HLOOKUP($I217,$AT$190:$BG$201,6),0)","v":0},{"$f":"IF($J217=2,$L217*HLOOKUP($I217,$AT$190:$BG$201,8),0)","v":0},{"$f":"IF($J217=2,$M217*HLOOKUP($I217,$AT$190:$BG$201,9),0)","v":0},{"$f":"IF($J217=2,$N217*HLOOKUP($I217,$AT$190:$BG$201,10),0)","v":0},{"$f":"IF($J217=2,$O217*HLOOKUP($I217,$AT$190:$BG$201,11),0)","v":0},{"$f":"IF($J217=2,$P217*HLOOKUP($I217,$AT$190:$BG$201,12),0)","v":0},{"$f":"IF($J217=3,$H217*HLOOKUP($I217,$AT$190:$BG$201,6),0)","v":0},{"$f":"IF($J217=3,$L217*HLOOKUP($I217,$AT$190:$BG$201,8),0)","v":0},{"$f":"IF($J217=3,$M217*HLOOKUP($I217,$AT$190:$BG$201,9),0)","v":0},{"$f":"IF($J217=3,$N217*HLOOKUP($I217,$AT$190:$BG$201,10),0)","v":0},{"$f":"IF($J217=3,$O217*HLOOKUP($I217,$AT$190:$BG$201,11),0)","v":0},{"$f":"IF($J217=3,$P217*HLOOKUP($I217,$AT$190:$BG$201,12),0)","v":0},{"$f":"IF($K217=1,$H217*HLOOKUP($I217,$AT$190:$BG$201,7),0)","v":0},{"$f":"IF($K217=1,$L217*(1-HLOOKUP($I217,$AT$190:$BG$201,8)),0)","v":0},{"$f":"IF($K217=1,$M217*(1-HLOOKUP($I217,$AT$190:$BG$201,9)),0)","v":0},{"$f":"IF($K217=1,$N217*(1-HLOOKUP($I217,$AT$190:$BG$201,10)),0)","v":0},{"$f":"IF($K217=1,$O217*(1-HLOOKUP($I217,$AT$190:$BG$201,11)),0)","v":0},{"$f":"IF($K217=1,$P217*(1-HLOOKUP($I217,$AT$190:$BG$201,12)),0)","v":0},{"$f":"IF($K217=2,$H217*HLOOKUP($I217,$AT$190:$BG$201,7),0)","v":0},{"$f":"IF($K217=2,$L217*(1-HLOOKUP($I217,$AT$190:$BG$201,8)),0)","v":0},{"$f":"IF($K217=2,$M217*(1-HLOOKUP($I217,$AT$190:$BG$201,9)),0)","v":0},{"$f":"IF($K217=2,$N217*(1-HLOOKUP($I217,$AT$190:$BG$201,10)),0)","v":0},{"$f":"IF($K217=2,$O217*(1-HLOOKUP($I217,$AT$190:$BG$201,11)),0)","v":0},{"$f":"IF($K217=2,$P217*(1-HLOOKUP($I217,$AT$190:$BG$201,12)),0)","v":0},{"$f":"IF($K217=3,$H217*HLOOKUP($I217,$AT$190:$BG$201,7),0)","v":0},{"$f":"IF($K217=3,$L217*(1-HLOOKUP($I217,$AT$190:$BG$201,8)),0)","v":0},{"$f":"IF($K217=3,$M217*(1-HLOOKUP($I217,$AT$190:$BG$201,9)),0)","v":0},{"$f":"IF($K217=3,$N217*(1-HLOOKUP($I217,$AT$190:$BG$201,10)),0)","v":0},{"$f":"IF($K217=3,$O217*(1-HLOOKUP($I217,$AT$190:$BG$201,11)),0)","v":0},{"$f":"IF($K217=3,$P217*(1-HLOOKUP($I217,$AT$190:$BG$201,12)),0)","v":0},null,{"$f":"IF(ISNUMBER(L18),L18,)","v":0},{"$f":"IF(AND($K$30>0,ISNUMBER($K18)),$L$30*$K18/$K$29,)","v":0},{"$f":"BL217+BM217","v":0},{"$f":"IF(ISNUMBER(L18),1-BQ217-BT217,)","v":0},{"$f":"BN217*BO217","v":0},{"$f":"IF(P18>0,G18*(24*0.1)/24/365,)","v":0},{"$f":"BN217*BQ217","v":0},{"$f":"IF($BR$225>0,-$BS$226/$BR$225*BR217,)","v":0},{"$f":"IF(ISNUMBER(L18),H18*I18/24/365,)","v":0},{"$f":"IF(L18=0,0,BN217*BT217)","v":0},{"$f":"IF(Q18=0,0,BU217)","v":0},{"$f":"IF(AND(ISNUMBER(Q18),Q18<>0,$BW$226>0),-$BW$226/$BV$225*BV217,)","v":0},{"$f":"BU217+BW217","v":0},{"$f":"BN217+BS217+BW217","v":0},{"$f":"BP217*J18/100","v":0},{"$f":"BY217-BZ217","v":0},{"$f":"$CB$226/$BY$225*BY217","v":{"$error":"#DIV/0!"}},{"$f":"IF(($BY$225-$BX$225)>0,$CC$226/($BY$225-$BX$225)*(BY217-BX217),$CC$226/$BY$225*BY217)","v":{"$error":"#DIV/0!"}},{"$f":"IF(BZ217>0,$CD$226/$BZ$225*BZ217,)","v":0},{"$f":"BY217-SUM(CB217:CD217)","v":{"$error":"#DIV/0!"}},{"$f":"IF(BW217=0,IF((0.6-0.12)*ABS(BX217)>ABS(CE217),CE217,(0.6-0.12)*BX217),IF(0.6*ABS(BX217)>ABS(CE217),CE217,0.6*BX217))","v":{"$error":"#DIV/0!"}},{"$f":"CE217-CF217","v":{"$error":"#DIV/0!"}},"   "]
["ausblenden"]
[{"$f":"A23","v":0},"RV-Mast  >160 d (Pl.)",null,null,{"$f":"IF(ISNUMBER(F23),F23,)","v":0},{"$f":"H23","v":0},0,{"$f":"N219/13.4*0.46","v":0},null,null,null,{"$f":"IF(ISNUMBER(L23),BP219+BR219+BS219,)","v":0},{"$f":"IF(ISNUMBER(L23),CG219,)","v":0},{"$f":"IF(ISNUMBER(M23),(M23-IF($K$29=0,0,$K$30/$K$29*K23*0.1))*(1-$F219*$G219/24/365),)","v":0},{"$f":"IF(ISNUMBER(N23),N23*(1-$F219*$G219/24/365),)","v":0},0,{"$f":"IF(AND(E219>0,I219=0),\"Aufstallungscode fehlt\",IF(AND(E219>0,SUM(J219:K219)<1),\"Grube / Stock fehlt\",IF(COUNTIF(J219:K219,\">3\")>0,\"Nr-Grube/Stock falsch\",IF(A219=\"gfzs\",\"Code+Nr.wie Tiere die dieses GF fressen\",))))","v":0},null,null,null,null,null,null,null,null,null,0,0,0,0,0,0,0,0,0,0,0,0,0,0,0,0,0,0,0,0,0,0,0,0,0,0,0,0,0,0,0,0,0,0,0,0,null,{"$f":"IF(ISNUMBER(L23),L23,)","v":0},{"$f":"IF(AND($K$30>0,ISNUMBER($K23)),$L$30*$K23/$K$29,)","v":0},0,{"$f":"IF(ISNUMBER(L23),1-BQ219-BT219,)","v":0},0,{"$f":"IF(P23>0,G23*(24*0.1)/24/365,)","v":0},0,0,{"$f":"IF(ISNUMBER(L23),H23*I23/24/365,)","v":0},{"$f":"IF(L23=0,0,BN219*BT219)","v":0},{"$f":"IF(Q23=0,0,BU219)","v":0},{"$f":"IF(AND(ISNUMBER(Q23),Q23<>0,$BW$226>0),-$BW$226/$BV$225*BV219,)","v":0},0,0,{"$f":"BP219*J23/100","v":0},0,{"$error":"#DIV/0!"},{"$error":"#DIV/0!"},0,{"$f":"BY219-SUM(CB219:CD219)","v":{"$error":"#DIV/0!"}},{"$f":"IF(BW219=0,IF((0.6-0.12)*ABS(BX219)>ABS(CE219),CE219,(0.6-0.12)*BX219),IF(0.6*ABS(BX219)>ABS(CE219),CE219,0.6*BX219))","v":{"$error":"#DIV/0!"}},{"$f":"CE219-CF219","v":{"$error":"#DIV/0!"}},"   "]
[0," -",null,null,0,0,0,{"$f":"IF(LEFT(A220,2)=\"ie\",N220/35,(E220-E220*F220*G220/24/365)*(VLOOKUP($A220,Daten!$E$248:$M$345,9,FALSE)))","v":0},null,null,null,0,0,0,0,0,0,null,null,null,null,null,null,null,null,null,0,0,0,0,0,0,0,0,0,0,0,0,0,0,0,0,0,0,0,0,0,0,0,0,0,0,0,0,0,0,0,0,0,0,0,0,null,0,0,0,0,0,0,0,0,0,0,0,0,0,0,0,0,{"$error":"#DIV/0!"},{"$error":"#DIV/0!"},0,{"$error":"#DIV/0!"},{"$error":"#DIV/0!"},{"$error":"#DIV/0!"},"   "]
[0," -",null,null,0,0,0,{"$f":"IF(LEFT(A221,2)=\"ie\",N221/35,(E221-E221*F221*G221/24/365)*(VLOOKUP($A221,Daten!$E$248:$M$345,9,FALSE)))","v":0},null,null,null,0,0,0,0,0,0,null,null,null,null,null,null,null,null,null,0,0,0,0,0,0,0,0,0,0,0,0,0,0,0,0,0,0,0,0,0,0,0,0,0,0,0,0,0,0,0,0,0,0,0,0,null,0,0,0,0,0,0,0,0,0,0,0,0,0,0,0,0,{"$error":"#DIV/0!"},{"$error":"#DIV/0!"},0,{"$error":"#DIV/0!"},{"$error":"#DIV/0!"},{"$error":"#DIV/0!"},"   "]
[0," -",null,null,0,0,0,{"$f":"IF(LEFT(A222,2)=\"ie\",N222/35,(E222-E222*F222*G222/24/365)*(VLOOKUP($A222,Daten!$E$248:$M$345,9,FALSE)))","v":0},null,null,null,0,0,0,0,0,0,null,null,null,null,null,null,null,null,null,0,0,0,0,0,0,0,0,0,0,0,0,0,0,0,0,0,0,0,0,0,0,0,0,0,0,0,0,0,0,0,0,0,0,0,0,null,0,0,0,0,0,0,0,0,0,0,0,0,0,0,0,0,{"$error":"#DIV/0!"},{"$error":"#DIV/0!"},0,{"$error":"#DIV/0!"},{"$error":"#DIV/0!"},{"$error":"#DIV/0!"},"   "]
[0," -",null,null,0,0,0,{"$f":"IF(LEFT(A223,2)=\"ie\",N223/35,(E223-E223*F223*G223/24/365)*(VLOOKUP($A223,Daten!$E$248:$M$345,9,FALSE)))","v":0},null,null,null,0,0,0,0,0,0,null,null,null,null,null,null,null,null,null,0,0,0,0,0,0,0,0,0,0,0,0,0,0,0,0,0,0,0,0,0,0,0,0,0,0,0,0,0,0,0,0,0,0,0,0,null,0,0,0,0,0,0,0,0,0,0,0,0,0,0,0,0,{"$error":"#DIV/0!"},{"$error":"#DIV/0!"},0,{"$error":"#DIV/0!"},{"$error":"#DIV/0!"},{"$error":"#DIV/0!"},"   "]
[0," -",null,null,0,0,0,{"$f":"IF(LEFT(A224,2)=\"ie\",N224/35,(E224-E224*F224*G224/24/365)*(VLOOKUP($A224,Daten!$E$248:$M$345,9,FALSE)))","v":0},null,null,null,0,0,0,0,0,0,null,null,null,null,null,null,null,null,null,0,0,0,0,0,0,0,0,0,0,0,0,0,0,0,0,0,0,0,0,0,0,0,0,0,0,0,0,0,0,0,0,0,0,0,0,null,0,0,0,0,0,0,0,0,0,0,0,0,0,0,0,0,{"$error":"#DIV/0!"},{"$error":"#DIV/0!"},0,{"$error":"#DIV/0!"},{"$error":"#DIV/0!"},{"$error":"#DIV/0!"},"   "]
[null,null,null,null,null,null,null,null,null,null,"Total in den eigenen Hofdüngern (Mist und Gülle, ohne Stroh):",{"$f":"SUM(L217:L224)","v":0},{"$f":"ROUND(SUM(M217:M224),0)","v":0},{"$f":"ROUND(SUM(N217:N224),0)","v":0},{"$f":"ROUND(SUM(O217:O224),0)","v":0},{"$f":"ROUND(SUM(P217:P224),0)","v":0},null,null,null,null,null,null,null,null,null,null,null,null,null,null,null,null,null,null,null,null,null,null,null,null,null,null,null,null,null,null,null,null,null,null,null,null,null,null,null,null,null,null,null,null,null,null,null,{"$f":"SUM(BL217:BL224)","v":0},{"$f":"SUM(BM217:BM224)","v":0},{"$f":"SUM(BN217:BN224)","v":0},null,{"$f":"SUM(BP217:BP224)","v":0},null,{"$f":"SUM(BR217:BR224)","v":0},{"$f":"SUM(BS217:BS224)","v":0},null,{"$f":"SUM(BU217:BU224)","v":0},0,0,0,0,0,0,{"$error":"#DIV/0!"},{"$error":"#DIV/0!"},0,{"$error":"#DIV/0!"},{"$error":"#DIV/0!"},{"$error":"#DIV/0!"},"   "]
[null,null,null,null,null,null,null,null,null,null,"Total auf den Weiden durch die Weidetiere gedüngt (nach N-Abzug Weide) ",{"$f":"L32-L225","v":0},{"$f":"L33-M225","v":0},{"$f":"K150-N225","v":0},{"$f":"L150-O225","v":0},{"$f":"M150-P225","v":0},null,null,null,null,null,null,null,null,null,null,null,null,null,null,null,null,null,null,null,null,null,null,null,null,null,null,null,null,null,null,null,null,null,null,null,null,null,null,null,null,null,null,null,null,null,null,null,null,{"$f":"L30","v":0},null,null,null,null,"Summen zum Aufteilen auf Tierkategorien ",{"$f":"P29*0.5","v":0},null,null,null,{"$f":"Q29*0.7","v":0},null,null,null,null,{"$f":"(1-H144)*H150","v":0},{"$f":"-H146*H150","v":0},{"$f":"-H147*H150","v":0},{"$f":"J150","v":0},null,null,"   "]
[null,null,null,null,null,null,null,null,null,null,null,null,null,null,null,null,null,null,null,null,null,null,null,null,null,null,null,null,null,null,null,null,null,null,null,null,null,null,null,null,null,null,null,null,null,null,null,null,null,null,null,null,null,null,null,null,null,null,null,null,null,null,null,null,null,null,null,null,null,null,null,null,null,null,null,null,null,null,null,"Basis","oAL","VM",null,null,null,"   "]
[null,"Zugaben zu Gülle und Mist (z.B. fremde Schweinegülle, Stroh, ... ) ",null,null,null,null,null,null,null,null,null,null,null,null,null,null,null,null,null,null,null,null,null,null,null,null,null,null,null,null,null,null,null,null,null,null,null,null,null,null,null,null,null,null,null,null,null,null,null,null,null,null,null,null,null,null,null,null,null,null,null,null,"stop","   ","   ","   ","   ","   ","   ","   ","   ","   ","   ","   ","   ","   ","   ","   ","   ","   ","   ","   ","   ","   ","   ","stop"]
[null,"Art",null,"Menge","Gehalte (kg/m3 , kg/t)",null,null,null,null,"Gülle-","Mist-","Nährstoffmengen"]
[null,null,null,"m3 , t","Nges","Nverf","P2O5","K2O","Mg ","grube","stock","Nges","Nverf","P2O5","K2O","Mg"]
[null,"Schweinegülle zugeführt",null,null,null,{"$f":"IF(ISNUMBER(E231),E231*H$148,\"\")","v":""},null,null,null,null,null,{"$f":"IF(OR(AND($J231<4, $J231>0, $K231=0),AND($K231<4,$K231>0, $J231=0) ), $D231*E231, \"\")","v":""},"","","","",{"$f":"IF(AND(D231>0,SUM(E231:I231)>0,SUM(J231:K231)<1),\"Grube / Stock fehlt\",IF(COUNTIF(J229:K229,\">3\")>0,\"Grube-/Stocknummer falsch\",))","v":0},null,null,null,null,null,null,null,null,null,{"$f":"IF($J231=1,$D231,0)","v":0},{"$f":"IF($J231=1,$L231,0)","v":0},{"$f":"IF($J231=1,$M231,0)","v":0},{"$f":"IF($J231=1,$N231,0)","v":0},{"$f":"IF($J231=1,$O231,0)","v":0},{"$f":"IF($J231=1,$P231,0)","v":0},{"$f":"IF($J231=2,$D231,0)","v":0},{"$f":"IF($J231=2,$L231,0)","v":0},{"$f":"IF($J231=2,$M231,0)","v":0},{"$f":"IF($J231=2,$N231,0)","v":0},{"$f":"IF($J231=2,$O231,0)","v":0},{"$f":"IF($J231=2,$P231,0)","v":0},{"$f":"IF($J231=3,$D231,0)","v":0},{"$f":"IF($J231=3,$L231,0)","v":0},{"$f":"IF($J231=3,$M231,0)","v":0},{"$f":"IF($J231=3,$N231,0)","v":0},{"$f":"IF($J231=3,$O231,0)","v":0},{"$f":"IF($J231=3,$P231,0)","v":0},{"$f":"IF($K231=1,$D231,0)","v":0},{"$f":"IF($K231=1,$L231,0)","v":0},{"$f":"IF($K231=1,$M231,0)","v":0},{"$f":"IF($K231=1,$N231,0)","v":0},{"$f":"IF($K231=1,$O231,0)","v":0},{"$f":"IF($K231=1,$P231,0)","v":0},{"$f":"IF($K231=2,$D231,0)","v":0},{"$f":"IF($K231=2,$L231,0)","v":0},{"$f":"IF($K231=2,$M231,0)","v":0},{"$f":"IF($K231=2,$N231,0)","v":0},{"$f":"IF($K231=2,$O231,0)","v":0},{"$f":"IF($K231=2,$P231,0)","v":0},{"$f":"IF($K231=3,$D231,0)","v":0},{"$f":"IF($K231=3,$L231,0)","v":0},{"$f":"IF($K231=3,$M231,0)","v":0},{"$f":"IF($K231=3,$N231,0)","v":0},{"$f":"IF($K231=3,$O231,0)","v":0},{"$f":"IF($K231=3,$P231,0)","v":0}]
[null,"Stroh (t)",null,null,0,0,1.9,8.6,0.7,null,null,"","","","","",{"$f":"IF(AND(D232>0,SUM(E232:I232)>0,SUM(J232:K232)<1),\"Grube / Stock fehlt\",IF(COUNTIF(J230:K230,\">3\")>0,\"Grube-/Stocknummer falsch\",))","v":0},null,null,null,null,null,null,null,null,null,{"$f":"IF($J232=1,$D232,0)","v":0},{"$f":"IF($J232=1,$L232,0)","v":0},{"$f":"IF($J232=1,$M232,0)","v":0},{"$f":"IF($J232=1,$N232,0)","v":0},{"$f":"IF($J232=1,$O232,0)","v":0},{"$f":"IF($J232=1,$P232,0)","v":0},{"$f":"IF($J232=2,$D232,0)","v":0},{"$f":"IF($J232=2,$L232,0)","v":0},{"$f":"IF($J232=2,$M232,0)","v":0},{"$f":"IF($J232=2,$N232,0)","v":0},{"$f":"IF($J232=2,$O232,0)","v":0},{"$f":"IF($J232=2,$P232,0)","v":0},{"$f":"IF($J232=3,$D232,0)","v":0},{"$f":"IF($J232=3,$L232,0)","v":0},{"$f":"IF($J232=3,$M232,0)","v":0},{"$f":"IF($J232=3,$N232,0)","v":0},{"$f":"IF($J232=3,$O232,0)","v":0},{"$f":"IF($J232=3,$P232,0)","v":0},{"$f":"IF($K232=1,$D232,0)","v":0},{"$f":"IF($K232=1,$L232,0)","v":0},{"$f":"IF($K232=1,$M232,0)","v":0},{"$f":"IF($K232=1,$N232,0)","v":0},{"$f":"IF($K232=1,$O232,0)","v":0},{"$f":"IF($K232=1,$P232,0)","v":0},{"$f":"IF($K232=2,$D232,0)","v":0},{"$f":"IF($K232=2,$L232,0)","v":0},{"$f":"IF($K232=2,$M232,0)","v":0},{"$f":"IF($K232=2,$N232,0)","v":0},{"$f":"IF($K232=2,$O232,0)","v":0},{"$f":"IF($K232=2,$P232,0)","v":0},{"$f":"IF($K232=3,$D232,0)","v":0},{"$f":"IF($K232=3,$L232,0)","v":0},{"$f":"IF($K232=3,$M232,0)","v":0},{"$f":"IF($K232=3,$N232,0)","v":0},{"$f":"IF($K232=3,$O232,0)","v":0},{"$f":"IF($K232=3,$P232,0)","v":0}]
[null,"Stroh (t)",null,null,0,{"$f":"IF(ISNUMBER(E233),E233*H$148,\"\")","v":0},1.9,8.6,0.7,null,null,"","","","","",{"$f":"IF(AND(D233>0,SUM(E233:I233)>0,SUM(J233:K233)<1),\"Grube / Stock fehlt\",IF(COUNTIF(J231:K231,\">3\")>0,\"Grube-/Stocknummer falsch\",))","v":0},null,null,null,null,null,null,null,null,null,{"$f":"IF($J233=1,$D233,0)","v":0},{"$f":"IF($J233=1,$L233,0)","v":0},{"$f":"IF($J233=1,$M233,0)","v":0},{"$f":"IF($J233=1,$N233,0)","v":0},{"$f":"IF($J233=1,$O233,0)","v":0},{"$f":"IF($J233=1,$P233,0)","v":0},{"$f":"IF($J233=2,$D233,0)","v":0},{"$f":"IF($J233=2,$L233,0)","v":0},{"$f":"IF($J233=2,$M233,0)","v":0},{"$f":"IF($J233=2,$N233,0)","v":0},{"$f":"IF($J233=2,$O233,0)","v":0},{"$f":"IF($J233=2,$P233,0)","v":0},{"$f":"IF($J233=3,$D233,0)","v":0},{"$f":"IF($J233=3,$L233,0)","v":0},{"$f":"IF($J233=3,$M233,0)","v":0},{"$f":"IF($J233=3,$N233,0)","v":0},{"$f":"IF($J233=3,$O233,0)","v":0},{"$f":"IF($J233=3,$P233,0)","v":0},{"$f":"IF($K233=1,$D233,0)","v":0},{"$f":"IF($K233=1,$L233,0)","v":0},{"$f":"IF($K233=1,$M233,0)","v":0},{"$f":"IF($K233=1,$N233,0)","v":0},{"$f":"IF($K233=1,$O233,0)","v":0},{"$f":"IF($K233=1,$P233,0)","v":0},{"$f":"IF($K233=2,$D233,0)","v":0},{"$f":"IF($K233=2,$L233,0)","v":0},{"$f":"IF($K233=2,$M233,0)","v":0},{"$f":"IF($K233=2,$N233,0)","v":0},{"$f":"IF($K233=2,$O233,0)","v":0},{"$f":"IF($K233=2,$P233,0)","v":0},{"$f":"IF($K233=3,$D233,0)","v":0},{"$f":"IF($K233=3,$L233,0)","v":0},{"$f":"IF($K233=3,$M233,0)","v":0},{"$f":"IF($K233=3,$N233,0)","v":0},{"$f":"IF($K233=3,$O233,0)","v":0},{"$f":"IF($K233=3,$P233,0)","v":0}]
[null,null,null,null,null,{"$f":"IF(ISNUMBER(E234),E234*H$148,\"\")","v":""},null,null,null,null,null,"","","","","",{"$f":"IF(AND(D234>0,SUM(E234:I234)>0,SUM(J234:K234)<1),\"Grube / Stock fehlt\",IF(COUNTIF(J232:K232,\">3\")>0,\"Grube-/Stocknummer falsch\",))","v":0},null,null,null,null,null,null,null,null,null,{"$f":"IF($J234=1,$D234,0)","v":0},{"$f":"IF($J234=1,$L234,0)","v":0},{"$f":"IF($J234=1,$M234,0)","v":0},{"$f":"IF($J234=1,$N234,0)","v":0},{"$f":"IF($J234=1,$O234,0)","v":0},{"$f":"IF($J234=1,$P234,0)","v":0},{"$f":"IF($J234=2,$D234,0)","v":0},{"$f":"IF($J234=2,$L234,0)","v":0},{"$f":"IF($J234=2,$M234,0)","v":0},{"$f":"IF($J234=2,$N234,0)","v":0},{"$f":"IF($J234=2,$O234,0)","v":0},{"$f":"IF($J234=2,$P234,0)","v":0},{"$f":"IF($J234=3,$D234,0)","v":0},{"$f":"IF($J234=3,$L234,0)","v":0},{"$f":"IF($J234=3,$M234,0)","v":0},{"$f":"IF($J234=3,$N234,0)","v":0},{"$f":"IF($J234=3,$O234,0)","v":0},{"$f":"IF($J234=3,$P234,0)","v":0},{"$f":"IF($K234=1,$D234,0)","v":0},{"$f":"IF($K234=1,$L234,0)","v":0},{"$f":"IF($K234=1,$M234,0)","v":0},{"$f":"IF($K234=1,$N234,0)","v":0},{"$f":"IF($K234=1,$O234,0)","v":0},{"$f":"IF($K234=1,$P234,0)","v":0},{"$f":"IF($K234=2,$D234,0)","v":0},{"$f":"IF($K234=2,$L234,0)","v":0},{"$f":"IF($K234=2,$M234,0)","v":0},{"$f":"IF($K234=2,$N234,0)","v":0},{"$f":"IF($K234=2,$O234,0)","v":0},{"$f":"IF($K234=2,$P234,0)","v":0},{"$f":"IF($K234=3,$D234,0)","v":0},{"$f":"IF($K234=3,$L234,0)","v":0},{"$f":"IF($K234=3,$M234,0)","v":0},{"$f":"IF($K234=3,$N234,0)","v":0},{"$f":"IF($K234=3,$O234,0)","v":0},{"$f":"IF($K234=3,$P234,0)","v":0}]
[null,null,null,null,null,{"$f":"IF(ISNUMBER(E235),E235*H$148,\"\")","v":""},null,null,null,null,null,"","","","","",{"$f":"IF(AND(D235>0,SUM(E235:I235)>0,SUM(J235:K235)<1),\"Grube / Stock fehlt\",IF(COUNTIF(J233:K233,\">3\")>0,\"Grube-/Stocknummer falsch\",))","v":0},null,null,null,null,null,null,null,null,null,{"$f":"IF($J235=1,$D235,0)","v":0},{"$f":"IF($J235=1,$L235,0)","v":0},{"$f":"IF($J235=1,$M235,0)","v":0},{"$f":"IF($J235=1,$N235,0)","v":0},{"$f":"IF($J235=1,$O235,0)","v":0},{"$f":"IF($J235=1,$P235,0)","v":0},{"$f":"IF($J235=2,$D235,0)","v":0},{"$f":"IF($J235=2,$L235,0)","v":0},{"$f":"IF($J235=2,$M235,0)","v":0},{"$f":"IF($J235=2,$N235,0)","v":0},{"$f":"IF($J235=2,$O235,0)","v":0},{"$f":"IF($J235=2,$P235,0)","v":0},{"$f":"IF($J235=3,$D235,0)","v":0},{"$f":"IF($J235=3,$L235,0)","v":0},{"$f":"IF($J235=3,$M235,0)","v":0},{"$f":"IF($J235=3,$N235,0)","v":0},{"$f":"IF($J235=3,$O235,0)","v":0},{"$f":"IF($J235=3,$P235,0)","v":0},{"$f":"IF($K235=1,$D235,0)","v":0},{"$f":"IF($K235=1,$L235,0)","v":0},{"$f":"IF($K235=1,$M235,0)","v":0},{"$f":"IF($K235=1,$N235,0)","v":0},{"$f":"IF($K235=1,$O235,0)","v":0},{"$f":"IF($K235=1,$P235,0)","v":0},{"$f":"IF($K235=2,$D235,0)","v":0},{"$f":"IF($K235=2,$L235,0)","v":0},{"$f":"IF($K235=2,$M235,0)","v":0},{"$f":"IF($K235=2,$N235,0)","v":0},{"$f":"IF($K235=2,$O235,0)","v":0},{"$f":"IF($K235=2,$P235,0)","v":0},{"$f":"IF($K235=3,$D235,0)","v":0},{"$f":"IF($K235=3,$L235,0)","v":0},{"$f":"IF($K235=3,$M235,0)","v":0},{"$f":"IF($K235=3,$N235,0)","v":0},{"$f":"IF($K235=3,$O235,0)","v":0},{"$f":"IF($K235=3,$P235,0)","v":0}]
[null,null,null,null,null,null,null,null,null,{"$f":"IF(OR(AND(J231>0,K231>0),AND(J232>0,K232>0), AND(J233>0,K233>0), AND(J234>0,K234>0), AND(J235>0,K235>0)), \"entweder Güllengrube  oder  Mist angeben !\", \"\" )","v":""},null,{"$f":"SUM(L231:L235)","v":0},{"$f":"SUM(M231:M235)","v":0},{"$f":"SUM(N231:N235)","v":0},{"$f":"SUM(O231:O235)","v":0},{"$f":"SUM(P231:P235)","v":0},null,null,null,null,null,null,null,null,null,"Total:",{"$f":"SUM(AA217:AA224)+SUM(AA231:AA235)","v":0},0,0,0,0,0,0,0,0,0,0,0,0,0,0,0,0,0,0,0,0,0,0,0,0,0,0,0,0,0,0,0,0,0,0,0]
[null,"ANFALL UND GEHALT VON GÜLLE UND MIST",null,null,null,null,null,null,null,null,null,null,null,null,null,null,null,null,null,null,null,null,null,null,null,null,"Gülleanfall in Grube 1",null,null,null,null,null,"Gülleanfall in Grube 2",null,null,null,null,null,"Gülleanfall in Grube 3",null,null,null,null,null,"Mistanfall Stock 1",null,null,null,null,null,"Mistanfall Stock 2",null,null,null,null,null,"Mistanfall Stock 3"]
[]
[null,null,"Menge","Wasser-","Totale",null,"Nährstoffgehalt",null,null,null,null,"Nährstoffmengen",null,null,null,null,null,null,null,null,null,null,null,null,null,"  ",null,null,null,null,null,null,null,null,null,null,null,null,null,null,null,null,null,null,null,null,null,null,null,null,null,null,null,null,null,null,null,null,null,null,null,null,"stop"]
[null,null,"unverd.","zusatz"," Menge","Ver-","(kg pro Einheit)",null,null,null,null,"(kg pro Grube bzw. Stock)"]
[null,"Gülle","m3","m3","m3","dünn.","Nges","Nverf","P2O5","K2O","Mg","Nges","Nverf","P2O5","K2O","Mg"]
[null,{"$f":"\"1) \"&H209","v":"1) "},{"$f":"AA236","v":0},{"$f":"IF(C242=0, \"\",E242-C242)","v":""},null,{"$f":"IF(AA236=0, \"\",\"1: \" & FIXED((D242/C242),2))","v":""},{"$f":"IF($E$242=0,\"\",AB236/$E$242)","v":""},{"$f":"IF($E$242=0,\"\",AC236/$E$242)","v":""},{"$f":"IF($E$242=0,\"\",AD236/$E$242)","v":""},{"$f":"IF($E$242=0,\"\",AE236/$E$242)","v":""},{"$f":"IF($E$242=0,\"\",AF236/$E$242)","v":""},{"$f":"AB236","v":0},{"$f":"AC236","v":0},{"$f":"AD236","v":0},{"$f":"AE236","v":0},{"$f":"AF236","v":0},null,null,null,null,null,null,null,null,null,null,"Geben Sie in der Spalte \"Totale Menge\" die Anzahl m3 Gülle pro Grube und Jahr ein. Aufgrund der Jahresmenge werden dann die mittleren Gehalte je m3 berechnet."]
[null,{"$f":"\"2) \"&H210","v":"2) "},{"$f":"AG236","v":0},{"$f":"IF(C243=0, \"\",E243-C243)","v":""},null,{"$f":"IF(AG236=0,\"\", \"1: \"&FIXED((D243/C243),2))","v":""},{"$f":"IF($E$243=0,\"\",AH236/$E$243)","v":""},{"$f":"IF($E$243=0,\"\",AI236/$E$243)","v":""},{"$f":"IF($E$243=0,\"\",AJ236/$E$243)","v":""},{"$f":"IF($E$243=0,\"\",AK236/$E$243)","v":""},{"$f":"IF($E$243=0,\"\",AL236/$E$243)","v":""},{"$f":"AH236","v":0},{"$f":"AI236","v":0},{"$f":"AJ236","v":0},{"$f":"AK236","v":0},{"$f":"AL236","v":0}]
[null,{"$f":"\"3) \"&H211","v":"3) "},{"$f":"AM236","v":0},{"$f":"IF(C244=0, \"\",E244-C244)","v":""},null,{"$f":"IF(AM236=0,\"\",\"1: \"&FIXED((D244/C244),2))","v":""},{"$f":"IF($E$244=0,\"\",AN236/$E$244)","v":""},{"$f":"IF($E$244=0,\"\",AO236/$E$244)","v":""},{"$f":"IF($E$244=0,\"\",AP236/$E$244)","v":""},{"$f":"IF($E$244=0,\"\",AQ236/$E$244)","v":""},{"$f":"IF($E$244=0,\"\",AR236/$E$244)","v":""},{"$f":"AN236","v":0},{"$f":"AO236","v":0},{"$f":"AP236","v":0},{"$f":"AQ236","v":0},{"$f":"AR236","v":0}]
["berechnete",null,null,null,null,null,null,null,null,null,null,null,null,null,null,null,null,null,null,null,null,null,null,null,null,null,"Geben Sie in der Spalte \"Menge pro Jahr\" die Anzahl m3 oder t Mist pro Stock und Jahr ein. Aufgrund der Jahresmenge werden dann die mittleren Gehalte"]
["Mengen","Mist",null,"Einheit (m3 / t ) ","Menge pro Jahr",null,null,null,null,null,null,null,null,null,null,null,null,null,null,null,null,null,null,null,null,null," je m3 od.  t berechnet. In der Spalte ganz links, \"berechnete Menge\", wird die Jahresmenge an Mist aufgrund von Normwerten berechnet. Diese Menge"]
[{"$f":"IF(N247>0,ROUND(AS236,0)&\" To\",\"\")","v":""},{"$f":"\"1) \"&N209","v":"1) "},null,"t",null,null,{"$f":"IF($E247=0,\"\",AT$236/$E247)","v":""},{"$f":"IF($E247=0,\"\",AU$236/$E247)","v":""},{"$f":"IF($E247=0,\"\",AV$236/$E247)","v":""},{"$f":"IF($E247=0,\"\",AW$236/$E247)","v":""},{"$f":"IF($E247=0,\"\",AX$236/$E247)","v":""},{"$f":"AT236","v":0},{"$f":"AU236","v":0},{"$f":"AV236","v":0},{"$f":"AW236","v":0},{"$f":"AX236","v":0},null,null,null,null,null,null,null,null,null,null,"wird in den wenigsten Fällen gerade die effektive Menge auf dem Betrieb treffen, weil die Normen nur mittlere Werte sind (Rottegrad des Mistes, Menge an Einstreu, ...)."]
[{"$f":"IF(N248>0,ROUND(AY236,0)&\" To\",\"\")","v":""},{"$f":"\"2) \"&N210","v":"2) "},null,"t",null,null,{"$f":"IF($E248=0,\"\",AZ236/$E248)","v":""},{"$f":"IF($E248=0,\"\",BA236/$E248)","v":""},{"$f":"IF($E248=0,\"\",BB236/$E248)","v":""},{"$f":"IF($E248=0,\"\",BC236/$E248)","v":""},{"$f":"IF($E248=0,\"\",BD236/$E248)","v":""},{"$f":" AZ236","v":0},{"$f":" BA236","v":0},{"$f":" BB236","v":0},{"$f":"BC236","v":0},{"$f":"BD236","v":0},null,null,null,null,null,null,null,null,null,null,"Sind die Abweichungen zwischen  berechneter Mist-Menge und effektiver Menge zu gross oder ergeben sich unrealistische Gehalte, ist zu prüfen, ob das zutreffende"]
[{"$f":"IF(N249>0,ROUND(BE236,0)&\" To\",\"\")","v":""},{"$f":"\"3) \"&N211","v":"3) "},null,"t",null,null,{"$f":"IF($E249=0,\"\",BF$236/$E249)","v":""},{"$f":"IF($E249=0,\"\",BG$236/$E249)","v":""},{"$f":"IF($E249=0,\"\",BH$236/$E249)","v":""},{"$f":"IF($E249=0,\"\",BI$236/$E249)","v":""},{"$f":"IF($E249=0,\"\",BJ$236/$E249)","v":""},{"$f":" BF236","v":0},{"$f":"BG236","v":0},{"$f":"BH236","v":0},{"$f":"BI236","v":0},{"$f":"BJ236","v":0},null,null,null,null,null,null,null,null,null,null,"Aufstallungssystem gewählt wurde und ob die Strohmengen auch einbezogen worden sind (Abschnitt \"Zugabe zu Gülle und Mist\")."]
[null,null,null,null,{"$f":"IF(OR(AND(N247=0,E247=0),AND(N247>0,E247>0)),\"\",IF(AND(N247=0,E247>0),\"Mistmenge Stock 1 zu hoch !\",\" Geben Sie die Mistmenge von Stock 1 ein !\"))&IF(OR(AND(N248=0,E248=0),AND(N248>0,E248>0)),\"\",IF(AND(N248=0,E248>0),\"Mistmenge Stock 2 zu hoch !\",\" Geben Sie die Mistmenge von Stock 2 ein !\"))&IF(OR(AND(N249=0,E249=0),AND(N249>0,E249>0)),\"\",IF(AND(N249=0,E249>0),\"Mistmenge Stock 3 zu hoch !\",\" Geben Sie die Mistmenge von Stock 3 ein !\"))","v":""}]
["    ",null,null,null,null,null,null,null,null,null,null,null,null,null,{"$f":"IF(ABS(SUM(N242:N244,N247:N249)-SUM(N231:N235,N225))>5,\"Es sind nicht alle Nährstoffe auf die Gruben und Stöcke verteilt. Bitte Code, Gruben und Stöcke überprüfen!\",)","v":0},null,null,null,null,null,null,null,null,null,null,"   ",null,null,null,null,null,null,null,null,null,null,null,null,null,null,null,null,null,null,null,null,null,null,null,null,null,null,null,null,null,null,null,null,null,null,null,null,"stop"]
[]
[]
[]
[]
[]
[]
[]
[]
[]
["   ","   ","   ","   ","   ","   ","   ","   ","   ","   ","   ","   ","   ","   ","   ","   ","   ","   ","   ","   ",null,null,null,"   ",null,"  ","  ","   ","   ","   ","   ","   ","   ","   ","   ","   ","   ","   ","   ","   ","   ","   ","   ","   ","   ","   ","   ","   ","   ","   ","   ","   ","   ","   ","   ","   ","   ","   ","   ","   ","   ","   ","   ","   ","   ","   ","   ","   ","   ","   ","   ","   ","   ","   ","   ","   ","   ","   ","   ","   ","   ","   ","   ","   ","   ","stop"]

{"sheet":"GMF_1.8","index":3,"n_rows":104,"n_cols":29,"rows_kept":104,"cut":false,"hidden":false,"merged":[[6,3,9,3],[0,12,0,13],[41,23,41,24],[4,10,4,11],[36,16,37,16]]}
[null,"Futterbilanz für die graslandbasierte",null,null,null,null,null,null,{"$f":"IF(ISBLANK(Suisse_Bilanz_1.17!G7),\"Betr.-Nr. im Blatt 'Suisse_Bilanz…' erfassen\",Suisse_Bilanz_1.17!G7)","v":"Betr.-Nr. im Blatt 'Suisse_Bilanz…' erfassen"},null,null,null,{"$f":"Suisse_Bilanz_1.17!O8","v":"2023-02-14"},null,null,"  ","Anleitung",null,"   ","Hilfsspalten für Berechnungen",null,null,null,null,null,null,null,null,"   "]
[null,{"$f":"\"Milch- und Fleischproduktion (GMF)  \"&Suisse_Bilanz_1.17!K8","v":"Milch- und Fleischproduktion (GMF)  2023"},null,null,null,null,null,null,{"$f":"IF(ISBLANK(Suisse_Bilanz_1.17!C8),\"Adresse im Blatt 'Suisse_Bilanz…' erfassen\",Suisse_Bilanz_1.17!C8)","v":" "},null,null,null,null,null,null,null,"Hinweis: Die Futterbilanz gilt nur zusammen mit der Nährstoffbilanz des entsprechenden Jahres, ",null,"   ",null,null,null,null,null,null,null,null,null,"   "]
[null,"Version 1.8",null,null,null,null,null,null,{"$f":"IF(ISBLANK(Suisse_Bilanz_1.17!C9),\"\",Suisse_Bilanz_1.17!C9)","v":""},null,null,null,null,null,null,null,"                weil die Futterbilanz mit den Daten der Nährstoffbilanz übereinstimmen muss.",null,"   ",null,null,null,null,null,null,null,null,null,"   "]
[null,{"$f":"\"als Ergänzung zur Suisse-Bilanz \"&Suisse_Bilanz_1.17!K8","v":"als Ergänzung zur Suisse-Bilanz 2023"},null,null,null,null,null,null,null,null,null,null,null,null,null,null," zur Dateneingabe:",null,"   ",null,null,null,null,null,null,null,null,null,"   "]
[null,null,null,null,null,null,null,null,null,{"$f":"IF(OR(LEFT(K5,4)=\"Talg\",LEFT(K5,4)=\"Berg\"),\"Gebietszuteilung: \",\"Wählen Sie die Gebietszuteilung ->  \")","v":"Wählen Sie die Gebietszuteilung ->  "},"   ",null,null,null,null,null,"  grün:  aus Liste wählen",null,"   ",null,null,null,null,null,null,null,null,null,"   "]
[null,"Teil A: Grund- und Kraftfutterverzehr (Bedarf)",null,null,null,null,null,null,null,null,null,null,null,null,null,null,"  gelb:   Daten eingeben",null,"   ",null,null,null,null,null,null,null,null,null,"   "]
[null,null,null,"Raufutterverzehrer",null,"Grund-",{"$f":"IF(U22>0,\"davon\",\"\")","v":""},"Kraftfutter-",null,"Sömmerung",null,null,null,null,null,null,"  weiss (oder weitere Farbe):  Zelle gesperrt bzw. keine Dateneingabe",null,"   ",null,null,null,null,null,"Faktor","Raufutterverzehrer",null,null,"   "]
[null,{"$f":"Suisse_Bilanz_1.17!B15","v":" Tierkategorien"},null,null,"Anzahl","futter-",{"$f":"IF(U22>0,\"Wiesen-  &\",\"\")","v":""},"verzehr",null,null,null,null,null,null,null,null,null,null,"   ",null,"Typ für","GF-Verzehr","Sö-KF","Sö-GF-Korr.","RGVE","RGVE",null,null,"   "]
[null,"  gemäss Suisse-Bilanz",{"$f":"IF(OR(ISNUMBER(E11),ISNUMBER(E12)),\"Milchproduktion\",\"\")","v":""},null,"gemäss","verzehr",{"$f":"IF(U22>0,\"Weidefutter\",\"\")","v":""},"kg FS","dt FS","Anzahl",{"$f":"IF(SUMIF(J11:J19,\">0\")>0,\"Anzahl\",\"\")","v":""},{"$f":"IF(SUMIF(J11:J19,\">0\")>0,\"Sömmerungs-\",\"\")","v":""},{"$f":"IF(SUMIF(J11:J19,\">0\")>0,\"GF-Verzehr\",\"\")","v":""},{"$f":"IF(SUMIF(J11:J19,\">0\")>0,\"Kraftfutter\",\"\")","v":""},{"$f":"IF(COUNT(O11:O19)>0,\"KF-Sömmerung\",\"\")","v":""},"  ","Vorgehen:",null,"   ",null,"Summen-","pro Einheit","kg KF/Einheit","nach KF",null,"Betrieb","Sömmerung","Summe","   "]
[null,null,{"$f":"IF(OR(ISNUMBER(E11),ISNUMBER(E12)),\"kg/Kuh/Jahr\",\"\")","v":""},null,"Suisse-Bil.",{"$f":"Suisse_Bilanz_1.17!K16","v":"dt TS/J."},{"$f":"IF(U22>0,F10,\"\")","v":""},"pro Einh.","total","Tiere",{"$f":"IF(SUMIF(J11:J19,\">0\")>0,\"Tage\",\"\")","v":""},{"$f":"IF(SUMIF(J11:J19,\">0\")>0,\"Tage total\",\"\")","v":""},{"$f":"IF(SUMIF(J11:J19,\">0\")>0,\"dt TS total\",\"\")","v":""},{"$f":"IF(SUMIF(J11:J19,\">0\")>0,\"dt FS total\",\"\")","v":""},{"$f":"IF(COUNT(O11:O19)>0,\"kg KF/Tier-Einheit/Tag\",\"\")","v":""},null,"1. zuerst Suisse-Bilanz ... ausfüllen,  ",null,"   ",null,"bildung","dt TS / Jahr","umger. im Jahr",null,null,null,null,null,"   "]
[null,{"$f":"IF(ISNUMBER(F11),Suisse_Bilanz_1.17!B$16,\"\")","v":""},{"$f":"IF(ISNUMBER(F11),Suisse_Bilanz_1.17!B18,\"\")","v":""},{"$f":"IF(LEFT(U11,2)=\"RV\",\"x\",\"\")","v":""},{"$f":"IF(AND(ISNUMBER(F11),LEFT(B11,7)<>\"GF-Verz\"),Suisse_Bilanz_1.17!F18,\"\")","v":""},{"$f":"IF(AND(ISNUMBER(Suisse_Bilanz_1.17!K18),Suisse_Bilanz_1.17!K18<>0),Suisse_Bilanz_1.17!K18,\"\")","v":""},null,{"$f":"IF(ISNUMBER(F11),Suisse_Bilanz_1.17!E18,\"\")","v":""},{"$f":"IF(ISNUMBER(E11),Suisse_Bilanz_1.17!D18,\"\")","v":""},null,null,{"$f":"IF(AND(D11=\"x\",J11>0),J11*K11,\"\")","v":""},{"$f":"IF(AND(K11>0,ISNUMBER(L11)), (56+0.14*(C11-7500)/100 - 0.003*((C11-7500)/100)^2)*L11/365,\"\")","v":""},null,{"$f":"IF(ISNUMBER(W11),W11/365,\"\")","v":""},null,"                     weil die Futterbilanz mit der Suisse-Bilanz übereinstimmen muss ",null,"   ",null,{"$f":"IF(ISNUMBER(F11),\"RVm\",0)","v":0},{"$f":"IF(ISNUMBER(M11),M11/L11*365,\"\")","v":""},{"$f":"IF(AND(ISNUMBER(L11),L11>0,U11=\"RVm\"),N11*100*365/L11,\"\")","v":""},0,1,{"$f":"IF(D11=\"x\", Y11*E11,0)","v":0},{"$f":"IF(AND(D11=\"x\",ISNUMBER(L11)),Y11*L11/365,0)","v":0},null,"   "]
["ausblenden",null,null,null,null,null,null,null,null,null,null,null,null,null,null,null,null,null,"   ",null,null,null,null,null,null,null,null,null,"   "]
["ausblenden",null,null,null,null,null,null,null,null,null,null,null,null,null,null,null,null,null,"   ",null,null,null,null,"diese Zeile jeweils leeren und ausblenden",null,null,null,null,"   "]
[null,{"$f":"IF(ISNUMBER(F14),Suisse_Bilanz_1.17!B23&\" - \"&Suisse_Bilanz_1.17!D23&\" / \"&Suisse_Bilanz_1.17!E23,\"\")","v":""},null,{"$f":"IF(LEFT(U14,2)=\"RV\",\"x\",\"\")","v":""},{"$f":"IF(AND(ISNUMBER(F14),LEFT(B14,7)<>\"GF-Verz\"),Suisse_Bilanz_1.17!F23,\"\")","v":""},{"$f":"IF(AND(ISNUMBER(Suisse_Bilanz_1.17!K23),Suisse_Bilanz_1.17!K23<>0),Suisse_Bilanz_1.17!K23,\"\")","v":""},null,{"$f":"IF(AND(D14=\"x\",E14>0,E14<1000000),I14*100/E14,\"\")","v":""},null,null,null,{"$f":"IF(AND(D14=\"x\",E14>0,J14>0),J14*K14,\"\")","v":""},{"$f":"IF(AND(ISNUMBER(J14),K14>0,ISNUMBER(L14)),V14*L14/365,\"\")","v":""},null,{"$f":"IF(ISNUMBER(W14),ROUND(W14/365,1),\"\")","v":""},null,null,null,"   ",null,{"$f":"IF(ISNUMBER(F14),\"RV\",0)","v":0},{"$f":"IF(ISNUMBER(E14),F14/E14,\"\")","v":""},{"$f":"IF(AND(ISNUMBER(L14),L14>0,U14=\"RVm\"),N14*100*365/L14,\"\")","v":""},null,0.33100000000000002,{"$f":"IF(D14=\"x\", Y14*E14,0)","v":0},{"$f":"IF(AND(D14=\"x\",ISNUMBER(L14)),Y14*L14/365,0)","v":0},null,"   "]
[null,{"$f":"IF(ISNUMBER(F15),Suisse_Bilanz_1.17!B24,\"\")","v":""},null,"",{"$f":"IF(AND(ISNUMBER(F15),LEFT(B15,7)<>\"GF-Verz\"),Suisse_Bilanz_1.17!F24,\"\")","v":""},{"$f":"IF(AND(ISNUMBER(Suisse_Bilanz_1.17!K24),Suisse_Bilanz_1.17!K24<>0),Suisse_Bilanz_1.17!K24,\"\")","v":""},null,{"$f":"IF(AND(D15=\"x\",E15>0),I15*100/E15,\"\")","v":""},null,null,null,"","",null,"",null,"2. \"Gebietszuteilung\" auswählen",null,"   ",null,{"$f":"VLOOKUP($B15,Daten!$F$248:$Q$345,12,FALSE)","v":0},{"$f":"VLOOKUP(Suisse_Bilanz_1.17!A24,Daten!$E$248:$L$345,4,FALSE)","v":0},"",null,{"$f":"VLOOKUP(Suisse_Bilanz_1.17!B24,Daten!$F$248:$S$345,11,FALSE)","v":0},0,0,null,"   "]
[null,{"$f":"IF(ISNUMBER(F16),Suisse_Bilanz_1.17!B25,\"\")","v":""},null,"",{"$f":"IF(AND(ISNUMBER(F16),LEFT(B16,7)<>\"GF-Verz\"),Suisse_Bilanz_1.17!F25,\"\")","v":""},{"$f":"IF(AND(ISNUMBER(Suisse_Bilanz_1.17!K25),Suisse_Bilanz_1.17!K25<>0),Suisse_Bilanz_1.17!K25,\"\")","v":""},null,"",null,null,null,"","",null,"",null,"3. Teil A: Grund- und Kraftfutterverzehr",null,"   ",null,{"$f":"VLOOKUP($B16,Daten!$F$248:$Q$345,12,FALSE)","v":0},{"$f":"VLOOKUP(Suisse_Bilanz_1.17!A25,Daten!$E$248:$L$345,4,FALSE)","v":0},"",null,{"$f":"VLOOKUP(Suisse_Bilanz_1.17!B25,Daten!$F$248:$S$345,11,FALSE)","v":0},0,0,null,"   "]
[null,{"$f":"IF(ISNUMBER(F17),Suisse_Bilanz_1.17!B26,\"\")","v":""},null,"",{"$f":"IF(AND(ISNUMBER(F17),LEFT(B17,7)<>\"GF-Verz\"),Suisse_Bilanz_1.17!F26,\"\")","v":""},{"$f":"IF(AND(ISNUMBER(Suisse_Bilanz_1.17!K26),Suisse_Bilanz_1.17!K26<>0),Suisse_Bilanz_1.17!K26,\"\")","v":""},null,"",null,null,null,"","",null,"",null,"    - Alle Tierarten mit Grundfutterverzehr erscheinen aufgelistet ab Blatt Suisse_Bilanz_...",null,"   ",null,{"$f":"VLOOKUP($B17,Daten!$F$248:$Q$345,12,FALSE)","v":0},{"$f":"VLOOKUP(Suisse_Bilanz_1.17!A26,Daten!$E$248:$L$345,4,FALSE)","v":0},"",null,{"$f":"VLOOKUP(Suisse_Bilanz_1.17!B26,Daten!$F$248:$S$345,11,FALSE)","v":0},0,0,null,"   "]
[null,{"$f":"IF(ISNUMBER(F18),Suisse_Bilanz_1.17!B27,\"\")","v":""},null,"",{"$f":"IF(AND(ISNUMBER(F18),LEFT(B18,7)<>\"GF-Verz\"),Suisse_Bilanz_1.17!F27,\"\")","v":""},{"$f":"IF(AND(ISNUMBER(Suisse_Bilanz_1.17!K27),Suisse_Bilanz_1.17!K27<>0),Suisse_Bilanz_1.17!K27,\"\")","v":""},null,"",null,null,null,"","",null,"",null,"    - pro Tierkategorie Kraftfutter pro Jahr erfassen in dt Frischsubstanz (= Total Kraftfutterverzehr ",null,"   ",null,{"$f":"VLOOKUP($B18,Daten!$F$248:$Q$345,12,FALSE)","v":0},{"$f":"VLOOKUP(Suisse_Bilanz_1.17!A27,Daten!$E$248:$L$345,4,FALSE)","v":0},"",null,{"$f":"VLOOKUP(Suisse_Bilanz_1.17!B27,Daten!$F$248:$S$345,11,FALSE)","v":0},0,0,null,"   "]
[null,{"$f":"IF(ISNUMBER(F19),Suisse_Bilanz_1.17!B28,\"\")","v":""},null,"",{"$f":"IF(AND(ISNUMBER(F19),LEFT(B19,7)<>\"GF-Verz\"),Suisse_Bilanz_1.17!F28,\"\")","v":""},{"$f":"IF(AND(ISNUMBER(Suisse_Bilanz_1.17!K28),Suisse_Bilanz_1.17!K28<>0),Suisse_Bilanz_1.17!K28,\"\")","v":""},null,"",null,null,null,"","",null,"",null,"                                                                                            auf dem Ganzjahresbetrieb) ",null,"   ",null,{"$f":"VLOOKUP($B19,Daten!$F$248:$Q$345,12,FALSE)","v":0},{"$f":"VLOOKUP(Suisse_Bilanz_1.17!A28,Daten!$E$248:$L$345,4,FALSE)","v":0},"",null,{"$f":"VLOOKUP(Suisse_Bilanz_1.17!B28,Daten!$F$248:$S$345,11,FALSE)","v":0},0,0,null,"   "]
[null,"                      Total alle Tiere",null,null,"A1:",{"$f":"SUM(F11:F19)","v":0},null,null,null,null,null,null,null,null,null,null,"    - Sömmerung: Anzahl zur Sömmerung gegebene Tiere und die Anz. Tage erfassen",null,"   ",null,null,null,null,null,null,null,null,null,"   "]
[null,"davon:",null,null,"Raufutterverzehrer (x) A2:",{"$f":"SUMIF(U11:U19,U21,F11:F19)","v":0},null,"A4:",{"$f":"SUMIF(U11:U19,U21,I11:I19)","v":0},null,null,"A6:",{"$f":"SUMIF(U11:U19,U21,M11:M19)","v":0},{"$f":"SUMIF(U11:U19,\"RVm\",N11:N19)","v":0},null,null,"    - KF-Verzehr während Sömmerung nur möglich für gemolkene Tiere folgender Kategorien: ",null,"   ",null,"RV*",null,null,null,null,{"$f":"SUM(Z11:Z19)","v":0},{"$f":"SUM(AA11:AA19)","v":0},{"$f":"Z21+AA21","v":0},"   "]
[null,null,"   übrige Tiere",null,"A1-A2:",{"$f":"F20-F21","v":0},{"$f":"SUMIF(U14:U19,\"GF\",G14:G19)","v":0},{"$f":"IF(G47>(F21+M21+G31+G32),\" W&W-Futter-Anteil zu gering bzw. bei RV(x) ist W&W-Futter grösser als ihr GF-Verzehr\",\"A3\")","v":"A3"},null,null,null,null,null,null,null,null,"                        Milchkühe, Milchschafe und Ziegen. Effektive Menge eingeben.",null,"   ","GF",{"$f":"COUNTIF(U14:U19,T22)","v":0},null,null,null,null,null,null,null,"   "]
[null,null,null,null,"Gesamtverzehr Raufutterverzehrer A5: ",{"$f":"F21+I21*0.88","v":0},"dt TS (A2+A4*88%)",null,null,null,null,null,null,null,null,null,"    - Für Grund- und Kraftfutter während der Sömmerung gelten ebenfalls ",null,"   ",null,null,null,null,null,null,null,null,null,"   "]
[null,null,null,null,null,null,null,null,null,null,null,null,null,null,null,null,"        die Definitionen gemäss Anhang 5 DZV.",null,"   ",null,null,null,null,null,null,null,null,null,"   "]
[null,"Teil B: Grundfutterproduktion",null,null,null,"Total Grundfutter",null,"davon","Wiesen + Weiden",null,"übrige Grundfutter",null,"Nebenprodukte",null,null,null,"4. Teil B: Grundfutterproduktion:   Daten gemäss Erfassung im Blatt \"Suisse-Bilanz_...\"",null,"   ",null,null,null,null,null,null,null,null,null,"   "]
[null,"   Mengen gemäss Suisse-Bilanz",null,null,null,null,"dt TS",null,null,"dt TS",null,"dt TS","aus Verarbeitung",null,null,null,"5. Teil C: Zu- und Wegfuhr Grundfutter:    Daten gemäss Erfassung im Blatt \"Suisse-Bilanz_...\"",null,"   ",null,null,null,null,null,null,null,null,null,"   "]
[null,null,null,null,null,"B1:",{"$f":"Suisse_Bilanz_1.17!H72","v":0},null,"B2:",{"$f":"SUM(Suisse_Bilanz_1.17!H60:H63,Suisse_Bilanz_1.17!H66:H71)","v":0},"B3:",{"$f":"SUM(Suisse_Bilanz_1.17!H55:H59,Suisse_Bilanz_1.17!H64:H65)","v":0},"Lebensmittel",null,null,null,"6. Teil D: Futtermengen (dt TS) und -anteile (%) am Futterbedarf ",null,"   ",null,null,null,null,null,null,null,null,null,"   "]
[null,null,null,null,null,null,null,null,null,null,null,null,null,"dt TS",null,null,"    - Abhängig von der Gebietszuteilung wird angezeigt, ob die Mindestanteile an der Ration",null,"   ",null,null,null,null,null,null,null,null,null,"   "]
[null,"Teil C: Zu- und Wegfuhr Grundfutter",null,null,null,"Wegfuhr",{"$f":"J29+L29","v":0},null,"C1:",{"$f":"Suisse_Bilanz_1.17!BO53","v":0},"C2:",{"$f":"Suisse_Bilanz_1.17!BO56","v":0},null,null,null,null,"       erfüllt sind oder nicht. ",null,"   ",null,null,null,null,null,null,null,null,null,"   "]
[null,"   Mengen gemäss Suisse-Bilanz",null,null,null,"Zufuhr",{"$f":"J30+L30+N30","v":0},null,"C3:",{"$f":"Suisse_Bilanz_1.17!BP53","v":0},"C4:",{"$f":"Suisse_Bilanz_1.17!BP56","v":0},"C6:",{"$f":"Suisse_Bilanz_1.17!BP59","v":0},null,null,null,null,"   ",null,null,null,null,null,null,null,null,null,"   "]
[null,null,null,null,null,"Lagerungs- und Krippenverluste  C7:",{"$f":"Suisse_Bilanz_1.17!O46","v":0},null,null,null,"ausserhalb Futterfläche C5:",{"$f":"SUM(Suisse_Bilanz_1.17!O43:O44)","v":0},null,null,null,"  ","Link zum BLW (Informationen, Anforderungen)",null,"   ",null,null,null,null,null,null,null,null,null,"   "]
[null,null,null,null,null,"Fehlerbereich GF-Bilanz  C8:",{"$f":"Suisse_Bilanz_1.17!O47","v":0},null,null,null,null,null,null,null,null,null,"https://www.blw.admin.ch/blw/de/home/instrumente/direktzahlungen/produktionssystembeitraege/beitrag-fuer-graslandbasierte-milch--und-fleischproduktion.html"," ","   ",null,null,null,null,null,null,null,null,null,"   "]
[null,null,null,null,null,null,null,null,null,null,null,null,null,null,null,null,null,null,"   ",null,null,null,null,null,null,null,null,null,"   "]
[null,"Teil D: Futtermengen (dt TS) und -anteile (%) am Futterbedarf der Raufutterverzehrer",null,null,null,null,null,null,null,null,null,null,null,null,null,"  ","Auszug aus der Direktzahlungsverordnung (DZV) Anhang 5, Ziffer 1",null,"   ",null,null,null,null,null,null,null,null,null,"   "]
[null,null,null,null,"Total",null,"Wiesen- und",null,"übriges Grundfutter",null,null,null,"Kraftfutter",null,null,null,"Spezifische Anforderungen des Programms",null,"   ",null,null,null,null,null,null,null,null,null,"   "]
[null,null,null,null,"Futter-Bedarf",null,"Weidefutter",null,"Rau- und Saftfutter",null,"Nebenprodukte aus VL",null,"(Nicht-Grundfutter)",null,null,null,"zur graslandbasierten Milch- und Fleischproduktion (GMF)",null,"   ",null,null,null,null,null,null,null,null,null,"   "]
[null,null,null,null,"A5+A6+A7+C7+C8",null,"B2+A6+C3-C1-A3",null,"B3+C4+C5-C2-A1+A2+A3",null,"C6  (1)",null,"A4+A7 in TS  (2)",null,null,null,"1 Definition der Futtermittel und der Ration",null,"   ",null,null,null,"Anforderungen",null,null,null,null,null,"   "]
[null,null,null,null,"dt","%    ","dt","%    ","dt","%    ","dt","%    ","dt","%    ",null,null,null,null,"   ",null,null,"1)","mind. 90% Grundfutter an der Jahresration",null,null,null,null,null,"   "]
[null,"Gesamtverzehr der Raufutterverzehrer",null,null,{"$f":"F23","v":0},null,null,null,null,null,null,null,null,null,null,null,"1.1  Als Grundfutter für GMF zählen:",null,"   ",null,null,"2)","Talgebiet: mind. 75% Wiesen/Weidefutter an der Jahresration",null,null,null,null,null,"   "]
[null,"[+] Verluste und Fehlerbereich",null,null,{"$f":"SUM(G31:G32)","v":0},null,null,null,null,null,null,null,null,null,null,null,"  1.1.1  Grundfutter nach Artikel 28 LBV",null,null,null,null,null,"Berggebiet: mind. 85% Wiesen/Weidefutter an der Jahresration",null,null,null,null,null,"   "]
[null,"[+] Verzehr während Sömmerung",null,null,{"$f":"M21+N21*0.88","v":0},null,null,null,null,null,null,null,null,null,null,null,"              a. Futter von Grünflächen und Streueflächen: frisch, siliert oder getrocknet",null,"   ",null,null,null,null,null,null,null,null,null,"   "]
[null,"Produktion",null,null,null,null,{"$f":"J27","v":0},null,{"$f":"L27","v":0},null,null,null,null,null,null,null,"                   sowie Stroh ",null,"   ",null,null,null,"Futterart","Gebiet",null,null,null,null,"   "]
[null,"[+] Zufuhr",null,null,null,null,{"$f":"J30","v":0},null,{"$f":"L30+L31","v":0},null,{"$f":"N30","v":0},null,{"$f":"I21*0.88","v":0},null,null,null,"              b. als Futtermittel angebaute Ackerkulturen, bei denen die ganze Pflanze ",null,"   ",null,null,null,"   ","Talgebiet","Berggebiet",null,null,null,"   "]
[null,"[+] Futter während Sömmerung",null,null,null,null,{"$f":"M21","v":0},null,null,null,null,null,{"$f":"N21*0.88","v":0},null,null,null,"                   geerntet wird: frisch siliert oder getrocknet, ohne Maiskolbenschrot",null,"   ",null,null,"2)","Wiesen-/Weidefutter",0.75,0.85,null,null,null,"   "]
[null,"[-] Wegfuhr",null,null,null,null,{"$f":"J29","v":0},null,{"$f":"L29","v":0},null,null,null,null,null,null,null,null,null,"   ",null,null,null,"Übriges GF",0.15,0.05,null,null,null,"   "]
[null,"[-] Grundfutter übrige Tiere",null,null,null,null,{"$f":"-G22","v":0},null,{"$f":"-(F22-G22)","v":0},null,null,null,null,null,"Nebenp.(1)+KF(2)",null,"              c. Chicorée-Wurzeln ",null,"   ",null,null,null,"KF",0.1,0.1,null,null,null,"   "]
[null,"Futtermengen und %Anteile",null,null,{"$f":"SUM(E39:E46)","v":0},1,{"$f":"IF(SUM(G39:G46)<0,\"Fehler\",SUM(G39:G46))","v":0},{"$f":"G47/E47","v":{"$error":"#DIV/0!"}},{"$f":"IF(SUM(I39:I46)<0,\"Fehler\",SUM(I39:I46))","v":0},{"$f":"I47/E47","v":{"$error":"#DIV/0!"}},{"$f":"IF(SUM(K39:K46)<0,\"Fehler\",SUM(K39:K46))","v":0},{"$f":"K47/E47","v":{"$error":"#DIV/0!"}},{"$f":"IF(SUM(M39:M46)<0,\"Fehler\",SUM(M39:M46))","v":0},{"$f":"M47/E47","v":{"$error":"#DIV/0!"}},{"$f":"N47+L47","v":{"$error":"#DIV/0!"}},null,"              d. Rübenblätter und frische Rübennass- und Rübenpressschnitzel",null,"   ",null,null,"1)","GF total",0.9,0.9,null,null,null,"   "]
[]
[null,{"$f":"\"Erforderliche Anteile an der Ration: \"&K5","v":"Erforderliche Anteile an der Ration:    "},null,null,null,null,"≥",{"$f":"IF(K5=\"Talgebiet\",X44,IF(K5=\"Berggebiet\",Y44,\"Gebietszuteilung fehlt\"))","v":"Gebietszuteilung fehlt"},null,null,"Nebenp.(1)+KF(2) ≤",0.15,"≤",0.1,null,null,"              e. frisches Obst ",null,"   ",null,null,null,null,null,null,null,null,null,"   "]
[null,null,null,null,null,"",null,null,null,null,null,null,null,null,null,null,null,null,"   ",null,null,null,null,null,null,null,null,null,"   "]
[null,{"$f":"IF(OR(H51=\"ja\",H51=\"nein\"),\"Erfüllung der erforderlichen Anteile an der Ration\",\"\")","v":""},null,null,null,null,null,{"$f":"IF(LEFT(H49,5)=\"Gebie\", \"Gebietszuteilung vornehmen (weiter oben)\",IF(I47=\"Fehler\",\"Summe 'übriges GF' ist negativ \",IF(AND(ISNUMBER(I47),H47<1.0001, H47>=H49),\"ja\",\"nein\")))","v":"Gebietszuteilung vornehmen (weiter oben)"},null,null,null,{"$f":"IF((L47+N47)<=L49,\"ja\",\"nein, Nebenpr.+Kraftfu. > 15%\")","v":{"$error":"#DIV/0!"}},null,{"$f":"IF(N47<=N49,\"ja\",\"nein\")","v":{"$error":"#DIV/0!"}},null,null,"               f.  unverarbeitete Kartoffeln, einschliesslich Sortierabgang ",null,"   ",null,null,null,null,null,null,null,null,null,"   "]
[null,null,null,null,null,null,null,{"$f":"VLOOKUP(1,X55:Y57,2,FALSE)","v":""},null,null,null,null,null,null,null,null,null,null,"   ",null,null,null,null,null,null,null,null,null,"   "]
[null,"Ort, Datum:",null,null,null,null,null,null,"Unterschrift:",null,null,null,null,null,null,null,"               g. Abgänge und nicht getrocknete oder konzentrierte Nebenprodukte aus der",null,"   ",null,"für Kommentare ",null,null,"Bedingung",null,null,null,null,"   "]
[null,null,null,null,null,null,null,null,null,null,null,null,null,null,null,null,"                      Kartoffel-, Obst- und Gemüseverarbeitung ",null,"   ",null,"Bedingung",null,null,"1= trifft zu","Text, der angezeigt wird: ",null,null,null,"   "]
[null,null,null,null,null,null,null,null,null,null,null,null,null,null,"oder übers Menü: ",null,null,null,"   ",1,"wenn in Suisse-Bilanz GF-Rechnung nicht stimmt",null,null,{"$f":"IF(IFERROR(SEARCH(\"Grundfutter\",Suisse_Bilanz_1.17!H160),0)>0,1,0)","v":0},{"$f":"IF(X55=1,\" Vor dem Drucken zuerst die GF-Rechnung in der Suisse-Bilanz in Ordnung bringen!\",\"\")","v":""},null,null,null,"   "]
[null,null,null,null,null,null,null,null,null,null,null,null,null,null," Datei > Drucken > Seiten …",null,"  1.1.2  für die Rindviehmast: Mischungen aus Spindel und Körnern des Maiskolbens /",null,"   ",2,"wenn W&W > als GF Verzehr",null,null,{"$f":"IF(OR(I47<0,I47=\"Fehler\"),1,0)","v":0},{"$f":"IF(X56=1,\" ev. ist der W&W Anteil bei den übrigen Tieren zu tief eingetragen !\",\"\")","v":""},null,null,null,"   "]
[null,null,null,null,null,null,null,null,null,null,null,null,null,null,null,null,"                                                  Maiskolbenschrot / Maiskolbensilage (Corn-Cob-Mix)",null,"   ",3,"diese Zeile dient dazu, dass kein Fehlerwert angezeigt wird ",null,null,1,{"$f":"IF(X57=1,\"\",\"\")","v":""},null,null,null,"   "]
[null,null,null,null,null,null,null,null,null,null,null,null,null,null,null,null,null,null,"   ",null,null,null,null,null,null,null,null,null,"   "]
[null,"Informationsteil  (Angaben ohne Gewähr)",null,null,null,null,null,null,null,null,null,null,null,null,null,null,null,null,"   ",null,null,null,null,null,null,null,null,null,"   "]
[null,null,null,null,null,null,null,null,null,null,null,null,null,null,null,null,"  1.1.3  Nebenprodukte aus der Verarbeitung von Lebensmitteln",null,null,null,null,null,null,null,null,null,null,null,"   "]
[null,"Die Berechnung der Höhe der Beiträge ist nur eine Schätzung, weil der massgebende Tierbestand",null,null,null,null,null,null,null,null,null,null,null,null,null,null,"               a.  Biertreber frisch, siliert oder getrocknet",null,null,null,null,null,null,null,null,null,null,null,"   "]
[null,"leicht abweichen kann vom hier verwendeten. ",null,null,null,null,null,null,null,null,null,null,null,null,null,null,"               b.  Zuckerrübenschnitzel getrocknet ",null,null,null,null,null,null,null,null,null,null,null,"   "]
[null,{"$f":"IF((COUNTIF(B13:B19,\"Maul*\" )+COUNTIF(B13:B19,\"Ponies*\" )) > 0, \"Insbesondere bei Kleinpferden und Maultieren/Mauleseln kann die GVE-Berechnung hier zu wenig genau erfolgen.\",\"\")","v":""},null,null,null,null,null,null,null,null,null,null,null,null,null,null,"               c.  Nebenprodukte der Trocken- und Schälmüllerei: ",null,null,null,null,null,null,null,null,null,null,null,"   "]
[null,"Flächen- und Zonen-Angaben für die Berechnung des Mindesttierbesatzes:",null,null,null,null,null,null,null,null,null,null,null,null,null,null,"                              Weizenkleie, ",null,null,null,null,null,null,null,null,null,null,null,"   "]
[null,null,null,null,null,null,null,null,null,null,null,null,null,null,null,null,"                              Haferabfallmehl, ",null,"   ",null,null,null,null,null,null,null,null,null,"   "]
[null,null,null,null,"Dauergrünfläche",null,"Dauergrünfläche als BFF",null,null,null,"erford. Mindesttierbesatz RGVE",null,null,null,null,null,"                              Dinkel- und Haferspelzen, ",null,"   ",null,null,null,null,null,null,null,null,null,"   "]
[null,null,null,null,"+ Kunstwiesen",null,"extensive","extensive ","wenig int.","weitere",null,"Anrech.BFF",null,null,null,null,"                              Dinkelspreu und Kornspreuer, ",null,"   ",null,null,null,null,null,null,null,null,null,"   "]
[null,null,null,null,"(ohne BFF)",null,"Wiese","Weide","Wiese",null,null,0.3,null,null,null,null,"                              sowie Gemische davon",null,"   ",null,null,null,null,null,null,null,null,null,"   "]
[null,null,null,null,"ha",null,"ha","ha","ha","ha","/ha","/ha","Betrieb",null,null,null,null,null,"   ",null,null,null,null,null,null,null,null,null,"   "]
[null,null,"Talzone",null,null,null,null,null,null,null,1,{"$f":"K70*$L$68","v":0.3},{"$f":"E70*K70+SUM(G70:J70)*L70","v":0},null,null,null,"1.2 Als Wiesen- und Weidefutter gilt das auf Weideflächen geweidete Futter und das ",null,"   ",null,null,null,null,null,null,null,null,null,"   "]
[null,null,"Hügelzone",null,null,null,null,null,null,null,0.8,0.24,0,null,null,null,"      Erntegut von Dauerwiesen und Kunstwiesen sowie das Erntegut von Zwischen- ",null,"   ",null,null,null,null,null,null,null,null,null,"   "]
[null,null,"Bergzone 1",null,null,null,null,null,null,null,0.7,0.21,0,null,null,null,"      kulturen zu Fütterungszwecken. ",null,"   ",null,null,null,null,null,null,null,null,null,"   "]
[null,null,"Bergzone 2",null,null,null,null,null,null,null,0.6,0.18,0,null,null,null,null,null,"   ",null,null,null,null,null,null,null,null,null,"   "]
[null,null,"Bergzone 3",null,null,null,null,null,null,null,0.5,0.15,0,null,null,null,"1.3 Weitere nicht aufgezählte Futtermittel und Futterkomponenten gelten als Ergänzungsfutter.",null,"   ",null,null,null,null,null,null,null,null,null,"   "]
[null,null,"Bergzone 4",null,null,null,null,null,null,null,0.4,0.12,0,null,null,null,"    zu Ziff. 1.3: Die verfütterte Milch (auch Schotte oder Magermilch oder Milchpulver) bei der Kälberaufzucht ",null,"   ",null,null,null,null,null,null,null,null,null,"   "]
[null,null,"Flächen im Ausland",null,null,null,null,null,null,null,0,0,0,null,null,null,"                        oder -mast wird nicht in die Berechnung einbezogen (Weisung DZV 2023, 14. Nov. 2022).",null,"   ",null,null,null,null,null,null,null,null,null,"   "]
[null,null,"Summe",null,{"$f":"SUM(E70:E76)","v":0},null,{"$f":"SUM(G70:G76)","v":0},{"$f":"SUM(H70:H76)","v":0},{"$f":"SUM(I70:I76)","v":0},{"$f":"SUM(J70:J76)","v":0},null,null,null,null,null,null,null,null,"   ",null,null,null,null,null,null,null,null,null,"   "]
[null,null,"Total Grünfläche",null,null,{"$f":"SUM(E77,G77:J77)","v":0},null,null,null,null,null,null,{"$f":"IF(AND(F80=\"\",K80=\"\"),SUM(M70:M76),\"\")","v":0},null,null,null,"1.4 Liegt bei einem Futtermittel der Anteil an Grundfutter über 20 Prozent, so muss",null,"   ",null,null,null,null,null,null,null,null,null,"   "]
[null,null,"Angabe in Suisse-Bilanz",null,null,{"$f":"SUM(Suisse_Bilanz_1.17!F66:F71,Suisse_Bilanz_1.17!F62:F63)","v":0},{"$f":"Suisse_Bilanz_1.17!F66","v":0},{"$f":"Suisse_Bilanz_1.17!F68","v":0},{"$f":"Suisse_Bilanz_1.17!F69","v":0},{"$f":"IF(J77>Suisse_Bilanz_1.17!F67,\"   weitere BFF  >  'übrige Wiesen mit Düngeverbot' in SB\",\"\")","v":""},null,null,null,null,null,null,"      der Anteil Grundfutter in der Grundfutterbilanz eingerechnet werden. ",null,"   ",null,null,null,null,null,null,null,null,null,"   "]
[null,null,{"$f":"IF(AND(ABS(SUM(E80:I80))<0.005, J80=\"\" ),\"\",\"Abweichung\")","v":""},null,{"$f":"IF(AND(E77<SUM(Suisse_Bilanz_1.17!F70:F71,Suisse_Bilanz_1.17!F62:F63,-0.0049),F80=\"\"),\"ev . ?\",\"\")","v":""},{"$f":"IF(ABS(F78-F79)>0.0049,F78-F79,\"\")","v":""},{"$f":"IF(ABS(G77-G79)<0.005,\"\",G77-G79)","v":""},{"$f":"IF(ABS(H77-H79)<0.005,\"\",H77-H79)","v":""},{"$f":"IF(ABS(I77-I79)<0.005,\"\",I77-I79)","v":""},{"$f":"IF(J77>Suisse_Bilanz_1.17!F67,\"ev. ?\",\"\")","v":""},{"$f":"IF(AND(G80=\"\",H80=\"\",I80=\"\"),\"\",\" ''BFF-Fläche'' weicht von Angabe in Suisse-Bilanz ab -> korrigieren\")","v":""},null,null,null,null,null,null,null,"   ",null,null,null,null,null,null,null,null,null,"   "]
[null,null,null,null,null,{"$f":"IF(OR(F80=\"\",OR(G80<>\"\",H80<>\"\",I80<>\"\")),\"\",\"''Total Grünfläche'' weicht vom Total Grünfläche der Suisse-Bilanz ab  ->  korrigieren\")","v":""},null,null,null,null,null,null,null,null,null,null,"1.5 Die Jahresration pro Tier entspricht dem gesamten TS-Verzehr innerhalb eines Jahres.",null,"   ",null,null,null,null,null,null,null,null,null,"   "]
[null,null,null,null,null,null,null,null,null,null,null,null,null,null,null,null,null,null,"   ",null,null,null,null,null,null,null,null,null,"   "]
[null,null,null,null,null,null,null,"RGVE",null,"RGVE/ha Grünfläche",null,null,null,null,null,null,"1.6 Die Produkte nach Ziffer 1.1.3 sind insgesamt bis zu maximal 5 Prozent der Gesamtration",null,"   ",null,null,null,null,null,null,null,null,null,"   "]
[null,"Erforderlicher Mindesttierbesatz für 100 % der GMF-Beiträge",null,null,null,null,null,{"$f":"IF(M78>0,M78,\"\")","v":""},null,{"$f":"IF(H84<>\"\",M78/F79,\"\")","v":""},null,null,null,null,null,null,"       als Grudfutter anrechenbar. ",null,"   ",null,null,null,null,null,null,null,null,null,"   "]
[null,"Vorhandene Raufutterverzehrer (inkl. Sömmerung) ",null,null,null,null,null,{"$f":"AB21","v":0},null,{"$f":"H85/F79","v":{"$error":"#DIV/0!"}},null,null,null,null,null,null,"    zu Ziff. 1.6: Der Anteil der Nebenprodukte nach Ziffer 1.1.3 und der Ergänzungsfutter nach Ziffer 1.3 darf insgesamt",null,"   ",null,null,null,null,null,null,null,null,null,"   "]
[null,null,null,null,null,null,null,null,"Erfüllung des Mindesttierbesatzes (max. möglicher Anteil der GMF-Beiträge)",{"$f":"IF(H84<>\"\",MIN(J85/J84,1),\"\")","v":""},null,null,null,null,null,null,"                         nicht mehr als 15 Prozent der Gesamtration überschreiten, wobei die Ergänzungsfutter nach Ziffer 1.3 ",null,"   ","   ","   ","   ","   ","   ","   ","   ",null,null,"   "]
[null,null,null,null,null,null,null,null,null,null,null,null,null,null,null,null,"                         höchstens 10 Prozent der Gesamtration betragen dürfen. ",null,"   "]
[null,"Anteile an der Jahresration",null,null,"Mindest-","effektive","Erfüllung",null,null,null,null,null,null,null,null,null,null,null,"   "]
[null,null,null,null,"Anteile","Anteile",null,null,null,null,null,null,null,null,null,null,"3.3 Die TS-Erträge für Wiesen und Weiden gemäss Tab. 3 der Wegleitung zur «Suisse-Bilanz»",null,"   "]
[null,"  - Grundfutter",null,null,0.9,{"$f":"H47+J47","v":{"$error":"#DIV/0!"}},{"$f":"N51","v":{"$error":"#DIV/0!"}},null,null,null,null,null,null,null,null,null,"       gelten als Maximalwerte für die Futterbilanz. Werden höhere Erträge geltend gemacht, so",null,"   "]
[null,"  - Wiesen- und Weidefutter",null,null,{"$f":"H49","v":"Gebietszuteilung fehlt"},{"$f":"H47","v":{"$error":"#DIV/0!"}},{"$f":"H51","v":"Gebietszuteilung vornehmen (weiter oben)"},null,null,null,null,null,null,null,null,null,"       sind diese mit einer Ertragsschätzung nachzuweisen. Der Kanton kann nicht plausible",null,"   "]
[null,null,null,null,null,null,null,null,null,null,null,null,null,null,null,null,"       Ertragsschätzungen zurückweisen. Der Gesuchsteller oder die Gesuchstellerin muss die Plausibilität ",null,"   "]
[null,null,null,null,null,null," ->   ",{"$f":"IF(AND(G90=\"ja\",G91=\"ja\",J86>0),ROUND(J86*100,1) &\"% der GMF-Beiträge\",\"keine GMF-Beiträge\")","v":{"$error":"#DIV/0!"}},null,null,null,null,null,null,null,null,"       seiner Ertragsschätzungen auf Verlangen des Kantons zu seinen Lasten belegen. ",null,"   "]
[null,null,null,null,null,null," ->   ",{"$f":"IF(AND(G90=\"ja\",G91=\"ja\",J86>0),J86*200,\"\")","v":{"$error":"#DIV/0!"}},"CHF / ha Grünfläche (bei 100% = 200 CHF)",null,null,null,null,null,null,null,null,null,"   "]
[null,null,null,null,null,null,"rund",{"$f":"IF(ISNUMBER(H94),ROUNDDOWN(F79*H94,-1),\"\")","v":""},{"$f":"\"CHF total (bei \"&ROUND(F79,2)&\" ha beitragsberechtigter Grünfläche)\"","v":"CHF total (bei 0 ha beitragsberechtigter Grünfläche)"},null,null,null,null,null,null,null,"3.4 Von der Berechnung der Futterbilanz befreit sind Betriebe, die ausschliesslich",null,"   "]
[null,null,null,null,null,null,null,null,null,null,null,null,null,null,null,null,"        betriebseigenes Wiesen- und Weidefutter nach Ziffer 1.2 verfüttern.",null,"   "]
[null,null,null,null,null,null,null,null,null,null,null,null,null,null,null,null,null,null,"   "]
[null,null,null,null,null,null,null,null,null,null,null,null,null,null,null,null,"4.1 Für die abgeschlossenen Futterbilanzen gilt eine Aufbewahrungspflicht von sechs Jahren.",null,"   "]
[null,null,null,null,null,null,null,null,null,null,null,null,null,null,null,null,"       Die Kantone bestimmen, in welcher Form die Futterbilanz zu Plausibilisierungszwecken ",null,"   "]
[null,null,null,null,null,null,null,null,null,null,null,null,null,null,null,null,"       eingereicht werden muss. ",null,"   "]
[null,null,null,null,null,null,null,null,null,null,null,null,null,null,null,null,null,null,"   "]
[null,null,null,null,null,null,null,null,null,null,null,null,null,null,null,null," -> massgebend ist die Direktzahlungsverordnung (DZV)",null,"   "]
[null,null,null,null,null,null,null,null,null,null,null,null,null,null,null,null,"https://www.blw.admin.ch/blw/de/home/instrumente/direktzahlungen/produktionssystembeitraege/beitrag-fuer-graslandbasierte-milch--und-fleischproduktion.html",null,"   "]
[null,null,null,null,null,null,null,null,null,null,null,null,null,null,null,"   ","  ","   ","   "]

{"sheet":"Lineare Korrektur","index":4,"n_rows":60,"n_cols":31,"rows_kept":60,"cut":false,"hidden":false,"merged":[[1,15,1,16],[5,5,5,8],[4,17,4,20],[5,10,5,12],[4,13,4,14],[5,15,5,16],[37,6,37,7],[34,8,34,9],[35,8,35,9],[6,17,6,18],[33,6,33,7],[34,6,34,7],[35,6,35,7],[36,6,36,7],[6,19,6,20],[5,13,5,14],[6,13,6,14],[42,10,42,12],[42,8,42,9],[33,10,33,12],[36,8,36,9],[37,8,37,9]]}
[null,null,{"$f":"\"Suisse-Bilanz \"&Suisse_Bilanz_1.17!K8","v":"Suisse-Bilanz 2023"},null,null,null,null,null,{"$f":"Suisse_Bilanz_1.17!C8&IF(Suisse_Bilanz_1.17!I8<>0,\"      Nr. \"&Suisse_Bilanz_1.17!I8,\"\")","v":" "}]
[null,null,"Lineare Korrektur nach Futtergehalten (LK)",null,null,null,null,null,{"$f":"Suisse_Bilanz_1.17!C9","v":0},null,null,null,null,null,null,{"$f":"Suisse_Bilanz_1.17!O8","v":"2023-02-14"},null,null,null,null,null,null,null,null,null,null,null,null,null,null,"Bundesamt für Landwirtschaft"]
[null,"                           Berechnung nach Modul 6 (Auflage 1.3, April 2010)","Berechnung nach Zusatzmodul 6 (Auflage 1.12, Weisungen zur Berücksichtigung von nährstoffreduziertem Futter in der Suisse-Bilanz)"]
[]
[null,null,null,null,null,null,null,null,null,null,null,null,null,"Änderung Anfall",null,null,null,"Tiefstwerte"]
[null,null,null,null,null,"Nährstoffanfall",null,null,null,null,"Futtergehalte",null,null," - pro g Gehalt",null,"Vgl. Futter",null,null,null,null,null,null,null,null,null,null,null,null,null,null,"agriidea"]
[null,null,"Tiere: Grundfutterbedarf und Nährstoffanfall","Einheit","GF-Verz.","Nges","P2O5","K2O","Mg",null,"MJ","RP","P","- im Vgl. zu Standard",null,"RP","P","kg / Jahr / Einheit",null," im Vgl. zur Norm"]
[null," Abkürz.","  Tierkategorie",null,"dt TS/Jahr","kg pro Jahr",null,null,null,null,"MJ/kg","g/kg","g/kg","N","P2O5","g/kg","g/kg","Nges","P2O5","Nges","P2O5"]
[]
["Standard",{"$f":"IF(ISBLANK(C10),\"\",VLOOKUP(C10,Daten!$B$291:$E$306,4,FALSE))","v":""},null,{"$f":"IF(ISBLANK(C10),\"\",VLOOKUP(B10,Daten!$E$248:$L$345,3,FALSE))","v":""},{"$f":"IF(ISBLANK(C10),\"\",VLOOKUP(B10,Daten!$E$248:$L$345,4,FALSE))","v":""},{"$f":"IF(ISBLANK(C10),\"\",VLOOKUP(B10,Daten!$E$248:$L$345,5,FALSE))","v":""},{"$f":"IF(ISBLANK(C10),\"\",VLOOKUP(B10,Daten!$E$248:$L$345,6,FALSE))","v":""},{"$f":"IF(ISBLANK(C10),\"\",VLOOKUP(B10,Daten!$E$248:$L$345,7,FALSE))","v":""},{"$f":"IF(ISBLANK(C10),\"\",VLOOKUP(B10,Daten!$E$248:$L$345,8,FALSE))","v":""},null,{"$f":"IF(ISBLANK(C10),\"\",VLOOKUP(B10,Daten!$E$248:$X$345,14,FALSE))","v":""},{"$f":"IF(ISBLANK(C10),\"\",VLOOKUP(B10,Daten!$E$248:$X$345,15,FALSE))","v":""},{"$f":"IF(ISBLANK(C10),\"\",VLOOKUP(B10,Daten!$E$248:$X$345,16,FALSE))","v":""},{"$f":"IF(ISBLANK(C10),\"\",VLOOKUP(B10,Daten!$E$248:$X$345,17,FALSE))","v":""},{"$f":"IF(ISBLANK(C10),\"\",VLOOKUP(B10,Daten!$E$248:$X$345,18,FALSE))","v":""},null,null,{"$f":"IF(ISBLANK(C10),\"\",VLOOKUP(B10,Daten!$E$248:$X$345,19,FALSE))","v":""},{"$f":"IF(ISBLANK(C10),\"\",VLOOKUP(B10,Daten!$E$248:$X$345,20,FALSE))","v":""},{"$f":"(R10/F10)-1","v":{"$error":"#VALUE!"}},{"$f":"(S10/G10)-1","v":{"$error":"#VALUE!"}}]
["korrigiert (1)",{"$f":"IF(ISBLANK(C10),\"\",\"lk1\")","v":""},{"$f":"IF(B11=\"\",\"\",IF(AND(ISNUMBER(K11*L11*M11),K11<>\"\"),ROUND(K11,2)&\" MJ \"&ROUND(L11,2)&\" RP \"&ROUND(M11,2)&\" P: \"&VLOOKUP(B10,Daten!$E$248:$L$345,2,FALSE),IF(B10=\"zsp\",\"mittlere Futtergehalte unten berechnen + rechts eingeben\", \"mittlere Futtergehalte weiter rechts eingeben!\")))","v":""},{"$f":"D10","v":""},{"$f":"E10","v":""},{"$f":"IF((L11+M11)=0,\"\",IF(K11*L11>0,F10*(1+N11),F10))","v":""},{"$f":"IF((L11+M11)=0,\"\",IF(K11*M11>0,G10*(1+O11),G10))","v":""},{"$f":"IF(ISNUMBER(F11),H10,\"\")","v":""},{"$f":"IF(ISNUMBER(F11),I10,\"\")","v":""},null,null,null,null,{"$f":"IF(ISNUMBER(P11),IF((P11-L10)*N10<T10,T10,(P11-L10)*N10),\"\")","v":""},{"$f":"IF(ISNUMBER(Q11),IF((Q11-M10)*O10<U10,U10,(Q11-M10)*O10),\"\")","v":""},{"$f":"IF(AND(K11>0,L11>0),L11/K11*K10,\"\")","v":""},{"$f":"IF(AND(K11>0,M11>0),M11/K11*K10,\"\")","v":""}]
[null," "]
["Standard",{"$f":"IF(ISBLANK(C13),\"\",VLOOKUP(C13,Daten!$B$291:$E$306,4,FALSE))","v":""},null,{"$f":"IF(ISBLANK(C13),\"\",VLOOKUP(B13,Daten!$E$248:$L$345,3,FALSE))","v":""},{"$f":"IF(ISBLANK(C13),\"\",VLOOKUP(B13,Daten!$E$248:$L$345,4,FALSE))","v":""},{"$f":"IF(ISBLANK(C13),\"\",VLOOKUP(B13,Daten!$E$248:$L$345,5,FALSE))","v":""},{"$f":"IF(ISBLANK(C13),\"\",VLOOKUP(B13,Daten!$E$248:$L$345,6,FALSE))","v":""},{"$f":"IF(ISBLANK(C13),\"\",VLOOKUP(B13,Daten!$E$248:$L$345,7,FALSE))","v":""},{"$f":"IF(ISBLANK(C13),\"\",VLOOKUP(B13,Daten!$E$248:$L$345,8,FALSE))","v":""},null,{"$f":"IF(ISBLANK(C13),\"\",VLOOKUP(B13,Daten!$E$248:$X$345,14,FALSE))","v":""},{"$f":"IF(ISBLANK(C13),\"\",VLOOKUP(B13,Daten!$E$248:$X$345,15,FALSE))","v":""},{"$f":"IF(ISBLANK(C13),\"\",VLOOKUP(B13,Daten!$E$248:$X$345,16,FALSE))","v":""},{"$f":"IF(ISBLANK(C13),\"\",VLOOKUP(B13,Daten!$E$248:$X$345,17,FALSE))","v":""},{"$f":"IF(ISBLANK(C13),\"\",VLOOKUP(B13,Daten!$E$248:$X$345,18,FALSE))","v":""},null,null,{"$f":"IF(ISBLANK(C13),\"\",VLOOKUP(B13,Daten!$E$248:$X$345,19,FALSE))","v":""},{"$f":"IF(ISBLANK(C13),\"\",VLOOKUP(B13,Daten!$E$248:$X$345,20,FALSE))","v":""},{"$f":"(R13/F13)-1","v":{"$error":"#VALUE!"}},{"$f":"(S13/G13)-1","v":{"$error":"#VALUE!"}}]
["korrigiert (2)",{"$f":"IF(ISBLANK(C13),\"\",\"lk2\")","v":""},{"$f":"IF(B14=\"\",\"\",IF(AND(ISNUMBER(K14*L14*M14),K14<>\"\"),ROUND(K14,2)&\" MJ \"&ROUND(L14,2)&\" RP \"&ROUND(M14,2)&\" P: \"&VLOOKUP(B13,Daten!$E$248:$L$345,2,FALSE),IF(B13=\"zsp\",\"mittlere Futtergehalte unten berechnen + rechts eingeben\", \"mittlere Futtergehalte weiter rechts eingeben!\")))","v":""},{"$f":"D13","v":""},{"$f":"E13","v":""},{"$f":"IF((L14+M14)=0,\"\",IF(K14*L14>0,F13*(1+N14),F13))","v":""},{"$f":"IF((L14+M14)=0,\"\",IF(K14*M14>0,G13*(1+O14),G13))","v":""},{"$f":"IF(ISNUMBER(F14),H13,\"\")","v":""},{"$f":"IF(ISNUMBER(F14),I13,\"\")","v":""},null,null,null,null,{"$f":"IF(ISNUMBER(P14),IF((P14-L13)*N13<T13,T13,(P14-L13)*N13),\"\")","v":""},{"$f":"IF(ISNUMBER(Q14),IF((Q14-M13)*O13<U13,U13,(Q14-M13)*O13),\"\")","v":""},{"$f":"IF(AND(K14>0,L14>0),L14/K14*K13,\"\")","v":""},{"$f":"IF(AND(K14>0,M14>0),M14/K14*K13,\"\")","v":""}]
[null," "]
["Standard",{"$f":"IF(ISBLANK(C16),\"\",VLOOKUP(C16,Daten!$B$291:$E$306,4,FALSE))","v":""},null,{"$f":"IF(ISBLANK(C16),\"\",VLOOKUP(B16,Daten!$E$248:$L$345,3,FALSE))","v":""},{"$f":"IF(ISBLANK(C16),\"\",VLOOKUP(B16,Daten!$E$248:$L$345,4,FALSE))","v":""},{"$f":"IF(ISBLANK(C16),\"\",VLOOKUP(B16,Daten!$E$248:$L$345,5,FALSE))","v":""},{"$f":"IF(ISBLANK(C16),\"\",VLOOKUP(B16,Daten!$E$248:$L$345,6,FALSE))","v":""},{"$f":"IF(ISBLANK(C16),\"\",VLOOKUP(B16,Daten!$E$248:$L$345,7,FALSE))","v":""},{"$f":"IF(ISBLANK(C16),\"\",VLOOKUP(B16,Daten!$E$248:$L$345,8,FALSE))","v":""},null,{"$f":"IF(ISBLANK(C16),\"\",VLOOKUP(B16,Daten!$E$248:$X$345,14,FALSE))","v":""},{"$f":"IF(ISBLANK(C16),\"\",VLOOKUP(B16,Daten!$E$248:$X$345,15,FALSE))","v":""},{"$f":"IF(ISBLANK(C16),\"\",VLOOKUP(B16,Daten!$E$248:$X$345,16,FALSE))","v":""},{"$f":"IF(ISBLANK(C16),\"\",VLOOKUP(B16,Daten!$E$248:$X$345,17,FALSE))","v":""},{"$f":"IF(ISBLANK(C16),\"\",VLOOKUP(B16,Daten!$E$248:$X$345,18,FALSE))","v":""},null,null,{"$f":"IF(ISBLANK(C16),\"\",VLOOKUP(B16,Daten!$E$248:$X$345,19,FALSE))","v":""},{"$f":"IF(ISBLANK(C16),\"\",VLOOKUP(B16,Daten!$E$248:$X$345,20,FALSE))","v":""},{"$f":"(R16/F16)-1","v":{"$error":"#VALUE!"}},{"$f":"(S16/G16)-1","v":{"$error":"#VALUE!"}}]
["korrigiert (3)",{"$f":"IF(ISBLANK(C16),\"\",\"lk3\")","v":""},{"$f":"IF(B17=\"\",\"\",IF(AND(ISNUMBER(K17*L17*M17),K17<>\"\"),ROUND(K17,2)&\" MJ \"&ROUND(L17,2)&\" RP \"&ROUND(M17,2)&\" P: \"&VLOOKUP(B16,Daten!$E$248:$L$345,2,FALSE),IF(B16=\"zsp\",\"mittlere Futtergehalte unten berechnen + rechts eingeben\", \"mittlere Futtergehalte weiter rechts eingeben !\")))","v":""},{"$f":"D16","v":""},{"$f":"E16","v":""},{"$f":"IF((L17+M17)=0,\"\",IF(K17*L17>0,F16*(1+N17),F16))","v":""},{"$f":"IF((L17+M17)=0,\"\",IF(K17*M17>0,G16*(1+O17),G16))","v":""},{"$f":"IF(ISNUMBER(F17),H16,\"\")","v":""},{"$f":"IF(ISNUMBER(F17),I16,\"\")","v":""},null,null,null,null,{"$f":"IF(ISNUMBER(P17),IF((P17-L16)*N16<T16,T16,(P17-L16)*N16),\"\")","v":""},{"$f":"IF(ISNUMBER(Q17),IF((Q17-M16)*O16<U16,U16,(Q17-M16)*O16),\"\")","v":""},{"$f":"IF(AND(K17>0,L17>0),L17/K17*K16,\"\")","v":""},{"$f":"IF(AND(K17>0,M17>0),M17/K17*K16,\"\")","v":""}]
[null," "]
["Standard",{"$f":"IF(ISBLANK(C19),\"\",VLOOKUP(C19,Daten!$B$291:$E$306,4,FALSE))","v":""},null,{"$f":"IF(ISBLANK(C19),\"\",VLOOKUP(B19,Daten!$E$248:$L$345,3,FALSE))","v":""},{"$f":"IF(ISBLANK(C19),\"\",VLOOKUP(B19,Daten!$E$248:$L$345,4,FALSE))","v":""},{"$f":"IF(ISBLANK(C19),\"\",VLOOKUP(B19,Daten!$E$248:$L$345,5,FALSE))","v":""},{"$f":"IF(ISBLANK(C19),\"\",VLOOKUP(B19,Daten!$E$248:$L$345,6,FALSE))","v":""},{"$f":"IF(ISBLANK(C19),\"\",VLOOKUP(B19,Daten!$E$248:$L$345,7,FALSE))","v":""},{"$f":"IF(ISBLANK(C19),\"\",VLOOKUP(B19,Daten!$E$248:$L$345,8,FALSE))","v":""},null,{"$f":"IF(ISBLANK(C19),\"\",VLOOKUP(B19,Daten!$E$248:$X$345,14,FALSE))","v":""},{"$f":"IF(ISBLANK(C19),\"\",VLOOKUP(B19,Daten!$E$248:$X$345,15,FALSE))","v":""},{"$f":"IF(ISBLANK(C19),\"\",VLOOKUP(B19,Daten!$E$248:$X$345,16,FALSE))","v":""},{"$f":"IF(ISBLANK(C19),\"\",VLOOKUP(B19,Daten!$E$248:$X$345,17,FALSE))","v":""},{"$f":"IF(ISBLANK(C19),\"\",VLOOKUP(B19,Daten!$E$248:$X$345,18,FALSE))","v":""},null,null,{"$f":"IF(ISBLANK(C19),\"\",VLOOKUP(B19,Daten!$E$248:$X$345,19,FALSE))","v":""},{"$f":"IF(ISBLANK(C19),\"\",VLOOKUP(B19,Daten!$E$248:$X$345,20,FALSE))","v":""},{"$f":"(R19/F19)-1","v":{"$error":"#VALUE!"}},{"$f":"(S19/G19)-1","v":{"$error":"#VALUE!"}}]
["korrigiert (4)",{"$f":"IF(ISBLANK(C19),\"\",\"lk4\")","v":""},{"$f":"IF(B20=\"\",\"\",IF(AND(ISNUMBER(K20*L20*M20),K20<>\"\"),ROUND(K20,2)&\" MJ \"&ROUND(L20,2)&\" RP \"&ROUND(M20,2)&\" P: \"&VLOOKUP(B19,Daten!$E$248:$L$345,2,FALSE),IF(B19=\"zsp\",\"mittlere Futtergehalte unten berechnen + rechts eingeben\", \"mittlere Futtergehalte weiter rechts eingeben!\")))","v":""},{"$f":"D19","v":""},{"$f":"E19","v":""},{"$f":"IF((L20+M20)=0,\"\",IF(K20*L20>0,F19*(1+N20),F19))","v":""},{"$f":"IF((L20+M20)=0,\"\",IF(K20*M20>0,G19*(1+O20),G19))","v":""},{"$f":"IF(ISNUMBER(F20),H19,\"\")","v":""},{"$f":"IF(ISNUMBER(F20),I19,\"\")","v":""},null,null,null,null,{"$f":"IF(ISNUMBER(P20),IF((P20-L19)*N19<T19,T19,(P20-L19)*N19),\"\")","v":""},{"$f":"IF(ISNUMBER(Q20),IF((Q20-M19)*O19<U19,U19,(Q20-M19)*O19),\"\")","v":""},{"$f":"IF(AND(K20>0,L20>0),L20/K20*K19,\"\")","v":""},{"$f":"IF(AND(K20>0,M20>0),M20/K20*K19,\"\")","v":""}]
[null," "]
["Standard",{"$f":"IF(ISBLANK(C22),\"\",VLOOKUP(C22,Daten!$B$291:$E$306,4,FALSE))","v":""},null,{"$f":"IF(ISBLANK(C22),\"\",VLOOKUP(B22,Daten!$E$248:$L$345,3,FALSE))","v":""},{"$f":"IF(ISBLANK(C22),\"\",VLOOKUP(B22,Daten!$E$248:$L$345,4,FALSE))","v":""},{"$f":"IF(ISBLANK(C22),\"\",VLOOKUP(B22,Daten!$E$248:$L$345,5,FALSE))","v":""},{"$f":"IF(ISBLANK(C22),\"\",VLOOKUP(B22,Daten!$E$248:$L$345,6,FALSE))","v":""},{"$f":"IF(ISBLANK(C22),\"\",VLOOKUP(B22,Daten!$E$248:$L$345,7,FALSE))","v":""},{"$f":"IF(ISBLANK(C22),\"\",VLOOKUP(B22,Daten!$E$248:$L$345,8,FALSE))","v":""},null,{"$f":"IF(ISBLANK(C22),\"\",VLOOKUP(B22,Daten!$E$248:$X$345,14,FALSE))","v":""},{"$f":"IF(ISBLANK(C22),\"\",VLOOKUP(B22,Daten!$E$248:$X$345,15,FALSE))","v":""},{"$f":"IF(ISBLANK(C22),\"\",VLOOKUP(B22,Daten!$E$248:$X$345,16,FALSE))","v":""},{"$f":"IF(ISBLANK(C22),\"\",VLOOKUP(B22,Daten!$E$248:$X$345,17,FALSE))","v":""},{"$f":"IF(ISBLANK(C22),\"\",VLOOKUP(B22,Daten!$E$248:$X$345,18,FALSE))","v":""},null,null,{"$f":"IF(ISBLANK(C22),\"\",VLOOKUP(B22,Daten!$E$248:$X$345,19,FALSE))","v":""},{"$f":"IF(ISBLANK(C22),\"\",VLOOKUP(B22,Daten!$E$248:$X$345,20,FALSE))","v":""},{"$f":"(R22/F22)-1","v":{"$error":"#VALUE!"}},{"$f":"(S22/G22)-1","v":{"$error":"#VALUE!"}}]
["korrigiert (5)",{"$f":"IF(ISBLANK(C22),\"\",\"lk5\")","v":""},{"$f":"IF(B23=\"\",\"\",IF(AND(ISNUMBER(K23*L23*M23),K23<>\"\"),ROUND(K23,2)&\" MJ \"&ROUND(L23,2)&\" RP \"&ROUND(M23,2)&\" P: \"&VLOOKUP(B22,Daten!$E$248:$L$345,2,FALSE),IF(B22=\"zsp\",\"mittlere Futtergehalte unten berechnen + rechts eingeben\", \"mittlere Futtergehalte weiter rechts eingeben!\")))","v":""},{"$f":"D22","v":""},{"$f":"E22","v":""},{"$f":"IF((L23+M23)=0,\"\",IF(K23*L23>0,F22*(1+N23),F22))","v":""},{"$f":"IF((L23+M23)=0,\"\",IF(K23*M23>0,G22*(1+O23),G22))","v":""},{"$f":"IF(ISNUMBER(F23),H22,\"\")","v":""},{"$f":"IF(ISNUMBER(F23),I22,\"\")","v":""},null,null,null,null,{"$f":"IF(ISNUMBER(P23),IF((P23-L22)*N22<T22,T22,(P23-L22)*N22),\"\")","v":""},{"$f":"IF(ISNUMBER(Q23),IF((Q23-M22)*O22<U22,U22,(Q23-M22)*O22),\"\")","v":""},{"$f":"IF(AND(K23>0,L23>0),L23/K23*K22,\"\")","v":""},{"$f":"IF(AND(K23>0,M23>0),M23/K23*K22,\"\")","v":""}]
[null," "]
["Standard",{"$f":"IF(ISBLANK(C25),\"\",VLOOKUP(C25,Daten!$B$291:$E$306,4,FALSE))","v":""},null,{"$f":"IF(ISBLANK(C25),\"\",VLOOKUP(B25,Daten!$E$248:$L$345,3,FALSE))","v":""},{"$f":"IF(ISBLANK(C25),\"\",VLOOKUP(B25,Daten!$E$248:$L$345,4,FALSE))","v":""},{"$f":"IF(ISBLANK(C25),\"\",VLOOKUP(B25,Daten!$E$248:$L$345,5,FALSE))","v":""},{"$f":"IF(ISBLANK(C25),\"\",VLOOKUP(B25,Daten!$E$248:$L$345,6,FALSE))","v":""},{"$f":"IF(ISBLANK(C25),\"\",VLOOKUP(B25,Daten!$E$248:$L$345,7,FALSE))","v":""},{"$f":"IF(ISBLANK(C25),\"\",VLOOKUP(B25,Daten!$E$248:$L$345,8,FALSE))","v":""},null,{"$f":"IF(ISBLANK(C25),\"\",VLOOKUP(B25,Daten!$E$248:$X$345,14,FALSE))","v":""},{"$f":"IF(ISBLANK(C25),\"\",VLOOKUP(B25,Daten!$E$248:$X$345,15,FALSE))","v":""},{"$f":"IF(ISBLANK(C25),\"\",VLOOKUP(B25,Daten!$E$248:$X$345,16,FALSE))","v":""},{"$f":"IF(ISBLANK(C25),\"\",VLOOKUP(B25,Daten!$E$248:$X$345,17,FALSE))","v":""},{"$f":"IF(ISBLANK(C25),\"\",VLOOKUP(B25,Daten!$E$248:$X$345,18,FALSE))","v":""},null,null,{"$f":"IF(ISBLANK(C25),\"\",VLOOKUP(B25,Daten!$E$248:$X$345,19,FALSE))","v":""},{"$f":"IF(ISBLANK(C25),\"\",VLOOKUP(B25,Daten!$E$248:$X$345,20,FALSE))","v":""},{"$f":"(R25/F25)-1","v":{"$error":"#VALUE!"}},{"$f":"(S25/G25)-1","v":{"$error":"#VALUE!"}}]
["korrigiert (6)",{"$f":"IF(ISBLANK(C25),\"\",\"lk6\")","v":""},{"$f":"IF(B26=\"\",\"\",IF(AND(ISNUMBER(K26*L26*M26),K26<>\"\"),ROUND(K26,2)&\" MJ \"&ROUND(L26,2)&\" RP \"&ROUND(M26,2)&\" P: \"&VLOOKUP(B25,Daten!$E$248:$L$345,2,FALSE),IF(B25=\"zsp\",\"mittlere Futtergehalte unten berechnen + rechts eingeben\", \"mittlere Futtergehalte weiter rechts eingeben!\")))","v":""},{"$f":"D25","v":""},{"$f":"E25","v":""},{"$f":"IF((L26+M26)=0,\"\",IF(K26*L26>0,F25*(1+N26),F25))","v":""},{"$f":"IF((L26+M26)=0,\"\",IF(K26*M26>0,G25*(1+O26),G25))","v":""},{"$f":"IF(ISNUMBER(F26),H25,\"\")","v":""},{"$f":"IF(ISNUMBER(F26),I25,\"\")","v":""},null,null,null,null,{"$f":"IF(ISNUMBER(P26),IF((P26-L25)*N25<T25,T25,(P26-L25)*N25),\"\")","v":""},{"$f":"IF(ISNUMBER(Q26),IF((Q26-M25)*O25<U25,U25,(Q26-M25)*O25),\"\")","v":""},{"$f":"IF(AND(K26>0,L26>0),L26/K26*K25,\"\")","v":""},{"$f":"IF(AND(K26>0,M26>0),M26/K26*K25,\"\")","v":""}]
[null," "]
["Standard",{"$f":"IF(ISBLANK(C28),\"\",VLOOKUP(C28,Daten!$B$291:$E$306,4,FALSE))","v":""},null,{"$f":"IF(ISBLANK(C28),\"\",VLOOKUP(B28,Daten!$E$248:$L$345,3,FALSE))","v":""},{"$f":"IF(ISBLANK(C28),\"\",VLOOKUP(B28,Daten!$E$248:$L$345,4,FALSE))","v":""},{"$f":"IF(ISBLANK(C28),\"\",VLOOKUP(B28,Daten!$E$248:$L$345,5,FALSE))","v":""},{"$f":"IF(ISBLANK(C28),\"\",VLOOKUP(B28,Daten!$E$248:$L$345,6,FALSE))","v":""},{"$f":"IF(ISBLANK(C28),\"\",VLOOKUP(B28,Daten!$E$248:$L$345,7,FALSE))","v":""},{"$f":"IF(ISBLANK(C28),\"\",VLOOKUP(B28,Daten!$E$248:$L$345,8,FALSE))","v":""},null,{"$f":"IF(ISBLANK(C28),\"\",VLOOKUP(B28,Daten!$E$248:$X$345,14,FALSE))","v":""},{"$f":"IF(ISBLANK(C28),\"\",VLOOKUP(B28,Daten!$E$248:$X$345,15,FALSE))","v":""},{"$f":"IF(ISBLANK(C28),\"\",VLOOKUP(B28,Daten!$E$248:$X$345,16,FALSE))","v":""},{"$f":"IF(ISBLANK(C28),\"\",VLOOKUP(B28,Daten!$E$248:$X$345,17,FALSE))","v":""},{"$f":"IF(ISBLANK(C28),\"\",VLOOKUP(B28,Daten!$E$248:$X$345,18,FALSE))","v":""},null,null,{"$f":"IF(ISBLANK(C28),\"\",VLOOKUP(B28,Daten!$E$248:$X$345,19,FALSE))","v":""},{"$f":"IF(ISBLANK(C28),\"\",VLOOKUP(B28,Daten!$E$248:$X$345,20,FALSE))","v":""},{"$f":"(R28/F28)-1","v":{"$error":"#VALUE!"}},{"$f":"(S28/G28)-1","v":{"$error":"#VALUE!"}}]
["korrigiert (7)",{"$f":"IF(ISBLANK(C28),\"\",\"lk7\")","v":""},{"$f":"IF(B29=\"\",\"\",IF(AND(ISNUMBER(K29*L29*M29),K29<>\"\"),ROUND(K29,2)&\" MJ \"&ROUND(L29,2)&\" RP \"&ROUND(M29,2)&\" P: \"&VLOOKUP(B28,Daten!$E$248:$L$345,2,FALSE),IF(B28=\"zsp\",\"mittlere Futtergehalte unten berechnen + rechts eingeben\", \"mittlere Futtergehalte weiter rechts eingeben!\")))","v":""},{"$f":"D28","v":""},{"$f":"E28","v":""},{"$f":"IF((L29+M29)=0,\"\",IF(K29*L29>0,F28*(1+N29),F28))","v":""},{"$f":"IF((L29+M29)=0,\"\",IF(K29*M29>0,G28*(1+O29),G28))","v":""},{"$f":"IF(ISNUMBER(F29),H28,\"\")","v":""},{"$f":"IF(ISNUMBER(F29),I28,\"\")","v":""},null,null,null,null,{"$f":"IF(ISNUMBER(P29),IF((P29-L28)*N28<T28,T28,(P29-L28)*N28),\"\")","v":""},{"$f":"IF(ISNUMBER(Q29),IF((Q29-M28)*O28<U28,U28,(Q29-M28)*O28),\"\")","v":""},{"$f":"IF(AND(K29>0,L29>0),L29/K29*K28,\"\")","v":""},{"$f":"IF(AND(K29>0,M29>0),M29/K29*K28,\"\")","v":""}]
[]
["Standard",{"$f":"IF(ISBLANK(C31),\"\",VLOOKUP(C31,Daten!$B$291:$E$306,4,FALSE))","v":"zsp"},"Zuchtschweine inkl. Ferkel bis 26 kg",{"$f":"IF(ISBLANK(C31),\"\",VLOOKUP(B31,Daten!$E$248:$L$345,3,FALSE))","v":"Platz"},{"$f":"IF(ISBLANK(C31),\"\",VLOOKUP(B31,Daten!$E$248:$L$345,4,FALSE))","v":0},{"$f":"IF(ISBLANK(C31),\"\",VLOOKUP(B31,Daten!$E$248:$L$345,5,FALSE))","v":35.200000000000003},{"$f":"IF(ISBLANK(C31),\"\",VLOOKUP(B31,Daten!$E$248:$L$345,6,FALSE))","v":21},{"$f":"IF(ISBLANK(C31),\"\",VLOOKUP(B31,Daten!$E$248:$L$345,7,FALSE))","v":23},{"$f":"IF(ISBLANK(C31),\"\",VLOOKUP(B31,Daten!$E$248:$L$345,8,FALSE))","v":4.2},null,{"$f":"IF(ISBLANK(C31),\"\",VLOOKUP(B31,Daten!$E$248:$X$345,14,FALSE))","v":13.2},{"$f":"IF(ISBLANK(C31),\"\",VLOOKUP(B31,Daten!$E$248:$X$345,15,FALSE))","v":173},{"$f":"IF(ISBLANK(C31),\"\",VLOOKUP(B31,Daten!$E$248:$X$345,16,FALSE))","v":5.8},{"$f":"IF(ISBLANK(C31),\"\",VLOOKUP(B31,Daten!$E$248:$X$345,17,FALSE))","v":6.4000000000000003E-3},{"$f":"IF(ISBLANK(C31),\"\",VLOOKUP(B31,Daten!$E$248:$X$345,18,FALSE))","v":0.192},null,null,{"$f":"IF(ISBLANK(C31),\"\",VLOOKUP(B31,Daten!$E$248:$X$345,19,FALSE))","v":29.04},{"$f":"IF(ISBLANK(C31),\"\",VLOOKUP(B31,Daten!$E$248:$X$345,20,FALSE))","v":15.2},{"$f":"(R31/F31)-1","v":-0.17500000000000004},{"$f":"(S31/G31)-1","v":-0.27619047619047621}]
["korrigiert (8)",{"$f":"IF(ISBLANK(C31),\"\",\"lk8\")","v":"lk8"},{"$f":"IF(B32=\"\",\"\",IF(AND(ISNUMBER(K32*L32*M32),K32<>\"\"),ROUND(K32,2)&\" MJ \"&ROUND(L32,2)&\" RP \"&ROUND(M32,2)&\" P: \"&VLOOKUP(B31,Daten!$E$248:$L$345,2,FALSE), IF(B31=\"zsp\",\"mittlere Futtergehalte unten berechnen + rechts eingeben\", \"mittlere Futtergehalte weiter rechts eingeben!\")))","v":"mittlere Futtergehalte unten berechnen + rechts eingeben"},{"$f":"D31","v":"Platz"},{"$f":"E31","v":0},{"$f":"IF((L32+M32)=0,\"\",IF(K32*L32>0,F31*(1+N32),F31))","v":{"$error":"#VALUE!"}},{"$f":"IF((L32+M32)=0,\"\",IF(K32*M32>0,G31*(1+O32),G31))","v":{"$error":"#VALUE!"}},{"$f":"IF(ISNUMBER(F32),H31,\"\")","v":""},{"$f":"IF(ISNUMBER(F32),I31,\"\")","v":""},null,{"$f":"K39","v":""},{"$f":"L39","v":""},{"$f":"M39","v":""},{"$f":"IF(ISNUMBER(P32),IF((P32-L31)*N31<T31,T31,(P32-L31)*N31),\"\")","v":""},{"$f":"IF(ISNUMBER(Q32),IF((Q32-M31)*O31<U31,U31,(Q32-M31)*O31),\"\")","v":""},{"$f":"IF(AND(K32>0,L32>0),L32/K32*K31,\"\")","v":{"$error":"#VALUE!"}},{"$f":"IF(AND(K32>0,M32>0),M32/K32*K31,\"\")","v":{"$error":"#VALUE!"}}]
[]
[null,null,null,null," Tierkategorie",null,"kg Futter",null,null,null,"Durchschnittsgehalte"]
[null,null,"  Berechnung der durchschnittlichen",null,null,null,"88% TS  ",null,"Anteile",null,"MJ","RP","P"]
[null,null,"  Futtergehalte für die Tierkategorie",null," Zuchtschweine",null,null,null,{"$f":"G36/G38","v":{"$error":"#DIV/0!"}}]
[null," "," \"Zuchtschweine inkl. Ferkel bis 26 kg\"",null," Ferkel",null,null,null,{"$f":"G37/G38","v":{"$error":"#DIV/0!"}}]
[null,null,null,null," Mittelwerte",null,{"$f":"SUM(G36:H37)","v":0},null,null,null,{"$f":"IF(AND(K36>0,K37>0),($G36*K36+$G37*K37)/$G38,\"\")","v":""},{"$f":"IF(AND(L36>0,L37>0),($G36*L36+$G37*L37)/$G38,\"\")","v":""},{"$f":"IF(AND(M36>0,M37>0),($G36*M36+$G37*M37)/$G38,\"\")","v":""}]
[null,null,null,"Normierte mittlere Gehalte",null,null,null,null,"(61% Zuchtschweinefutter + 39% Ferkelfutter)",null,{"$f":"IF(AND(ISNUMBER(K36),ISNUMBER(K37)),0.61*K36+0.39*K37,\"\")","v":""},{"$f":"IF(AND(ISNUMBER(L36),ISNUMBER(L37)),0.61*L36+0.39*L37,\"\")","v":""},{"$f":"IF(AND(ISNUMBER(M36),ISNUMBER(M37)),0.61*M36+0.39*M37,\"\")","v":""}," -> oben bei der Kategorie eingeben"]
[]
["Bei nachstehenden Tierkategorien ist die Lineare Korrektur nach Futtergehalten"]
["           gemäss Zusatzmodul 6 möglich:",null,null,null,null,null,null,null,null,null,null,null,null,null,null,null,"oder übers Menü:  Datei > Drucken > Seiten …"]
[null,"Abk.","      Schweine (Kategorien)","Einheit"]
[]
[null,"msp","Mastschweine (Pl.), 26-108 kg / Remonten","Platz"]
[null,"mss","Mastschwein / Remonte (St.), 26-108 kg","Stück"]
[{"$f":"COUNTIF(C10:C32,C47)","v":1},"zsp","Zuchtschweine inkl. Ferkel bis 26 kg","Platz","  berechnet mit 61% Anteil Zuchtschweinefutter + 39% Anteil Ferkelfutter"]
[null,"zeb","Zuchteber (Pl.)","Platz","  mit Werten des Zuchtschweinefutters rechnen"]
[null,"gsp","Galtsauen (Pl.): 2.94 Umtr. pro Jahr","Platz"]
[null,"gss","*Galtsau, pro Umtrieb, 124 d pro Umtrieb","Stück"]
[null,"szp","Säugende Sauen (Pl.): 9.86 Umtr. pro Jahr","Platz"]
[null,"szs","*Säugende Zuchtsau, pro Umtrieb, 37 d pro Umtrieb","Stück"]
[null,"fep","abgesetzte Ferkel (Pl.), Zuw. 8-26 kg LG","Platz"]
[null,"fes","*abgesetzte Ferkel (St.), Zuw. 8-26 kg LG","Stück"]
[]
[null,"  ","     Geflügel (Kategorien)","Einheit"]
[null,"hen","Legehennen: Kotband (100 Pl.)","100 Pl."]
[null,"henbk","Legehennen: Bodenhaltung, Kotgrube (100 Pl.)","100 Pl."]
[]
[null,"* diese Kategorien sind nur in spezifischen Betriebssituationen zutreffend (z.B. arbeitsteilige Tierhaltung); im Normalfall sind die anderen Kategorien zu verwenden."]

{"sheet":"Grafik","index":5,"n_rows":51,"n_cols":24,"rows_kept":51,"cut":false,"hidden":false,"merged":[[26,9,26,10],[26,13,26,14],[1,9,1,10],[1,13,1,14],[2,9,2,10],[2,13,2,14],[25,9,25,10],[25,13,25,14]]}
[null,null,null,null,null,"Übersicht Suisse-Bilanz",null,null,null,null,null,null,null,null,null,null,null,null,{"$f":"\"Grafik zur Suisse-Bilanz \"&Suisse_Bilanz_1.17!K8","v":"Grafik zur Suisse-Bilanz 2023"},null,null,{"$f":"Suisse_Bilanz_1.17!C8","v":" "},{"$f":"Suisse_Bilanz_1.17!G7","v":0},{"$f":"Suisse_Bilanz_1.17!O8","v":"2023-02-14"}]
[null,null,null,null,null,null,null,null,null,"Stickstoff",null,null,null,"% Anteile"]
["Werte aus Berechnung \"Suisse_Bilanz_...\"",null,null,null,null,null,null,null,null,"Nverf, kg/Jahr",null,null,null,"Bedarf = 100%"]
[null,"Nverf (kg)","P2O5 (kg)",null,null,null,null,null,null,"Bedarf","gedüngt",null,null,{"$f":"J4","v":"Bedarf"},{"$f":"K4","v":"gedüngt"},null,"Beschriftung"]
["C1",{"$f":"Suisse_Bilanz_1.17!M72","v":0},{"$f":"Suisse_Bilanz_1.17!N72","v":0},null,null,"Bedarf Grundfutterfläche",null,null,"C1",{"$f":"B5","v":0},null,null,null,{"$f":"IF($J$13>0,J5/J$12,0)","v":{"$error":"#VALUE!"}},null,null,{"$f":"IF(J5>0,$I5&\" = \"&ROUND(J5,0)& \" kg\",\"\")","v":""}]
["C2+C3",{"$f":"Suisse_Bilanz_1.17!M101","v":0},{"$f":"Suisse_Bilanz_1.17!N101","v":0},null,null,"Bedarf Acker- und Spezialkulturen",null,null,"C2+C3",{"$f":"B6","v":0},null,null,null,{"$f":"IF($J$13>0,J6/J$12,0)","v":{"$error":"#VALUE!"}},null,null,{"$f":"IF(J6>0, $I6&\" = \"&ROUND(J6,0)& \" kg\",\"\")","v":""}]
["A2",{"$f":"Suisse_Bilanz_1.17!J150","v":0},{"$f":"Suisse_Bilanz_1.17!K150","v":0},null,null,"aus Tierhaltung",null,null,"von A2",null,{"$f":"B19+B24","v":0},"1)           ",null,null,{"$f":"IF(AND(J12<>0,K7<>\"\"),K7/$J$12,\"\")","v":""},null,{"$f":"IF(AND(ISNUMBER(K7),K7>0),$I7&\" = \"&ROUND(K7,0)& \" kg\",\"\")","v":""}]
["Saldo A3",{"$f":"Suisse_Bilanz_1.17!N116","v":0},{"$f":"Suisse_Bilanz_1.17!O116","v":0},null,null,"Zu- und Wegfuhr Hofdünger",null,null,"A3",null,{"$f":"IF(B8>=0,B8,\"\")","v":0},null,null,null,{"$f":"IF(AND(J12<>0,K8<>\"\"),K8/$J$12,\"\")","v":""},null,{"$f":"IF(AND(ISNUMBER(K8),K8>0),$I8&\" = \"&ROUND(K8,0)& \" kg\",\"\")","v":""}]
["Saldo E",{"$f":"Suisse_Bilanz_1.17!N140","v":0},{"$f":"Suisse_Bilanz_1.17!O140","v":0},null,null,"Vergärungsprodukte",null,null,"E",null,{"$f":"IF(B9>=0,B9,\"\")","v":0},null,null,null,{"$f":"IF(AND(J12<>0,K9<>\"\"),K9/$J$12,\"\")","v":""},null,{"$f":"IF(AND(ISNUMBER(K9),K9>0),I9&\" = \"&ROUND(K9,0)& \" kg\",\"\")","v":""}]
["Saldo D",{"$f":"Suisse_Bilanz_1.17!N125","v":0},{"$f":"Suisse_Bilanz_1.17!O125","v":0},null,null,"übrige Dünger",null,null,"D",null,{"$f":"IF(B10>=0,B10,\"\")","v":0},null,null,null,{"$f":"IF(AND(J12<>0,K10<>\"\"),K10/$J$12,\"\")","v":""},null,{"$f":"IF(AND(ISNUMBER(K10),K10>0),I10&\" = \"&ROUND(K10,0)& \" kg\",\"\")","v":""}]
["Fehlerbereich",{"$f":"Suisse_Bilanz_1.17!J158","v":"  _   "},{"$f":"Suisse_Bilanz_1.17!K158","v":"  _   "},null,null,"max. Fehlerbereich",null,null,"FB",{"$f":"B11","v":"  _   "},null,null,null,{"$f":"IF($J$13>0,J11/J$12,0)","v":{"$error":"#VALUE!"}},null,null,{"$f":"IF(J11=0,\"\",$I11&\" = \"&ROUND(J11,0)& \" kg\")","v":{"$error":"#VALUE!"}}]
[null,null,null,null,null,null,null,null,"Summe ohne FB ",{"$f":"J6+J5","v":0},null,null,null,{"$f":"IF($J$13>0,J12/J$12,0)","v":{"$error":"#VALUE!"}},null,null,{"$f":"K13","v":0}]
[null,null,null,null,null,null,null,null,"TOTAL mit FB ",{"$f":"J5+J6+J11","v":{"$error":"#VALUE!"}},{"$f":"SUM(K7:K10)","v":0},null,null,{"$f":"IF($J$13>0,J13/J$12,0)","v":{"$error":"#VALUE!"}},{"$f":"SUM(O7:O10)","v":0},null,{"$f":"J13","v":{"$error":"#VALUE!"}}]
["innerbetrieblicher",null,null,null,null,null,null,null,null,null,null,null,null,{"$f":"N13","v":{"$error":"#VALUE!"}},{"$f":"N14","v":{"$error":"#VALUE!"}},null,"Limite"]
["Nährstofftransfer GFT",null,{"$f":"Suisse_Bilanz_1.17!K155","v":0},null,null,null,null,null,"Gesamtbilanz",null,{"$f":"K13-J12","v":0},null,null,null,{"$f":"K15/$J$12","v":{"$error":"#DIV/0!"}}]
[null,null,null,null,null,null,null,null,"Differenz zur Limite",null,{"$f":"ABS(K13-J13)","v":{"$error":"#VALUE!"}},{"$f":"IF((K13-J13)>0,\"kg über der Limite bzw.\",\"kg unter der Limite bzw.\")","v":{"$error":"#VALUE!"}},null,null,{"$f":"O13-O14","v":{"$error":"#VALUE!"}}]
["1) Brechnung \"A2 gedüngt\""]
["    (A2 - neg. Saldo Wegfuhren - Transfer)"]
[" A2 ",{"$f":"B7","v":0},{"$f":"C7","v":0}]
[" 1) neg. Saldo A3",{"$f":"IF(B8<0,B8,0)","v":0},0]
[" 2) neg. Saldo E",0,0]
[" 3) neg. Saldo D",0,0]
[" 4) innerbetr.Transfer",{"$f":"-B15","v":0},{"$f":"-C15","v":0}]
[" - Summe 1-4",{"$f":"SUM(B20:B23)","v":0},{"$f":"SUM(C20:C23)","v":0}]
[" = A2 gedüngt",{"$f":"B19+B24","v":0},{"$f":"C19+C24","v":0}]
[null,null,null,null,null,null,null,null,null,"Phosphor",null,null,null,"% Anteile"]
[null,null,null,null,null,null,null,null,null,"P2O5, kg/Jahr",null,null,null,"Bedarf = 100%"]
[null,null,null,null,null,null,null,null,null,"Bedarf","gedüngt",null,null,{"$f":"J28","v":"Bedarf"},{"$f":"K28","v":"gedüngt"},null,"Beschriftung"]
[null,null,null,null,null,"Bedarf Grundfutterfläche",null,null,"C1",{"$f":"C5","v":0},null,null,null,{"$f":"IF($J$37>0,J29/J$36,0)","v":{"$error":"#VALUE!"}},null,null,{"$f":"IF(J29>0,$I5&\" = \"&ROUND(J29,0)& \" kg\",\"\")","v":""}]
[null,null,null,null,null,"Bedarf Acker- und Spezialkulturen",null,null,"C2+C3",{"$f":"C6","v":0},null,null,null,{"$f":"IF($J$37>0,J30/J$36,0)","v":{"$error":"#VALUE!"}},null,null,{"$f":"IF(J30>0, $I6&\" = \"&ROUND(J30,0)& \" kg\",\"\")","v":""}]
[null,null,null,null,null,"aus Tierhaltung",null,null,"von A2",null,{"$f":"C19+C24","v":0},"1)           ",null,null,{"$f":"IF(AND(J36<>0,K31<>\"\"),K31/J$36,\"\")","v":""},null,{"$f":"IF(AND(ISNUMBER(K31),K31>0),$I7&\" = \"&ROUND(K31,0)& \" kg\",\"\")","v":""}]
[null,null,null,null,null,"Zu- und Wegfuhr Hofdünger",null,null,"A3",null,{"$f":"IF(C8>=0,C8,\"\")","v":0},null,null,null,{"$f":"IF(AND(J36<>0,K32<>\"\"),K32/J$36,\"\")","v":""},null,{"$f":"IF(AND(ISNUMBER(K32),K32>0),$I8&\" = \"&ROUND(K32,0)& \" kg\",\"\")","v":""}]
[null,null,null,null,null,"Vergärungsprodukte",null,null,"E",null,{"$f":"IF(C9>=0,C9,\"\")","v":0},null,null,null,{"$f":"IF(AND(J36<>0,K33<>\"\"),K33/J$36,\"\")","v":""},null,{"$f":"IF(AND(ISNUMBER(K33),K33>0),$I9&\" = \"&ROUND(K33,0)& \" kg\",\"\")","v":""}]
[null,null,null,null,null,"übrige Dünger",null,null,"D",null,{"$f":"IF(C10>=0,C10,\"\")","v":0},null,null,null,{"$f":"IF(AND(J36<>0,K34<>\"\"),K34/J$36,\"\")","v":""},null,{"$f":"IF(AND(ISNUMBER(K34),K34>0),$I10&\" = \"&ROUND(K34,0)& \" kg\",\"\")","v":""}]
[null,null,null,null,null,"max. Fehlerbereich",null,null,"FB",{"$f":"C11","v":"  _   "},null,null,null,{"$f":"IF($J$37>0,J35/J$36,0)","v":{"$error":"#VALUE!"}},null,null,{"$f":"IF(J35=0,\"\",$I11&\" = \"&ROUND(J35,0)& \" kg\")","v":{"$error":"#VALUE!"}}]
[null,null,null,null,null,null,null,null,"Summe ohne FB ",{"$f":"J30+J29","v":0},null,null,null,{"$f":"IF($J$13>0,J36/J$36,0)","v":{"$error":"#VALUE!"}},null,null,{"$f":"K37","v":0}]
[null,null,null,null,null,null,null,null,"TOTAL mit FB ",{"$f":"J29+J30+J35","v":{"$error":"#VALUE!"}},{"$f":"SUM(K31:K34)","v":0},null,null,{"$f":"IF($J$37>0,J37/J$36,0)","v":{"$error":"#VALUE!"}},{"$f":"SUM(O31:O34)","v":0},null,{"$f":"J37","v":{"$error":"#VALUE!"}}]
[null,null,null,null,null,null,null,null,null,null,null,null,null,{"$f":"N37","v":{"$error":"#VALUE!"}},{"$f":"N38","v":{"$error":"#VALUE!"}},null,"Limite"]
[null,null,null,null,null,null,null,null,"Gesamtbilanz",null,{"$f":"K37-J36","v":0},null,null,null,{"$f":"K39/J$36","v":{"$error":"#DIV/0!"}}]
[null,null,null,null,null,null,null,null,"Differenz zur Limite",null,{"$f":"ABS(K37-J37)","v":{"$error":"#VALUE!"}},{"$f":"IF((K37-J37)>0,\"kg über der Limite bzw.\",\"kg unter der Limite bzw.\")","v":{"$error":"#VALUE!"}},null,null,{"$f":"O37-O38","v":{"$error":"#VALUE!"}}]
[]
[]
[]
[]
[]
[]
[]
[]
[]
[]
[null,null,null,null,"  "]

{"sheet":"Richtwerte Hofdünger","index":6,"n_rows":81,"n_cols":33,"rows_kept":81,"cut":false,"hidden":false,"merged":[[3,6,3,10],[62,8,62,10]]}
[null,"Richtwerte für den Gehalt von Hofdüngern",null,null,null,null,null,null,null,null,null,null,null,null,"Quelle: GRUD 2017"]
[null,"-> Mit Tab. \"Suisse_Bilanz_...\" (Seite 3) können betriebsspezifische Durchschnitts-Gehalte berechnet werden!"]
[]
[null,null,null,null,null,null,"Stickstoff",null,null,null,null,"Phosphat","Kali","Magnesium","Calcium"]
[null,null,"Ver-",null,"TS","OS","Ntot","Nlös","Nverf",null,null,"P2O5","K2O","Mg","Ca","Nährstoffverhältnisse",null,null,null,null,null,"%TS","OS","Ntot","Nlös","Nverf",null,null,"P2O5","K2O","Mg","Ca","Bemerkungen"]
[null,null,null,"dünnung","kg / m3 Gülle  bzw.  kg / t Mist",null,null,null,null,null,null,null,null,null,null,"Ntot","Nverf","P2O5","K2O","Mg",null,null,"%TS","kg / t TS"]
[null,"Milchvieh"]
[null,"Vollgülle","1:",0,90,70,3.9,2.1,2.2000000000000002,"-",2.7,1.7,7.5,0.61,1.5,{"$f":"G8/$L8","v":2.2941176470588234},{"$f":"(I8+K8)/2/L8","v":1.4411764705882355},{"$f":"L8/$L8","v":1},{"$f":"M8/$L8","v":4.4117647058823533},{"$f":"N8/$L8","v":0.35882352941176471},null,{"$f":"IF(E8>0,E8/1000,\"\")","v":0.09},{"$f":"IF(F8>0,F8/E8,\"\")","v":0.77777777777777779},{"$f":"IF(G8>0,G8*1000/$E8,\"\")","v":43.333333333333336},{"$f":"IF(H8>0,H8*1000/$E8,\"\")","v":23.333333333333332},{"$f":"IF(I8>0,I8*1000/$E8,\"\")","v":24.444444444444443},{"$f":"IF(AB8=\"\",\"\",\"-\")","v":"-"},{"$f":"IF(K8>0,K8*1000/$E8,\"\")","v":30},{"$f":"IF(L8>0,L8*1000/$E8,\"\")","v":18.888888888888889},{"$f":"IF(M8>0,M8*1000/$E8,\"\")","v":83.333333333333329},{"$f":"IF(N8>0,N8*1000/$E8,\"\")","v":6.7777777777777777},{"$f":"IF(O8>0,O8*1000/$E8,\"\")","v":16.666666666666668},"GRUD 2017, Modul 4/ Eigenschaften und Anwendung von Düngern, Tab. 6"]
[null,null,"1:",1,{"$f":"E$8/(1+$D9)","v":45},{"$f":"F$8/(1+$D9)","v":35},1.95,1.05,1.1000000000000001,"-",1.35,0.85,3.75,0.30499999999999999,0.75,null,null,null,null,null,null,4.4999999999999998E-2]
[null,null,"1:",1.5,{"$f":"E$8/(1+$D10)","v":36},28,1.56,0.84000000000000008,0.88000000000000012,"-",1.08,0.67999999999999994,3,0.24399999999999999,0.6,null,null,null,null,null,null,3.5999999999999997E-2]
[null,"Gülle kotarm","1:",0,75,40,4.5,2.9,2.9,"-",3.8,1.1000000000000001,11,0.57999999999999996,1,{"$f":"G11/$L11","v":4.0909090909090908},{"$f":"(I11+K11)/2/L11","v":3.045454545454545},{"$f":"L11/$L11","v":1},{"$f":"M11/$L11","v":10},{"$f":"N11/$L11","v":0.52727272727272723},null,7.4999999999999997E-2,{"$f":"IF(F11>0,F11/E11,\"\")","v":0.53333333333333333},{"$f":"IF(G11>0,G11*1000/$E11,\"\")","v":60},{"$f":"IF(H11>0,H11*1000/$E11,\"\")","v":38.666666666666664},{"$f":"IF(I11>0,I11*1000/$E11,\"\")","v":38.666666666666664},{"$f":"IF(AB11=\"\",\"\",\"-\")","v":"-"},{"$f":"IF(K11>0,K11*1000/$E11,\"\")","v":50.666666666666664},{"$f":"IF(L11>0,L11*1000/$E11,\"\")","v":14.666666666666666},{"$f":"IF(M11>0,M11*1000/$E11,\"\")","v":146.66666666666666},{"$f":"IF(N11>0,N11*1000/$E11,\"\")","v":7.7333333333333334},{"$f":"IF(O11>0,O11*1000/$E11,\"\")","v":13.333333333333334},"GRUD 2017, Modul 4/ Eigenschaften und Anwendung von Düngern, Tab. 6"]
[null,null,"1:",2,{"$f":"E$11/(1+$D12)","v":25},{"$f":"F$11/(1+$D12)","v":13.333333333333334},1.5,0.96666666666666667,0.96666666666666667,"-",1.2666666666666666,0.3666666666666667,3.6666666666666665,0.19333333333333333,0.33333333333333331,null,null,null,null,null,null,2.5000000000000001E-2]
[null,null,"1:",3,{"$f":"E$11/(1+$D13)","v":18.75},10,1.125,0.72499999999999998,0.72499999999999998,"-",0.95,0.27500000000000002,2.75,0.14499999999999999,0.25,null,null,null,null,null,null,1.8749999999999999E-2]
[null,"Stapelmist",null,null,190,150,4.5,0.7,0.9,"-",1.8,3,6.1,0.93,3,{"$f":"G14/$L14","v":1.5},{"$f":"(I14+K14)/2/L14","v":0.45},{"$f":"L14/$L14","v":1},2.0333333333333332,0.31,null,0.19,{"$f":"IF(F14>0,F14/E14,\"\")","v":0.78947368421052633},{"$f":"IF(G14>0,G14*1000/$E14,\"\")","v":23.684210526315791},3.6842105263157894,4.7368421052631575,{"$f":"IF(AB14=\"\",\"\",\"-\")","v":"-"},{"$f":"IF(K14>0,K14*1000/$E14,\"\")","v":9.473684210526315},15.789473684210526,32.10526315789474,4.8947368421052628,15.789473684210526,"GRUD 2017, Modul 4/ Eigenschaften und Anwendung von Düngern, Tab. 6"]
[null,"Laufstallmist",null,null,210,175,4.9000000000000004,1.2,1.2,"-",2.5,2.2000000000000002,10,0.82,2.2000000000000002,{"$f":"G15/$L15","v":2.2272727272727271},{"$f":"(I15+K15)/2/L15","v":0.84090909090909083},1,4.545454545454545,0.37272727272727268,null,0.21,{"$f":"IF(F15>0,F15/E15,\"\")","v":0.83333333333333337},23.333333333333332,5.7142857142857144,5.7142857142857144,{"$f":"IF(AB15=\"\",\"\",\"-\")","v":"-"},11.904761904761905,10.476190476190476,47.61904761904762,3.9047619047619047,10.476190476190476,"GRUD 2017, Modul 4/ Eigenschaften und Anwendung von Düngern, Tab. 6"]
[]
[null,"Rindviehmast"]
[null,"Vollgülle","1:",0,90,65,3.5,2.1,1.8,"-",2.5,1.4,3.4,0.6,1.2,{"$f":"G18/$L18","v":2.5},{"$f":"(I18+K18)/2/L18","v":1.5357142857142858},{"$f":"L18/$L18","v":1},{"$f":"M18/$L18","v":2.4285714285714288},{"$f":"N18/$L18","v":0.4285714285714286},null,{"$f":"IF(E18>0,E18/1000,\"\")","v":0.09},{"$f":"IF(F18>0,F18/E18,\"\")","v":0.72222222222222221},{"$f":"IF(G18>0,G18*1000/$E18,\"\")","v":38.888888888888886},{"$f":"IF(H18>0,H18*1000/$E18,\"\")","v":23.333333333333332},{"$f":"IF(I18>0,I18*1000/$E18,\"\")","v":20},{"$f":"IF(AB18=\"\",\"\",\"-\")","v":"-"},{"$f":"IF(K18>0,K18*1000/$E18,\"\")","v":27.777777777777779},{"$f":"IF(L18>0,L18*1000/$E18,\"\")","v":15.555555555555555},{"$f":"IF(M18>0,M18*1000/$E18,\"\")","v":37.777777777777779},{"$f":"IF(N18>0,N18*1000/$E18,\"\")","v":6.666666666666667},{"$f":"IF(O18>0,O18*1000/$E18,\"\")","v":13.333333333333334},"Agridea DB Ackerbau 2020; GRUD 2017, Modul 4/ Eigenschaften und Anwendung von Düngern, Tab. 6"]
[null,null,"1:",1,{"$f":"E$18/(1+$D19)","v":45},{"$f":"F$18/(1+$D19)","v":32.5},1.75,1.05,0.9,"-",1.25,0.7,1.7,0.3,0.6,null,null,null,null,null,null,{"$f":"IF(E19>0,E19/1000,\"\")","v":4.4999999999999998E-2}]
[null,null,"1:",1.5,{"$f":"E$18/(1+$D20)","v":36},26,1.4,0.84000000000000008,0.72,"-",1,0.55999999999999994,1.3599999999999999,0.24,0.48,null,null,null,null,null,null,{"$f":"IF(E20>0,E20/1000,\"\")","v":3.5999999999999997E-2}]
[null,"Laufstallmist",null,null,210,155,4.7,1,1.2,"-",2.4,1.8,7.4,0.8,1.5,{"$f":"G21/$L21","v":2.6111111111111112},{"$f":"(I21+K21)/2/L21","v":0.99999999999999989},{"$f":"L21/$L21","v":1},{"$f":"M21/$L21","v":4.1111111111111116},{"$f":"N21/$L21","v":0.44444444444444448},null,{"$f":"IF(E21>0,E21/1000,\"\")","v":0.21},{"$f":"IF(F21>0,F21/E21,\"\")","v":0.73809523809523814},{"$f":"IF(G21>0,G21*1000/$E21,\"\")","v":22.38095238095238},{"$f":"IF(H21>0,H21*1000/$E21,\"\")","v":4.7619047619047619},{"$f":"IF(I21>0,I21*1000/$E21,\"\")","v":5.7142857142857144},{"$f":"IF(AB21=\"\",\"\",\"-\")","v":"-"},{"$f":"IF(K21>0,K21*1000/$E21,\"\")","v":11.428571428571429},{"$f":"IF(L21>0,L21*1000/$E21,\"\")","v":8.5714285714285712},{"$f":"IF(M21>0,M21*1000/$E21,\"\")","v":35.238095238095241},{"$f":"IF(N21>0,N21*1000/$E21,\"\")","v":3.8095238095238093},{"$f":"IF(O21>0,O21*1000/$E21,\"\")","v":7.1428571428571432},"Agridea DB Ackerbau 2020; GRUD 2017, Modul 4/ Eigenschaften und Anwendung von Düngern, Tab. 6"]
[]
[null,"Schweine"]
[null,"Schweinegülle Mast","1:",0,50,36,6.5,4.5999999999999996,3.3,"-",4.5999999999999996,3.2,3.6,0.88,2.1,{"$f":"G24/$L24","v":2.03125},{"$f":"(I24+K24)/2/L24","v":1.2343749999999998},{"$f":"L24/$L24","v":1},{"$f":"M24/$L24","v":1.125},{"$f":"N24/$L24","v":0.27499999999999997},null,{"$f":"IF(E24>0,E24/1000,\"\")","v":0.05},{"$f":"IF(F24>0,F24/E24,\"\")","v":0.72},{"$f":"IF(G24>0,G24*1000/$E24,\"\")","v":130},{"$f":"IF(H24>0,H24*1000/$E24,\"\")","v":92},{"$f":"IF(I24>0,I24*1000/$E24,\"\")","v":66},{"$f":"IF(AB24=\"\",\"\",\"-\")","v":"-"},{"$f":"IF(K24>0,K24*1000/$E24,\"\")","v":92},{"$f":"IF(L24>0,L24*1000/$E24,\"\")","v":64},{"$f":"IF(M24>0,M24*1000/$E24,\"\")","v":72},{"$f":"IF(N24>0,N24*1000/$E24,\"\")","v":17.600000000000001},{"$f":"IF(O24>0,O24*1000/$E24,\"\")","v":42},"GRUD 2017, Modul 4/ Eigenschaften und Anwendung von Düngern, Tab. 6"]
[null,null,"1:",0.5,{"$f":"E$24/(1+$D25)","v":33.333333333333336},{"$f":"F$24/(1+$D25)","v":24},4.333333333333333,3.0666666666666664,2.1999999999999997,"-",3.0666666666666664,2.1333333333333333,2.4,0.58666666666666667,1.4000000000000001,null,null,null,null,null,null,3.3333333333333333E-2]
[null,null,"1:",0.75,{"$f":"E$24/(1+$D26)","v":28.571428571428573},20.571428571428573,3.7142857142857144,2.6285714285714286,1.8857142857142857,"-",2.6285714285714286,1.8285714285714287,2.0571428571428574,0.50285714285714289,1.2,null,null,null,null,null,null,2.8571428571428574E-2]
[null,"Schweinegülle Zucht","1:",0,50,33,4.7,3.3,2.4,"-",3.4,2.7,3,0.56000000000000005,1.5,{"$f":"G27/$L27","v":1.7407407407407407},{"$f":"(I27+K27)/2/L27","v":1.074074074074074},{"$f":"L27/$L27","v":1},{"$f":"M27/$L27","v":1.1111111111111109},{"$f":"N27/$L27","v":0.2074074074074074},null,0.05,{"$f":"IF(F27>0,F27/E27,\"\")","v":0.66},{"$f":"IF(G27>0,G27*1000/$E27,\"\")","v":94},{"$f":"IF(H27>0,H27*1000/$E27,\"\")","v":66},{"$f":"IF(I27>0,I27*1000/$E27,\"\")","v":48},"-",{"$f":"IF(K27>0,K27*1000/$E27,\"\")","v":68},{"$f":"IF(L27>0,L27*1000/$E27,\"\")","v":54},{"$f":"IF(M27>0,M27*1000/$E27,\"\")","v":60},{"$f":"IF(N27>0,N27*1000/$E27,\"\")","v":11.2},{"$f":"IF(O27>0,O27*1000/$E27,\"\")","v":30},"GRUD 2017, Modul 4/ Eigenschaften und Anwendung von Düngern, Tab. 6"]
[null,null,"1:",0.5,{"$f":"E$27/(1+$D28)","v":33.333333333333336},{"$f":"F$27/(1+$D28)","v":22},3.1333333333333333,2.1999999999999997,1.5999999999999999,"-",2.2666666666666666,1.8,2,0.37333333333333335,1,null,null,null,null,null,null,3.3333333333333333E-2]
[null,null,"1:",0.75,{"$f":"E$27/(1+$D29)","v":28.571428571428573},18.857142857142858,2.6857142857142859,1.8857142857142857,1.3714285714285714,"-",1.9428571428571428,1.5428571428571429,1.7142857142857142,0.32,0.8571428571428571,null,null,null,null,null,null,2.8571428571428574E-2]
[null,"Schweinemist",null,null,270,230,8.8000000000000007,2.6,3.5,"-",5.3,6.6,7.3,1.5,5,{"$f":"G30/$L30","v":1.3333333333333335},{"$f":"(I30+K30)/2/L30","v":0.66666666666666674},{"$f":"L30/$L30","v":1},{"$f":"M30/$L30","v":1.1060606060606062},{"$f":"N30/$L30","v":0.22727272727272729},null,0.27,{"$f":"IF(F30>0,F30/E30,\"\")","v":0.85185185185185186},{"$f":"IF(G30>0,G30*1000/$E30,\"\")","v":32.592592592592595},{"$f":"IF(H30>0,H30*1000/$E30,\"\")","v":9.6296296296296298},{"$f":"IF(I30>0,I30*1000/$E30,\"\")","v":12.962962962962964},"-",{"$f":"IF(K30>0,K30*1000/$E30,\"\")","v":19.62962962962963},{"$f":"IF(L30>0,L30*1000/$E30,\"\")","v":24.444444444444443},{"$f":"IF(M30>0,M30*1000/$E30,\"\")","v":27.037037037037038},{"$f":"IF(N30>0,N30*1000/$E30,\"\")","v":5.5555555555555554},{"$f":"IF(O30>0,O30*1000/$E30,\"\")","v":18.518518518518519},"GRUD 2017, Modul 4/ Eigenschaften und Anwendung von Düngern, Tab. 6"]
[]
[null,"Mischgülle:  Milchvieh + Schweine-Mast"]
[null,"Vollgülle ","1:",0,{"$f":"(E24+E8)/2","v":70},{"$f":"(F24+F8)/2","v":53},5.2,3.3499999999999996,2.75,"-",3.65,2.4500000000000002,5.55,0.745,1.8,{"$f":"G33/$L33","v":2.1224489795918369},{"$f":"(I33+K33)/2/L33","v":1.3061224489795917},{"$f":"L33/$L33","v":1},{"$f":"M33/$L33","v":2.2653061224489792},{"$f":"N33/$L33","v":0.30408163265306121},null,{"$f":"IF(E33>0,E33/1000,\"\")","v":7.0000000000000007E-2},{"$f":"IF(F33>0,F33/E33,\"\")","v":0.75714285714285712},{"$f":"IF(G33>0,G33*1000/$E33,\"\")","v":74.285714285714292},{"$f":"IF(H33>0,H33*1000/$E33,\"\")","v":47.857142857142854},{"$f":"IF(I33>0,I33*1000/$E33,\"\")","v":39.285714285714285},{"$f":"IF(AB33=\"\",\"\",\"-\")","v":"-"},{"$f":"IF(K33>0,K33*1000/$E33,\"\")","v":52.142857142857146},{"$f":"IF(L33>0,L33*1000/$E33,\"\")","v":35},{"$f":"IF(M33>0,M33*1000/$E33,\"\")","v":79.285714285714292},{"$f":"IF(N33>0,N33*1000/$E33,\"\")","v":10.642857142857142},{"$f":"IF(O33>0,O33*1000/$E33,\"\")","v":25.714285714285715},"berechnet"]
[null,null,"1:",0.75,{"$f":"E$33/(1+$D34)","v":40},{"$f":"F$33/(1+$D34)","v":30.285714285714285},2.9714285714285715,1.9142857142857141,1.5714285714285714,"-",2.0857142857142859,1.4000000000000001,3.1714285714285713,0.42571428571428571,1.0285714285714287,null,null,null,null,null,null,{"$f":"IF(E34>0,E34/1000,\"\")","v":0.04}]
[null,null,"1:",1.5,{"$f":"E$33/(1+$D35)","v":28},21.2,2.08,1.3399999999999999,1.1000000000000001,"-",1.46,0.98000000000000009,2.2199999999999998,0.29799999999999999,0.72,null,null,null,null,null,null,{"$f":"IF(E35>0,E35/1000,\"\")","v":2.8000000000000001E-2}]
[]
[null,"Geflügel"]
[null,"Hennen/Junghennenkot (Kotband)",null,null,350,250,21,6.3,8.4,"-",13,17,11,2.4,37,{"$f":"G38/$L38","v":1.2352941176470589},{"$f":"(I38+K38)/2/L38","v":0.62941176470588234},{"$f":"L38/$L38","v":1},0.6470588235294118,0.14117647058823529,null,{"$f":"IF(E38>0,E38/1000,\"\")","v":0.35},{"$f":"IF(F38>0,F38/E38,\"\")","v":0.7142857142857143},{"$f":"IF(G38>0,G38*1000/$E38,\"\")","v":60},18,24,{"$f":"IF(AB38=\"\",\"\",\"-\")","v":"-"},{"$f":"IF(K38>0,K38*1000/$E38,\"\")","v":37.142857142857146},48.571428571428569,31.428571428571427,6.8571428571428568,105.71428571428571,"GRUD 2017, Modul 4/ Eigenschaften und Anwendung von Düngern, Tab. 6"]
[null,"Hennenmist (Kotgrube, Boden-",null,null,500,330,26,7,11,"-",16,30,20,4.3,67,{"$f":"G39/$L39","v":0.8666666666666667},{"$f":"(I39+K39)/2/L39","v":0.45},1,0.66666666666666663,0.14333333333333334,null,{"$f":"IF(E39>0,E39/1000,\"\")","v":0.5},{"$f":"IF(F39>0,F39/E39,\"\")","v":0.66},52,14,22,{"$f":"IF(AB39=\"\",\"\",\"-\")","v":"-"},32,60,40,8.6,134,"GRUD 2017, Modul 4/ Eigenschaften und Anwendung von Düngern, Tab. 6"]
[null,"                                      haltung)"]
[null,"Junghennenmist (Kotgrube, Bodenhaltung)",null,null,500,330,26,7,11,"-",16,30,20,4.3,67,{"$f":"G41/$L41","v":0.8666666666666667},{"$f":"(I41+K41)/2/L41","v":0.45},1,0.66666666666666663,0.14333333333333334,null,{"$f":"IF(E41>0,E41/1000,\"\")","v":0.5},{"$f":"IF(F41>0,F41/E41,\"\")","v":0.66},{"$f":"IF(G41>0,G41*1000/$E41,\"\")","v":52},{"$f":"IF(H41>0,H41*1000/$E41,\"\")","v":14},{"$f":"IF(I41>0,I41*1000/$E41,\"\")","v":22},{"$f":"IF(AB41=\"\",\"\",\"-\")","v":"-"},{"$f":"IF(K41>0,K41*1000/$E41,\"\")","v":32},{"$f":"IF(L41>0,L41*1000/$E41,\"\")","v":60},{"$f":"IF(M41>0,M41*1000/$E41,\"\")","v":40},{"$f":"IF(N41>0,N41*1000/$E41,\"\")","v":8.6},{"$f":"IF(O41>0,O41*1000/$E41,\"\")","v":134},"GRUD 2017, Modul 4/ Eigenschaften und Anwendung von Düngern, Tab. 6"]
[null,"Pouletmist",null,null,650,440,32,10,13,"-",19,17,28,5.5,5,{"$f":"G42/$L42","v":1.8823529411764706},{"$f":"(I42+K42)/2/L42","v":0.94117647058823528},1,1.6470588235294117,0.3235294117647059,null,{"$f":"IF(E42>0,E42/1000,\"\")","v":0.65},{"$f":"IF(F42>0,F42/E42,\"\")","v":0.67692307692307696},49.230769230769234,15.384615384615385,20,{"$f":"IF(AB42=\"\",\"\",\"-\")","v":"-"},29.23076923076923,26.153846153846153,43.07692307692308,8.4615384615384617,7.6923076923076925,"GRUD 2017, Modul 4/ Eigenschaften und Anwendung von Düngern, Tab. 6"]
[null,"Trutenmist",null,null,600,400,28,7.5,12,"-",18,23,13,6,12,{"$f":"G43/$L43","v":1.2173913043478262},{"$f":"(I43+K43)/2/L43","v":0.65217391304347827},1,0.56521739130434778,0.2608695652173913,null,{"$f":"IF(E43>0,E43/1000,\"\")","v":0.6},{"$f":"IF(F43>0,F43/E43,\"\")","v":0.66666666666666663},46.666666666666664,12.5,20,{"$f":"IF(AB43=\"\",\"\",\"-\")","v":"-"},30,38.333333333333336,21.666666666666668,10,20,"GRUD 2017, Modul 4/ Eigenschaften und Anwendung von Düngern, Tab. 6"]
[]
[null,"Diverse"]
[null,"Kälbermist",null,null,200,150,5,1.9,1.3,"-",2.5,2.5,5.7,0.89,1.7,{"$f":"G46/$L46","v":2},{"$f":"(I46+K46)/2/L46","v":0.76},{"$f":"L46/$L46","v":1},2.2800000000000002,0.35599999999999998,null,{"$f":"IF(E46>0,E46/1000,\"\")","v":0.2},{"$f":"IF(F46>0,F46/E46,\"\")","v":0.75},{"$f":"IF(G46>0,G46*1000/$E46,\"\")","v":25},9.5,6.5,{"$f":"IF(AB46=\"\",\"\",\"-\")","v":"-"},{"$f":"IF(K46>0,K46*1000/$E46,\"\")","v":12.5},12.5,28.5,4.45,8.5,"GRUD 2017, Modul 4/ Eigenschaften und Anwendung von Düngern, Tab. 6"]
[null,"Pferdemist frisch",null,null,350,300,4.4000000000000004,1.2,0.3,"-",0.8,2.5,9.8000000000000007,0.6,2.5,{"$f":"G47/$L47","v":1.7600000000000002},{"$f":"(I47+K47)/2/L47","v":0.22000000000000003},1,3.9200000000000004,0.24,null,{"$f":"IF(E47>0,E47/1000,\"\")","v":0.35},{"$f":"IF(F47>0,F47/E47,\"\")","v":0.8571428571428571},12.571428571428571,3.4285714285714284,0.8571428571428571,{"$f":"IF(AB47=\"\",\"\",\"-\")","v":"-"},2.2857142857142856,7.1428571428571432,28,1.7142857142857142,7.1428571428571432,"GRUD 2017, Modul 4/ Eigenschaften und Anwendung von Düngern, Tab. 6"]
[null,"Pferdemist",null,null,350,240,6.8,0.7,0.7,"-",1.8,5,19,1.3,5,{"$f":"G48/$L48","v":1.3599999999999999},{"$f":"(I48+K48)/2/L48","v":0.25},1,3.8,0.26,null,{"$f":"IF(E48>0,E48/1000,\"\")","v":0.35},{"$f":"IF(F48>0,F48/E48,\"\")","v":0.68571428571428572},19.428571428571427,2,2,{"$f":"IF(AB48=\"\",\"\",\"-\")","v":"-"},5.1428571428571432,14.285714285714286,54.285714285714285,3.7142857142857144,14.285714285714286,"GRUD 2017, Modul 4/ Eigenschaften und Anwendung von Düngern, Tab. 6"]
[null,"Schaf-/Ziegenmist",null,null,270,200,8.1999999999999993,2.4,3.3,"-",4.9000000000000004,3.7,17,1.3,4.9000000000000004,{"$f":"G49/$L49","v":2.2162162162162158},{"$f":"(I49+K49)/2/L49","v":1.1081081081081079},1,4.5945945945945947,0.35135135135135137,null,{"$f":"IF(E49>0,E49/1000,\"\")","v":0.27},{"$f":"IF(F49>0,F49/E49,\"\")","v":0.7407407407407407},30.37037037037037,8.8888888888888893,12.222222222222221,{"$f":"IF(AB49=\"\",\"\",\"-\")","v":"-"},18.148148148148149,13.703703703703704,62.962962962962962,4.8148148148148149,18.148148148148149,"GRUD 2017, Modul 4/ Eigenschaften und Anwendung von Düngern, Tab. 6"]
[]
[null,"Separatormist",null,null,null,null,7,null,null,null,null,4.3,null,null,null,{"$f":"G51/$L51","v":1.6279069767441861},null,{"$f":"L51/$L51","v":1},null,null,500,{"$f":"IF(E51>0,E51/1000,\"\")","v":""},{"$f":"IF(F51>0,F51/E51,\"\")","v":""},{"$f":"IF(G51>0,G51*1000/$E51,\"\")","v":{"$error":"#DIV/0!"}},{"$f":"IF(H51>0,H51*1000/$E51,\"\")","v":""},{"$f":"IF(I51>0,I51*1000/$E51,\"\")","v":""},{"$f":"IF(AB51=\"\",\"\",\"-\")","v":""},{"$f":"IF(K51>0,K51*1000/$E51,\"\")","v":""},{"$f":"IF(L51>0,L51*1000/$E51,\"\")","v":{"$error":"#DIV/0!"}},{"$f":"IF(M51>0,M51*1000/$E51,\"\")","v":""},{"$f":"IF(N51>0,N51*1000/$E51,\"\")","v":""},{"$f":"IF(O51>0,O51*1000/$E51,\"\")","v":""}," aus Gehaltstabelle HODUFLU"]
[null,"Ntot : Gesamt-Stickstoff (unabhängig von der Form); kaum vermeidbare Verluste in Stall und während Lagerung abgezogen."]
[null,"Nlös : Wasserlösliche Stickstoffformen (v.a. Ammonium); sofort pflanzenverfügbar, aber auch verlustgefährdet"]
[null,"Nverf : Pflanzenverfügbarer Stickstoff (kurz- und mittelfristig)"]
[null,"TS: Trockensubstanz, OS: organische Substanz"]
[]
[null,"Mittlere Gehalte von Recyclingdüngern  (nach GRUD 2017, Modul 4, Tab. 8)"]
[null,"Bei Bezügen gilt der Lieferschein des Abgebers. "]
[null,null,null,null,"TS","OS","Ntot","Nlös","Nverf",null,null,"P2O5","K2O","Mg","Ca","Nährstoffverhältnisse",null,null,null,null,"Raumgewicht","%TS","OS","Ntot","Nlös","Nverf",null,null,"P2O5","K2O","Mg","Ca","  Bemerkungen"]
[null,null,null,null,"kg / t Frischsubstanz",null,null,null,null,null,null,null,null,null,null,"Ntot","Nverf","P","K","Mg","kg/m3",null,"%TS","kg / t TS"]
[]
[null,"Kompost (Grünabfuhr-)",null,"Mittel",510,214,7,0.3,0.4,"-",0.7,3,5,3,25,{"$f":"G62/$L62","v":2.3333333333333335},{"$f":"(I62+K62)/2/L62","v":0.18333333333333335},{"$f":"L62/$L62","v":1},{"$f":"M62/$L62","v":1.6666666666666667},{"$f":"N62/$L62","v":1},"500-800",{"$f":"IF(E62>0,E62/1000,\"\")","v":0.51},{"$f":"IF(F62>0,F62/E62,\"\")","v":0.41960784313725491},{"$f":"IF(G62>0,G62*1000/$E62,\"\")","v":13.725490196078431},{"$f":"IF(H62>0,H62*1000/$E62,\"\")","v":0.58823529411764708},{"$f":"IF(I62>0,I62*1000/$E62,\"\")","v":0.78431372549019607},{"$f":"IF(AB62=\"\",\"\",\"-\")","v":"-"},{"$f":"IF(K62>0,K62*1000/$E62,\"\")","v":1.3725490196078431},{"$f":"IF(L62>0,L62*1000/$E62,\"\")","v":5.882352941176471},{"$f":"IF(M62>0,M62*1000/$E62,\"\")","v":9.8039215686274517},{"$f":"IF(N62>0,N62*1000/$E62,\"\")","v":5.882352941176471},{"$f":"IF(O62>0,O62*1000/$E62,\"\")","v":49.019607843137258},"  GRUD 2017, Modul 4/ Eigenschaften und Anwendung von Düngern, Tab. 8"]
[null,null,null,null,null,null,null,null,"5-10% von Ntot"]
[null,null,null,"Bereich",null,null,"2-15","0.01-3",{"$f":"0.05*2","v":0.1},"-",1.5,"1-15","2-17","0.5-10","7-28"]
[]
[null,"aus gewerblich-industriellen Vergärungsanlagen",null,null,null,null,null,null,"kg / t  Frischsubstanz"]
[null,"    Gärreste fest",null,null,490,235,6,0.3,{"$f":"0.2*G67","v":1.2000000000000002},"-",{"$f":"0.4*G67","v":2.4000000000000004},3,5,3,25,{"$f":"G67/$L67","v":2},{"$f":"(I67+K67)/2/L67","v":0.60000000000000009},{"$f":"L67/$L67","v":1},1.6666666666666667,1,null,{"$f":"IF(E67>0,E67/1000,\"\")","v":0.49},{"$f":"IF(F67>0,F67/E67,\"\")","v":0.47959183673469385},{"$f":"IF(G67>0,G67*1000/$E67,\"\")","v":12.244897959183673},0.61224489795918369,2.4489795918367352,{"$f":"IF(AB67=\"\",\"\",\"-\")","v":"-"},{"$f":"IF(K67>0,K67*1000/$E67,\"\")","v":4.8979591836734704},6.1224489795918364,10.204081632653061,6.1224489795918364,51.020408163265309,"  GRUD 2017, Modul 4/ Eigenschaften und Anwendung von Düngern, Tab. 8"]
[null,"    Gärreste flüssig",null,null,130,61,4,2,{"$f":"0.5*G68","v":2},"-",{"$f":"0.65*G68","v":2.6},2,4,1,5,{"$f":"G68/$L68","v":2},{"$f":"(I68+K68)/2/L68","v":1.1499999999999999},1,2,0.5,null,{"$f":"IF(E68>0,E68/1000,\"\")","v":0.13},{"$f":"IF(F68>0,F68/E68,\"\")","v":0.46923076923076923},30.76923076923077,15.384615384615385,15.384615384615385,{"$f":"IF(AB68=\"\",\"\",\"-\")","v":"-"},20,15.384615384615385,30.76923076923077,7.6923076923076925,38.46153846153846,"  GRUD 2017, Modul 4/ Eigenschaften und Anwendung von Düngern, Tab. 8"]
[]
[null,null,null,null,null,"Anrechnung in der Suisse-Bilanz:"," * Nverf = Nges HODUFLU-Lieferschein * 20% "]
[null,null,null,null,null,null," ** Nverf = Nges HODUFLU-Lieferschein * spez. Ausnutzung (50-65%)"]
[]
[]
[null,"Diverse org. Materialien"]
[null,null,null,null,"kg / m3  Frischsubstanz",null,null,null,null,null,null,null,null,null,null,"Ntot","Nverf","P2O5","K2O","Mg","kg FS / m3"]
[null,"Gemüse-Rüstabfälle",null,null,null,null,0.8,null,0.6,null,null,0.3,1,0.05,null,{"$f":"G76/$L76","v":2.666666666666667},{"$f":"I76/L76","v":2},{"$f":"L76/$L76","v":1},{"$f":"M76/$L76","v":3.3333333333333335},{"$f":"N76/$L76","v":0.16666666666666669},"300-400",null,null,null,null,null,null,null,null,null,null,null,"  aus Wegleitung Suisse-Bilanz 1.16, Seite 15, Formular D"]
[]
[null,"Ernterückstände von Gemüse-",null,null,"kg / t  Frischsubstanz"]
[null,"   kulturen   -   Mittelwerte ",null,null,null,null,3.3,null,0.7,null,null,0.9,4,0.6,null,null,{"$f":"I79/L79","v":0.77777777777777768},{"$f":"L79/$L79","v":1},{"$f":"M79/$L79","v":4.4444444444444446},{"$f":"N79/$L79","v":0.66666666666666663},null,null,null,null,null,null,null,null,null,null,null,null,"  aus Wegleitung Suisse-Bilanz 1.16, Seite 15, Formular D"]
[]
[null,"  Schnittgut von Streueflächen"]